Workbook

Sheet INTRO
B2: PC Joint Reporting Form v.3
B4: The purpose of this template Joint Reporting Form (JRF) - available as an Excel file - is to provide national health authorities and data managers with a standardized tool to address these reporting challenges, facilitate integration and thereby further contribute to improving overall programme management. This template aims to standardize national reporting of programme implementation outcomes, improve availability and coordination of preventive chemotherapy data across the World Health Organization regions. National authorities are requested to complete this form for submission to the World Health Organization any time before 15 August of the current year for reporting data on PC interventions implemented during the previous year.
B6: Structure of the application (worksheets):
B8: INTRO | C8: This worksheet includes guides on how to complete the joint reporting form and information about status of PC for endemic diseases in the country
B9: COUNTRY_INFO | C9: This worksheet includes information about administrative structure of the country, population by age group, status of endemicity for each disease, population requiring PC, planned interventions and interventions implemented
B10: MDA1, MDA2, MDA3, T1, T2 and T3 | C10: These worksheets include information about endemic districts targeted for treatment with specified PC medicines, treatment plan, and number of people who received treatment by age group
B11: DISTRICT | C11: This worksheet includes summary of people treated by disease at the level of implementation. If data by gender is available, it requires to enter.
B12: SUMMARY | C12: This worksheet includes summary of people treated by disease and by PC intervention. Before generating the report (run macros) please select the disease for which you need the report. Follow the same rule to generate various reports. This worksheet should be printed and submitted as a Joint Report (see the instruction for submission in the SUMMARY worksheet).
B14: Instruction for data entry
B16: Most of the cells in the above-mentioned worksheets include formula that are calculated automatically according to the treatment policy recommended by WHO for each disease. See the link http://www.who.int/neglected_diseases/preventive_chemotherapy/pct_manual/en/index.html
B18: Please enter your data into the cells according to their colour code:
C20: White - cell is not protected. Please enter the value of the requested indicator.
C22: Yellow - cell is protected and includes name of indicator. No data entry required.
C24: Orange - cell is not protected and includes a drop-down menu. Please select the value from the drop-down list.
C27: Green - cell is not protected and includes formula. Please change the value only if your data are different from those that are calculated automatically.
C30: Blue - cell is protected and includes formula. No data entry required.
B32: Country data
B34: COUNTRY | E34: Mozambique
B36: Year of reporting data | E36: 2017
B38: Is country endemic for lymphatic filariasis (LF)? | E38: Endemic
B40: Is country endemic for onchocerciasis (ONCHO)? | E40: Endemic but PC is not required
B42: Is country endemic for soil-transmitted helminthiases (STH)? | E42: Endemic
B44: Is country endemic for schistosomiasis (SCH)? | E44: Endemic
B46: How many administrative units in the country? | E46: 161
B47: If demographical data at the second administrative level are not available by age group, please enter the proportion (%) of population by age group in the country. If data are available, please leave these cells blank.
B48: 1-4 years age | C48: Preschool-age children (PreSAC) | E48: 0.17
B49: 5-14 years age | C49: School-age children (SAC) | E49: 0.28
B50: 15 years + | C50: Adults | E50: 0.55

Sheet COUNTRY_INFO
A1: COUNTRY INFORMATION
A2: Administrative structure, population by age group, endemicity status, planned interventions and interventions implemented
A4: TOTAL | D4: =SUM(D$9:D$1000) -> 27164757.8 | E4: =SUM(E$9:E$1000) -> 4618015 | F4: =SUM(F$9:F$1000) -> 7606142 | G4: =SUM(G$9:G$1000) -> 14940617 | L4: =SUM(L$9:L$1000) -> 19762613.05 | M4: =SUM(M$9:M$1000) -> 0 | N4: =SUM(N$9:N$1000) -> 11730145 | O4: =SUM(O$9:O$1000) -> 14568567.36
A6: Country administrative structure | D6: Population | H6: Endemicity | L6: Population requiring PC | P6: Number of treatment rounds planned for the year | T6: PC implemented | V6: Click to see the recommended strategy
A7: Country | B7: Province/State | C7: District | D7: Total | E7: PreSAC | F7: SAC | G7: Adults | H7: LF | I7: Oncho | J7: STH | K7: SCH | L7: LF | M7: Oncho | N7: STH | O7: SCH | P7: LF | Q7: Oncho | R7: STH | S7: SCH | T7: ROUND 1 | U7: ROUND2 | X7: IU_ID | Y7: IU_Name
A9: =IF(INTRO!$E$34<>0,INTRO!$E$34,"") -> Mozambique | B9: Cabo Delgado | C9: Cid. Pemba | D9: 218152 | E9: =IF(INTRO!$E$48="","",ROUND($D9*INTRO!$E$48,0)) -> 37086 | F9: =IF(INTRO!$E$49="","",ROUND($D9*INTRO!$E$49,0)) -> 61083 | G9: =IF(INTRO!$E$50="","",ROUND($D9*INTRO!$E$50,0)) -> 119984 | H9: 1 | J9: 3 | K9: 1 | L9: =IF(INTRO!$E$38="Endemic", IF($H9>0, IF($H9=4,"Unknown", IF($H9=99,"Stopped", $D9)), 0),"Not required") -> 218152 | M9: =IF(INTRO!$E$40="Endemic", IF($I9>0, IF($I9=4,"Unknown",IF($I9=99,"Stopped", $D9)), 0),"Not required") -> Not required | N9: =IF(INTRO!$E$42="Endemic", IF(AND($J9>1,$J9<5), IF($J9=4, "Unknown", E9+F9), 0),"Not required") -> 98169 | O9: =IF(INTRO!$E$44="Endemic", IF(AND($K9>0,$K9<5), IF($K9=4,"Unknown", IF($K9=1, $F9*0.33, IF($K9=2, $F9*0.5+$G9*0.2, SUM(F9:G9)))), 0),"Not required") -> 20157.39 | P9: 1 | R9: 2 | S9: 0 | T9: MDA1 (IVM+ALB) | U9: T3 (ALB/MBD) | V9: MDA 1 | W9: T1 | X9: 33103 | Y9: Cid. Pemba | AA9: =Y9=C9 -> TRUE
A10: =IF(INTRO!$E$34<>0,INTRO!$E$34,"") -> Mozambique | B10: Cabo Delgado | C10: Ancuabe | D10: 123046 | E10: =IF(INTRO!$E$48="","",ROUND($D10*INTRO!$E$48,0)) -> 20918 | F10: =IF(INTRO!$E$49="","",ROUND($D10*INTRO!$E$49,0)) -> 34453 | G10: =IF(INTRO!$E$50="","",ROUND($D10*INTRO!$E$50,0)) -> 67675 | H10: 1 | J10: 3 | K10: 3 | L10: =IF(INTRO!$E$38="Endemic", IF($H10>0, IF($H10=4,"Unknown", IF($H10=99,"Stopped", $D10)), 0),"Not required") -> 123046 | M10: =IF(INTRO!$E$40="Endemic", IF($I10>0, IF($I10=4,"Unknown",IF($I10=99,"Stopped", $D10)), 0),"Not required") -> Not required | N10: =IF(INTRO!$E$42="Endemic", IF(AND($J10>1,$J10<5), IF($J10=4, "Unknown", E10+F10), 0),"Not required") -> 55371 | O10: =IF(INTRO!$E$44="Endemic", IF(AND($K10>0,$K10<5), IF($K10=4,"Unknown", IF($K10=1, $F10*0.33, IF($K10=2, $F10*0.5+$G10*0.2, SUM(F10:G10)))), 0),"Not required") -> 102128 | P10: 1 | R10: 2 | S10: 1 | T10: MDA1 (IVM+ALB) | U10: T1 (PZQ+ALB/MBD) | V10: MDA 1 | W10: T1 | X10: 33100 | Y10: Ancuabe | AA10: =Y10=C10 -> TRUE
A11: =IF(INTRO!$E$34<>0,INTRO!$E$34,"") -> Mozambique | B11: Cabo Delgado | C11: Balama | D11: 145663 | E11: =IF(INTRO!$E$48="","",ROUND($D11*INTRO!$E$48,0)) -> 24763 | F11: =IF(INTRO!$E$49="","",ROUND($D11*INTRO!$E$49,0)) -> 40786 | G11: =IF(INTRO!$E$50="","",ROUND($D11*INTRO!$E$50,0)) -> 80115 | H11: 1 | J11: 3 | K11: 3 | L11: =IF(INTRO!$E$38="Endemic", IF($H11>0, IF($H11=4,"Unknown", IF($H11=99,"Stopped", $D11)), 0),"Not required") -> 145663 | M11: =IF(INTRO!$E$40="Endemic", IF($I11>0, IF($I11=4,"Unknown",IF($I11=99,"Stopped", $D11)), 0),"Not required") -> Not required | N11: =IF(INTRO!$E$42="Endemic", IF(AND($J11>1,$J11<5), IF($J11=4, "Unknown", E11+F11), 0),"Not required") -> 65549 | O11: =IF(INTRO!$E$44="Endemic", IF(AND($K11>0,$K11<5), IF($K11=4,"Unknown", IF($K11=1, $F11*0.33, IF($K11=2, $F11*0.5+$G11*0.2, SUM(F11:G11)))), 0),"Not required") -> 120901 | P11: 1 | R11: 2 | S11: 1 | T11: MDA1 (IVM+ALB) | U11: T1 (PZQ+ALB/MBD) | V11: MDA 1 | W11: T1 | X11: 33101 | Y11: Balama | AA11: TRUE
A12: =IF(INTRO!$E$34<>0,INTRO!$E$34,"") -> Mozambique | B12: Cabo Delgado | C12: Chiure | D12: 254611 | E12: =IF(INTRO!$E$48="","",ROUND($D12*INTRO!$E$48,0)) -> 43284 | F12: =IF(INTRO!$E$49="","",ROUND($D12*INTRO!$E$49,0)) -> 71291 | G12: =IF(INTRO!$E$50="","",ROUND($D12*INTRO!$E$50,0)) -> 140036 | H12: 1 | J12: 3 | K12: 3 | L12: =IF(INTRO!$E$38="Endemic", IF($H12>0, IF($H12=4,"Unknown", IF($H12=99,"Stopped", $D12)), 0),"Not required") -> 254611 | M12: =IF(INTRO!$E$40="Endemic", IF($I12>0, IF($I12=4,"Unknown",IF($I12=99,"Stopped", $D12)), 0),"Not required") -> Not required | N12: =IF(INTRO!$E$42="Endemic", IF(AND($J12>1,$J12<5), IF($J12=4, "Unknown", E12+F12), 0),"Not required") -> 114575 | O12: =IF(INTRO!$E$44="Endemic", IF(AND($K12>0,$K12<5), IF($K12=4,"Unknown", IF($K12=1, $F12*0.33, IF($K12=2, $F12*0.5+$G12*0.2, SUM(F12:G12)))), 0),"Not required") -> 211327 | P12: 1 | R12: 2 | S12: 1 | T12: MDA1 (IVM+ALB) | U12: T2 (PZQ) | V12: MDA 1 | W12: T1 | X12: 33102 | Y12: Chiure | AA12: TRUE
A13: =IF(INTRO!$E$34<>0,INTRO!$E$34,"") -> Mozambique | B13: Cabo Delgado | C13: Ibo | D13: 12393 | E13: =IF(INTRO!$E$48="","",ROUND($D13*INTRO!$E$48,0)) -> 2107 | F13: =IF(INTRO!$E$49="","",ROUND($D13*INTRO!$E$49,0)) -> 3470 | G13: =IF(INTRO!$E$50="","",ROUND($D13*INTRO!$E$50,0)) -> 6816 | H13: 1 | J13: 3 | K13: 2 | L13: =IF(INTRO!$E$38="Endemic", IF($H13>0, IF($H13=4,"Unknown", IF($H13=99,"Stopped", $D13)), 0),"Not required") -> 12393 | M13: =IF(INTRO!$E$40="Endemic", IF($I13>0, IF($I13=4,"Unknown",IF($I13=99,"Stopped", $D13)), 0),"Not required") -> Not required | N13: =IF(INTRO!$E$42="Endemic", IF(AND($J13>1,$J13<5), IF($J13=4, "Unknown", E13+F13), 0),"Not required") -> 5577 | O13: =IF(INTRO!$E$44="Endemic", IF(AND($K13>0,$K13<5), IF($K13=4,"Unknown", IF($K13=1, $F13*0.33, IF($K13=2, $F13*0.5+$G13*0.2, SUM(F13:G13)))), 0),"Not required") -> 3098.2 | P13: 1 | R13: 2 | S13: 0 | T13: MDA1 (IVM+ALB) | U13: T3 (ALB/MBD) | V13: MDA 1 | W13: T1 | X13: 33104 | Y13: Ibo | AA13: TRUE
A14: =IF(INTRO!$E$34<>0,INTRO!$E$34,"") -> Mozambique | B14: Cabo Delgado | C14: Macomia | D14: 93396 | E14: =IF(INTRO!$E$48="","",ROUND($D14*INTRO!$E$48,0)) -> 15877 | F14: =IF(INTRO!$E$49="","",ROUND($D14*INTRO!$E$49,0)) -> 26151 | G14: =IF(INTRO!$E$50="","",ROUND($D14*INTRO!$E$50,0)) -> 51368 | H14: 1 | J14: 3 | K14: 2 | L14: =IF(INTRO!$E$38="Endemic", IF($H14>0, IF($H14=4,"Unknown", IF($H14=99,"Stopped", $D14)), 0),"Not required") -> 93396 | M14: =IF(INTRO!$E$40="Endemic", IF($I14>0, IF($I14=4,"Unknown",IF($I14=99,"Stopped", $D14)), 0),"Not required") -> Not required | N14: =IF(INTRO!$E$42="Endemic", IF(AND($J14>1,$J14<5), IF($J14=4, "Unknown", E14+F14), 0),"Not required") -> 42028 | O14: =IF(INTRO!$E$44="Endemic", IF(AND($K14>0,$K14<5), IF($K14=4,"Unknown", IF($K14=1, $F14*0.33, IF($K14=2, $F14*0.5+$G14*0.2, SUM(F14:G14)))), 0),"Not required") -> 23349.1 | P14: 1 | R14: 2 | S14: 1 | T14: MDA1 (IVM+ALB) | U14: T1 (PZQ+ALB/MBD) | V14: MDA 1 | W14: T1 | X14: 33105 | Y14: Macomia | AA14: TRUE
A15: =IF(INTRO!$E$34<>0,INTRO!$E$34,"") -> Mozambique | B15: Cabo Delgado | C15: Mecufi | D15: 49074 | E15: =IF(INTRO!$E$48="","",ROUND($D15*INTRO!$E$48,0)) -> 8343 | F15: =IF(INTRO!$E$49="","",ROUND($D15*INTRO!$E$49,0)) -> 13741 | G15: =IF(INTRO!$E$50="","",ROUND($D15*INTRO!$E$50,0)) -> 26991 | H15: 1 | J15: 3 | K15: 2 | L15: =IF(INTRO!$E$38="Endemic", IF($H15>0, IF($H15=4,"Unknown", IF($H15=99,"Stopped", $D15)), 0),"Not required") -> 49074 | M15: =IF(INTRO!$E$40="Endemic", IF($I15>0, IF($I15=4,"Unknown",IF($I15=99,"Stopped", $D15)), 0),"Not required") -> Not required | N15: =IF(INTRO!$E$42="Endemic", IF(AND($J15>1,$J15<5), IF($J15=4, "Unknown", E15+F15), 0),"Not required") -> 22084 | O15: =IF(INTRO!$E$44="Endemic", IF(AND($K15>0,$K15<5), IF($K15=4,"Unknown", IF($K15=1, $F15*0.33, IF($K15=2, $F15*0.5+$G15*0.2, SUM(F15:G15)))), 0),"Not required") -> 12268.7 | P15: 1 | R15: 2 | S15: 1 | T15: MDA1 (IVM+ALB) | U15: T1 (PZQ+ALB/MBD) | V15: MDA 1 | W15: T1 | X15: 33106 | Y15: Mecufi | AA15: TRUE
A16: =IF(INTRO!$E$34<>0,INTRO!$E$34,"") -> Mozambique | B16: Cabo Delgado | C16: Meluco | D16: 26302 | E16: =IF(INTRO!$E$48="","",ROUND($D16*INTRO!$E$48,0)) -> 4471 | F16: =IF(INTRO!$E$49="","",ROUND($D16*INTRO!$E$49,0)) -> 7365 | G16: =IF(INTRO!$E$50="","",ROUND($D16*INTRO!$E$50,0)) -> 14466 | H16: 1 | J16: 3 | K16: 3 | L16: =IF(INTRO!$E$38="Endemic", IF($H16>0, IF($H16=4,"Unknown", IF($H16=99,"Stopped", $D16)), 0),"Not required") -> 26302 | M16: =IF(INTRO!$E$40="Endemic", IF($I16>0, IF($I16=4,"Unknown",IF($I16=99,"Stopped", $D16)), 0),"Not required") -> Not required | N16: =IF(INTRO!$E$42="Endemic", IF(AND($J16>1,$J16<5), IF($J16=4, "Unknown", E16+F16), 0),"Not required") -> 11836 | O16: =IF(INTRO!$E$44="Endemic", IF(AND($K16>0,$K16<5), IF($K16=4,"Unknown", IF($K16=1, $F16*0.33, IF($K16=2, $F16*0.5+$G16*0.2, SUM(F16:G16)))), 0),"Not required") -> 21831 | P16: 1 | R16: 2 | S16: 1 | T16: MDA1 (IVM+ALB) | U16: T3 (ALB/MBD) | V16: MDA 1 | W16: T1 | X16: 33107 | Y16: Meluco | AA16: TRUE
A17: =IF(INTRO!$E$34<>0,INTRO!$E$34,"") -> Mozambique | B17: Cabo Delgado | C17: Moc Praia | D17: 112547 | E17: =IF(INTRO!$E$48="","",ROUND($D17*INTRO!$E$48,0)) -> 19133 | F17: =IF(INTRO!$E$49="","",ROUND($D17*INTRO!$E$49,0)) -> 31513 | G17: =IF(INTRO!$E$50="","",ROUND($D17*INTRO!$E$50,0)) -> 61901 | H17: 1 | J17: 3 | K17: 2 | L17: =IF(INTRO!$E$38="Endemic", IF($H17>0, IF($H17=4,"Unknown", IF($H17=99,"Stopped", $D17)), 0),"Not required") -> 112547 | M17: =IF(INTRO!$E$40="Endemic", IF($I17>0, IF($I17=4,"Unknown",IF($I17=99,"Stopped", $D17)), 0),"Not required") -> Not required | N17: =IF(INTRO!$E$42="Endemic", IF(AND($J17>1,$J17<5), IF($J17=4, "Unknown", E17+F17), 0),"Not required") -> 50646 | O17: =IF(INTRO!$E$44="Endemic", IF(AND($K17>0,$K17<5), IF($K17=4,"Unknown", IF($K17=1, $F17*0.33, IF($K17=2, $F17*0.5+$G17*0.2, SUM(F17:G17)))), 0),"Not required") -> 28136.7 | P17: 1 | R17: 2 | S17: 0 | T17: MDA1 (IVM+ALB) | U17: T3 (ALB/MBD) | V17: MDA 1 | W17: T1 | X17: 33108 | Y17: Moc Praia | AA17: TRUE
A18: =IF(INTRO!$E$34<>0,INTRO!$E$34,"") -> Mozambique | B18: Cabo Delgado | C18: Montepuez | D18: 237669 | E18: =IF(INTRO!$E$48="","",ROUND($D18*INTRO!$E$48,0)) -> 40404 | F18: =IF(INTRO!$E$49="","",ROUND($D18*INTRO!$E$49,0)) -> 66547 | G18: =IF(INTRO!$E$50="","",ROUND($D18*INTRO!$E$50,0)) -> 130718 | H18: 1 | J18: 2 | K18: 3 | L18: =IF(INTRO!$E$38="Endemic", IF($H18>0, IF($H18=4,"Unknown", IF($H18=99,"Stopped", $D18)), 0),"Not required") -> 237669 | M18: =IF(INTRO!$E$40="Endemic", IF($I18>0, IF($I18=4,"Unknown",IF($I18=99,"Stopped", $D18)), 0),"Not required") -> Not required | N18: =IF(INTRO!$E$42="Endemic", IF(AND($J18>1,$J18<5), IF($J18=4, "Unknown", E18+F18), 0),"Not required") -> 106951 | O18: =IF(INTRO!$E$44="Endemic", IF(AND($K18>0,$K18<5), IF($K18=4,"Unknown", IF($K18=1, $F18*0.33, IF($K18=2, $F18*0.5+$G18*0.2, SUM(F18:G18)))), 0),"Not required") -> 197265 | P18: 1 | R18: 1 | S18: 1 | T18: MDA1 (IVM+ALB) | V18: MDA 1 | W18: T2 | X18: 33109 | Y18: Montepuez | AA18: TRUE
A19: =IF(INTRO!$E$34<>0,INTRO!$E$34,"") -> Mozambique | B19: Cabo Delgado | C19: Mueda | D19: 131338 | E19: =IF(INTRO!$E$48="","",ROUND($D19*INTRO!$E$48,0)) -> 22327 | F19: =IF(INTRO!$E$49="","",ROUND($D19*INTRO!$E$49,0)) -> 36775 | G19: =IF(INTRO!$E$50="","",ROUND($D19*INTRO!$E$50,0)) -> 72236 | H19: 1 | J19: 3 | K19: 2 | L19: =IF(INTRO!$E$38="Endemic", IF($H19>0, IF($H19=4,"Unknown", IF($H19=99,"Stopped", $D19)), 0),"Not required") -> 131338 | M19: =IF(INTRO!$E$40="Endemic", IF($I19>0, IF($I19=4,"Unknown",IF($I19=99,"Stopped", $D19)), 0),"Not required") -> Not required | N19: =IF(INTRO!$E$42="Endemic", IF(AND($J19>1,$J19<5), IF($J19=4, "Unknown", E19+F19), 0),"Not required") -> 59102 | O19: =IF(INTRO!$E$44="Endemic", IF(AND($K19>0,$K19<5), IF($K19=4,"Unknown", IF($K19=1, $F19*0.33, IF($K19=2, $F19*0.5+$G19*0.2, SUM(F19:G19)))), 0),"Not required") -> 32834.7 | P19: 1 | R19: 2 | S19: 0 | T19: MDA1 (IVM+ALB) | U19: T3 (ALB/MBD) | V19: MDA 1 | W19: T1 | X19: 33110 | Y19: Mueda | AA19: TRUE
A20: =IF(INTRO!$E$34<>0,INTRO!$E$34,"") -> Mozambique | B20: Cabo Delgado | C20: Muidumbe | D20: 79020 | E20: =IF(INTRO!$E$48="","",ROUND($D20*INTRO!$E$48,0)) -> 13433 | F20: =IF(INTRO!$E$49="","",ROUND($D20*INTRO!$E$49,0)) -> 22126 | G20: =IF(INTRO!$E$50="","",ROUND($D20*INTRO!$E$50,0)) -> 43461 | H20: 1 | J20: 3 | K20: 2 | L20: =IF(INTRO!$E$38="Endemic", IF($H20>0, IF($H20=4,"Unknown", IF($H20=99,"Stopped", $D20)), 0),"Not required") -> 79020 | M20: =IF(INTRO!$E$40="Endemic", IF($I20>0, IF($I20=4,"Unknown",IF($I20=99,"Stopped", $D20)), 0),"Not required") -> Not required | N20: =IF(INTRO!$E$42="Endemic", IF(AND($J20>1,$J20<5), IF($J20=4, "Unknown", E20+F20), 0),"Not required") -> 35559 | O20: =IF(INTRO!$E$44="Endemic", IF(AND($K20>0,$K20<5), IF($K20=4,"Unknown", IF($K20=1, $F20*0.33, IF($K20=2, $F20*0.5+$G20*0.2, SUM(F20:G20)))), 0),"Not required") -> 19755.2 | P20: 1 | R20: 2 | S20: 0 | T20: MDA1 (IVM+ALB) | U20: T3 (ALB/MBD) | V20: MDA 1 | W20: T1 | X20: 33111 | Y20: Muidumbe | AA20: TRUE
A21: =IF(INTRO!$E$34<>0,INTRO!$E$34,"") -> Mozambique | B21: Cabo Delgado | C21: Namuno | D21: 217025 | E21: =IF(INTRO!$E$48="","",ROUND($D21*INTRO!$E$48,0)) -> 36894 | F21: =IF(INTRO!$E$49="","",ROUND($D21*INTRO!$E$49,0)) -> 60767 | G21: =IF(INTRO!$E$50="","",ROUND($D21*INTRO!$E$50,0)) -> 119364 | H21: 1 | J21: 2 | K21: 3 | L21: =IF(INTRO!$E$38="Endemic", IF($H21>0, IF($H21=4,"Unknown", IF($H21=99,"Stopped", $D21)), 0),"Not required") -> 217025 | M21: =IF(INTRO!$E$40="Endemic", IF($I21>0, IF($I21=4,"Unknown",IF($I21=99,"Stopped", $D21)), 0),"Not required") -> Not required | N21: =IF(INTRO!$E$42="Endemic", IF(AND($J21>1,$J21<5), IF($J21=4, "Unknown", E21+F21), 0),"Not required") -> 97661 | O21: =IF(INTRO!$E$44="Endemic", IF(AND($K21>0,$K21<5), IF($K21=4,"Unknown", IF($K21=1, $F21*0.33, IF($K21=2, $F21*0.5+$G21*0.2, SUM(F21:G21)))), 0),"Not required") -> 180131 | P21: 1 | R21: 1 | S21: 1 | T21: MDA1 (IVM+ALB) | V21: MDA 1 | W21: T2 | X21: 33112 | Y21: Namuno | AA21: TRUE
A22: =IF(INTRO!$E$34<>0,INTRO!$E$34,"") -> Mozambique | B22: Cabo Delgado | C22: Nangade | D22: 72765 | E22: =IF(INTRO!$E$48="","",ROUND($D22*INTRO!$E$48,0)) -> 12370 | F22: =IF(INTRO!$E$49="","",ROUND($D22*INTRO!$E$49,0)) -> 20374 | G22: =IF(INTRO!$E$50="","",ROUND($D22*INTRO!$E$50,0)) -> 40021 | H22: 1 | J22: 3 | K22: 2 | L22: =IF(INTRO!$E$38="Endemic", IF($H22>0, IF($H22=4,"Unknown", IF($H22=99,"Stopped", $D22)), 0),"Not required") -> 72765 | M22: =IF(INTRO!$E$40="Endemic", IF($I22>0, IF($I22=4,"Unknown",IF($I22=99,"Stopped", $D22)), 0),"Not required") -> Not required | N22: =IF(INTRO!$E$42="Endemic", IF(AND($J22>1,$J22<5), IF($J22=4, "Unknown", E22+F22), 0),"Not required") -> 32744 | O22: =IF(INTRO!$E$44="Endemic", IF(AND($K22>0,$K22<5), IF($K22=4,"Unknown", IF($K22=1, $F22*0.33, IF($K22=2, $F22*0.5+$G22*0.2, SUM(F22:G22)))), 0),"Not required") -> 18191.2 | P22: 1 | R22: 2 | S22: 0 | T22: MDA1 (IVM+ALB) | U22: T3 (ALB/MBD) | V22: MDA 1 | W22: T1 | X22: 33113 | Y22: Nangade | AA22: TRUE
A23: =IF(INTRO!$E$34<>0,INTRO!$E$34,"") -> Mozambique | B23: Cabo Delgado | C23: Palma | D23: 52474 | E23: =IF(INTRO!$E$48="","",ROUND($D23*INTRO!$E$48,0)) -> 8921 | F23: =IF(INTRO!$E$49="","",ROUND($D23*INTRO!$E$49,0)) -> 14693 | G23: =IF(INTRO!$E$50="","",ROUND($D23*INTRO!$E$50,0)) -> 28861 | H23: 1 | J23: 3 | K23: 3 | L23: =IF(INTRO!$E$38="Endemic", IF($H23>0, IF($H23=4,"Unknown", IF($H23=99,"Stopped", $D23)), 0),"Not required") -> 52474 | M23: =IF(INTRO!$E$40="Endemic", IF($I23>0, IF($I23=4,"Unknown",IF($I23=99,"Stopped", $D23)), 0),"Not required") -> Not required | N23: =IF(INTRO!$E$42="Endemic", IF(AND($J23>1,$J23<5), IF($J23=4, "Unknown", E23+F23), 0),"Not required") -> 23614 | O23: =IF(INTRO!$E$44="Endemic", IF(AND($K23>0,$K23<5), IF($K23=4,"Unknown", IF($K23=1, $F23*0.33, IF($K23=2, $F23*0.5+$G23*0.2, SUM(F23:G23)))), 0),"Not required") -> 43554 | P23: 1 | R23: 2 | S23: 1 | T23: MDA1 (IVM+ALB) | U23: T3 (ALB/MBD) | V23: MDA 1 | W23: T1 | X23: 33114 | Y23: Palma | AA23: TRUE
A24: =IF(INTRO!$E$34<>0,INTRO!$E$34,"") -> Mozambique | B24: Cabo Delgado | C24: Pemba Metuge | D24: 86257 | E24: =IF(INTRO!$E$48="","",ROUND($D24*INTRO!$E$48,0)) -> 14664 | F24: =IF(INTRO!$E$49="","",ROUND($D24*INTRO!$E$49,0)) -> 24152 | G24: =IF(INTRO!$E$50="","",ROUND($D24*INTRO!$E$50,0)) -> 47441 | H24: 1 | J24: 3 | K24: 2 | L24: =IF(INTRO!$E$38="Endemic", IF($H24>0, IF($H24=4,"Unknown", IF($H24=99,"Stopped", $D24)), 0),"Not required") -> 86257 | M24: =IF(INTRO!$E$40="Endemic", IF($I24>0, IF($I24=4,"Unknown",IF($I24=99,"Stopped", $D24)), 0),"Not required") -> Not required | N24: =IF(INTRO!$E$42="Endemic", IF(AND($J24>1,$J24<5), IF($J24=4, "Unknown", E24+F24), 0),"Not required") -> 38816 | O24: =IF(INTRO!$E$44="Endemic", IF(AND($K24>0,$K24<5), IF($K24=4,"Unknown", IF($K24=1, $F24*0.33, IF($K24=2, $F24*0.5+$G24*0.2, SUM(F24:G24)))), 0),"Not required") -> 21564.2 | P24: 1 | R24: 2 | S24: 1 | T24: MDA1 (IVM+ALB) | U24: T1 (PZQ+ALB/MBD) | V24: MDA 1 | W24: T1 | X24: 33115 | Y24: Pemba Metuge | AA24: TRUE
A25: =IF(INTRO!$E$34<>0,INTRO!$E$34,"") -> Mozambique | B25: Cabo Delgado | C25: Quissanga | D25: 40610 | E25: =IF(INTRO!$E$48="","",ROUND($D25*INTRO!$E$48,0)) -> 6904 | F25: =IF(INTRO!$E$49="","",ROUND($D25*INTRO!$E$49,0)) -> 11371 | G25: =IF(INTRO!$E$50="","",ROUND($D25*INTRO!$E$50,0)) -> 22336 | H25: 1 | J25: 3 | K25: 2 | L25: =IF(INTRO!$E$38="Endemic", IF($H25>0, IF($H25=4,"Unknown", IF($H25=99,"Stopped", $D25)), 0),"Not required") -> 40610 | M25: =IF(INTRO!$E$40="Endemic", IF($I25>0, IF($I25=4,"Unknown",IF($I25=99,"Stopped", $D25)), 0),"Not required") -> Not required | N25: =IF(INTRO!$E$42="Endemic", IF(AND($J25>1,$J25<5), IF($J25=4, "Unknown", E25+F25), 0),"Not required") -> 18275 | O25: =IF(INTRO!$E$44="Endemic", IF(AND($K25>0,$K25<5), IF($K25=4,"Unknown", IF($K25=1, $F25*0.33, IF($K25=2, $F25*0.5+$G25*0.2, SUM(F25:G25)))), 0),"Not required") -> 10152.7 | P25: 1 | R25: 2 | S25: 1 | T25: MDA1 (IVM+ALB) | U25: T1 (PZQ+ALB/MBD) | V25: MDA 1 | W25: T1 | X25: 33116 | Y25: Quissanga | AA25: TRUE
A26: =IF(INTRO!$E$34<>0,INTRO!$E$34,"") -> Mozambique | B26: Niassa | C26: Cidade de Lichinga | D26: 235224 | E26: =IF(INTRO!$E$48="","",ROUND($D26*INTRO!$E$48,0)) -> 39988 | F26: =IF(INTRO!$E$49="","",ROUND($D26*INTRO!$E$49,0)) -> 65863 | G26: =IF(INTRO!$E$50="","",ROUND($D26*INTRO!$E$50,0)) -> 129373 | H26: 1 | J26: 1 | K26: 2 | L26: =IF(INTRO!$E$38="Endemic", IF($H26>0, IF($H26=4,"Unknown", IF($H26=99,"Stopped", $D26)), 0),"Not required") -> 235224 | M26: =IF(INTRO!$E$40="Endemic", IF($I26>0, IF($I26=4,"Unknown",IF($I26=99,"Stopped", $D26)), 0),"Not required") -> Not required | N26: =IF(INTRO!$E$42="Endemic", IF(AND($J26>1,$J26<5), IF($J26=4, "Unknown", E26+F26), 0),"Not required") -> 0 | O26: =IF(INTRO!$E$44="Endemic", IF(AND($K26>0,$K26<5), IF($K26=4,"Unknown", IF($K26=1, $F26*0.33, IF($K26=2, $F26*0.5+$G26*0.2, SUM(F26:G26)))), 0),"Not required") -> 58806.1 | P26: 1 | R26: 0 | S26: 0 | T26: MDA1 (IVM+ALB) | V26: MDA 1 | W26: T2 | X26: 33194 | Y26: Distrito de Lichinga | AA26: FALSE
A27: =IF(INTRO!$E$34<>0,INTRO!$E$34,"") -> Mozambique | B27: Niassa | C27: Cuamba | D27: 258155 | E27: =IF(INTRO!$E$48="","",ROUND($D27*INTRO!$E$48,0)) -> 43886 | F27: =IF(INTRO!$E$49="","",ROUND($D27*INTRO!$E$49,0)) -> 72283 | G27: =IF(INTRO!$E$50="","",ROUND($D27*INTRO!$E$50,0)) -> 141985 | H27: 1 | J27: 3 | K27: 3 | L27: =IF(INTRO!$E$38="Endemic", IF($H27>0, IF($H27=4,"Unknown", IF($H27=99,"Stopped", $D27)), 0),"Not required") -> 258155 | M27: =IF(INTRO!$E$40="Endemic", IF($I27>0, IF($I27=4,"Unknown",IF($I27=99,"Stopped", $D27)), 0),"Not required") -> Not required | N27: =IF(INTRO!$E$42="Endemic", IF(AND($J27>1,$J27<5), IF($J27=4, "Unknown", E27+F27), 0),"Not required") -> 116169 | O27: =IF(INTRO!$E$44="Endemic", IF(AND($K27>0,$K27<5), IF($K27=4,"Unknown", IF($K27=1, $F27*0.33, IF($K27=2, $F27*0.5+$G27*0.2, SUM(F27:G27)))), 0),"Not required") -> 214268 | P27: 1 | R27: 2 | S27: 1 | T27: MDA1 (IVM+ALB) | V27: MDA 1 | W27: T1 | X27: 33195 | Y27: Cuamba | AA27: TRUE
A28: =IF(INTRO!$E$34<>0,INTRO!$E$34,"") -> Mozambique | B28: Niassa | C28: Chimbonila | D28: 118828 | E28: =IF(INTRO!$E$48="","",ROUND($D28*INTRO!$E$48,0)) -> 20201 | F28: =IF(INTRO!$E$49="","",ROUND($D28*INTRO!$E$49,0)) -> 33272 | G28: =IF(INTRO!$E$50="","",ROUND($D28*INTRO!$E$50,0)) -> 65355 | H28: 0 | J28: 2 | K28: 2 | L28: =IF(INTRO!$E$38="Endemic", IF($H28>0, IF($H28=4,"Unknown", IF($H28=99,"Stopped", $D28)), 0),"Not required") -> 0 | M28: =IF(INTRO!$E$40="Endemic", IF($I28>0, IF($I28=4,"Unknown",IF($I28=99,"Stopped", $D28)), 0),"Not required") -> Not required | N28: =IF(INTRO!$E$42="Endemic", IF(AND($J28>1,$J28<5), IF($J28=4, "Unknown", E28+F28), 0),"Not required") -> 53473 | O28: =IF(INTRO!$E$44="Endemic", IF(AND($K28>0,$K28<5), IF($K28=4,"Unknown", IF($K28=1, $F28*0.33, IF($K28=2, $F28*0.5+$G28*0.2, SUM(F28:G28)))), 0),"Not required") -> 29707 | P28: 0 | R28: 1 | S28: 0 | W28: T1 | X28: 33197 | Y28: Chimbonila | AA28: TRUE
A29: =IF(INTRO!$E$34<>0,INTRO!$E$34,"") -> Mozambique | B29: Niassa | C29: Lago | D29: 131040 | E29: =IF(INTRO!$E$48="","",ROUND($D29*INTRO!$E$48,0)) -> 22277 | F29: =IF(INTRO!$E$49="","",ROUND($D29*INTRO!$E$49,0)) -> 36691 | G29: =IF(INTRO!$E$50="","",ROUND($D29*INTRO!$E$50,0)) -> 72072 | H29: 0 | J29: 2 | K29: 2 | L29: =IF(INTRO!$E$38="Endemic", IF($H29>0, IF($H29=4,"Unknown", IF($H29=99,"Stopped", $D29)), 0),"Not required") -> 0 | M29: =IF(INTRO!$E$40="Endemic", IF($I29>0, IF($I29=4,"Unknown",IF($I29=99,"Stopped", $D29)), 0),"Not required") -> Not required | N29: =IF(INTRO!$E$42="Endemic", IF(AND($J29>1,$J29<5), IF($J29=4, "Unknown", E29+F29), 0),"Not required") -> 58968 | O29: =IF(INTRO!$E$44="Endemic", IF(AND($K29>0,$K29<5), IF($K29=4,"Unknown", IF($K29=1, $F29*0.33, IF($K29=2, $F29*0.5+$G29*0.2, SUM(F29:G29)))), 0),"Not required") -> 32759.9 | P29: 0 | R29: 1 | S29: 1 | W29: T1 | X29: 33196 | Y29: Lago | AA29: TRUE
A30: =IF(INTRO!$E$34<>0,INTRO!$E$34,"") -> Mozambique | B30: Niassa | C30: Majune | D30: 40227 | E30: =IF(INTRO!$E$48="","",ROUND($D30*INTRO!$E$48,0)) -> 6839 | F30: =IF(INTRO!$E$49="","",ROUND($D30*INTRO!$E$49,0)) -> 11264 | G30: =IF(INTRO!$E$50="","",ROUND($D30*INTRO!$E$50,0)) -> 22125 | H30: 0 | J30: 2 | K30: 3 | L30: =IF(INTRO!$E$38="Endemic", IF($H30>0, IF($H30=4,"Unknown", IF($H30=99,"Stopped", $D30)), 0),"Not required") -> 0 | M30: =IF(INTRO!$E$40="Endemic", IF($I30>0, IF($I30=4,"Unknown",IF($I30=99,"Stopped", $D30)), 0),"Not required") -> Not required | N30: =IF(INTRO!$E$42="Endemic", IF(AND($J30>1,$J30<5), IF($J30=4, "Unknown", E30+F30), 0),"Not required") -> 18103 | O30: =IF(INTRO!$E$44="Endemic", IF(AND($K30>0,$K30<5), IF($K30=4,"Unknown", IF($K30=1, $F30*0.33, IF($K30=2, $F30*0.5+$G30*0.2, SUM(F30:G30)))), 0),"Not required") -> 33389 | P30: 0 | R30: 1 | S30: 1 | T30: T2 (PZQ) | W30: T1 | X30: 33198 | Y30: Majune | AA30: TRUE
A31: =IF(INTRO!$E$34<>0,INTRO!$E$34,"") -> Mozambique | B31: Niassa | C31: Mandimba | D31: 194545 | E31: =IF(INTRO!$E$48="","",ROUND($D31*INTRO!$E$48,0)) -> 33073 | F31: =IF(INTRO!$E$49="","",ROUND($D31*INTRO!$E$49,0)) -> 54473 | G31: =IF(INTRO!$E$50="","",ROUND($D31*INTRO!$E$50,0)) -> 107000 | H31: 0 | J31: 3 | K31: 3 | L31: =IF(INTRO!$E$38="Endemic", IF($H31>0, IF($H31=4,"Unknown", IF($H31=99,"Stopped", $D31)), 0),"Not required") -> 0 | M31: =IF(INTRO!$E$40="Endemic", IF($I31>0, IF($I31=4,"Unknown",IF($I31=99,"Stopped", $D31)), 0),"Not required") -> Not required | N31: =IF(INTRO!$E$42="Endemic", IF(AND($J31>1,$J31<5), IF($J31=4, "Unknown", E31+F31), 0),"Not required") -> 87546 | O31: =IF(INTRO!$E$44="Endemic", IF(AND($K31>0,$K31<5), IF($K31=4,"Unknown", IF($K31=1, $F31*0.33, IF($K31=2, $F31*0.5+$G31*0.2, SUM(F31:G31)))), 0),"Not required") -> 161473 | P31: 0 | R31: 2 | S31: 1 | T31: T2 (PZQ) | V31: T1 | W31: T3 | X31: 33199 | Y31: Mandimba | AA31: TRUE
A32: =IF(INTRO!$E$34<>0,INTRO!$E$34,"") -> Mozambique | B32: Niassa | C32: Marrupa | D32: 71973 | E32: =IF(INTRO!$E$48="","",ROUND($D32*INTRO!$E$48,0)) -> 12235 | F32: =IF(INTRO!$E$49="","",ROUND($D32*INTRO!$E$49,0)) -> 20152 | G32: =IF(INTRO!$E$50="","",ROUND($D32*INTRO!$E$50,0)) -> 39585 | H32: 1 | J32: 3 | K32: 3 | L32: =IF(INTRO!$E$38="Endemic", IF($H32>0, IF($H32=4,"Unknown", IF($H32=99,"Stopped", $D32)), 0),"Not required") -> 71973 | M32: =IF(INTRO!$E$40="Endemic", IF($I32>0, IF($I32=4,"Unknown",IF($I32=99,"Stopped", $D32)), 0),"Not required") -> Not required | N32: =IF(INTRO!$E$42="Endemic", IF(AND($J32>1,$J32<5), IF($J32=4, "Unknown", E32+F32), 0),"Not required") -> 32387 | O32: =IF(INTRO!$E$44="Endemic", IF(AND($K32>0,$K32<5), IF($K32=4,"Unknown", IF($K32=1, $F32*0.33, IF($K32=2, $F32*0.5+$G32*0.2, SUM(F32:G32)))), 0),"Not required") -> 59737 | P32: 1 | R32: 2 | S32: 1 | T32: MDA1 (IVM+ALB) | V32: MDA 1 | W32: T1 | X32: 33200 | Y32: Marrupa | AA32: TRUE
A33: =IF(INTRO!$E$34<>0,INTRO!$E$34,"") -> Mozambique | B33: Niassa | C33: Maúa | D33: 65387 | E33: =IF(INTRO!$E$48="","",ROUND($D33*INTRO!$E$48,0)) -> 11116 | F33: =IF(INTRO!$E$49="","",ROUND($D33*INTRO!$E$49,0)) -> 18308 | G33: =IF(INTRO!$E$50="","",ROUND($D33*INTRO!$E$50,0)) -> 35963 | H33: 1 | J33: 3 | K33: 3 | L33: =IF(INTRO!$E$38="Endemic", IF($H33>0, IF($H33=4,"Unknown", IF($H33=99,"Stopped", $D33)), 0),"Not required") -> 65387 | M33: =IF(INTRO!$E$40="Endemic", IF($I33>0, IF($I33=4,"Unknown",IF($I33=99,"Stopped", $D33)), 0),"Not required") -> Not required | N33: =IF(INTRO!$E$42="Endemic", IF(AND($J33>1,$J33<5), IF($J33=4, "Unknown", E33+F33), 0),"Not required") -> 29424 | O33: =IF(INTRO!$E$44="Endemic", IF(AND($K33>0,$K33<5), IF($K33=4,"Unknown", IF($K33=1, $F33*0.33, IF($K33=2, $F33*0.5+$G33*0.2, SUM(F33:G33)))), 0),"Not required") -> 54271 | P33: 1 | R33: 2 | S33: 1 | T33: MDA1 (IVM+ALB) | V33: MDA 1 | W33: T1 | X33: 33202 | Y33: Maúa | AA33: TRUE
A34: =IF(INTRO!$E$34<>0,INTRO!$E$34,"") -> Mozambique | B34: Niassa | C34: Mavago | D34: 29836 | E34: =IF(INTRO!$E$48="","",ROUND($D34*INTRO!$E$48,0)) -> 5072 | F34: =IF(INTRO!$E$49="","",ROUND($D34*INTRO!$E$49,0)) -> 8354 | G34: =IF(INTRO!$E$50="","",ROUND($D34*INTRO!$E$50,0)) -> 16410 | H34: 0 | J34: 3 | K34: 3 | L34: =IF(INTRO!$E$38="Endemic", IF($H34>0, IF($H34=4,"Unknown", IF($H34=99,"Stopped", $D34)), 0),"Not required") -> 0 | M34: =IF(INTRO!$E$40="Endemic", IF($I34>0, IF($I34=4,"Unknown",IF($I34=99,"Stopped", $D34)), 0),"Not required") -> Not required | N34: =IF(INTRO!$E$42="Endemic", IF(AND($J34>1,$J34<5), IF($J34=4, "Unknown", E34+F34), 0),"Not required") -> 13426 | O34: =IF(INTRO!$E$44="Endemic", IF(AND($K34>0,$K34<5), IF($K34=4,"Unknown", IF($K34=1, $F34*0.33, IF($K34=2, $F34*0.5+$G34*0.2, SUM(F34:G34)))), 0),"Not required") -> 24764 | P34: 0 | R34: 2 | S34: 1 | T34: T2 (PZQ) | V34: T1 | W34: T3 | X34: 33201 | Y34: Mavago | AA34: TRUE
A35: =IF(INTRO!$E$34<>0,INTRO!$E$34,"") -> Mozambique | B35: Niassa | C35: Mecanhelas | D35: 292401 | E35: =IF(INTRO!$E$48="","",ROUND($D35*INTRO!$E$48,0)) -> 49708 | F35: =IF(INTRO!$E$49="","",ROUND($D35*INTRO!$E$49,0)) -> 81872 | G35: =IF(INTRO!$E$50="","",ROUND($D35*INTRO!$E$50,0)) -> 160821 | H35: 1 | J35: 3 | K35: 3 | L35: =IF(INTRO!$E$38="Endemic", IF($H35>0, IF($H35=4,"Unknown", IF($H35=99,"Stopped", $D35)), 0),"Not required") -> 292401 | M35: =IF(INTRO!$E$40="Endemic", IF($I35>0, IF($I35=4,"Unknown",IF($I35=99,"Stopped", $D35)), 0),"Not required") -> Not required | N35: =IF(INTRO!$E$42="Endemic", IF(AND($J35>1,$J35<5), IF($J35=4, "Unknown", E35+F35), 0),"Not required") -> 131580 | O35: =IF(INTRO!$E$44="Endemic", IF(AND($K35>0,$K35<5), IF($K35=4,"Unknown", IF($K35=1, $F35*0.33, IF($K35=2, $F35*0.5+$G35*0.2, SUM(F35:G35)))), 0),"Not required") -> 242693 | P35: 1 | R35: 2 | S35: 1 | T35: MDA1 (IVM+ALB) | V35: MDA 1 | W35: T1 | X35: 33203 | Y35: Mecanhelas | AA35: TRUE
A36: =IF(INTRO!$E$34<>0,INTRO!$E$34,"") -> Mozambique | B36: Niassa | C36: Mecula | D36: 18192 | E36: =IF(INTRO!$E$48="","",ROUND($D36*INTRO!$E$48,0)) -> 3093 | F36: =IF(INTRO!$E$49="","",ROUND($D36*INTRO!$E$49,0)) -> 5094 | G36: =IF(INTRO!$E$50="","",ROUND($D36*INTRO!$E$50,0)) -> 10006 | H36: 1 | J36: 2 | K36: 3 | L36: =IF(INTRO!$E$38="Endemic", IF($H36>0, IF($H36=4,"Unknown", IF($H36=99,"Stopped", $D36)), 0),"Not required") -> 18192 | M36: =IF(INTRO!$E$40="Endemic", IF($I36>0, IF($I36=4,"Unknown",IF($I36=99,"Stopped", $D36)), 0),"Not required") -> Not required | N36: =IF(INTRO!$E$42="Endemic", IF(AND($J36>1,$J36<5), IF($J36=4, "Unknown", E36+F36), 0),"Not required") -> 8187 | O36: =IF(INTRO!$E$44="Endemic", IF(AND($K36>0,$K36<5), IF($K36=4,"Unknown", IF($K36=1, $F36*0.33, IF($K36=2, $F36*0.5+$G36*0.2, SUM(F36:G36)))), 0),"Not required") -> 15100 | P36: 1 | R36: 1 | S36: 1 | T36: MDA1 (IVM+ALB) | V36: MDA 1 | W36: T2 | X36: 33204 | Y36: Mecula | AA36: TRUE
A37: =IF(INTRO!$E$34<>0,INTRO!$E$34,"") -> Mozambique | B37: Niassa | C37: Metarica | D37: 70275 | E37: =IF(INTRO!$E$48="","",ROUND($D37*INTRO!$E$48,0)) -> 11947 | F37: =IF(INTRO!$E$49="","",ROUND($D37*INTRO!$E$49,0)) -> 19677 | G37: =IF(INTRO!$E$50="","",ROUND($D37*INTRO!$E$50,0)) -> 38651 | H37: 1 | J37: 3 | K37: 3 | L37: =IF(INTRO!$E$38="Endemic", IF($H37>0, IF($H37=4,"Unknown", IF($H37=99,"Stopped", $D37)), 0),"Not required") -> 70275 | M37: =IF(INTRO!$E$40="Endemic", IF($I37>0, IF($I37=4,"Unknown",IF($I37=99,"Stopped", $D37)), 0),"Not required") -> Not required | N37: =IF(INTRO!$E$42="Endemic", IF(AND($J37>1,$J37<5), IF($J37=4, "Unknown", E37+F37), 0),"Not required") -> 31624 | O37: =IF(INTRO!$E$44="Endemic", IF(AND($K37>0,$K37<5), IF($K37=4,"Unknown", IF($K37=1, $F37*0.33, IF($K37=2, $F37*0.5+$G37*0.2, SUM(F37:G37)))), 0),"Not required") -> 58328 | P37: 1 | R37: 2 | S37: 1 | T37: MDA1 (IVM+ALB) | V37: MDA 1 | W37: T1 | X37: 33205 | Y37: Metarica | AA37: TRUE
A38: =IF(INTRO!$E$34<>0,INTRO!$E$34,"") -> Mozambique | B38: Niassa | C38: Muembe | D38: 39859 | E38: =IF(INTRO!$E$48="","",ROUND($D38*INTRO!$E$48,0)) -> 6776 | F38: =IF(INTRO!$E$49="","",ROUND($D38*INTRO!$E$49,0)) -> 11161 | G38: =IF(INTRO!$E$50="","",ROUND($D38*INTRO!$E$50,0)) -> 21922 | H38: 0 | J38: 2 | K38: 2 | L38: =IF(INTRO!$E$38="Endemic", IF($H38>0, IF($H38=4,"Unknown", IF($H38=99,"Stopped", $D38)), 0),"Not required") -> 0 | M38: =IF(INTRO!$E$40="Endemic", IF($I38>0, IF($I38=4,"Unknown",IF($I38=99,"Stopped", $D38)), 0),"Not required") -> Not required | N38: =IF(INTRO!$E$42="Endemic", IF(AND($J38>1,$J38<5), IF($J38=4, "Unknown", E38+F38), 0),"Not required") -> 17937 | O38: =IF(INTRO!$E$44="Endemic", IF(AND($K38>0,$K38<5), IF($K38=4,"Unknown", IF($K38=1, $F38*0.33, IF($K38=2, $F38*0.5+$G38*0.2, SUM(F38:G38)))), 0),"Not required") -> 9964.9 | P38: 0 | R38: 1 | S38: 0 | W38: T1 | X38: 33206 | Y38: Muembe | AA38: TRUE
A39: =IF(INTRO!$E$34<>0,INTRO!$E$34,"") -> Mozambique | B39: Niassa | C39: N'Gaúma | D39: 109274 | E39: =IF(INTRO!$E$48="","",ROUND($D39*INTRO!$E$48,0)) -> 18577 | F39: =IF(INTRO!$E$49="","",ROUND($D39*INTRO!$E$49,0)) -> 30597 | G39: =IF(INTRO!$E$50="","",ROUND($D39*INTRO!$E$50,0)) -> 60101 | H39: 0 | J39: 3 | K39: 2 | L39: =IF(INTRO!$E$38="Endemic", IF($H39>0, IF($H39=4,"Unknown", IF($H39=99,"Stopped", $D39)), 0),"Not required") -> 0 | M39: =IF(INTRO!$E$40="Endemic", IF($I39>0, IF($I39=4,"Unknown",IF($I39=99,"Stopped", $D39)), 0),"Not required") -> Not required | N39: =IF(INTRO!$E$42="Endemic", IF(AND($J39>1,$J39<5), IF($J39=4, "Unknown", E39+F39), 0),"Not required") -> 49174 | O39: =IF(INTRO!$E$44="Endemic", IF(AND($K39>0,$K39<5), IF($K39=4,"Unknown", IF($K39=1, $F39*0.33, IF($K39=2, $F39*0.5+$G39*0.2, SUM(F39:G39)))), 0),"Not required") -> 27318.7 | P39: 0 | R39: 2 | S39: 1 | T39: T3 (ALB/MBD) | V39: T1 | W39: T3 | X39: 33207 | Y39: N'Gaúma | AA39: TRUE
A40: =IF(INTRO!$E$34<>0,INTRO!$E$34,"") -> Mozambique | B40: Niassa | C40: Nipepe | D40: 39376 | E40: =IF(INTRO!$E$48="","",ROUND($D40*INTRO!$E$48,0)) -> 6694 | F40: =IF(INTRO!$E$49="","",ROUND($D40*INTRO!$E$49,0)) -> 11025 | G40: =IF(INTRO!$E$50="","",ROUND($D40*INTRO!$E$50,0)) -> 21657 | H40: 1 | J40: 3 | K40: 3 | L40: =IF(INTRO!$E$38="Endemic", IF($H40>0, IF($H40=4,"Unknown", IF($H40=99,"Stopped", $D40)), 0),"Not required") -> 39376 | M40: =IF(INTRO!$E$40="Endemic", IF($I40>0, IF($I40=4,"Unknown",IF($I40=99,"Stopped", $D40)), 0),"Not required") -> Not required | N40: =IF(INTRO!$E$42="Endemic", IF(AND($J40>1,$J40<5), IF($J40=4, "Unknown", E40+F40), 0),"Not required") -> 17719 | O40: =IF(INTRO!$E$44="Endemic", IF(AND($K40>0,$K40<5), IF($K40=4,"Unknown", IF($K40=1, $F40*0.33, IF($K40=2, $F40*0.5+$G40*0.2, SUM(F40:G40)))), 0),"Not required") -> 32682 | P40: 1 | R40: 2 | S40: 1 | T40: MDA1 (IVM+ALB) | V40: MDA 1 | W40: T1 | X40: 33208 | Y40: Nipepe | AA40: TRUE
A41: =IF(INTRO!$E$34<>0,INTRO!$E$34,"") -> Mozambique | B41: Niassa | C41: Sanga | D41: 74529 | E41: =IF(INTRO!$E$48="","",ROUND($D41*INTRO!$E$48,0)) -> 12670 | F41: =IF(INTRO!$E$49="","",ROUND($D41*INTRO!$E$49,0)) -> 20868 | G41: =IF(INTRO!$E$50="","",ROUND($D41*INTRO!$E$50,0)) -> 40991 | H41: 0 | J41: 2 | K41: 3 | L41: =IF(INTRO!$E$38="Endemic", IF($H41>0, IF($H41=4,"Unknown", IF($H41=99,"Stopped", $D41)), 0),"Not required") -> 0 | M41: =IF(INTRO!$E$40="Endemic", IF($I41>0, IF($I41=4,"Unknown",IF($I41=99,"Stopped", $D41)), 0),"Not required") -> Not required | N41: =IF(INTRO!$E$42="Endemic", IF(AND($J41>1,$J41<5), IF($J41=4, "Unknown", E41+F41), 0),"Not required") -> 33538 | O41: =IF(INTRO!$E$44="Endemic", IF(AND($K41>0,$K41<5), IF($K41=4,"Unknown", IF($K41=1, $F41*0.33, IF($K41=2, $F41*0.5+$G41*0.2, SUM(F41:G41)))), 0),"Not required") -> 61859 | P41: 0 | R41: 1 | S41: 1 | T41: T2 (PZQ) | W41: T1 | X41: 33209 | Y41: Sanga | AA41: TRUE
A42: =IF(INTRO!$E$34<>0,INTRO!$E$34,"") -> Mozambique | B42: Nampula | C42: Cid. Nampula | D42: 725348.7524 | E42: =IF(INTRO!$E$48="","",ROUND($D42*INTRO!$E$48,0)) -> 123309 | F42: =IF(INTRO!$E$49="","",ROUND($D42*INTRO!$E$49,0)) -> 203098 | G42: =IF(INTRO!$E$50="","",ROUND($D42*INTRO!$E$50,0)) -> 398942 | H42: 1 | J42: 3 | K42: 3 | L42: =IF(INTRO!$E$38="Endemic", IF($H42>0, IF($H42=4,"Unknown", IF($H42=99,"Stopped", $D42)), 0),"Not required") -> 725348.7524 | M42: =IF(INTRO!$E$40="Endemic", IF($I42>0, IF($I42=4,"Unknown",IF($I42=99,"Stopped", $D42)), 0),"Not required") -> Not required | N42: =IF(INTRO!$E$42="Endemic", IF(AND($J42>1,$J42<5), IF($J42=4, "Unknown", E42+F42), 0),"Not required") -> 326407 | O42: =IF(INTRO!$E$44="Endemic", IF(AND($K42>0,$K42<5), IF($K42=4,"Unknown", IF($K42=1, $F42*0.33, IF($K42=2, $F42*0.5+$G42*0.2, SUM(F42:G42)))), 0),"Not required") -> 602040 | P42: 1 | R42: 2 | S42: 1 | T42: MDA1 (IVM+ALB) | V42: MDA 1 | W42: T1 | X42: 33172 | Y42: Cid. Nampula | AA42: TRUE
A43: =IF(INTRO!$E$34<>0,INTRO!$E$34,"") -> Mozambique | B43: Nampula | C43: Angoche | D43: 338791.7303 | E43: =IF(INTRO!$E$48="","",ROUND($D43*INTRO!$E$48,0)) -> 57595 | F43: =IF(INTRO!$E$49="","",ROUND($D43*INTRO!$E$49,0)) -> 94862 | G43: =IF(INTRO!$E$50="","",ROUND($D43*INTRO!$E$50,0)) -> 186335 | H43: 1 | J43: 3 | K43: 3 | L43: =IF(INTRO!$E$38="Endemic", IF($H43>0, IF($H43=4,"Unknown", IF($H43=99,"Stopped", $D43)), 0),"Not required") -> 338791.7303 | M43: =IF(INTRO!$E$40="Endemic", IF($I43>0, IF($I43=4,"Unknown",IF($I43=99,"Stopped", $D43)), 0),"Not required") -> Not required | N43: =IF(INTRO!$E$42="Endemic", IF(AND($J43>1,$J43<5), IF($J43=4, "Unknown", E43+F43), 0),"Not required") -> 152457 | O43: =IF(INTRO!$E$44="Endemic", IF(AND($K43>0,$K43<5), IF($K43=4,"Unknown", IF($K43=1, $F43*0.33, IF($K43=2, $F43*0.5+$G43*0.2, SUM(F43:G43)))), 0),"Not required") -> 281197 | P43: 1 | R43: 2 | S43: 1 | T43: MDA1 (IVM+ALB) | V43: MDA 1 | W43: T1 | X43: 33171 | Y43: Angoche | AA43: TRUE
A44: =IF(INTRO!$E$34<>0,INTRO!$E$34,"") -> Mozambique | B44: Nampula | C44: Erati | D44: 324653.8615 | E44: =IF(INTRO!$E$48="","",ROUND($D44*INTRO!$E$48,0)) -> 55191 | F44: =IF(INTRO!$E$49="","",ROUND($D44*INTRO!$E$49,0)) -> 90903 | G44: =IF(INTRO!$E$50="","",ROUND($D44*INTRO!$E$50,0)) -> 178560 | H44: 1 | J44: 3 | K44: 3 | L44: =IF(INTRO!$E$38="Endemic", IF($H44>0, IF($H44=4,"Unknown", IF($H44=99,"Stopped", $D44)), 0),"Not required") -> 324653.8615 | M44: =IF(INTRO!$E$40="Endemic", IF($I44>0, IF($I44=4,"Unknown",IF($I44=99,"Stopped", $D44)), 0),"Not required") -> Not required | N44: =IF(INTRO!$E$42="Endemic", IF(AND($J44>1,$J44<5), IF($J44=4, "Unknown", E44+F44), 0),"Not required") -> 146094 | O44: =IF(INTRO!$E$44="Endemic", IF(AND($K44>0,$K44<5), IF($K44=4,"Unknown", IF($K44=1, $F44*0.33, IF($K44=2, $F44*0.5+$G44*0.2, SUM(F44:G44)))), 0),"Not required") -> 269463 | P44: 1 | R44: 2 | S44: 1 | T44: MDA1 (IVM+ALB) | V44: MDA 1 | W44: T1 | X44: 33173 | Y44: Erati | AA44: TRUE
A45: =IF(INTRO!$E$34<>0,INTRO!$E$34,"") -> Mozambique | B45: Nampula | C45: Ilha Moc. | D45: 56876.61318 | E45: =IF(INTRO!$E$48="","",ROUND($D45*INTRO!$E$48,0)) -> 9669 | F45: =IF(INTRO!$E$49="","",ROUND($D45*INTRO!$E$49,0)) -> 15925 | G45: =IF(INTRO!$E$50="","",ROUND($D45*INTRO!$E$50,0)) -> 31282 | H45: 1 | J45: 3 | K45: 2 | L45: =IF(INTRO!$E$38="Endemic", IF($H45>0, IF($H45=4,"Unknown", IF($H45=99,"Stopped", $D45)), 0),"Not required") -> 56876.61318 | M45: =IF(INTRO!$E$40="Endemic", IF($I45>0, IF($I45=4,"Unknown",IF($I45=99,"Stopped", $D45)), 0),"Not required") -> Not required | N45: =IF(INTRO!$E$42="Endemic", IF(AND($J45>1,$J45<5), IF($J45=4, "Unknown", E45+F45), 0),"Not required") -> 25594 | O45: =IF(INTRO!$E$44="Endemic", IF(AND($K45>0,$K45<5), IF($K45=4,"Unknown", IF($K45=1, $F45*0.33, IF($K45=2, $F45*0.5+$G45*0.2, SUM(F45:G45)))), 0),"Not required") -> 14218.9 | P45: 1 | R45: 2 | S45: 0 | T45: MDA1 (IVM+ALB) | V45: MDA 1 | W45: T1 | X45: 33174 | Y45: Ilha Moc. | AA45: TRUE
A46: =IF(INTRO!$E$34<>0,INTRO!$E$34,"") -> Mozambique | B46: Nampula | C46: Lalaua | D46: 90562.57506 | E46: =IF(INTRO!$E$48="","",ROUND($D46*INTRO!$E$48,0)) -> 15396 | F46: =IF(INTRO!$E$49="","",ROUND($D46*INTRO!$E$49,0)) -> 25358 | G46: =IF(INTRO!$E$50="","",ROUND($D46*INTRO!$E$50,0)) -> 49809 | H46: 1 | J46: 2 | K46: 3 | L46: =IF(INTRO!$E$38="Endemic", IF($H46>0, IF($H46=4,"Unknown", IF($H46=99,"Stopped", $D46)), 0),"Not required") -> 90562.57506 | M46: =IF(INTRO!$E$40="Endemic", IF($I46>0, IF($I46=4,"Unknown",IF($I46=99,"Stopped", $D46)), 0),"Not required") -> Not required | N46: =IF(INTRO!$E$42="Endemic", IF(AND($J46>1,$J46<5), IF($J46=4, "Unknown", E46+F46), 0),"Not required") -> 40754 | O46: =IF(INTRO!$E$44="Endemic", IF(AND($K46>0,$K46<5), IF($K46=4,"Unknown", IF($K46=1, $F46*0.33, IF($K46=2, $F46*0.5+$G46*0.2, SUM(F46:G46)))), 0),"Not required") -> 75167 | P46: 1 | R46: 1 | S46: 1 | T46: MDA1 (IVM+ALB) | V46: MDA 1 | W46: T2 | X46: 33175 | Y46: Lalaua | AA46: TRUE
A47: =IF(INTRO!$E$34<>0,INTRO!$E$34,"") -> Mozambique | B47: Nampula | C47: Larde | D47: 91281.6382 | E47: =IF(INTRO!$E$48="","",ROUND($D47*INTRO!$E$48,0)) -> 15518 | F47: =IF(INTRO!$E$49="","",ROUND($D47*INTRO!$E$49,0)) -> 25559 | G47: =IF(INTRO!$E$50="","",ROUND($D47*INTRO!$E$50,0)) -> 50205 | H47: 1 | J47: 3 | K47: 3 | L47: =IF(INTRO!$E$38="Endemic", IF($H47>0, IF($H47=4,"Unknown", IF($H47=99,"Stopped", $D47)), 0),"Not required") -> 91281.6382 | M47: =IF(INTRO!$E$40="Endemic", IF($I47>0, IF($I47=4,"Unknown",IF($I47=99,"Stopped", $D47)), 0),"Not required") -> Not required | N47: =IF(INTRO!$E$42="Endemic", IF(AND($J47>1,$J47<5), IF($J47=4, "Unknown", E47+F47), 0),"Not required") -> 41077 | O47: =IF(INTRO!$E$44="Endemic", IF(AND($K47>0,$K47<5), IF($K47=4,"Unknown", IF($K47=1, $F47*0.33, IF($K47=2, $F47*0.5+$G47*0.2, SUM(F47:G47)))), 0),"Not required") -> 75764 | P47: 1 | R47: 2 | S47: 1 | T47: MDA1 (IVM+ALB) | V47: MDA 1 | W47: T1 | X47: 33176 | Y47: Larde | AA47: TRUE
A48: =IF(INTRO!$E$34<>0,INTRO!$E$34,"") -> Mozambique | B48: Nampula | C48: Liupo | D48: 84549.42957 | E48: =IF(INTRO!$E$48="","",ROUND($D48*INTRO!$E$48,0)) -> 14373 | F48: =IF(INTRO!$E$49="","",ROUND($D48*INTRO!$E$49,0)) -> 23674 | G48: =IF(INTRO!$E$50="","",ROUND($D48*INTRO!$E$50,0)) -> 46502 | H48: 1 | J48: 3 | K48: 3 | L48: =IF(INTRO!$E$38="Endemic", IF($H48>0, IF($H48=4,"Unknown", IF($H48=99,"Stopped", $D48)), 0),"Not required") -> 84549.42957 | M48: =IF(INTRO!$E$40="Endemic", IF($I48>0, IF($I48=4,"Unknown",IF($I48=99,"Stopped", $D48)), 0),"Not required") -> Not required | N48: =IF(INTRO!$E$42="Endemic", IF(AND($J48>1,$J48<5), IF($J48=4, "Unknown", E48+F48), 0),"Not required") -> 38047 | O48: =IF(INTRO!$E$44="Endemic", IF(AND($K48>0,$K48<5), IF($K48=4,"Unknown", IF($K48=1, $F48*0.33, IF($K48=2, $F48*0.5+$G48*0.2, SUM(F48:G48)))), 0),"Not required") -> 70176 | P48: 1 | R48: 2 | S48: 1 | T48: MDA1 (IVM+ALB) | V48: MDA 1 | W48: T1 | X48: 33177 | Y48: Liupo | AA48: TRUE
A49: =IF(INTRO!$E$34<>0,INTRO!$E$34,"") -> Mozambique | B49: Nampula | C49: Malema | D49: 201592.2273 | E49: =IF(INTRO!$E$48="","",ROUND($D49*INTRO!$E$48,0)) -> 34271 | F49: =IF(INTRO!$E$49="","",ROUND($D49*INTRO!$E$49,0)) -> 56446 | G49: =IF(INTRO!$E$50="","",ROUND($D49*INTRO!$E$50,0)) -> 110876 | H49: 1 | J49: 3 | K49: 3 | L49: =IF(INTRO!$E$38="Endemic", IF($H49>0, IF($H49=4,"Unknown", IF($H49=99,"Stopped", $D49)), 0),"Not required") -> 201592.2273 | M49: =IF(INTRO!$E$40="Endemic", IF($I49>0, IF($I49=4,"Unknown",IF($I49=99,"Stopped", $D49)), 0),"Not required") -> Not required | N49: =IF(INTRO!$E$42="Endemic", IF(AND($J49>1,$J49<5), IF($J49=4, "Unknown", E49+F49), 0),"Not required") -> 90717 | O49: =IF(INTRO!$E$44="Endemic", IF(AND($K49>0,$K49<5), IF($K49=4,"Unknown", IF($K49=1, $F49*0.33, IF($K49=2, $F49*0.5+$G49*0.2, SUM(F49:G49)))), 0),"Not required") -> 167322 | P49: 1 | R49: 2 | S49: 1 | T49: MDA1 (IVM+ALB) | V49: MDA 1 | W49: T1 | X49: 33178 | Y49: Malema | AA49: TRUE
A50: =IF(INTRO!$E$34<>0,INTRO!$E$34,"") -> Mozambique | B50: Nampula | C50: Meconta | D50: 199495.2127 | E50: =IF(INTRO!$E$48="","",ROUND($D50*INTRO!$E$48,0)) -> 33914 | F50: =IF(INTRO!$E$49="","",ROUND($D50*INTRO!$E$49,0)) -> 55859 | G50: =IF(INTRO!$E$50="","",ROUND($D50*INTRO!$E$50,0)) -> 109722 | H50: 1 | J50: 3 | K50: 3 | L50: =IF(INTRO!$E$38="Endemic", IF($H50>0, IF($H50=4,"Unknown", IF($H50=99,"Stopped", $D50)), 0),"Not required") -> 199495.2127 | M50: =IF(INTRO!$E$40="Endemic", IF($I50>0, IF($I50=4,"Unknown",IF($I50=99,"Stopped", $D50)), 0),"Not required") -> Not required | N50: =IF(INTRO!$E$42="Endemic", IF(AND($J50>1,$J50<5), IF($J50=4, "Unknown", E50+F50), 0),"Not required") -> 89773 | O50: =IF(INTRO!$E$44="Endemic", IF(AND($K50>0,$K50<5), IF($K50=4,"Unknown", IF($K50=1, $F50*0.33, IF($K50=2, $F50*0.5+$G50*0.2, SUM(F50:G50)))), 0),"Not required") -> 165581 | P50: 1 | R50: 2 | S50: 1 | T50: MDA1 (IVM+ALB) | V50: MDA 1 | W50: T1 | X50: 33179 | Y50: Meconta | AA50: TRUE
A51: =IF(INTRO!$E$34<>0,INTRO!$E$34,"") -> Mozambique | B51: Nampula | C51: Mecuburi | D51: 191007.4235 | E51: =IF(INTRO!$E$48="","",ROUND($D51*INTRO!$E$48,0)) -> 32471 | F51: =IF(INTRO!$E$49="","",ROUND($D51*INTRO!$E$49,0)) -> 53482 | G51: =IF(INTRO!$E$50="","",ROUND($D51*INTRO!$E$50,0)) -> 105054 | H51: 1 | J51: 3 | K51: 3 | L51: =IF(INTRO!$E$38="Endemic", IF($H51>0, IF($H51=4,"Unknown", IF($H51=99,"Stopped", $D51)), 0),"Not required") -> 191007.4235 | M51: =IF(INTRO!$E$40="Endemic", IF($I51>0, IF($I51=4,"Unknown",IF($I51=99,"Stopped", $D51)), 0),"Not required") -> Not required | N51: =IF(INTRO!$E$42="Endemic", IF(AND($J51>1,$J51<5), IF($J51=4, "Unknown", E51+F51), 0),"Not required") -> 85953 | O51: =IF(INTRO!$E$44="Endemic", IF(AND($K51>0,$K51<5), IF($K51=4,"Unknown", IF($K51=1, $F51*0.33, IF($K51=2, $F51*0.5+$G51*0.2, SUM(F51:G51)))), 0),"Not required") -> 158536 | P51: 1 | R51: 2 | S51: 1 | T51: MDA1 (IVM+ALB) | V51: MDA 1 | W51: T1 | X51: 33180 | Y51: Mecuburi | AA51: TRUE
A52: =IF(INTRO!$E$34<>0,INTRO!$E$34,"") -> Mozambique | B52: Nampula | C52: Memba | D52: 270197.3815 | E52: =IF(INTRO!$E$48="","",ROUND($D52*INTRO!$E$48,0)) -> 45934 | F52: =IF(INTRO!$E$49="","",ROUND($D52*INTRO!$E$49,0)) -> 75655 | G52: =IF(INTRO!$E$50="","",ROUND($D52*INTRO!$E$50,0)) -> 148609 | H52: 1 | J52: 3 | K52: 3 | L52: =IF(INTRO!$E$38="Endemic", IF($H52>0, IF($H52=4,"Unknown", IF($H52=99,"Stopped", $D52)), 0),"Not required") -> 270197.3815 | M52: =IF(INTRO!$E$40="Endemic", IF($I52>0, IF($I52=4,"Unknown",IF($I52=99,"Stopped", $D52)), 0),"Not required") -> Not required | N52: =IF(INTRO!$E$42="Endemic", IF(AND($J52>1,$J52<5), IF($J52=4, "Unknown", E52+F52), 0),"Not required") -> 121589 | O52: =IF(INTRO!$E$44="Endemic", IF(AND($K52>0,$K52<5), IF($K52=4,"Unknown", IF($K52=1, $F52*0.33, IF($K52=2, $F52*0.5+$G52*0.2, SUM(F52:G52)))), 0),"Not required") -> 224264 | P52: 1 | R52: 2 | S52: 1 | T52: MDA1 (IVM+ALB) | V52: MDA 1 | W52: T1 | X52: 33181 | Y52: Memba | AA52: TRUE
A53: =IF(INTRO!$E$34<>0,INTRO!$E$34,"") -> Mozambique | B53: Nampula | C53: Mogincual | D53: 87709.3511 | E53: =IF(INTRO!$E$48="","",ROUND($D53*INTRO!$E$48,0)) -> 14911 | F53: =IF(INTRO!$E$49="","",ROUND($D53*INTRO!$E$49,0)) -> 24559 | G53: =IF(INTRO!$E$50="","",ROUND($D53*INTRO!$E$50,0)) -> 48240 | H53: 1 | J53: 3 | K53: 3 | L53: =IF(INTRO!$E$38="Endemic", IF($H53>0, IF($H53=4,"Unknown", IF($H53=99,"Stopped", $D53)), 0),"Not required") -> 87709.3511 | M53: =IF(INTRO!$E$40="Endemic", IF($I53>0, IF($I53=4,"Unknown",IF($I53=99,"Stopped", $D53)), 0),"Not required") -> Not required | N53: =IF(INTRO!$E$42="Endemic", IF(AND($J53>1,$J53<5), IF($J53=4, "Unknown", E53+F53), 0),"Not required") -> 39470 | O53: =IF(INTRO!$E$44="Endemic", IF(AND($K53>0,$K53<5), IF($K53=4,"Unknown", IF($K53=1, $F53*0.33, IF($K53=2, $F53*0.5+$G53*0.2, SUM(F53:G53)))), 0),"Not required") -> 72799 | P53: 1 | R53: 2 | S53: 1 | T53: MDA1 (IVM+ALB) | V53: MDA 1 | W53: T1 | X53: 33182 | Y53: Mogincual | AA53: TRUE
A54: =IF(INTRO!$E$34<>0,INTRO!$E$34,"") -> Mozambique | B54: Nampula | C54: Mogovolas | D54: 482228.0744 | E54: =IF(INTRO!$E$48="","",ROUND($D54*INTRO!$E$48,0)) -> 81979 | F54: =IF(INTRO!$E$49="","",ROUND($D54*INTRO!$E$49,0)) -> 135024 | G54: =IF(INTRO!$E$50="","",ROUND($D54*INTRO!$E$50,0)) -> 265225 | H54: 1 | J54: 3 | K54: 3 | L54: =IF(INTRO!$E$38="Endemic", IF($H54>0, IF($H54=4,"Unknown", IF($H54=99,"Stopped", $D54)), 0),"Not required") -> 482228.0744 | M54: =IF(INTRO!$E$40="Endemic", IF($I54>0, IF($I54=4,"Unknown",IF($I54=99,"Stopped", $D54)), 0),"Not required") -> Not required | N54: =IF(INTRO!$E$42="Endemic", IF(AND($J54>1,$J54<5), IF($J54=4, "Unknown", E54+F54), 0),"Not required") -> 217003 | O54: =IF(INTRO!$E$44="Endemic", IF(AND($K54>0,$K54<5), IF($K54=4,"Unknown", IF($K54=1, $F54*0.33, IF($K54=2, $F54*0.5+$G54*0.2, SUM(F54:G54)))), 0),"Not required") -> 400249 | P54: 1 | R54: 2 | S54: 1 | T54: MDA1 (IVM+ALB) | V54: MDA 1 | W54: T1 | X54: 33183 | Y54: Mogovolas | AA54: TRUE
A55: =IF(INTRO!$E$34<>0,INTRO!$E$34,"") -> Mozambique | B55: Nampula | C55: Moma | D55: 320507.8148 | E55: =IF(INTRO!$E$48="","",ROUND($D55*INTRO!$E$48,0)) -> 54486 | F55: =IF(INTRO!$E$49="","",ROUND($D55*INTRO!$E$49,0)) -> 89742 | G55: =IF(INTRO!$E$50="","",ROUND($D55*INTRO!$E$50,0)) -> 176279 | H55: 1 | J55: 3 | K55: 3 | L55: =IF(INTRO!$E$38="Endemic", IF($H55>0, IF($H55=4,"Unknown", IF($H55=99,"Stopped", $D55)), 0),"Not required") -> 320507.8148 | M55: =IF(INTRO!$E$40="Endemic", IF($I55>0, IF($I55=4,"Unknown",IF($I55=99,"Stopped", $D55)), 0),"Not required") -> Not required | N55: =IF(INTRO!$E$42="Endemic", IF(AND($J55>1,$J55<5), IF($J55=4, "Unknown", E55+F55), 0),"Not required") -> 144228 | O55: =IF(INTRO!$E$44="Endemic", IF(AND($K55>0,$K55<5), IF($K55=4,"Unknown", IF($K55=1, $F55*0.33, IF($K55=2, $F55*0.5+$G55*0.2, SUM(F55:G55)))), 0),"Not required") -> 266021 | P55: 1 | R55: 2 | S55: 1 | T55: MDA1 (IVM+ALB) | V55: MDA 1 | W55: T1 | X55: 33184 | Y55: Moma | AA55: TRUE
A56: =IF(INTRO!$E$34<>0,INTRO!$E$34,"") -> Mozambique | B56: Nampula | C56: Monapo | D56: 392217.0316 | E56: =IF(INTRO!$E$48="","",ROUND($D56*INTRO!$E$48,0)) -> 66677 | F56: =IF(INTRO!$E$49="","",ROUND($D56*INTRO!$E$49,0)) -> 109821 | G56: =IF(INTRO!$E$50="","",ROUND($D56*INTRO!$E$50,0)) -> 215719 | H56: 1 | J56: 3 | K56: 3 | L56: =IF(INTRO!$E$38="Endemic", IF($H56>0, IF($H56=4,"Unknown", IF($H56=99,"Stopped", $D56)), 0),"Not required") -> 392217.0316 | M56: =IF(INTRO!$E$40="Endemic", IF($I56>0, IF($I56=4,"Unknown",IF($I56=99,"Stopped", $D56)), 0),"Not required") -> Not required | N56: =IF(INTRO!$E$42="Endemic", IF(AND($J56>1,$J56<5), IF($J56=4, "Unknown", E56+F56), 0),"Not required") -> 176498 | O56: =IF(INTRO!$E$44="Endemic", IF(AND($K56>0,$K56<5), IF($K56=4,"Unknown", IF($K56=1, $F56*0.33, IF($K56=2, $F56*0.5+$G56*0.2, SUM(F56:G56)))), 0),"Not required") -> 325540 | P56: 1 | R56: 2 | S56: 1 | T56: MDA1 (IVM+ALB) | V56: MDA 1 | W56: T1 | X56: 33185 | Y56: Monapo | AA56: TRUE
A57: =IF(INTRO!$E$34<>0,INTRO!$E$34,"") -> Mozambique | B57: Nampula | C57: Mossuril | D57: 142812.7012 | E57: =IF(INTRO!$E$48="","",ROUND($D57*INTRO!$E$48,0)) -> 24278 | F57: =IF(INTRO!$E$49="","",ROUND($D57*INTRO!$E$49,0)) -> 39988 | G57: =IF(INTRO!$E$50="","",ROUND($D57*INTRO!$E$50,0)) -> 78547 | H57: 1 | J57: 2 | K57: 2 | L57: =IF(INTRO!$E$38="Endemic", IF($H57>0, IF($H57=4,"Unknown", IF($H57=99,"Stopped", $D57)), 0),"Not required") -> 142812.7012 | M57: =IF(INTRO!$E$40="Endemic", IF($I57>0, IF($I57=4,"Unknown",IF($I57=99,"Stopped", $D57)), 0),"Not required") -> Not required | N57: =IF(INTRO!$E$42="Endemic", IF(AND($J57>1,$J57<5), IF($J57=4, "Unknown", E57+F57), 0),"Not required") -> 64266 | O57: =IF(INTRO!$E$44="Endemic", IF(AND($K57>0,$K57<5), IF($K57=4,"Unknown", IF($K57=1, $F57*0.33, IF($K57=2, $F57*0.5+$G57*0.2, SUM(F57:G57)))), 0),"Not required") -> 35703.4 | P57: 1 | R57: 1 | S57: 0 | T57: MDA1 (IVM+ALB) | V57: MDA 1 | W57: T2 | X57: 33186 | Y57: Mossuril | AA57: TRUE
A58: =IF(INTRO!$E$34<>0,INTRO!$E$34,"") -> Mozambique | B58: Nampula | C58: Muecate | D58: 118577.2593 | E58: =IF(INTRO!$E$48="","",ROUND($D58*INTRO!$E$48,0)) -> 20158 | F58: =IF(INTRO!$E$49="","",ROUND($D58*INTRO!$E$49,0)) -> 33202 | G58: =IF(INTRO!$E$50="","",ROUND($D58*INTRO!$E$50,0)) -> 65217 | H58: 1 | J58: 3 | K58: 3 | L58: =IF(INTRO!$E$38="Endemic", IF($H58>0, IF($H58=4,"Unknown", IF($H58=99,"Stopped", $D58)), 0),"Not required") -> 118577.2593 | M58: =IF(INTRO!$E$40="Endemic", IF($I58>0, IF($I58=4,"Unknown",IF($I58=99,"Stopped", $D58)), 0),"Not required") -> Not required | N58: =IF(INTRO!$E$42="Endemic", IF(AND($J58>1,$J58<5), IF($J58=4, "Unknown", E58+F58), 0),"Not required") -> 53360 | O58: =IF(INTRO!$E$44="Endemic", IF(AND($K58>0,$K58<5), IF($K58=4,"Unknown", IF($K58=1, $F58*0.33, IF($K58=2, $F58*0.5+$G58*0.2, SUM(F58:G58)))), 0),"Not required") -> 98419 | P58: 1 | R58: 2 | S58: 1 | T58: MDA1 (IVM+ALB) | V58: MDA 1 | W58: T1 | X58: 33187 | Y58: Muecate | AA58: TRUE
A59: =IF(INTRO!$E$34<>0,INTRO!$E$34,"") -> Mozambique | B59: Nampula | C59: Murrupula | D59: 181404.2919 | E59: =IF(INTRO!$E$48="","",ROUND($D59*INTRO!$E$48,0)) -> 30839 | F59: =IF(INTRO!$E$49="","",ROUND($D59*INTRO!$E$49,0)) -> 50793 | G59: =IF(INTRO!$E$50="","",ROUND($D59*INTRO!$E$50,0)) -> 99772 | H59: 1 | J59: 3 | K59: 3 | L59: =IF(INTRO!$E$38="Endemic", IF($H59>0, IF($H59=4,"Unknown", IF($H59=99,"Stopped", $D59)), 0),"Not required") -> 181404.2919 | M59: =IF(INTRO!$E$40="Endemic", IF($I59>0, IF($I59=4,"Unknown",IF($I59=99,"Stopped", $D59)), 0),"Not required") -> Not required | N59: =IF(INTRO!$E$42="Endemic", IF(AND($J59>1,$J59<5), IF($J59=4, "Unknown", E59+F59), 0),"Not required") -> 81632 | O59: =IF(INTRO!$E$44="Endemic", IF(AND($K59>0,$K59<5), IF($K59=4,"Unknown", IF($K59=1, $F59*0.33, IF($K59=2, $F59*0.5+$G59*0.2, SUM(F59:G59)))), 0),"Not required") -> 150565 | P59: 1 | R59: 2 | S59: 1 | T59: MDA1 (IVM+ALB) | V59: MDA 1 | W59: T1 | X59: 33188 | Y59: Murrupula | AA59: TRUE
A60: =IF(INTRO!$E$34<>0,INTRO!$E$34,"") -> Mozambique | B60: Nampula | C60: Nacala Porto | D60: 247622.9893 | E60: =IF(INTRO!$E$48="","",ROUND($D60*INTRO!$E$48,0)) -> 42096 | F60: =IF(INTRO!$E$49="","",ROUND($D60*INTRO!$E$49,0)) -> 69334 | G60: =IF(INTRO!$E$50="","",ROUND($D60*INTRO!$E$50,0)) -> 136193 | H60: 1 | J60: 3 | K60: 2 | L60: =IF(INTRO!$E$38="Endemic", IF($H60>0, IF($H60=4,"Unknown", IF($H60=99,"Stopped", $D60)), 0),"Not required") -> 247622.9893 | M60: =IF(INTRO!$E$40="Endemic", IF($I60>0, IF($I60=4,"Unknown",IF($I60=99,"Stopped", $D60)), 0),"Not required") -> Not required | N60: =IF(INTRO!$E$42="Endemic", IF(AND($J60>1,$J60<5), IF($J60=4, "Unknown", E60+F60), 0),"Not required") -> 111430 | O60: =IF(INTRO!$E$44="Endemic", IF(AND($K60>0,$K60<5), IF($K60=4,"Unknown", IF($K60=1, $F60*0.33, IF($K60=2, $F60*0.5+$G60*0.2, SUM(F60:G60)))), 0),"Not required") -> 61905.6 | P60: 1 | R60: 2 | S60: 0 | T60: MDA1 (IVM+ALB) | V60: MDA 1 | W60: T1 | X60: 33189 | Y60: Nacala Porto | AA60: TRUE
A61: =IF(INTRO!$E$34<>0,INTRO!$E$34,"") -> Mozambique | B61: Nampula | C61: Nacala Velha | D61: 129103.38 | E61: =IF(INTRO!$E$48="","",ROUND($D61*INTRO!$E$48,0)) -> 21948 | F61: =IF(INTRO!$E$49="","",ROUND($D61*INTRO!$E$49,0)) -> 36149 | G61: =IF(INTRO!$E$50="","",ROUND($D61*INTRO!$E$50,0)) -> 71007 | H61: 1 | J61: 3 | K61: 3 | L61: =IF(INTRO!$E$38="Endemic", IF($H61>0, IF($H61=4,"Unknown", IF($H61=99,"Stopped", $D61)), 0),"Not required") -> 129103.38 | M61: =IF(INTRO!$E$40="Endemic", IF($I61>0, IF($I61=4,"Unknown",IF($I61=99,"Stopped", $D61)), 0),"Not required") -> Not required | N61: =IF(INTRO!$E$42="Endemic", IF(AND($J61>1,$J61<5), IF($J61=4, "Unknown", E61+F61), 0),"Not required") -> 58097 | O61: =IF(INTRO!$E$44="Endemic", IF(AND($K61>0,$K61<5), IF($K61=4,"Unknown", IF($K61=1, $F61*0.33, IF($K61=2, $F61*0.5+$G61*0.2, SUM(F61:G61)))), 0),"Not required") -> 107156 | P61: 1 | R61: 2 | S61: 1 | T61: MDA1 (IVM+ALB) | V61: MDA 1 | W61: T1 | X61: 33190 | Y61: Nacala Velha | AA61: TRUE
A62: =IF(INTRO!$E$34<>0,INTRO!$E$34,"") -> Mozambique | B62: Nampula | C62: Nacaroa | D62: 129262.9666 | E62: =IF(INTRO!$E$48="","",ROUND($D62*INTRO!$E$48,0)) -> 21975 | F62: =IF(INTRO!$E$49="","",ROUND($D62*INTRO!$E$49,0)) -> 36194 | G62: =IF(INTRO!$E$50="","",ROUND($D62*INTRO!$E$50,0)) -> 71095 | H62: 1 | J62: 3 | K62: 3 | L62: =IF(INTRO!$E$38="Endemic", IF($H62>0, IF($H62=4,"Unknown", IF($H62=99,"Stopped", $D62)), 0),"Not required") -> 129262.9666 | M62: =IF(INTRO!$E$40="Endemic", IF($I62>0, IF($I62=4,"Unknown",IF($I62=99,"Stopped", $D62)), 0),"Not required") -> Not required | N62: =IF(INTRO!$E$42="Endemic", IF(AND($J62>1,$J62<5), IF($J62=4, "Unknown", E62+F62), 0),"Not required") -> 58169 | O62: =IF(INTRO!$E$44="Endemic", IF(AND($K62>0,$K62<5), IF($K62=4,"Unknown", IF($K62=1, $F62*0.33, IF($K62=2, $F62*0.5+$G62*0.2, SUM(F62:G62)))), 0),"Not required") -> 107289 | P62: 1 | R62: 2 | S62: 1 | T62: MDA1 (IVM+ALB) | V62: MDA 1 | W62: T1 | X62: 33191 | Y62: Nacaroa | AA62: TRUE
A63: =IF(INTRO!$E$34<>0,INTRO!$E$34,"") -> Mozambique | B63: Nampula | C63: Nampula Dist. | D63: 169902.1298 | E63: =IF(INTRO!$E$48="","",ROUND($D63*INTRO!$E$48,0)) -> 28883 | F63: =IF(INTRO!$E$49="","",ROUND($D63*INTRO!$E$49,0)) -> 47573 | G63: =IF(INTRO!$E$50="","",ROUND($D63*INTRO!$E$50,0)) -> 93446 | H63: 1 | J63: 2 | K63: 3 | L63: =IF(INTRO!$E$38="Endemic", IF($H63>0, IF($H63=4,"Unknown", IF($H63=99,"Stopped", $D63)), 0),"Not required") -> 169902.1298 | M63: =IF(INTRO!$E$40="Endemic", IF($I63>0, IF($I63=4,"Unknown",IF($I63=99,"Stopped", $D63)), 0),"Not required") -> Not required | N63: =IF(INTRO!$E$42="Endemic", IF(AND($J63>1,$J63<5), IF($J63=4, "Unknown", E63+F63), 0),"Not required") -> 76456 | O63: =IF(INTRO!$E$44="Endemic", IF(AND($K63>0,$K63<5), IF($K63=4,"Unknown", IF($K63=1, $F63*0.33, IF($K63=2, $F63*0.5+$G63*0.2, SUM(F63:G63)))), 0),"Not required") -> 141019 | P63: 1 | R63: 1 | S63: 1 | T63: MDA1 (IVM+ALB) | V63: MDA 1 | W63: T2 | X63: 33192 | Y63: Nampula Dist. | AA63: TRUE
A64: =IF(INTRO!$E$34<>0,INTRO!$E$34,"") -> Mozambique | B64: Nampula | C64: Ribaué | D64: 275588.1646 | E64: =IF(INTRO!$E$48="","",ROUND($D64*INTRO!$E$48,0)) -> 46850 | F64: =IF(INTRO!$E$49="","",ROUND($D64*INTRO!$E$49,0)) -> 77165 | G64: =IF(INTRO!$E$50="","",ROUND($D64*INTRO!$E$50,0)) -> 151573 | H64: 1 | J64: 2 | K64: 3 | L64: =IF(INTRO!$E$38="Endemic", IF($H64>0, IF($H64=4,"Unknown", IF($H64=99,"Stopped", $D64)), 0),"Not required") -> 275588.1646 | M64: =IF(INTRO!$E$40="Endemic", IF($I64>0, IF($I64=4,"Unknown",IF($I64=99,"Stopped", $D64)), 0),"Not required") -> Not required | N64: =IF(INTRO!$E$42="Endemic", IF(AND($J64>1,$J64<5), IF($J64=4, "Unknown", E64+F64), 0),"Not required") -> 124015 | O64: =IF(INTRO!$E$44="Endemic", IF(AND($K64>0,$K64<5), IF($K64=4,"Unknown", IF($K64=1, $F64*0.33, IF($K64=2, $F64*0.5+$G64*0.2, SUM(F64:G64)))), 0),"Not required") -> 228738 | P64: 1 | R64: 1 | S64: 1 | T64: MDA1 (IVM+ALB) | V64: MDA 1 | W64: T2 | X64: 33193 | Y64: Ribaué | AA64: TRUE
A65: =IF(INTRO!$E$34<>0,INTRO!$E$34,"") -> Mozambique | B65: Zambezia | C65: Quelimane | D65: 392031.4791 | E65: =IF(INTRO!$E$48="","",ROUND($D65*INTRO!$E$48,0)) -> 66645 | F65: =IF(INTRO!$E$49="","",ROUND($D65*INTRO!$E$49,0)) -> 109769 | G65: =IF(INTRO!$E$50="","",ROUND($D65*INTRO!$E$50,0)) -> 215617 | H65: 1 | J65: 3 | K65: 2 | L65: =IF(INTRO!$E$38="Endemic", IF($H65>0, IF($H65=4,"Unknown", IF($H65=99,"Stopped", $D65)), 0),"Not required") -> 392031.4791 | M65: =IF(INTRO!$E$40="Endemic", IF($I65>0, IF($I65=4,"Unknown",IF($I65=99,"Stopped", $D65)), 0),"Not required") -> Not required | N65: =IF(INTRO!$E$42="Endemic", IF(AND($J65>1,$J65<5), IF($J65=4, "Unknown", E65+F65), 0),"Not required") -> 176414 | O65: =IF(INTRO!$E$44="Endemic", IF(AND($K65>0,$K65<5), IF($K65=4,"Unknown", IF($K65=1, $F65*0.33, IF($K65=2, $F65*0.5+$G65*0.2, SUM(F65:G65)))), 0),"Not required") -> 98007.9 | P65: 1 | R65: 2 | S65: 0 | T65: MDA1 (IVM+ALB) | V65: MDA 1 | W65: T1 | X65: 33239 | Y65: Quelimane | AA65: TRUE
A66: =IF(INTRO!$E$34<>0,INTRO!$E$34,"") -> Mozambique | B66: Zambezia | C66: Alto Molocué | D66: 401957.2005 | E66: =IF(INTRO!$E$48="","",ROUND($D66*INTRO!$E$48,0)) -> 68333 | F66: =IF(INTRO!$E$49="","",ROUND($D66*INTRO!$E$49,0)) -> 112548 | G66: =IF(INTRO!$E$50="","",ROUND($D66*INTRO!$E$50,0)) -> 221076 | H66: 1 | J66: 2 | K66: 3 | L66: =IF(INTRO!$E$38="Endemic", IF($H66>0, IF($H66=4,"Unknown", IF($H66=99,"Stopped", $D66)), 0),"Not required") -> 401957.2005 | M66: =IF(INTRO!$E$40="Endemic", IF($I66>0, IF($I66=4,"Unknown",IF($I66=99,"Stopped", $D66)), 0),"Not required") -> Not required | N66: =IF(INTRO!$E$42="Endemic", IF(AND($J66>1,$J66<5), IF($J66=4, "Unknown", E66+F66), 0),"Not required") -> 180881 | O66: =IF(INTRO!$E$44="Endemic", IF(AND($K66>0,$K66<5), IF($K66=4,"Unknown", IF($K66=1, $F66*0.33, IF($K66=2, $F66*0.5+$G66*0.2, SUM(F66:G66)))), 0),"Not required") -> 333624 | P66: 1 | R66: 1 | S66: 1 | T66: MDA1 (IVM+ALB) | V66: MDA 1 | W66: T2 | X66: 33251 | Y66: Alto Molocué | AA66: TRUE
A67: =IF(INTRO!$E$34<>0,INTRO!$E$34,"") -> Mozambique | B67: Zambezia | C67: Chinde | D67: 96933.14053 | E67: =IF(INTRO!$E$48="","",ROUND($D67*INTRO!$E$48,0)) -> 16479 | F67: =IF(INTRO!$E$49="","",ROUND($D67*INTRO!$E$49,0)) -> 27141 | G67: =IF(INTRO!$E$50="","",ROUND($D67*INTRO!$E$50,0)) -> 53313 | H67: 1 | J67: 3 | K67: 2 | L67: =IF(INTRO!$E$38="Endemic", IF($H67>0, IF($H67=4,"Unknown", IF($H67=99,"Stopped", $D67)), 0),"Not required") -> 96933.14053 | M67: =IF(INTRO!$E$40="Endemic", IF($I67>0, IF($I67=4,"Unknown",IF($I67=99,"Stopped", $D67)), 0),"Not required") -> Not required | N67: =IF(INTRO!$E$42="Endemic", IF(AND($J67>1,$J67<5), IF($J67=4, "Unknown", E67+F67), 0),"Not required") -> 43620 | O67: =IF(INTRO!$E$44="Endemic", IF(AND($K67>0,$K67<5), IF($K67=4,"Unknown", IF($K67=1, $F67*0.33, IF($K67=2, $F67*0.5+$G67*0.2, SUM(F67:G67)))), 0),"Not required") -> 24233.1 | P67: 1 | R67: 2 | S67: 0 | T67: MDA1 (IVM+ALB) | V67: MDA 1 | W67: T1 | X67: 33238 | Y67: Chinde | AA67: TRUE
A68: =IF(INTRO!$E$34<>0,INTRO!$E$34,"") -> Mozambique | B68: Zambezia | C68: Derre | D68: 93936.61044 | E68: =IF(INTRO!$E$48="","",ROUND($D68*INTRO!$E$48,0)) -> 15969 | F68: =IF(INTRO!$E$49="","",ROUND($D68*INTRO!$E$49,0)) -> 26302 | G68: =IF(INTRO!$E$50="","",ROUND($D68*INTRO!$E$50,0)) -> 51665 | H68: 1 | J68: 3 | K68: 3 | L68: =IF(INTRO!$E$38="Endemic", IF($H68>0, IF($H68=4,"Unknown", IF($H68=99,"Stopped", $D68)), 0),"Not required") -> 93936.61044 | M68: =IF(INTRO!$E$40="Endemic", IF($I68>0, IF($I68=4,"Unknown",IF($I68=99,"Stopped", $D68)), 0),"Not required") -> Not required | N68: =IF(INTRO!$E$42="Endemic", IF(AND($J68>1,$J68<5), IF($J68=4, "Unknown", E68+F68), 0),"Not required") -> 42271 | O68: =IF(INTRO!$E$44="Endemic", IF(AND($K68>0,$K68<5), IF($K68=4,"Unknown", IF($K68=1, $F68*0.33, IF($K68=2, $F68*0.5+$G68*0.2, SUM(F68:G68)))), 0),"Not required") -> 77967 | P68: 1 | R68: 2 | S68: 1 | T68: MDA1 (IVM+ALB) | V68: MDA 1 | W68: T1 | X68: 33240 | Y68: Derre | AA68: TRUE
A69: =IF(INTRO!$E$34<>0,INTRO!$E$34,"") -> Mozambique | B69: Zambezia | C69: Gilé | D69: 201381.3236 | E69: =IF(INTRO!$E$48="","",ROUND($D69*INTRO!$E$48,0)) -> 34235 | F69: =IF(INTRO!$E$49="","",ROUND($D69*INTRO!$E$49,0)) -> 56387 | G69: =IF(INTRO!$E$50="","",ROUND($D69*INTRO!$E$50,0)) -> 110760 | H69: 1 | J69: 3 | K69: 3 | L69: =IF(INTRO!$E$38="Endemic", IF($H69>0, IF($H69=4,"Unknown", IF($H69=99,"Stopped", $D69)), 0),"Not required") -> 201381.3236 | M69: =IF(INTRO!$E$40="Endemic", IF($I69>0, IF($I69=4,"Unknown",IF($I69=99,"Stopped", $D69)), 0),"Not required") -> Not required | N69: =IF(INTRO!$E$42="Endemic", IF(AND($J69>1,$J69<5), IF($J69=4, "Unknown", E69+F69), 0),"Not required") -> 90622 | O69: =IF(INTRO!$E$44="Endemic", IF(AND($K69>0,$K69<5), IF($K69=4,"Unknown", IF($K69=1, $F69*0.33, IF($K69=2, $F69*0.5+$G69*0.2, SUM(F69:G69)))), 0),"Not required") -> 167147 | P69: 1 | R69: 2 | S69: 1 | T69: MDA1 (IVM+ALB) | V69: MDA 1 | W69: T1 | X69: 33241 | Y69: Gilé | AA69: TRUE
A70: =IF(INTRO!$E$34<>0,INTRO!$E$34,"") -> Mozambique | B70: Zambezia | C70: Gurué | D70: 353859.7848 | E70: =IF(INTRO!$E$48="","",ROUND($D70*INTRO!$E$48,0)) -> 60156 | F70: =IF(INTRO!$E$49="","",ROUND($D70*INTRO!$E$49,0)) -> 99081 | G70: =IF(INTRO!$E$50="","",ROUND($D70*INTRO!$E$50,0)) -> 194623 | H70: 1 | J70: 2 | K70: 3 | L70: =IF(INTRO!$E$38="Endemic", IF($H70>0, IF($H70=4,"Unknown", IF($H70=99,"Stopped", $D70)), 0),"Not required") -> 353859.7848 | M70: =IF(INTRO!$E$40="Endemic", IF($I70>0, IF($I70=4,"Unknown",IF($I70=99,"Stopped", $D70)), 0),"Not required") -> Not required | N70: =IF(INTRO!$E$42="Endemic", IF(AND($J70>1,$J70<5), IF($J70=4, "Unknown", E70+F70), 0),"Not required") -> 159237 | O70: =IF(INTRO!$E$44="Endemic", IF(AND($K70>0,$K70<5), IF($K70=4,"Unknown", IF($K70=1, $F70*0.33, IF($K70=2, $F70*0.5+$G70*0.2, SUM(F70:G70)))), 0),"Not required") -> 293704 | P70: 1 | R70: 1 | S70: 1 | T70: MDA1 (IVM+ALB) | V70: MDA 1 | W70: T2 | X70: 33242 | Y70: Gurué | AA70: TRUE
A71: =IF(INTRO!$E$34<>0,INTRO!$E$34,"") -> Mozambique | B71: Zambezia | C71: Ile | D71: 278226.385 | E71: =IF(INTRO!$E$48="","",ROUND($D71*INTRO!$E$48,0)) -> 47298 | F71: =IF(INTRO!$E$49="","",ROUND($D71*INTRO!$E$49,0)) -> 77903 | G71: =IF(INTRO!$E$50="","",ROUND($D71*INTRO!$E$50,0)) -> 153025 | H71: 1 | J71: 2 | K71: 3 | L71: =IF(INTRO!$E$38="Endemic", IF($H71>0, IF($H71=4,"Unknown", IF($H71=99,"Stopped", $D71)), 0),"Not required") -> 278226.385 | M71: =IF(INTRO!$E$40="Endemic", IF($I71>0, IF($I71=4,"Unknown",IF($I71=99,"Stopped", $D71)), 0),"Not required") -> Not required | N71: =IF(INTRO!$E$42="Endemic", IF(AND($J71>1,$J71<5), IF($J71=4, "Unknown", E71+F71), 0),"Not required") -> 125201 | O71: =IF(INTRO!$E$44="Endemic", IF(AND($K71>0,$K71<5), IF($K71=4,"Unknown", IF($K71=1, $F71*0.33, IF($K71=2, $F71*0.5+$G71*0.2, SUM(F71:G71)))), 0),"Not required") -> 230928 | P71: 1 | R71: 1 | S71: 1 | T71: MDA1 (IVM+ALB) | V71: MDA 1 | W71: T2 | X71: 33243 | Y71: Ile | AA71: TRUE
A72: =IF(INTRO!$E$34<>0,INTRO!$E$34,"") -> Mozambique | B72: Zambezia | C72: Inhassunge | D72: 101922 | E72: =IF(INTRO!$E$48="","",ROUND($D72*INTRO!$E$48,0)) -> 17327 | F72: =IF(INTRO!$E$49="","",ROUND($D72*INTRO!$E$49,0)) -> 28538 | G72: =IF(INTRO!$E$50="","",ROUND($D72*INTRO!$E$50,0)) -> 56057 | H72: 1 | J72: 3 | K72: 3 | L72: =IF(INTRO!$E$38="Endemic", IF($H72>0, IF($H72=4,"Unknown", IF($H72=99,"Stopped", $D72)), 0),"Not required") -> 101922 | M72: =IF(INTRO!$E$40="Endemic", IF($I72>0, IF($I72=4,"Unknown",IF($I72=99,"Stopped", $D72)), 0),"Not required") -> Not required | N72: =IF(INTRO!$E$42="Endemic", IF(AND($J72>1,$J72<5), IF($J72=4, "Unknown", E72+F72), 0),"Not required") -> 45865 | O72: =IF(INTRO!$E$44="Endemic", IF(AND($K72>0,$K72<5), IF($K72=4,"Unknown", IF($K72=1, $F72*0.33, IF($K72=2, $F72*0.5+$G72*0.2, SUM(F72:G72)))), 0),"Not required") -> 84595 | P72: 1 | R72: 2 | S72: 1 | T72: MDA1 (IVM+ALB) | V72: MDA 1 | W72: T1 | X72: 33244 | Y72: Inhassunge | AA72: TRUE
A73: =IF(INTRO!$E$34<>0,INTRO!$E$34,"") -> Mozambique | B73: Zambezia | C73: Luabo | D73: 57346.48268 | E73: =IF(INTRO!$E$48="","",ROUND($D73*INTRO!$E$48,0)) -> 9749 | F73: =IF(INTRO!$E$49="","",ROUND($D73*INTRO!$E$49,0)) -> 16057 | G73: =IF(INTRO!$E$50="","",ROUND($D73*INTRO!$E$50,0)) -> 31541 | H73: 1 | J73: 3 | K73: 2 | L73: =IF(INTRO!$E$38="Endemic", IF($H73>0, IF($H73=4,"Unknown", IF($H73=99,"Stopped", $D73)), 0),"Not required") -> 57346.48268 | M73: =IF(INTRO!$E$40="Endemic", IF($I73>0, IF($I73=4,"Unknown",IF($I73=99,"Stopped", $D73)), 0),"Not required") -> Not required | N73: =IF(INTRO!$E$42="Endemic", IF(AND($J73>1,$J73<5), IF($J73=4, "Unknown", E73+F73), 0),"Not required") -> 25806 | O73: =IF(INTRO!$E$44="Endemic", IF(AND($K73>0,$K73<5), IF($K73=4,"Unknown", IF($K73=1, $F73*0.33, IF($K73=2, $F73*0.5+$G73*0.2, SUM(F73:G73)))), 0),"Not required") -> 14336.7 | P73: 1 | R73: 2 | S73: 0 | T73: MDA1 (IVM+ALB) | V73: MDA 1 | W73: T1 | X73: 33245 | Y73: Luabo | AA73: TRUE
A74: =IF(INTRO!$E$34<>0,INTRO!$E$34,"") -> Mozambique | B74: Zambezia | C74: Lugela | D74: 155064.0228 | E74: =IF(INTRO!$E$48="","",ROUND($D74*INTRO!$E$48,0)) -> 26361 | F74: =IF(INTRO!$E$49="","",ROUND($D74*INTRO!$E$49,0)) -> 43418 | G74: =IF(INTRO!$E$50="","",ROUND($D74*INTRO!$E$50,0)) -> 85285 | H74: 1 | J74: 2 | K74: 3 | L74: =IF(INTRO!$E$38="Endemic", IF($H74>0, IF($H74=4,"Unknown", IF($H74=99,"Stopped", $D74)), 0),"Not required") -> 155064.0228 | M74: =IF(INTRO!$E$40="Endemic", IF($I74>0, IF($I74=4,"Unknown",IF($I74=99,"Stopped", $D74)), 0),"Not required") -> Not required | N74: =IF(INTRO!$E$42="Endemic", IF(AND($J74>1,$J74<5), IF($J74=4, "Unknown", E74+F74), 0),"Not required") -> 69779 | O74: =IF(INTRO!$E$44="Endemic", IF(AND($K74>0,$K74<5), IF($K74=4,"Unknown", IF($K74=1, $F74*0.33, IF($K74=2, $F74*0.5+$G74*0.2, SUM(F74:G74)))), 0),"Not required") -> 128703 | P74: 1 | R74: 1 | S74: 1 | T74: MDA1 (IVM+ALB) | V74: MDA 1 | W74: T2 | X74: 33246 | Y74: Lugela | AA74: =Y74=C74 -> TRUE
A75: =IF(INTRO!$E$34<>0,INTRO!$E$34,"") -> Mozambique | B75: Zambezia | C75: Maganja da Costa | D75: 221850.1962 | E75: =IF(INTRO!$E$48="","",ROUND($D75*INTRO!$E$48,0)) -> 37715 | F75: =IF(INTRO!$E$49="","",ROUND($D75*INTRO!$E$49,0)) -> 62118 | G75: =IF(INTRO!$E$50="","",ROUND($D75*INTRO!$E$50,0)) -> 122018 | H75: 1 | J75: 2 | K75: 3 | L75: =IF(INTRO!$E$38="Endemic", IF($H75>0, IF($H75=4,"Unknown", IF($H75=99,"Stopped", $D75)), 0),"Not required") -> 221850.1962 | M75: =IF(INTRO!$E$40="Endemic", IF($I75>0, IF($I75=4,"Unknown",IF($I75=99,"Stopped", $D75)), 0),"Not required") -> Not required | N75: =IF(INTRO!$E$42="Endemic", IF(AND($J75>1,$J75<5), IF($J75=4, "Unknown", E75+F75), 0),"Not required") -> 99833 | O75: =IF(INTRO!$E$44="Endemic", IF(AND($K75>0,$K75<5), IF($K75=4,"Unknown", IF($K75=1, $F75*0.33, IF($K75=2, $F75*0.5+$G75*0.2, SUM(F75:G75)))), 0),"Not required") -> 184136 | P75: 1 | R75: 1 | S75: 1 | T75: MDA1 (IVM+ALB) | V75: MDA 1 | W75: T2 | X75: 33247 | Y75: Maganja da Costa | AA75: TRUE
A76: =IF(INTRO!$E$34<>0,INTRO!$E$34,"") -> Mozambique | B76: Zambezia | C76: Milange | D76: 532839.1499 | E76: =IF(INTRO!$E$48="","",ROUND($D76*INTRO!$E$48,0)) -> 90583 | F76: =IF(INTRO!$E$49="","",ROUND($D76*INTRO!$E$49,0)) -> 149195 | G76: =IF(INTRO!$E$50="","",ROUND($D76*INTRO!$E$50,0)) -> 293062 | H76: 1 | J76: 2 | K76: 3 | L76: =IF(INTRO!$E$38="Endemic", IF($H76>0, IF($H76=4,"Unknown", IF($H76=99,"Stopped", $D76)), 0),"Not required") -> 532839.1499 | M76: =IF(INTRO!$E$40="Endemic", IF($I76>0, IF($I76=4,"Unknown",IF($I76=99,"Stopped", $D76)), 0),"Not required") -> Not required | N76: =IF(INTRO!$E$42="Endemic", IF(AND($J76>1,$J76<5), IF($J76=4, "Unknown", E76+F76), 0),"Not required") -> 239778 | O76: =IF(INTRO!$E$44="Endemic", IF(AND($K76>0,$K76<5), IF($K76=4,"Unknown", IF($K76=1, $F76*0.33, IF($K76=2, $F76*0.5+$G76*0.2, SUM(F76:G76)))), 0),"Not required") -> 442257 | P76: 1 | R76: 1 | S76: 1 | T76: MDA1 (IVM+ALB) | V76: MDA 1 | W76: T2 | X76: 33248 | Y76: Milange | AA76: TRUE
A77: =IF(INTRO!$E$34<>0,INTRO!$E$34,"") -> Mozambique | B77: Zambezia | C77: Mocuba | D77: 399399.5713 | E77: =IF(INTRO!$E$48="","",ROUND($D77*INTRO!$E$48,0)) -> 67898 | F77: =IF(INTRO!$E$49="","",ROUND($D77*INTRO!$E$49,0)) -> 111832 | G77: =IF(INTRO!$E$50="","",ROUND($D77*INTRO!$E$50,0)) -> 219670 | H77: 1 | J77: 3 | K77: 3 | L77: =IF(INTRO!$E$38="Endemic", IF($H77>0, IF($H77=4,"Unknown", IF($H77=99,"Stopped", $D77)), 0),"Not required") -> 399399.5713 | M77: =IF(INTRO!$E$40="Endemic", IF($I77>0, IF($I77=4,"Unknown",IF($I77=99,"Stopped", $D77)), 0),"Not required") -> Not required | N77: =IF(INTRO!$E$42="Endemic", IF(AND($J77>1,$J77<5), IF($J77=4, "Unknown", E77+F77), 0),"Not required") -> 179730 | O77: =IF(INTRO!$E$44="Endemic", IF(AND($K77>0,$K77<5), IF($K77=4,"Unknown", IF($K77=1, $F77*0.33, IF($K77=2, $F77*0.5+$G77*0.2, SUM(F77:G77)))), 0),"Not required") -> 331502 | P77: 1 | R77: 2 | S77: 1 | T77: MDA1 (IVM+ALB) | V77: MDA 1 | W77: T1 | X77: 33249 | Y77: Mocuba | AA77: TRUE
A78: =IF(INTRO!$E$34<>0,INTRO!$E$34,"") -> Mozambique | B78: Zambezia | C78: Mocubela | D78: 136083.861 | E78: =IF(INTRO!$E$48="","",ROUND($D78*INTRO!$E$48,0)) -> 23134 | F78: =IF(INTRO!$E$49="","",ROUND($D78*INTRO!$E$49,0)) -> 38103 | G78: =IF(INTRO!$E$50="","",ROUND($D78*INTRO!$E$50,0)) -> 74846 | H78: 1 | J78: 2 | K78: 3 | L78: =IF(INTRO!$E$38="Endemic", IF($H78>0, IF($H78=4,"Unknown", IF($H78=99,"Stopped", $D78)), 0),"Not required") -> 136083.861 | M78: =IF(INTRO!$E$40="Endemic", IF($I78>0, IF($I78=4,"Unknown",IF($I78=99,"Stopped", $D78)), 0),"Not required") -> Not required | N78: =IF(INTRO!$E$42="Endemic", IF(AND($J78>1,$J78<5), IF($J78=4, "Unknown", E78+F78), 0),"Not required") -> 61237 | O78: =IF(INTRO!$E$44="Endemic", IF(AND($K78>0,$K78<5), IF($K78=4,"Unknown", IF($K78=1, $F78*0.33, IF($K78=2, $F78*0.5+$G78*0.2, SUM(F78:G78)))), 0),"Not required") -> 112949 | P78: 1 | R78: 1 | S78: 1 | T78: MDA1 (IVM+ALB) | V78: MDA 1 | W78: T2 | X78: 33250 | Y78: Mocubela | AA78: TRUE
A79: =IF(INTRO!$E$34<>0,INTRO!$E$34,"") -> Mozambique | B79: Zambezia | C79: Molubo | D79: 143095.3145 | E79: =IF(INTRO!$E$48="","",ROUND($D79*INTRO!$E$48,0)) -> 24326 | F79: =IF(INTRO!$E$49="","",ROUND($D79*INTRO!$E$49,0)) -> 40067 | G79: =IF(INTRO!$E$50="","",ROUND($D79*INTRO!$E$50,0)) -> 78702 | H79: 1 | J79: 2 | K79: 3 | L79: =IF(INTRO!$E$38="Endemic", IF($H79>0, IF($H79=4,"Unknown", IF($H79=99,"Stopped", $D79)), 0),"Not required") -> 143095.3145 | M79: =IF(INTRO!$E$40="Endemic", IF($I79>0, IF($I79=4,"Unknown",IF($I79=99,"Stopped", $D79)), 0),"Not required") -> Not required | N79: =IF(INTRO!$E$42="Endemic", IF(AND($J79>1,$J79<5), IF($J79=4, "Unknown", E79+F79), 0),"Not required") -> 64393 | O79: =IF(INTRO!$E$44="Endemic", IF(AND($K79>0,$K79<5), IF($K79=4,"Unknown", IF($K79=1, $F79*0.33, IF($K79=2, $F79*0.5+$G79*0.2, SUM(F79:G79)))), 0),"Not required") -> 118769 | P79: 1 | R79: 1 | S79: 1 | T79: MDA1 (IVM+ALB) | V79: MDA 1 | W79: T2 | X79: 33252 | Y79: Molumbo | AA79: FALSE
A80: =IF(INTRO!$E$34<>0,INTRO!$E$34,"") -> Mozambique | B80: Zambezia | C80: Mopeia | D80: 165291.7146 | E80: =IF(INTRO!$E$48="","",ROUND($D80*INTRO!$E$48,0)) -> 28100 | F80: =IF(INTRO!$E$49="","",ROUND($D80*INTRO!$E$49,0)) -> 46282 | G80: =IF(INTRO!$E$50="","",ROUND($D80*INTRO!$E$50,0)) -> 90910 | H80: 1 | J80: 2 | K80: 3 | L80: =IF(INTRO!$E$38="Endemic", IF($H80>0, IF($H80=4,"Unknown", IF($H80=99,"Stopped", $D80)), 0),"Not required") -> 165291.7146 | M80: =IF(INTRO!$E$40="Endemic", IF($I80>0, IF($I80=4,"Unknown",IF($I80=99,"Stopped", $D80)), 0),"Not required") -> Not required | N80: =IF(INTRO!$E$42="Endemic", IF(AND($J80>1,$J80<5), IF($J80=4, "Unknown", E80+F80), 0),"Not required") -> 74382 | O80: =IF(INTRO!$E$44="Endemic", IF(AND($K80>0,$K80<5), IF($K80=4,"Unknown", IF($K80=1, $F80*0.33, IF($K80=2, $F80*0.5+$G80*0.2, SUM(F80:G80)))), 0),"Not required") -> 137192 | P80: 1 | R80: 1 | S80: 1 | T80: MDA1 (IVM+ALB) | V80: MDA 1 | W80: T2 | X80: 33253 | Y80: Mopeia | AA80: TRUE
A81: =IF(INTRO!$E$34<>0,INTRO!$E$34,"") -> Mozambique | B81: Zambezia | C81: Morrumbala | D81: 370060.6769 | E81: =IF(INTRO!$E$48="","",ROUND($D81*INTRO!$E$48,0)) -> 62910 | F81: =IF(INTRO!$E$49="","",ROUND($D81*INTRO!$E$49,0)) -> 103617 | G81: =IF(INTRO!$E$50="","",ROUND($D81*INTRO!$E$50,0)) -> 203533 | H81: 1 | J81: 3 | K81: 3 | L81: =IF(INTRO!$E$38="Endemic", IF($H81>0, IF($H81=4,"Unknown", IF($H81=99,"Stopped", $D81)), 0),"Not required") -> 370060.6769 | M81: =IF(INTRO!$E$40="Endemic", IF($I81>0, IF($I81=4,"Unknown",IF($I81=99,"Stopped", $D81)), 0),"Not required") -> Not required | N81: =IF(INTRO!$E$42="Endemic", IF(AND($J81>1,$J81<5), IF($J81=4, "Unknown", E81+F81), 0),"Not required") -> 166527 | O81: =IF(INTRO!$E$44="Endemic", IF(AND($K81>0,$K81<5), IF($K81=4,"Unknown", IF($K81=1, $F81*0.33, IF($K81=2, $F81*0.5+$G81*0.2, SUM(F81:G81)))), 0),"Not required") -> 307150 | P81: 1 | R81: 2 | S81: 1 | T81: MDA1 (IVM+ALB) | V81: MDA 1 | W81: T1 | X81: 33254 | Y81: Morrumbala | AA81: TRUE
A82: =IF(INTRO!$E$34<>0,INTRO!$E$34,"") -> Mozambique | B82: Zambezia | C82: Mulevala | D82: 96524.35203 | E82: =IF(INTRO!$E$48="","",ROUND($D82*INTRO!$E$48,0)) -> 16409 | F82: =IF(INTRO!$E$49="","",ROUND($D82*INTRO!$E$49,0)) -> 27027 | G82: =IF(INTRO!$E$50="","",ROUND($D82*INTRO!$E$50,0)) -> 53088 | H82: 1 | J82: 2 | K82: 3 | L82: =IF(INTRO!$E$38="Endemic", IF($H82>0, IF($H82=4,"Unknown", IF($H82=99,"Stopped", $D82)), 0),"Not required") -> 96524.35203 | M82: =IF(INTRO!$E$40="Endemic", IF($I82>0, IF($I82=4,"Unknown",IF($I82=99,"Stopped", $D82)), 0),"Not required") -> Not required | N82: =IF(INTRO!$E$42="Endemic", IF(AND($J82>1,$J82<5), IF($J82=4, "Unknown", E82+F82), 0),"Not required") -> 43436 | O82: =IF(INTRO!$E$44="Endemic", IF(AND($K82>0,$K82<5), IF($K82=4,"Unknown", IF($K82=1, $F82*0.33, IF($K82=2, $F82*0.5+$G82*0.2, SUM(F82:G82)))), 0),"Not required") -> 80115 | P82: 1 | R82: 1 | S82: 1 | T82: MDA1 (IVM+ALB) | V82: MDA 1 | W82: T2 | X82: 33255 | Y82: Mulevala | AA82: TRUE
A83: =IF(INTRO!$E$34<>0,INTRO!$E$34,"") -> Mozambique | B83: Zambezia | C83: Namacurra | D83: 306904.9157 | E83: =IF(INTRO!$E$48="","",ROUND($D83*INTRO!$E$48,0)) -> 52174 | F83: =IF(INTRO!$E$49="","",ROUND($D83*INTRO!$E$49,0)) -> 85933 | G83: =IF(INTRO!$E$50="","",ROUND($D83*INTRO!$E$50,0)) -> 168798 | H83: 1 | J83: 2 | K83: 2 | L83: =IF(INTRO!$E$38="Endemic", IF($H83>0, IF($H83=4,"Unknown", IF($H83=99,"Stopped", $D83)), 0),"Not required") -> 306904.9157 | M83: =IF(INTRO!$E$40="Endemic", IF($I83>0, IF($I83=4,"Unknown",IF($I83=99,"Stopped", $D83)), 0),"Not required") -> Not required | N83: =IF(INTRO!$E$42="Endemic", IF(AND($J83>1,$J83<5), IF($J83=4, "Unknown", E83+F83), 0),"Not required") -> 138107 | O83: =IF(INTRO!$E$44="Endemic", IF(AND($K83>0,$K83<5), IF($K83=4,"Unknown", IF($K83=1, $F83*0.33, IF($K83=2, $F83*0.5+$G83*0.2, SUM(F83:G83)))), 0),"Not required") -> 76726.1 | P83: 1 | R83: 1 | S83: 0 | T83: MDA1 (IVM+ALB) | V83: MDA 1 | W83: T2 | X83: 33256 | Y83: Namacurra | AA83: TRUE
A84: =IF(INTRO!$E$34<>0,INTRO!$E$34,"") -> Mozambique | B84: Zambezia | C84: Namarrói | D84: 150991.8802 | E84: =IF(INTRO!$E$48="","",ROUND($D84*INTRO!$E$48,0)) -> 25669 | F84: =IF(INTRO!$E$49="","",ROUND($D84*INTRO!$E$49,0)) -> 42278 | G84: =IF(INTRO!$E$50="","",ROUND($D84*INTRO!$E$50,0)) -> 83046 | H84: 1 | J84: 3 | K84: 3 | L84: =IF(INTRO!$E$38="Endemic", IF($H84>0, IF($H84=4,"Unknown", IF($H84=99,"Stopped", $D84)), 0),"Not required") -> 150991.8802 | M84: =IF(INTRO!$E$40="Endemic", IF($I84>0, IF($I84=4,"Unknown",IF($I84=99,"Stopped", $D84)), 0),"Not required") -> Not required | N84: =IF(INTRO!$E$42="Endemic", IF(AND($J84>1,$J84<5), IF($J84=4, "Unknown", E84+F84), 0),"Not required") -> 67947 | O84: =IF(INTRO!$E$44="Endemic", IF(AND($K84>0,$K84<5), IF($K84=4,"Unknown", IF($K84=1, $F84*0.33, IF($K84=2, $F84*0.5+$G84*0.2, SUM(F84:G84)))), 0),"Not required") -> 125324 | P84: 1 | R84: 2 | S84: 1 | T84: MDA1 (IVM+ALB) | V84: MDA 1 | W84: T1 | X84: 33257 | Y84: Namarrói | AA84: TRUE
A85: =IF(INTRO!$E$34<>0,INTRO!$E$34,"") -> Mozambique | B85: Zambezia | C85: Nicoadala | D85: 157662.8698 | E85: =IF(INTRO!$E$48="","",ROUND($D85*INTRO!$E$48,0)) -> 26803 | F85: =IF(INTRO!$E$49="","",ROUND($D85*INTRO!$E$49,0)) -> 44146 | G85: =IF(INTRO!$E$50="","",ROUND($D85*INTRO!$E$50,0)) -> 86715 | H85: 1 | J85: 3 | K85: 2 | L85: =IF(INTRO!$E$38="Endemic", IF($H85>0, IF($H85=4,"Unknown", IF($H85=99,"Stopped", $D85)), 0),"Not required") -> 157662.8698 | M85: =IF(INTRO!$E$40="Endemic", IF($I85>0, IF($I85=4,"Unknown",IF($I85=99,"Stopped", $D85)), 0),"Not required") -> Not required | N85: =IF(INTRO!$E$42="Endemic", IF(AND($J85>1,$J85<5), IF($J85=4, "Unknown", E85+F85), 0),"Not required") -> 70949 | O85: =IF(INTRO!$E$44="Endemic", IF(AND($K85>0,$K85<5), IF($K85=4,"Unknown", IF($K85=1, $F85*0.33, IF($K85=2, $F85*0.5+$G85*0.2, SUM(F85:G85)))), 0),"Not required") -> 39416 | P85: 1 | R85: 2 | S85: 0 | T85: MDA1 (IVM+ALB) | V85: MDA 1 | W85: T1 | X85: 33258 | Y85: Nicoadala | AA85: TRUE
A86: =IF(INTRO!$E$34<>0,INTRO!$E$34,"") -> Mozambique | B86: Zambezia | C86: Pebane | D86: 229757.306 | E86: =IF(INTRO!$E$48="","",ROUND($D86*INTRO!$E$48,0)) -> 39059 | F86: =IF(INTRO!$E$49="","",ROUND($D86*INTRO!$E$49,0)) -> 64332 | G86: =IF(INTRO!$E$50="","",ROUND($D86*INTRO!$E$50,0)) -> 126367 | H86: 1 | J86: 3 | K86: 3 | L86: =IF(INTRO!$E$38="Endemic", IF($H86>0, IF($H86=4,"Unknown", IF($H86=99,"Stopped", $D86)), 0),"Not required") -> 229757.306 | M86: =IF(INTRO!$E$40="Endemic", IF($I86>0, IF($I86=4,"Unknown",IF($I86=99,"Stopped", $D86)), 0),"Not required") -> Not required | N86: =IF(INTRO!$E$42="Endemic", IF(AND($J86>1,$J86<5), IF($J86=4, "Unknown", E86+F86), 0),"Not required") -> 103391 | O86: =IF(INTRO!$E$44="Endemic", IF(AND($K86>0,$K86<5), IF($K86=4,"Unknown", IF($K86=1, $F86*0.33, IF($K86=2, $F86*0.5+$G86*0.2, SUM(F86:G86)))), 0),"Not required") -> 190699 | P86: 1 | R86: 2 | S86: 1 | T86: MDA1 (IVM+ALB) | V86: MDA 1 | W86: T1 | X86: 33259 | Y86: Pebane | AA86: TRUE
A87: =IF(INTRO!$E$34<>0,INTRO!$E$34,"") -> Mozambique | B87: Tete | C87: Cid Tete | D87: 225454.1224 | E87: =IF(INTRO!$E$48="","",ROUND($D87*INTRO!$E$48,0)) -> 38327 | F87: =IF(INTRO!$E$49="","",ROUND($D87*INTRO!$E$49,0)) -> 63127 | G87: =IF(INTRO!$E$50="","",ROUND($D87*INTRO!$E$50,0)) -> 124000 | H87: 1 | J87: 2 | K87: 2 | L87: =IF(INTRO!$E$38="Endemic", IF($H87>0, IF($H87=4,"Unknown", IF($H87=99,"Stopped", $D87)), 0),"Not required") -> 225454.1224 | M87: =IF(INTRO!$E$40="Endemic", IF($I87>0, IF($I87=4,"Unknown",IF($I87=99,"Stopped", $D87)), 0),"Not required") -> Not required | N87: =IF(INTRO!$E$42="Endemic", IF(AND($J87>1,$J87<5), IF($J87=4, "Unknown", E87+F87), 0),"Not required") -> 101454 | O87: =IF(INTRO!$E$44="Endemic", IF(AND($K87>0,$K87<5), IF($K87=4,"Unknown", IF($K87=1, $F87*0.33, IF($K87=2, $F87*0.5+$G87*0.2, SUM(F87:G87)))), 0),"Not required") -> 56363.5 | P87: 1 | R87: 1 | S87: 0 | T87: MDA1 (IVM+ALB) | V87: MDA 1 | W87: T2 | X87: 33228 | Y87: Cid Tete | AA87: TRUE
A88: =IF(INTRO!$E$34<>0,INTRO!$E$34,"") -> Mozambique | B88: Tete | C88: Angónia | D88: 394175.4811 | E88: =IF(INTRO!$E$48="","",ROUND($D88*INTRO!$E$48,0)) -> 67010 | F88: =IF(INTRO!$E$49="","",ROUND($D88*INTRO!$E$49,0)) -> 110369 | G88: =IF(INTRO!$E$50="","",ROUND($D88*INTRO!$E$50,0)) -> 216797 | H88: 1 | J88: 2 | K88: 2 | L88: =IF(INTRO!$E$38="Endemic", IF($H88>0, IF($H88=4,"Unknown", IF($H88=99,"Stopped", $D88)), 0),"Not required") -> 394175.4811 | M88: =IF(INTRO!$E$40="Endemic", IF($I88>0, IF($I88=4,"Unknown",IF($I88=99,"Stopped", $D88)), 0),"Not required") -> Not required | N88: =IF(INTRO!$E$42="Endemic", IF(AND($J88>1,$J88<5), IF($J88=4, "Unknown", E88+F88), 0),"Not required") -> 177379 | O88: =IF(INTRO!$E$44="Endemic", IF(AND($K88>0,$K88<5), IF($K88=4,"Unknown", IF($K88=1, $F88*0.33, IF($K88=2, $F88*0.5+$G88*0.2, SUM(F88:G88)))), 0),"Not required") -> 98543.9 | P88: 1 | R88: 1 | S88: 0 | T88: MDA1 (IVM+ALB) | V88: MDA 1 | W88: T2 | X88: 33223 | Y88: Angónia | AA88: TRUE
A89: =IF(INTRO!$E$34<>0,INTRO!$E$34,"") -> Mozambique | B89: Tete | C89: Cahora Bassa | D89: 133675.2903 | E89: =IF(INTRO!$E$48="","",ROUND($D89*INTRO!$E$48,0)) -> 22725 | F89: =IF(INTRO!$E$49="","",ROUND($D89*INTRO!$E$49,0)) -> 37429 | G89: =IF(INTRO!$E$50="","",ROUND($D89*INTRO!$E$50,0)) -> 73521 | H89: 1 | J89: 2 | K89: 2 | L89: =IF(INTRO!$E$38="Endemic", IF($H89>0, IF($H89=4,"Unknown", IF($H89=99,"Stopped", $D89)), 0),"Not required") -> 133675.2903 | M89: =IF(INTRO!$E$40="Endemic", IF($I89>0, IF($I89=4,"Unknown",IF($I89=99,"Stopped", $D89)), 0),"Not required") -> Not required | N89: =IF(INTRO!$E$42="Endemic", IF(AND($J89>1,$J89<5), IF($J89=4, "Unknown", E89+F89), 0),"Not required") -> 60154 | O89: =IF(INTRO!$E$44="Endemic", IF(AND($K89>0,$K89<5), IF($K89=4,"Unknown", IF($K89=1, $F89*0.33, IF($K89=2, $F89*0.5+$G89*0.2, SUM(F89:G89)))), 0),"Not required") -> 33418.7 | P89: 1 | R89: 1 | S89: 0 | T89: MDA1 (IVM+ALB) | V89: MDA 1 | W89: T2 | X89: 33224 | Y89: Cahora Bassa | AA89: TRUE
A90: =IF(INTRO!$E$34<>0,INTRO!$E$34,"") -> Mozambique | B90: Tete | C90: Changara | D90: 138642.0038 | E90: =IF(INTRO!$E$48="","",ROUND($D90*INTRO!$E$48,0)) -> 23569 | F90: =IF(INTRO!$E$49="","",ROUND($D90*INTRO!$E$49,0)) -> 38820 | G90: =IF(INTRO!$E$50="","",ROUND($D90*INTRO!$E$50,0)) -> 76253 | H90: 1 | J90: 2 | K90: 2 | L90: =IF(INTRO!$E$38="Endemic", IF($H90>0, IF($H90=4,"Unknown", IF($H90=99,"Stopped", $D90)), 0),"Not required") -> 138642.0038 | M90: =IF(INTRO!$E$40="Endemic", IF($I90>0, IF($I90=4,"Unknown",IF($I90=99,"Stopped", $D90)), 0),"Not required") -> Not required | N90: =IF(INTRO!$E$42="Endemic", IF(AND($J90>1,$J90<5), IF($J90=4, "Unknown", E90+F90), 0),"Not required") -> 62389 | O90: =IF(INTRO!$E$44="Endemic", IF(AND($K90>0,$K90<5), IF($K90=4,"Unknown", IF($K90=1, $F90*0.33, IF($K90=2, $F90*0.5+$G90*0.2, SUM(F90:G90)))), 0),"Not required") -> 34660.6 | P90: 1 | R90: 1 | S90: 0 | T90: MDA1 (IVM+ALB) | V90: MDA 1 | W90: T2 | X90: 33225 | Y90: Changara | AA90: TRUE
A91: =IF(INTRO!$E$34<>0,INTRO!$E$34,"") -> Mozambique | B91: Tete | C91: Chifunde | D91: 179874.3187 | E91: =IF(INTRO!$E$48="","",ROUND($D91*INTRO!$E$48,0)) -> 30579 | F91: =IF(INTRO!$E$49="","",ROUND($D91*INTRO!$E$49,0)) -> 50365 | G91: =IF(INTRO!$E$50="","",ROUND($D91*INTRO!$E$50,0)) -> 98931 | H91: 1 | J91: 3 | K91: 2 | L91: =IF(INTRO!$E$38="Endemic", IF($H91>0, IF($H91=4,"Unknown", IF($H91=99,"Stopped", $D91)), 0),"Not required") -> 179874.3187 | M91: =IF(INTRO!$E$40="Endemic", IF($I91>0, IF($I91=4,"Unknown",IF($I91=99,"Stopped", $D91)), 0),"Not required") -> Not required | N91: =IF(INTRO!$E$42="Endemic", IF(AND($J91>1,$J91<5), IF($J91=4, "Unknown", E91+F91), 0),"Not required") -> 80944 | O91: =IF(INTRO!$E$44="Endemic", IF(AND($K91>0,$K91<5), IF($K91=4,"Unknown", IF($K91=1, $F91*0.33, IF($K91=2, $F91*0.5+$G91*0.2, SUM(F91:G91)))), 0),"Not required") -> 44968.7 | P91: 1 | R91: 2 | S91: 1 | T91: MDA1 (IVM+ALB) | U91: T3 (ALB/MBD) | V91: MDA 1 | W91: T1 | X91: 33226 | Y91: Chifunde | AA91: TRUE
A92: =IF(INTRO!$E$34<>0,INTRO!$E$34,"") -> Mozambique | B92: Tete | C92: Chiúta | D92: 101354.272 | E92: =IF(INTRO!$E$48="","",ROUND($D92*INTRO!$E$48,0)) -> 17230 | F92: =IF(INTRO!$E$49="","",ROUND($D92*INTRO!$E$49,0)) -> 28379 | G92: =IF(INTRO!$E$50="","",ROUND($D92*INTRO!$E$50,0)) -> 55745 | H92: 1 | J92: 2 | K92: 2 | L92: =IF(INTRO!$E$38="Endemic", IF($H92>0, IF($H92=4,"Unknown", IF($H92=99,"Stopped", $D92)), 0),"Not required") -> 101354.272 | M92: =IF(INTRO!$E$40="Endemic", IF($I92>0, IF($I92=4,"Unknown",IF($I92=99,"Stopped", $D92)), 0),"Not required") -> Not required | N92: =IF(INTRO!$E$42="Endemic", IF(AND($J92>1,$J92<5), IF($J92=4, "Unknown", E92+F92), 0),"Not required") -> 45609 | O92: =IF(INTRO!$E$44="Endemic", IF(AND($K92>0,$K92<5), IF($K92=4,"Unknown", IF($K92=1, $F92*0.33, IF($K92=2, $F92*0.5+$G92*0.2, SUM(F92:G92)))), 0),"Not required") -> 25338.5 | P92: 1 | R92: 1 | S92: 0 | T92: MDA1 (IVM+ALB) | V92: MDA 1 | W92: T2 | X92: 33227 | Y92: Chiúta | AA92: TRUE
A93: =IF(INTRO!$E$34<>0,INTRO!$E$34,"") -> Mozambique | B93: Tete | C93: Doa | D93: 101319.3293 | E93: =IF(INTRO!$E$48="","",ROUND($D93*INTRO!$E$48,0)) -> 17224 | F93: =IF(INTRO!$E$49="","",ROUND($D93*INTRO!$E$49,0)) -> 28369 | G93: =IF(INTRO!$E$50="","",ROUND($D93*INTRO!$E$50,0)) -> 55726 | H93: 1 | J93: 2 | K93: 3 | L93: =IF(INTRO!$E$38="Endemic", IF($H93>0, IF($H93=4,"Unknown", IF($H93=99,"Stopped", $D93)), 0),"Not required") -> 101319.3293 | M93: =IF(INTRO!$E$40="Endemic", IF($I93>0, IF($I93=4,"Unknown",IF($I93=99,"Stopped", $D93)), 0),"Not required") -> Not required | N93: =IF(INTRO!$E$42="Endemic", IF(AND($J93>1,$J93<5), IF($J93=4, "Unknown", E93+F93), 0),"Not required") -> 45593 | O93: =IF(INTRO!$E$44="Endemic", IF(AND($K93>0,$K93<5), IF($K93=4,"Unknown", IF($K93=1, $F93*0.33, IF($K93=2, $F93*0.5+$G93*0.2, SUM(F93:G93)))), 0),"Not required") -> 84095 | P93: 1 | R93: 1 | S93: 1 | T93: MDA1 (IVM+ALB) | V93: MDA 1 | W93: T2 | X93: 33229 | Y93: Doa | AA93: TRUE
A94: =IF(INTRO!$E$34<>0,INTRO!$E$34,"") -> Mozambique | B94: Tete | C94: Macanga | D94: 227475.8423 | E94: =IF(INTRO!$E$48="","",ROUND($D94*INTRO!$E$48,0)) -> 38671 | F94: =IF(INTRO!$E$49="","",ROUND($D94*INTRO!$E$49,0)) -> 63693 | G94: =IF(INTRO!$E$50="","",ROUND($D94*INTRO!$E$50,0)) -> 125112 | H94: 1 | J94: 3 | K94: 2 | L94: =IF(INTRO!$E$38="Endemic", IF($H94>0, IF($H94=4,"Unknown", IF($H94=99,"Stopped", $D94)), 0),"Not required") -> 227475.8423 | M94: =IF(INTRO!$E$40="Endemic", IF($I94>0, IF($I94=4,"Unknown",IF($I94=99,"Stopped", $D94)), 0),"Not required") -> Not required | N94: =IF(INTRO!$E$42="Endemic", IF(AND($J94>1,$J94<5), IF($J94=4, "Unknown", E94+F94), 0),"Not required") -> 102364 | O94: =IF(INTRO!$E$44="Endemic", IF(AND($K94>0,$K94<5), IF($K94=4,"Unknown", IF($K94=1, $F94*0.33, IF($K94=2, $F94*0.5+$G94*0.2, SUM(F94:G94)))), 0),"Not required") -> 56868.9 | P94: 1 | R94: 2 | S94: 0 | T94: MDA1 (IVM+ALB) | U94: T3 (ALB/MBD) | V94: MDA 1 | W94: T1 | X94: 33230 | Y94: Macanga | AA94: TRUE
A95: =IF(INTRO!$E$34<>0,INTRO!$E$34,"") -> Mozambique | B95: Tete | C95: Magoe | D95: 105431.7216 | E95: =IF(INTRO!$E$48="","",ROUND($D95*INTRO!$E$48,0)) -> 17923 | F95: =IF(INTRO!$E$49="","",ROUND($D95*INTRO!$E$49,0)) -> 29521 | G95: =IF(INTRO!$E$50="","",ROUND($D95*INTRO!$E$50,0)) -> 57987 | H95: 1 | J95: 2 | K95: 2 | L95: =IF(INTRO!$E$38="Endemic", IF($H95>0, IF($H95=4,"Unknown", IF($H95=99,"Stopped", $D95)), 0),"Not required") -> 105431.7216 | M95: =IF(INTRO!$E$40="Endemic", IF($I95>0, IF($I95=4,"Unknown",IF($I95=99,"Stopped", $D95)), 0),"Not required") -> Not required | N95: =IF(INTRO!$E$42="Endemic", IF(AND($J95>1,$J95<5), IF($J95=4, "Unknown", E95+F95), 0),"Not required") -> 47444 | O95: =IF(INTRO!$E$44="Endemic", IF(AND($K95>0,$K95<5), IF($K95=4,"Unknown", IF($K95=1, $F95*0.33, IF($K95=2, $F95*0.5+$G95*0.2, SUM(F95:G95)))), 0),"Not required") -> 26357.9 | P95: 1 | R95: 1 | S95: 0 | T95: MDA1 (IVM+ALB) | V95: MDA 1 | W95: T2 | X95: 33231 | Y95: Magoe | AA95: TRUE
A96: =IF(INTRO!$E$34<>0,INTRO!$E$34,"") -> Mozambique | B96: Tete | C96: Marávia | D96: 95923.74282 | E96: =IF(INTRO!$E$48="","",ROUND($D96*INTRO!$E$48,0)) -> 16307 | F96: =IF(INTRO!$E$49="","",ROUND($D96*INTRO!$E$49,0)) -> 26859 | G96: =IF(INTRO!$E$50="","",ROUND($D96*INTRO!$E$50,0)) -> 52758 | H96: 0 | J96: 3 | K96: 2 | L96: =IF(INTRO!$E$38="Endemic", IF($H96>0, IF($H96=4,"Unknown", IF($H96=99,"Stopped", $D96)), 0),"Not required") -> 0 | M96: =IF(INTRO!$E$40="Endemic", IF($I96>0, IF($I96=4,"Unknown",IF($I96=99,"Stopped", $D96)), 0),"Not required") -> Not required | N96: =IF(INTRO!$E$42="Endemic", IF(AND($J96>1,$J96<5), IF($J96=4, "Unknown", E96+F96), 0),"Not required") -> 43166 | O96: =IF(INTRO!$E$44="Endemic", IF(AND($K96>0,$K96<5), IF($K96=4,"Unknown", IF($K96=1, $F96*0.33, IF($K96=2, $F96*0.5+$G96*0.2, SUM(F96:G96)))), 0),"Not required") -> 23981.1 | P96: 0 | R96: 2 | S96: 1 | U96: T3 (ALB/MBD) | V96: T1 | W96: T3 | X96: 33233 | Y96: Marávia | AA96: TRUE
A97: =IF(INTRO!$E$34<>0,INTRO!$E$34,"") -> Mozambique | B97: Tete | C97: Marara | D97: 113431 | E97: =IF(INTRO!$E$48="","",ROUND($D97*INTRO!$E$48,0)) -> 19283 | F97: =IF(INTRO!$E$49="","",ROUND($D97*INTRO!$E$49,0)) -> 31761 | G97: =IF(INTRO!$E$50="","",ROUND($D97*INTRO!$E$50,0)) -> 62387 | H97: 1 | J97: 2 | K97: 2 | L97: =IF(INTRO!$E$38="Endemic", IF($H97>0, IF($H97=4,"Unknown", IF($H97=99,"Stopped", $D97)), 0),"Not required") -> 113431 | M97: =IF(INTRO!$E$40="Endemic", IF($I97>0, IF($I97=4,"Unknown",IF($I97=99,"Stopped", $D97)), 0),"Not required") -> Not required | N97: =IF(INTRO!$E$42="Endemic", IF(AND($J97>1,$J97<5), IF($J97=4, "Unknown", E97+F97), 0),"Not required") -> 51044 | O97: =IF(INTRO!$E$44="Endemic", IF(AND($K97>0,$K97<5), IF($K97=4,"Unknown", IF($K97=1, $F97*0.33, IF($K97=2, $F97*0.5+$G97*0.2, SUM(F97:G97)))), 0),"Not required") -> 28357.9 | P97: 1 | R97: 1 | S97: 0 | T97: MDA1 (IVM+ALB) | V97: MDA 1 | W97: T2 | X97: 33232 | Y97: Marara | AA97: TRUE
A98: =IF(INTRO!$E$34<>0,INTRO!$E$34,"") -> Mozambique | B98: Tete | C98: Moatize | D98: 378545.9618 | E98: =IF(INTRO!$E$48="","",ROUND($D98*INTRO!$E$48,0)) -> 64353 | F98: =IF(INTRO!$E$49="","",ROUND($D98*INTRO!$E$49,0)) -> 105993 | G98: =IF(INTRO!$E$50="","",ROUND($D98*INTRO!$E$50,0)) -> 208200 | H98: 1 | J98: 2 | K98: 2 | L98: =IF(INTRO!$E$38="Endemic", IF($H98>0, IF($H98=4,"Unknown", IF($H98=99,"Stopped", $D98)), 0),"Not required") -> 378545.9618 | M98: =IF(INTRO!$E$40="Endemic", IF($I98>0, IF($I98=4,"Unknown",IF($I98=99,"Stopped", $D98)), 0),"Not required") -> Not required | N98: =IF(INTRO!$E$42="Endemic", IF(AND($J98>1,$J98<5), IF($J98=4, "Unknown", E98+F98), 0),"Not required") -> 170346 | O98: =IF(INTRO!$E$44="Endemic", IF(AND($K98>0,$K98<5), IF($K98=4,"Unknown", IF($K98=1, $F98*0.33, IF($K98=2, $F98*0.5+$G98*0.2, SUM(F98:G98)))), 0),"Not required") -> 94636.5 | P98: 1 | R98: 1 | S98: 0 | T98: MDA1 (IVM+ALB) | V98: MDA 1 | W98: T2 | X98: 33234 | Y98: Moatize | AA98: TRUE
A99: =IF(INTRO!$E$34<>0,INTRO!$E$34,"") -> Mozambique | B99: Tete | C99: Mutarara | D99: 208863.589 | E99: =IF(INTRO!$E$48="","",ROUND($D99*INTRO!$E$48,0)) -> 35507 | F99: =IF(INTRO!$E$49="","",ROUND($D99*INTRO!$E$49,0)) -> 58482 | G99: =IF(INTRO!$E$50="","",ROUND($D99*INTRO!$E$50,0)) -> 114875 | H99: 1 | J99: 2 | K99: 3 | L99: =IF(INTRO!$E$38="Endemic", IF($H99>0, IF($H99=4,"Unknown", IF($H99=99,"Stopped", $D99)), 0),"Not required") -> 208863.589 | M99: =IF(INTRO!$E$40="Endemic", IF($I99>0, IF($I99=4,"Unknown",IF($I99=99,"Stopped", $D99)), 0),"Not required") -> Not required | N99: =IF(INTRO!$E$42="Endemic", IF(AND($J99>1,$J99<5), IF($J99=4, "Unknown", E99+F99), 0),"Not required") -> 93989 | O99: =IF(INTRO!$E$44="Endemic", IF(AND($K99>0,$K99<5), IF($K99=4,"Unknown", IF($K99=1, $F99*0.33, IF($K99=2, $F99*0.5+$G99*0.2, SUM(F99:G99)))), 0),"Not required") -> 173357 | P99: 1 | R99: 1 | S99: 1 | T99: MDA1 (IVM+ALB) | V99: MDA 1 | W99: T2 | X99: 33235 | Y99: Mutarara | AA99: TRUE
A100: =IF(INTRO!$E$34<>0,INTRO!$E$34,"") -> Mozambique | B100: Tete | C100: Tsangano | D100: 235452.0568 | E100: =IF(INTRO!$E$48="","",ROUND($D100*INTRO!$E$48,0)) -> 40027 | F100: =IF(INTRO!$E$49="","",ROUND($D100*INTRO!$E$49,0)) -> 65927 | G100: =IF(INTRO!$E$50="","",ROUND($D100*INTRO!$E$50,0)) -> 129499 | H100: 1 | J100: 3 | K100: 2 | L100: =IF(INTRO!$E$38="Endemic", IF($H100>0, IF($H100=4,"Unknown", IF($H100=99,"Stopped", $D100)), 0),"Not required") -> 235452.0568 | M100: =IF(INTRO!$E$40="Endemic", IF($I100>0, IF($I100=4,"Unknown",IF($I100=99,"Stopped", $D100)), 0),"Not required") -> Not required | N100: =IF(INTRO!$E$42="Endemic", IF(AND($J100>1,$J100<5), IF($J100=4, "Unknown", E100+F100), 0),"Not required") -> 105954 | O100: =IF(INTRO!$E$44="Endemic", IF(AND($K100>0,$K100<5), IF($K100=4,"Unknown", IF($K100=1, $F100*0.33, IF($K100=2, $F100*0.5+$G100*0.2, SUM(F100:G100)))), 0),"Not required") -> 58863.3 | P100: 1 | R100: 2 | S100: 0 | T100: MDA1 (IVM+ALB) | U100: T3 (ALB/MBD) | V100: MDA 1 | W100: T1 | X100: 33236 | Y100: Tsangano | AA100: TRUE
A101: =IF(INTRO!$E$34<>0,INTRO!$E$34,"") -> Mozambique | B101: Tete | C101: Zumbu | D101: 83390.84546 | E101: =IF(INTRO!$E$48="","",ROUND($D101*INTRO!$E$48,0)) -> 14176 | F101: =IF(INTRO!$E$49="","",ROUND($D101*INTRO!$E$49,0)) -> 23349 | G101: =IF(INTRO!$E$50="","",ROUND($D101*INTRO!$E$50,0)) -> 45865 | H101: 1 | J101: 2 | K101: 2 | L101: =IF(INTRO!$E$38="Endemic", IF($H101>0, IF($H101=4,"Unknown", IF($H101=99,"Stopped", $D101)), 0),"Not required") -> 83390.84546 | M101: =IF(INTRO!$E$40="Endemic", IF($I101>0, IF($I101=4,"Unknown",IF($I101=99,"Stopped", $D101)), 0),"Not required") -> Not required | N101: =IF(INTRO!$E$42="Endemic", IF(AND($J101>1,$J101<5), IF($J101=4, "Unknown", E101+F101), 0),"Not required") -> 37525 | O101: =IF(INTRO!$E$44="Endemic", IF(AND($K101>0,$K101<5), IF($K101=4,"Unknown", IF($K101=1, $F101*0.33, IF($K101=2, $F101*0.5+$G101*0.2, SUM(F101:G101)))), 0),"Not required") -> 20847.5 | P101: 1 | R101: 1 | S101: 0 | T101: MDA1 (IVM+ALB) | V101: MDA 1 | W101: T2 | X101: 33237 | Y101: Zumbu | AA101: TRUE
A102: =IF(INTRO!$E$34<>0,INTRO!$E$34,"") -> Mozambique | B102: Sofala | C102: Cid Beira | D102: 463442 | E102: =IF(INTRO!$E$48="","",ROUND($D102*INTRO!$E$48,0)) -> 78785 | F102: =IF(INTRO!$E$49="","",ROUND($D102*INTRO!$E$49,0)) -> 129764 | G102: =IF(INTRO!$E$50="","",ROUND($D102*INTRO!$E$50,0)) -> 254893 | H102: 1 | J102: 2 | K102: 3 | L102: =IF(INTRO!$E$38="Endemic", IF($H102>0, IF($H102=4,"Unknown", IF($H102=99,"Stopped", $D102)), 0),"Not required") -> 463442 | M102: =IF(INTRO!$E$40="Endemic", IF($I102>0, IF($I102=4,"Unknown",IF($I102=99,"Stopped", $D102)), 0),"Not required") -> Not required | N102: =IF(INTRO!$E$42="Endemic", IF(AND($J102>1,$J102<5), IF($J102=4, "Unknown", E102+F102), 0),"Not required") -> 208549 | O102: =IF(INTRO!$E$44="Endemic", IF(AND($K102>0,$K102<5), IF($K102=4,"Unknown", IF($K102=1, $F102*0.33, IF($K102=2, $F102*0.5+$G102*0.2, SUM(F102:G102)))), 0),"Not required") -> 384657 | P102: 1 | R102: 1 | S102: 1 | T102: MDA1 (IVM+ALB) | V102: MDA 1 | W102: T2 | X102: 33215 | Y102: Cid Beira | AA102: TRUE
A103: =IF(INTRO!$E$34<>0,INTRO!$E$34,"") -> Mozambique | B103: Sofala | C103: Buzi | D103: 199067 | E103: =IF(INTRO!$E$48="","",ROUND($D103*INTRO!$E$48,0)) -> 33841 | F103: =IF(INTRO!$E$49="","",ROUND($D103*INTRO!$E$49,0)) -> 55739 | G103: =IF(INTRO!$E$50="","",ROUND($D103*INTRO!$E$50,0)) -> 109487 | H103: 0 | J103: 2 | K103: 2 | L103: =IF(INTRO!$E$38="Endemic", IF($H103>0, IF($H103=4,"Unknown", IF($H103=99,"Stopped", $D103)), 0),"Not required") -> 0 | M103: =IF(INTRO!$E$40="Endemic", IF($I103>0, IF($I103=4,"Unknown",IF($I103=99,"Stopped", $D103)), 0),"Not required") -> Not required | N103: =IF(INTRO!$E$42="Endemic", IF(AND($J103>1,$J103<5), IF($J103=4, "Unknown", E103+F103), 0),"Not required") -> 89580 | O103: =IF(INTRO!$E$44="Endemic", IF(AND($K103>0,$K103<5), IF($K103=4,"Unknown", IF($K103=1, $F103*0.33, IF($K103=2, $F103*0.5+$G103*0.2, SUM(F103:G103)))), 0),"Not required") -> 49766.9 | P103: 0 | R103: 1 | S103: 1 | W103: T1 | X103: 33210 | Y103: Buzi | AA103: TRUE
A104: =IF(INTRO!$E$34<>0,INTRO!$E$34,"") -> Mozambique | B104: Sofala | C104: Caia | D104: 155320 | E104: =IF(INTRO!$E$48="","",ROUND($D104*INTRO!$E$48,0)) -> 26404 | F104: =IF(INTRO!$E$49="","",ROUND($D104*INTRO!$E$49,0)) -> 43490 | G104: =IF(INTRO!$E$50="","",ROUND($D104*INTRO!$E$50,0)) -> 85426 | H104: 1 | J104: 2 | K104: 2 | L104: =IF(INTRO!$E$38="Endemic", IF($H104>0, IF($H104=4,"Unknown", IF($H104=99,"Stopped", $D104)), 0),"Not required") -> 155320 | M104: =IF(INTRO!$E$40="Endemic", IF($I104>0, IF($I104=4,"Unknown",IF($I104=99,"Stopped", $D104)), 0),"Not required") -> Not required | N104: =IF(INTRO!$E$42="Endemic", IF(AND($J104>1,$J104<5), IF($J104=4, "Unknown", E104+F104), 0),"Not required") -> 69894 | O104: =IF(INTRO!$E$44="Endemic", IF(AND($K104>0,$K104<5), IF($K104=4,"Unknown", IF($K104=1, $F104*0.33, IF($K104=2, $F104*0.5+$G104*0.2, SUM(F104:G104)))), 0),"Not required") -> 38830.2 | P104: 1 | R104: 1 | S104: 1 | T104: MDA1 (IVM+ALB) | V104: MDA 1 | W104: T2 | X104: 33211 | Y104: Caia | AA104: TRUE
A105: =IF(INTRO!$E$34<>0,INTRO!$E$34,"") -> Mozambique | B105: Sofala | C105: Chemba | D105: 82021 | E105: =IF(INTRO!$E$48="","",ROUND($D105*INTRO!$E$48,0)) -> 13944 | F105: =IF(INTRO!$E$49="","",ROUND($D105*INTRO!$E$49,0)) -> 22966 | G105: =IF(INTRO!$E$50="","",ROUND($D105*INTRO!$E$50,0)) -> 45112 | H105: 1 | J105: 2 | K105: 3 | L105: =IF(INTRO!$E$38="Endemic", IF($H105>0, IF($H105=4,"Unknown", IF($H105=99,"Stopped", $D105)), 0),"Not required") -> 82021 | M105: =IF(INTRO!$E$40="Endemic", IF($I105>0, IF($I105=4,"Unknown",IF($I105=99,"Stopped", $D105)), 0),"Not required") -> Not required | N105: =IF(INTRO!$E$42="Endemic", IF(AND($J105>1,$J105<5), IF($J105=4, "Unknown", E105+F105), 0),"Not required") -> 36910 | O105: =IF(INTRO!$E$44="Endemic", IF(AND($K105>0,$K105<5), IF($K105=4,"Unknown", IF($K105=1, $F105*0.33, IF($K105=2, $F105*0.5+$G105*0.2, SUM(F105:G105)))), 0),"Not required") -> 68078 | P105: 1 | R105: 1 | S105: 1 | T105: MDA1 (IVM+ALB) | V105: MDA 1 | W105: T2 | X105: 33212 | Y105: Chemba | AA105: TRUE
A106: =IF(INTRO!$E$34<>0,INTRO!$E$34,"") -> Mozambique | B106: Sofala | C106: Cheringoma | D106: 72127 | E106: =IF(INTRO!$E$48="","",ROUND($D106*INTRO!$E$48,0)) -> 12262 | F106: =IF(INTRO!$E$49="","",ROUND($D106*INTRO!$E$49,0)) -> 20196 | G106: =IF(INTRO!$E$50="","",ROUND($D106*INTRO!$E$50,0)) -> 39670 | H106: 1 | J106: 2 | K106: 3 | L106: =IF(INTRO!$E$38="Endemic", IF($H106>0, IF($H106=4,"Unknown", IF($H106=99,"Stopped", $D106)), 0),"Not required") -> 72127 | M106: =IF(INTRO!$E$40="Endemic", IF($I106>0, IF($I106=4,"Unknown",IF($I106=99,"Stopped", $D106)), 0),"Not required") -> Not required | N106: =IF(INTRO!$E$42="Endemic", IF(AND($J106>1,$J106<5), IF($J106=4, "Unknown", E106+F106), 0),"Not required") -> 32458 | O106: =IF(INTRO!$E$44="Endemic", IF(AND($K106>0,$K106<5), IF($K106=4,"Unknown", IF($K106=1, $F106*0.33, IF($K106=2, $F106*0.5+$G106*0.2, SUM(F106:G106)))), 0),"Not required") -> 59866 | P106: 1 | R106: 1 | S106: 1 | T106: MDA1 (IVM+ALB) | V106: MDA 1 | W106: T2 | X106: 33213 | Y106: Cheringoma | AA106: TRUE
A107: =IF(INTRO!$E$34<>0,INTRO!$E$34,"") -> Mozambique | B107: Sofala | C107: Chibabava | D107: 139700 | E107: =IF(INTRO!$E$48="","",ROUND($D107*INTRO!$E$48,0)) -> 23749 | F107: =IF(INTRO!$E$49="","",ROUND($D107*INTRO!$E$49,0)) -> 39116 | G107: =IF(INTRO!$E$50="","",ROUND($D107*INTRO!$E$50,0)) -> 76835 | H107: 1 | J107: 2 | K107: 3 | L107: =IF(INTRO!$E$38="Endemic", IF($H107>0, IF($H107=4,"Unknown", IF($H107=99,"Stopped", $D107)), 0),"Not required") -> 139700 | M107: =IF(INTRO!$E$40="Endemic", IF($I107>0, IF($I107=4,"Unknown",IF($I107=99,"Stopped", $D107)), 0),"Not required") -> Not required | N107: =IF(INTRO!$E$42="Endemic", IF(AND($J107>1,$J107<5), IF($J107=4, "Unknown", E107+F107), 0),"Not required") -> 62865 | O107: =IF(INTRO!$E$44="Endemic", IF(AND($K107>0,$K107<5), IF($K107=4,"Unknown", IF($K107=1, $F107*0.33, IF($K107=2, $F107*0.5+$G107*0.2, SUM(F107:G107)))), 0),"Not required") -> 115951 | P107: 1 | R107: 1 | S107: 1 | T107: MDA1 (IVM+ALB) | V107: MDA 1 | W107: T2 | X107: 33214 | Y107: Chibabava | AA107: TRUE
A108: =IF(INTRO!$E$34<>0,INTRO!$E$34,"") -> Mozambique | B108: Sofala | C108: Dondo | D108: 180905 | E108: =IF(INTRO!$E$48="","",ROUND($D108*INTRO!$E$48,0)) -> 30754 | F108: =IF(INTRO!$E$49="","",ROUND($D108*INTRO!$E$49,0)) -> 50653 | G108: =IF(INTRO!$E$50="","",ROUND($D108*INTRO!$E$50,0)) -> 99498 | H108: 1 | J108: 1 | K108: 2 | L108: =IF(INTRO!$E$38="Endemic", IF($H108>0, IF($H108=4,"Unknown", IF($H108=99,"Stopped", $D108)), 0),"Not required") -> 180905 | M108: =IF(INTRO!$E$40="Endemic", IF($I108>0, IF($I108=4,"Unknown",IF($I108=99,"Stopped", $D108)), 0),"Not required") -> Not required | N108: =IF(INTRO!$E$42="Endemic", IF(AND($J108>1,$J108<5), IF($J108=4, "Unknown", E108+F108), 0),"Not required") -> 0 | O108: =IF(INTRO!$E$44="Endemic", IF(AND($K108>0,$K108<5), IF($K108=4,"Unknown", IF($K108=1, $F108*0.33, IF($K108=2, $F108*0.5+$G108*0.2, SUM(F108:G108)))), 0),"Not required") -> 45226.1 | P108: 1 | R108: 0 | S108: 1 | T108: MDA1 (IVM+ALB) | V108: MDA 1 | W108: T2 | X108: 33216 | Y108: Dondo | AA108: TRUE
A109: =IF(INTRO!$E$34<>0,INTRO!$E$34,"") -> Mozambique | B109: Sofala | C109: Gorongosa | D109: 170371 | E109: =IF(INTRO!$E$48="","",ROUND($D109*INTRO!$E$48,0)) -> 28963 | F109: =IF(INTRO!$E$49="","",ROUND($D109*INTRO!$E$49,0)) -> 47704 | G109: =IF(INTRO!$E$50="","",ROUND($D109*INTRO!$E$50,0)) -> 93704 | H109: 1 | J109: 2 | K109: 3 | L109: =IF(INTRO!$E$38="Endemic", IF($H109>0, IF($H109=4,"Unknown", IF($H109=99,"Stopped", $D109)), 0),"Not required") -> 170371 | M109: =IF(INTRO!$E$40="Endemic", IF($I109>0, IF($I109=4,"Unknown",IF($I109=99,"Stopped", $D109)), 0),"Not required") -> Not required | N109: =IF(INTRO!$E$42="Endemic", IF(AND($J109>1,$J109<5), IF($J109=4, "Unknown", E109+F109), 0),"Not required") -> 76667 | O109: =IF(INTRO!$E$44="Endemic", IF(AND($K109>0,$K109<5), IF($K109=4,"Unknown", IF($K109=1, $F109*0.33, IF($K109=2, $F109*0.5+$G109*0.2, SUM(F109:G109)))), 0),"Not required") -> 141408 | P109: 1 | R109: 1 | S109: 1 | T109: MDA1 (IVM+ALB) | V109: MDA 1 | W109: T2 | X109: 33217 | Y109: Gorongosa | AA109: TRUE
A110: =IF(INTRO!$E$34<>0,INTRO!$E$34,"") -> Mozambique | B110: Sofala | C110: Machanga | D110: 65648 | E110: =IF(INTRO!$E$48="","",ROUND($D110*INTRO!$E$48,0)) -> 11160 | F110: =IF(INTRO!$E$49="","",ROUND($D110*INTRO!$E$49,0)) -> 18381 | G110: =IF(INTRO!$E$50="","",ROUND($D110*INTRO!$E$50,0)) -> 36106 | H110: 1 | J110: 2 | K110: 2 | L110: =IF(INTRO!$E$38="Endemic", IF($H110>0, IF($H110=4,"Unknown", IF($H110=99,"Stopped", $D110)), 0),"Not required") -> 65648 | M110: =IF(INTRO!$E$40="Endemic", IF($I110>0, IF($I110=4,"Unknown",IF($I110=99,"Stopped", $D110)), 0),"Not required") -> Not required | N110: =IF(INTRO!$E$42="Endemic", IF(AND($J110>1,$J110<5), IF($J110=4, "Unknown", E110+F110), 0),"Not required") -> 29541 | O110: =IF(INTRO!$E$44="Endemic", IF(AND($K110>0,$K110<5), IF($K110=4,"Unknown", IF($K110=1, $F110*0.33, IF($K110=2, $F110*0.5+$G110*0.2, SUM(F110:G110)))), 0),"Not required") -> 16411.7 | P110: 1 | R110: 1 | S110: 1 | T110: MDA1 (IVM+ALB) | V110: MDA 1 | W110: T2 | X110: 33218 | Y110: Machanga | AA110: TRUE
A111: =IF(INTRO!$E$34<>0,INTRO!$E$34,"") -> Mozambique | B111: Sofala | C111: Maringue | D111: 97284 | E111: =IF(INTRO!$E$48="","",ROUND($D111*INTRO!$E$48,0)) -> 16538 | F111: =IF(INTRO!$E$49="","",ROUND($D111*INTRO!$E$49,0)) -> 27240 | G111: =IF(INTRO!$E$50="","",ROUND($D111*INTRO!$E$50,0)) -> 53506 | H111: 1 | J111: 2 | K111: 2 | L111: =IF(INTRO!$E$38="Endemic", IF($H111>0, IF($H111=4,"Unknown", IF($H111=99,"Stopped", $D111)), 0),"Not required") -> 97284 | M111: =IF(INTRO!$E$40="Endemic", IF($I111>0, IF($I111=4,"Unknown",IF($I111=99,"Stopped", $D111)), 0),"Not required") -> Not required | N111: =IF(INTRO!$E$42="Endemic", IF(AND($J111>1,$J111<5), IF($J111=4, "Unknown", E111+F111), 0),"Not required") -> 43778 | O111: =IF(INTRO!$E$44="Endemic", IF(AND($K111>0,$K111<5), IF($K111=4,"Unknown", IF($K111=1, $F111*0.33, IF($K111=2, $F111*0.5+$G111*0.2, SUM(F111:G111)))), 0),"Not required") -> 24321.2 | P111: 1 | R111: 1 | S111: 1 | T111: MDA1 (IVM+ALB) | V111: MDA 1 | W111: T2 | X111: 33219 | Y111: Maringue | AA111: TRUE
A112: =IF(INTRO!$E$34<>0,INTRO!$E$34,"") -> Mozambique | B112: Sofala | C112: Marromeu | D112: 182833 | E112: =IF(INTRO!$E$48="","",ROUND($D112*INTRO!$E$48,0)) -> 31082 | F112: =IF(INTRO!$E$49="","",ROUND($D112*INTRO!$E$49,0)) -> 51193 | G112: =IF(INTRO!$E$50="","",ROUND($D112*INTRO!$E$50,0)) -> 100558 | H112: 1 | J112: 2 | K112: 3 | L112: =IF(INTRO!$E$38="Endemic", IF($H112>0, IF($H112=4,"Unknown", IF($H112=99,"Stopped", $D112)), 0),"Not required") -> 182833 | M112: =IF(INTRO!$E$40="Endemic", IF($I112>0, IF($I112=4,"Unknown",IF($I112=99,"Stopped", $D112)), 0),"Not required") -> Not required | N112: =IF(INTRO!$E$42="Endemic", IF(AND($J112>1,$J112<5), IF($J112=4, "Unknown", E112+F112), 0),"Not required") -> 82275 | O112: =IF(INTRO!$E$44="Endemic", IF(AND($K112>0,$K112<5), IF($K112=4,"Unknown", IF($K112=1, $F112*0.33, IF($K112=2, $F112*0.5+$G112*0.2, SUM(F112:G112)))), 0),"Not required") -> 151751 | P112: 1 | R112: 1 | S112: 1 | T112: MDA1 (IVM+ALB) | V112: MDA 1 | W112: T2 | X112: 33220 | Y112: Marromeu | AA112: TRUE
A113: =IF(INTRO!$E$34<>0,INTRO!$E$34,"") -> Mozambique | B113: Sofala | C113: Muanza | D113: 40178 | E113: =IF(INTRO!$E$48="","",ROUND($D113*INTRO!$E$48,0)) -> 6830 | F113: =IF(INTRO!$E$49="","",ROUND($D113*INTRO!$E$49,0)) -> 11250 | G113: =IF(INTRO!$E$50="","",ROUND($D113*INTRO!$E$50,0)) -> 22098 | H113: 1 | J113: 3 | K113: 2 | L113: =IF(INTRO!$E$38="Endemic", IF($H113>0, IF($H113=4,"Unknown", IF($H113=99,"Stopped", $D113)), 0),"Not required") -> 40178 | M113: =IF(INTRO!$E$40="Endemic", IF($I113>0, IF($I113=4,"Unknown",IF($I113=99,"Stopped", $D113)), 0),"Not required") -> Not required | N113: =IF(INTRO!$E$42="Endemic", IF(AND($J113>1,$J113<5), IF($J113=4, "Unknown", E113+F113), 0),"Not required") -> 18080 | O113: =IF(INTRO!$E$44="Endemic", IF(AND($K113>0,$K113<5), IF($K113=4,"Unknown", IF($K113=1, $F113*0.33, IF($K113=2, $F113*0.5+$G113*0.2, SUM(F113:G113)))), 0),"Not required") -> 10044.6 | P113: 1 | R113: 2 | S113: 0 | T113: MDA1 (IVM+ALB) | V113: MDA 1 | W113: T1 | X113: 33221 | Y113: Muanza | AA113: TRUE
A114: =IF(INTRO!$E$34<>0,INTRO!$E$34,"") -> Mozambique | B114: Sofala | C114: Nhamatanda | D114: 301874 | E114: =IF(INTRO!$E$48="","",ROUND($D114*INTRO!$E$48,0)) -> 51319 | F114: =IF(INTRO!$E$49="","",ROUND($D114*INTRO!$E$49,0)) -> 84525 | G114: =IF(INTRO!$E$50="","",ROUND($D114*INTRO!$E$50,0)) -> 166031 | H114: 1 | J114: 2 | K114: 2 | L114: =IF(INTRO!$E$38="Endemic", IF($H114>0, IF($H114=4,"Unknown", IF($H114=99,"Stopped", $D114)), 0),"Not required") -> 301874 | M114: =IF(INTRO!$E$40="Endemic", IF($I114>0, IF($I114=4,"Unknown",IF($I114=99,"Stopped", $D114)), 0),"Not required") -> Not required | N114: =IF(INTRO!$E$42="Endemic", IF(AND($J114>1,$J114<5), IF($J114=4, "Unknown", E114+F114), 0),"Not required") -> 135844 | O114: =IF(INTRO!$E$44="Endemic", IF(AND($K114>0,$K114<5), IF($K114=4,"Unknown", IF($K114=1, $F114*0.33, IF($K114=2, $F114*0.5+$G114*0.2, SUM(F114:G114)))), 0),"Not required") -> 75468.7 | P114: 1 | R114: 1 | S114: 0 | T114: MDA1 (IVM+ALB) | V114: MDA 1 | W114: T2 | X114: 33222 | Y114: Nhamatanda | AA114: TRUE
A115: =IF(INTRO!$E$34<>0,INTRO!$E$34,"") -> Mozambique | B115: Manica | C115: Cid. Chimoio | D115: 329359 | E115: =IF(INTRO!$E$48="","",ROUND($D115*INTRO!$E$48,0)) -> 55991 | F115: =IF(INTRO!$E$49="","",ROUND($D115*INTRO!$E$49,0)) -> 92221 | G115: =IF(INTRO!$E$50="","",ROUND($D115*INTRO!$E$50,0)) -> 181147 | H115: 0 | J115: 3 | K115: 3 | L115: =IF(INTRO!$E$38="Endemic", IF($H115>0, IF($H115=4,"Unknown", IF($H115=99,"Stopped", $D115)), 0),"Not required") -> 0 | M115: =IF(INTRO!$E$40="Endemic", IF($I115>0, IF($I115=4,"Unknown",IF($I115=99,"Stopped", $D115)), 0),"Not required") -> Not required | N115: =IF(INTRO!$E$42="Endemic", IF(AND($J115>1,$J115<5), IF($J115=4, "Unknown", E115+F115), 0),"Not required") -> 148212 | O115: =IF(INTRO!$E$44="Endemic", IF(AND($K115>0,$K115<5), IF($K115=4,"Unknown", IF($K115=1, $F115*0.33, IF($K115=2, $F115*0.5+$G115*0.2, SUM(F115:G115)))), 0),"Not required") -> 273368 | P115: 0 | R115: 2 | S115: 1 | T115: T3 (ALB/MBD) | V115: T1 | W115: T3 | X115: 33151 | Y115: Cid. Chimoio | AA115: TRUE
A116: =IF(INTRO!$E$34<>0,INTRO!$E$34,"") -> Mozambique | B116: Manica | C116: Barué | D116: 247834.9033 | E116: =IF(INTRO!$E$48="","",ROUND($D116*INTRO!$E$48,0)) -> 42132 | F116: =IF(INTRO!$E$49="","",ROUND($D116*INTRO!$E$49,0)) -> 69394 | G116: =IF(INTRO!$E$50="","",ROUND($D116*INTRO!$E$50,0)) -> 136309 | H116: 1 | J116: 2 | K116: 3 | L116: =IF(INTRO!$E$38="Endemic", IF($H116>0, IF($H116=4,"Unknown", IF($H116=99,"Stopped", $D116)), 0),"Not required") -> 247834.9033 | M116: =IF(INTRO!$E$40="Endemic", IF($I116>0, IF($I116=4,"Unknown",IF($I116=99,"Stopped", $D116)), 0),"Not required") -> Not required | N116: =IF(INTRO!$E$42="Endemic", IF(AND($J116>1,$J116<5), IF($J116=4, "Unknown", E116+F116), 0),"Not required") -> 111526 | O116: =IF(INTRO!$E$44="Endemic", IF(AND($K116>0,$K116<5), IF($K116=4,"Unknown", IF($K116=1, $F116*0.33, IF($K116=2, $F116*0.5+$G116*0.2, SUM(F116:G116)))), 0),"Not required") -> 205703 | P116: 1 | R116: 1 | S116: 1 | T116: MDA1 (IVM+ALB) | V116: MDA 1 | W116: T2 | X116: 33150 | Y116: Barué | AA116: TRUE
A117: =IF(INTRO!$E$34<>0,INTRO!$E$34,"") -> Mozambique | B117: Manica | C117: Gondola | D117: 213114 | E117: =IF(INTRO!$E$48="","",ROUND($D117*INTRO!$E$48,0)) -> 36229 | F117: =IF(INTRO!$E$49="","",ROUND($D117*INTRO!$E$49,0)) -> 59672 | G117: =IF(INTRO!$E$50="","",ROUND($D117*INTRO!$E$50,0)) -> 117213 | H117: 0 | J117: 2 | K117: 2 | L117: =IF(INTRO!$E$38="Endemic", IF($H117>0, IF($H117=4,"Unknown", IF($H117=99,"Stopped", $D117)), 0),"Not required") -> 0 | M117: =IF(INTRO!$E$40="Endemic", IF($I117>0, IF($I117=4,"Unknown",IF($I117=99,"Stopped", $D117)), 0),"Not required") -> Not required | N117: =IF(INTRO!$E$42="Endemic", IF(AND($J117>1,$J117<5), IF($J117=4, "Unknown", E117+F117), 0),"Not required") -> 95901 | O117: =IF(INTRO!$E$44="Endemic", IF(AND($K117>0,$K117<5), IF($K117=4,"Unknown", IF($K117=1, $F117*0.33, IF($K117=2, $F117*0.5+$G117*0.2, SUM(F117:G117)))), 0),"Not required") -> 53278.6 | P117: 0 | R117: 1 | S117: 0 | W117: T1 | X117: 33152 | Y117: Gondola | AA117: TRUE
A118: =IF(INTRO!$E$34<>0,INTRO!$E$34,"") -> Mozambique | B118: Manica | C118: Guro | D118: 97714.73687 | E118: =IF(INTRO!$E$48="","",ROUND($D118*INTRO!$E$48,0)) -> 16612 | F118: =IF(INTRO!$E$49="","",ROUND($D118*INTRO!$E$49,0)) -> 27360 | G118: =IF(INTRO!$E$50="","",ROUND($D118*INTRO!$E$50,0)) -> 53743 | H118: 1 | J118: 1 | K118: 2 | L118: =IF(INTRO!$E$38="Endemic", IF($H118>0, IF($H118=4,"Unknown", IF($H118=99,"Stopped", $D118)), 0),"Not required") -> 97714.73687 | M118: =IF(INTRO!$E$40="Endemic", IF($I118>0, IF($I118=4,"Unknown",IF($I118=99,"Stopped", $D118)), 0),"Not required") -> Not required | N118: =IF(INTRO!$E$42="Endemic", IF(AND($J118>1,$J118<5), IF($J118=4, "Unknown", E118+F118), 0),"Not required") -> 0 | O118: =IF(INTRO!$E$44="Endemic", IF(AND($K118>0,$K118<5), IF($K118=4,"Unknown", IF($K118=1, $F118*0.33, IF($K118=2, $F118*0.5+$G118*0.2, SUM(F118:G118)))), 0),"Not required") -> 24428.6 | P118: 1 | R118: 0 | S118: 0 | T118: MDA1 (IVM+ALB) | V118: MDA 1 | W118: T2 | X118: 33153 | Y118: Guro | AA118: TRUE
A119: =IF(INTRO!$E$34<>0,INTRO!$E$34,"") -> Mozambique | B119: Manica | C119: Macate | D119: 106410 | E119: =IF(INTRO!$E$48="","",ROUND($D119*INTRO!$E$48,0)) -> 18090 | F119: =IF(INTRO!$E$49="","",ROUND($D119*INTRO!$E$49,0)) -> 29795 | G119: =IF(INTRO!$E$50="","",ROUND($D119*INTRO!$E$50,0)) -> 58526 | H119: 0 | J119: 2 | K119: 2 | L119: =IF(INTRO!$E$38="Endemic", IF($H119>0, IF($H119=4,"Unknown", IF($H119=99,"Stopped", $D119)), 0),"Not required") -> 0 | M119: =IF(INTRO!$E$40="Endemic", IF($I119>0, IF($I119=4,"Unknown",IF($I119=99,"Stopped", $D119)), 0),"Not required") -> Not required | N119: =IF(INTRO!$E$42="Endemic", IF(AND($J119>1,$J119<5), IF($J119=4, "Unknown", E119+F119), 0),"Not required") -> 47885 | O119: =IF(INTRO!$E$44="Endemic", IF(AND($K119>0,$K119<5), IF($K119=4,"Unknown", IF($K119=1, $F119*0.33, IF($K119=2, $F119*0.5+$G119*0.2, SUM(F119:G119)))), 0),"Not required") -> 26602.7 | P119: 0 | R119: 1 | S119: 0 | W119: T1 | X119: 33154 | Y119: Macate | AA119: TRUE
A120: =IF(INTRO!$E$34<>0,INTRO!$E$34,"") -> Mozambique | B120: Manica | C120: Machaze | D120: 140047 | E120: =IF(INTRO!$E$48="","",ROUND($D120*INTRO!$E$48,0)) -> 23808 | F120: =IF(INTRO!$E$49="","",ROUND($D120*INTRO!$E$49,0)) -> 39213 | G120: =IF(INTRO!$E$50="","",ROUND($D120*INTRO!$E$50,0)) -> 77026 | H120: 0 | J120: 2 | K120: 2 | L120: =IF(INTRO!$E$38="Endemic", IF($H120>0, IF($H120=4,"Unknown", IF($H120=99,"Stopped", $D120)), 0),"Not required") -> 0 | M120: =IF(INTRO!$E$40="Endemic", IF($I120>0, IF($I120=4,"Unknown",IF($I120=99,"Stopped", $D120)), 0),"Not required") -> Not required | N120: =IF(INTRO!$E$42="Endemic", IF(AND($J120>1,$J120<5), IF($J120=4, "Unknown", E120+F120), 0),"Not required") -> 63021 | O120: =IF(INTRO!$E$44="Endemic", IF(AND($K120>0,$K120<5), IF($K120=4,"Unknown", IF($K120=1, $F120*0.33, IF($K120=2, $F120*0.5+$G120*0.2, SUM(F120:G120)))), 0),"Not required") -> 35011.7 | P120: 0 | R120: 1 | S120: 0 | W120: T1 | X120: 33155 | Y120: Machaze | AA120: TRUE
A121: =IF(INTRO!$E$34<>0,INTRO!$E$34,"") -> Mozambique | B121: Manica | C121: Macossa | D121: 50329.6158 | E121: =IF(INTRO!$E$48="","",ROUND($D121*INTRO!$E$48,0)) -> 8556 | F121: =IF(INTRO!$E$49="","",ROUND($D121*INTRO!$E$49,0)) -> 14092 | G121: =IF(INTRO!$E$50="","",ROUND($D121*INTRO!$E$50,0)) -> 27681 | H121: 1 | J121: 2 | K121: 3 | L121: =IF(INTRO!$E$38="Endemic", IF($H121>0, IF($H121=4,"Unknown", IF($H121=99,"Stopped", $D121)), 0),"Not required") -> 50329.6158 | M121: =IF(INTRO!$E$40="Endemic", IF($I121>0, IF($I121=4,"Unknown",IF($I121=99,"Stopped", $D121)), 0),"Not required") -> Not required | N121: =IF(INTRO!$E$42="Endemic", IF(AND($J121>1,$J121<5), IF($J121=4, "Unknown", E121+F121), 0),"Not required") -> 22648 | O121: =IF(INTRO!$E$44="Endemic", IF(AND($K121>0,$K121<5), IF($K121=4,"Unknown", IF($K121=1, $F121*0.33, IF($K121=2, $F121*0.5+$G121*0.2, SUM(F121:G121)))), 0),"Not required") -> 41773 | P121: 1 | R121: 1 | S121: 1 | T121: MDA1 (IVM+ALB) | V121: MDA 1 | W121: T2 | X121: 33156 | Y121: Macossa | AA121: TRUE
A122: =IF(INTRO!$E$34<>0,INTRO!$E$34,"") -> Mozambique | B122: Manica | C122: Manica | D122: 223329 | E122: =IF(INTRO!$E$48="","",ROUND($D122*INTRO!$E$48,0)) -> 37966 | F122: =IF(INTRO!$E$49="","",ROUND($D122*INTRO!$E$49,0)) -> 62532 | G122: =IF(INTRO!$E$50="","",ROUND($D122*INTRO!$E$50,0)) -> 122831 | H122: 0 | J122: 3 | K122: 2 | L122: =IF(INTRO!$E$38="Endemic", IF($H122>0, IF($H122=4,"Unknown", IF($H122=99,"Stopped", $D122)), 0),"Not required") -> 0 | M122: =IF(INTRO!$E$40="Endemic", IF($I122>0, IF($I122=4,"Unknown",IF($I122=99,"Stopped", $D122)), 0),"Not required") -> Not required | N122: =IF(INTRO!$E$42="Endemic", IF(AND($J122>1,$J122<5), IF($J122=4, "Unknown", E122+F122), 0),"Not required") -> 100498 | O122: =IF(INTRO!$E$44="Endemic", IF(AND($K122>0,$K122<5), IF($K122=4,"Unknown", IF($K122=1, $F122*0.33, IF($K122=2, $F122*0.5+$G122*0.2, SUM(F122:G122)))), 0),"Not required") -> 55832.2 | P122: 0 | R122: 2 | S122: 0 | T122: T3 (ALB/MBD) | V122: T1 | W122: T3 | X122: 33157 | Y122: Manica | AA122: TRUE
A123: =IF(INTRO!$E$34<>0,INTRO!$E$34,"") -> Mozambique | B123: Manica | C123: Mossurize | D123: 295089 | E123: =IF(INTRO!$E$48="","",ROUND($D123*INTRO!$E$48,0)) -> 50165 | F123: =IF(INTRO!$E$49="","",ROUND($D123*INTRO!$E$49,0)) -> 82625 | G123: =IF(INTRO!$E$50="","",ROUND($D123*INTRO!$E$50,0)) -> 162299 | H123: 0 | J123: 2 | K123: 3 | L123: =IF(INTRO!$E$38="Endemic", IF($H123>0, IF($H123=4,"Unknown", IF($H123=99,"Stopped", $D123)), 0),"Not required") -> 0 | M123: =IF(INTRO!$E$40="Endemic", IF($I123>0, IF($I123=4,"Unknown",IF($I123=99,"Stopped", $D123)), 0),"Not required") -> Not required | N123: =IF(INTRO!$E$42="Endemic", IF(AND($J123>1,$J123<5), IF($J123=4, "Unknown", E123+F123), 0),"Not required") -> 132790 | O123: =IF(INTRO!$E$44="Endemic", IF(AND($K123>0,$K123<5), IF($K123=4,"Unknown", IF($K123=1, $F123*0.33, IF($K123=2, $F123*0.5+$G123*0.2, SUM(F123:G123)))), 0),"Not required") -> 244924 | P123: 0 | R123: 1 | S123: 1 | W123: T1 | X123: 33158 | Y123: Mossurize | AA123: TRUE
A124: =IF(INTRO!$E$34<>0,INTRO!$E$34,"") -> Mozambique | B124: Manica | C124: Sussundenga | D124: 171055.8781 | E124: =IF(INTRO!$E$48="","",ROUND($D124*INTRO!$E$48,0)) -> 29079 | F124: =IF(INTRO!$E$49="","",ROUND($D124*INTRO!$E$49,0)) -> 47896 | G124: =IF(INTRO!$E$50="","",ROUND($D124*INTRO!$E$50,0)) -> 94081 | H124: 1 | J124: 3 | K124: 3 | L124: =IF(INTRO!$E$38="Endemic", IF($H124>0, IF($H124=4,"Unknown", IF($H124=99,"Stopped", $D124)), 0),"Not required") -> 171055.8781 | M124: =IF(INTRO!$E$40="Endemic", IF($I124>0, IF($I124=4,"Unknown",IF($I124=99,"Stopped", $D124)), 0),"Not required") -> Not required | N124: =IF(INTRO!$E$42="Endemic", IF(AND($J124>1,$J124<5), IF($J124=4, "Unknown", E124+F124), 0),"Not required") -> 76975 | O124: =IF(INTRO!$E$44="Endemic", IF(AND($K124>0,$K124<5), IF($K124=4,"Unknown", IF($K124=1, $F124*0.33, IF($K124=2, $F124*0.5+$G124*0.2, SUM(F124:G124)))), 0),"Not required") -> 141977 | P124: 1 | R124: 2 | S124: 1 | T124: MDA1 (IVM+ALB) | V124: MDA 1 | W124: T1 | X124: 33159 | Y124: Sussundenga | AA124: TRUE
A125: =IF(INTRO!$E$34<>0,INTRO!$E$34,"") -> Mozambique | B125: Manica | C125: Tambara | D125: 56645.28113 | E125: =IF(INTRO!$E$48="","",ROUND($D125*INTRO!$E$48,0)) -> 9630 | F125: =IF(INTRO!$E$49="","",ROUND($D125*INTRO!$E$49,0)) -> 15861 | G125: =IF(INTRO!$E$50="","",ROUND($D125*INTRO!$E$50,0)) -> 31155 | H125: 1 | J125: 2 | K125: 2 | L125: =IF(INTRO!$E$38="Endemic", IF($H125>0, IF($H125=4,"Unknown", IF($H125=99,"Stopped", $D125)), 0),"Not required") -> 56645.28113 | M125: =IF(INTRO!$E$40="Endemic", IF($I125>0, IF($I125=4,"Unknown",IF($I125=99,"Stopped", $D125)), 0),"Not required") -> Not required | N125: =IF(INTRO!$E$42="Endemic", IF(AND($J125>1,$J125<5), IF($J125=4, "Unknown", E125+F125), 0),"Not required") -> 25491 | O125: =IF(INTRO!$E$44="Endemic", IF(AND($K125>0,$K125<5), IF($K125=4,"Unknown", IF($K125=1, $F125*0.33, IF($K125=2, $F125*0.5+$G125*0.2, SUM(F125:G125)))), 0),"Not required") -> 14161.5 | P125: 1 | R125: 1 | S125: 1 | T125: MDA1 (IVM+ALB) | V125: MDA 1 | W125: T2 | X125: 33160 | Y125: Tambara | AA125: TRUE
A126: =IF(INTRO!$E$34<>0,INTRO!$E$34,"") -> Mozambique | B126: Manica | C126: Vanduze | D126: 140476 | E126: =IF(INTRO!$E$48="","",ROUND($D126*INTRO!$E$48,0)) -> 23881 | F126: =IF(INTRO!$E$49="","",ROUND($D126*INTRO!$E$49,0)) -> 39333 | G126: =IF(INTRO!$E$50="","",ROUND($D126*INTRO!$E$50,0)) -> 77262 | H126: 0 | J126: 3 | K126: 2 | L126: =IF(INTRO!$E$38="Endemic", IF($H126>0, IF($H126=4,"Unknown", IF($H126=99,"Stopped", $D126)), 0),"Not required") -> 0 | M126: =IF(INTRO!$E$40="Endemic", IF($I126>0, IF($I126=4,"Unknown",IF($I126=99,"Stopped", $D126)), 0),"Not required") -> Not required | N126: =IF(INTRO!$E$42="Endemic", IF(AND($J126>1,$J126<5), IF($J126=4, "Unknown", E126+F126), 0),"Not required") -> 63214 | O126: =IF(INTRO!$E$44="Endemic", IF(AND($K126>0,$K126<5), IF($K126=4,"Unknown", IF($K126=1, $F126*0.33, IF($K126=2, $F126*0.5+$G126*0.2, SUM(F126:G126)))), 0),"Not required") -> 35118.9 | P126: 0 | R126: 2 | S126: 0 | T126: T3 (ALB/MBD) | V126: T1 | W126: T3 | X126: 33161 | Y126: Vanduze | AA126: TRUE
A127: =IF(INTRO!$E$34<>0,INTRO!$E$34,"") -> Mozambique | B127: Inhambane | C127: Cid. I'bane | D127: 81573.35179 | E127: =IF(INTRO!$E$48="","",ROUND($D127*INTRO!$E$48,0)) -> 13867 | F127: =IF(INTRO!$E$49="","",ROUND($D127*INTRO!$E$49,0)) -> 22841 | G127: =IF(INTRO!$E$50="","",ROUND($D127*INTRO!$E$50,0)) -> 44865 | H127: 1 | J127: 2 | K127: 1 | L127: =IF(INTRO!$E$38="Endemic", IF($H127>0, IF($H127=4,"Unknown", IF($H127=99,"Stopped", $D127)), 0),"Not required") -> 81573.35179 | M127: =IF(INTRO!$E$40="Endemic", IF($I127>0, IF($I127=4,"Unknown",IF($I127=99,"Stopped", $D127)), 0),"Not required") -> Not required | N127: =IF(INTRO!$E$42="Endemic", IF(AND($J127>1,$J127<5), IF($J127=4, "Unknown", E127+F127), 0),"Not required") -> 36708 | O127: =IF(INTRO!$E$44="Endemic", IF(AND($K127>0,$K127<5), IF($K127=4,"Unknown", IF($K127=1, $F127*0.33, IF($K127=2, $F127*0.5+$G127*0.2, SUM(F127:G127)))), 0),"Not required") -> 7537.53 | P127: 1 | R127: 1 | S127: 0 | T127: MDA1 (IVM+ALB) | V127: MDA 1 | W127: T2 | X127: 33139 | Y127: Cid. I'bane | AA127: TRUE
A128: =IF(INTRO!$E$34<>0,INTRO!$E$34,"") -> Mozambique | B128: Inhambane | C128: Funhalouro | D128: 49836 | E128: =IF(INTRO!$E$48="","",ROUND($D128*INTRO!$E$48,0)) -> 8472 | F128: =IF(INTRO!$E$49="","",ROUND($D128*INTRO!$E$49,0)) -> 13954 | G128: =IF(INTRO!$E$50="","",ROUND($D128*INTRO!$E$50,0)) -> 27410 | H128: 0 | J128: 2 | K128: 2 | L128: =IF(INTRO!$E$38="Endemic", IF($H128>0, IF($H128=4,"Unknown", IF($H128=99,"Stopped", $D128)), 0),"Not required") -> 0 | M128: =IF(INTRO!$E$40="Endemic", IF($I128>0, IF($I128=4,"Unknown",IF($I128=99,"Stopped", $D128)), 0),"Not required") -> Not required | N128: =IF(INTRO!$E$42="Endemic", IF(AND($J128>1,$J128<5), IF($J128=4, "Unknown", E128+F128), 0),"Not required") -> 22426 | O128: =IF(INTRO!$E$44="Endemic", IF(AND($K128>0,$K128<5), IF($K128=4,"Unknown", IF($K128=1, $F128*0.33, IF($K128=2, $F128*0.5+$G128*0.2, SUM(F128:G128)))), 0),"Not required") -> 12459 | P128: 0 | R128: 1 | S128: 0 | U128: T3 (ALB/MBD) | W128: T1 | X128: 33136 | Y128: Funhalouro | AA128: TRUE
A129: =IF(INTRO!$E$34<>0,INTRO!$E$34,"") -> Mozambique | B129: Inhambane | C129: Govuro | D129: 43115.15766 | E129: =IF(INTRO!$E$48="","",ROUND($D129*INTRO!$E$48,0)) -> 7330 | F129: =IF(INTRO!$E$49="","",ROUND($D129*INTRO!$E$49,0)) -> 12072 | G129: =IF(INTRO!$E$50="","",ROUND($D129*INTRO!$E$50,0)) -> 23713 | H129: 1 | J129: 3 | K129: 3 | L129: =IF(INTRO!$E$38="Endemic", IF($H129>0, IF($H129=4,"Unknown", IF($H129=99,"Stopped", $D129)), 0),"Not required") -> 43115.15766 | M129: =IF(INTRO!$E$40="Endemic", IF($I129>0, IF($I129=4,"Unknown",IF($I129=99,"Stopped", $D129)), 0),"Not required") -> Not required | N129: =IF(INTRO!$E$42="Endemic", IF(AND($J129>1,$J129<5), IF($J129=4, "Unknown", E129+F129), 0),"Not required") -> 19402 | O129: =IF(INTRO!$E$44="Endemic", IF(AND($K129>0,$K129<5), IF($K129=4,"Unknown", IF($K129=1, $F129*0.33, IF($K129=2, $F129*0.5+$G129*0.2, SUM(F129:G129)))), 0),"Not required") -> 35785 | P129: 1 | R129: 2 | S129: 1 | T129: MDA1 (IVM+ALB) | U129: T3 (ALB/MBD) | V129: MDA 1 | W129: T1 | X129: 33137 | Y129: Govuro | AA129: TRUE
A130: =IF(INTRO!$E$34<>0,INTRO!$E$34,"") -> Mozambique | B130: Inhambane | C130: Homoíne | D130: 131684.1482 | E130: =IF(INTRO!$E$48="","",ROUND($D130*INTRO!$E$48,0)) -> 22386 | F130: =IF(INTRO!$E$49="","",ROUND($D130*INTRO!$E$49,0)) -> 36872 | G130: =IF(INTRO!$E$50="","",ROUND($D130*INTRO!$E$50,0)) -> 72426 | H130: 1 | J130: 2 | K130: 1 | L130: =IF(INTRO!$E$38="Endemic", IF($H130>0, IF($H130=4,"Unknown", IF($H130=99,"Stopped", $D130)), 0),"Not required") -> 131684.1482 | M130: =IF(INTRO!$E$40="Endemic", IF($I130>0, IF($I130=4,"Unknown",IF($I130=99,"Stopped", $D130)), 0),"Not required") -> Not required | N130: =IF(INTRO!$E$42="Endemic", IF(AND($J130>1,$J130<5), IF($J130=4, "Unknown", E130+F130), 0),"Not required") -> 59258 | O130: =IF(INTRO!$E$44="Endemic", IF(AND($K130>0,$K130<5), IF($K130=4,"Unknown", IF($K130=1, $F130*0.33, IF($K130=2, $F130*0.5+$G130*0.2, SUM(F130:G130)))), 0),"Not required") -> 12167.76 | P130: 1 | R130: 1 | S130: 0 | T130: MDA1 (IVM+ALB) | V130: MDA 1 | W130: T2 | X130: 33138 | Y130: Homoíne | AA130: TRUE
A131: =IF(INTRO!$E$34<>0,INTRO!$E$34,"") -> Mozambique | B131: Inhambane | C131: Inharrime | D131: 133093 | E131: =IF(INTRO!$E$48="","",ROUND($D131*INTRO!$E$48,0)) -> 22626 | F131: =IF(INTRO!$E$49="","",ROUND($D131*INTRO!$E$49,0)) -> 37266 | G131: =IF(INTRO!$E$50="","",ROUND($D131*INTRO!$E$50,0)) -> 73201 | H131: 0 | J131: 1 | K131: 2 | L131: =IF(INTRO!$E$38="Endemic", IF($H131>0, IF($H131=4,"Unknown", IF($H131=99,"Stopped", $D131)), 0),"Not required") -> 0 | M131: =IF(INTRO!$E$40="Endemic", IF($I131>0, IF($I131=4,"Unknown",IF($I131=99,"Stopped", $D131)), 0),"Not required") -> Not required | N131: =IF(INTRO!$E$42="Endemic", IF(AND($J131>1,$J131<5), IF($J131=4, "Unknown", E131+F131), 0),"Not required") -> 0 | O131: =IF(INTRO!$E$44="Endemic", IF(AND($K131>0,$K131<5), IF($K131=4,"Unknown", IF($K131=1, $F131*0.33, IF($K131=2, $F131*0.5+$G131*0.2, SUM(F131:G131)))), 0),"Not required") -> 33273.2 | P131: 0 | R131: 0 | S131: 0 | W131: T2 | X131: 33140 | Y131: Inharrime | AA131: TRUE
A132: =IF(INTRO!$E$34<>0,INTRO!$E$34,"") -> Mozambique | B132: Inhambane | C132: Inhassoro | D132: 63960.10239 | E132: =IF(INTRO!$E$48="","",ROUND($D132*INTRO!$E$48,0)) -> 10873 | F132: =IF(INTRO!$E$49="","",ROUND($D132*INTRO!$E$49,0)) -> 17909 | G132: =IF(INTRO!$E$50="","",ROUND($D132*INTRO!$E$50,0)) -> 35178 | H132: 1 | J132: 3 | K132: 2 | L132: =IF(INTRO!$E$38="Endemic", IF($H132>0, IF($H132=4,"Unknown", IF($H132=99,"Stopped", $D132)), 0),"Not required") -> 63960.10239 | M132: =IF(INTRO!$E$40="Endemic", IF($I132>0, IF($I132=4,"Unknown",IF($I132=99,"Stopped", $D132)), 0),"Not required") -> Not required | N132: =IF(INTRO!$E$42="Endemic", IF(AND($J132>1,$J132<5), IF($J132=4, "Unknown", E132+F132), 0),"Not required") -> 28782 | O132: =IF(INTRO!$E$44="Endemic", IF(AND($K132>0,$K132<5), IF($K132=4,"Unknown", IF($K132=1, $F132*0.33, IF($K132=2, $F132*0.5+$G132*0.2, SUM(F132:G132)))), 0),"Not required") -> 15990.1 | P132: 1 | R132: 2 | S132: 0 | T132: MDA1 (IVM+ALB) | U132: T3 (ALB/MBD) | V132: MDA 1 | W132: T1 | X132: 33141 | Y132: Inhassoro | AA132: TRUE
A133: =IF(INTRO!$E$34<>0,INTRO!$E$34,"") -> Mozambique | B133: Inhambane | C133: Jangamo | D133: 113366.0632 | E133: =IF(INTRO!$E$48="","",ROUND($D133*INTRO!$E$48,0)) -> 19272 | F133: =IF(INTRO!$E$49="","",ROUND($D133*INTRO!$E$49,0)) -> 31742 | G133: =IF(INTRO!$E$50="","",ROUND($D133*INTRO!$E$50,0)) -> 62351 | H133: 1 | J133: 1 | K133: 2 | L133: =IF(INTRO!$E$38="Endemic", IF($H133>0, IF($H133=4,"Unknown", IF($H133=99,"Stopped", $D133)), 0),"Not required") -> 113366.0632 | M133: =IF(INTRO!$E$40="Endemic", IF($I133>0, IF($I133=4,"Unknown",IF($I133=99,"Stopped", $D133)), 0),"Not required") -> Not required | N133: =IF(INTRO!$E$42="Endemic", IF(AND($J133>1,$J133<5), IF($J133=4, "Unknown", E133+F133), 0),"Not required") -> 0 | O133: =IF(INTRO!$E$44="Endemic", IF(AND($K133>0,$K133<5), IF($K133=4,"Unknown", IF($K133=1, $F133*0.33, IF($K133=2, $F133*0.5+$G133*0.2, SUM(F133:G133)))), 0),"Not required") -> 28341.2 | P133: 1 | R133: 0 | S133: 0 | T133: MDA1 (IVM+ALB) | V133: MDA 1 | W133: T2 | X133: 33142 | Y133: Jangamo | AA133: TRUE
A134: =IF(INTRO!$E$34<>0,INTRO!$E$34,"") -> Mozambique | B134: Inhambane | C134: Mabote | D134: 53385 | E134: =IF(INTRO!$E$48="","",ROUND($D134*INTRO!$E$48,0)) -> 9075 | F134: =IF(INTRO!$E$49="","",ROUND($D134*INTRO!$E$49,0)) -> 14948 | G134: =IF(INTRO!$E$50="","",ROUND($D134*INTRO!$E$50,0)) -> 29362 | H134: 1 | J134: 2 | K134: 2 | L134: =IF(INTRO!$E$38="Endemic", IF($H134>0, IF($H134=4,"Unknown", IF($H134=99,"Stopped", $D134)), 0),"Not required") -> 53385 | M134: =IF(INTRO!$E$40="Endemic", IF($I134>0, IF($I134=4,"Unknown",IF($I134=99,"Stopped", $D134)), 0),"Not required") -> Not required | N134: =IF(INTRO!$E$42="Endemic", IF(AND($J134>1,$J134<5), IF($J134=4, "Unknown", E134+F134), 0),"Not required") -> 24023 | O134: =IF(INTRO!$E$44="Endemic", IF(AND($K134>0,$K134<5), IF($K134=4,"Unknown", IF($K134=1, $F134*0.33, IF($K134=2, $F134*0.5+$G134*0.2, SUM(F134:G134)))), 0),"Not required") -> 13346.4 | P134: 1 | R134: 1 | S134: 0 | T134: MDA1 (IVM+ALB) | V134: MDA 1 | W134: T2 | X134: 33143 | Y134: Mabote | AA134: TRUE
A135: =IF(INTRO!$E$34<>0,INTRO!$E$34,"") -> Mozambique | B135: Inhambane | C135: Massinga | D135: 206537.3864 | E135: =IF(INTRO!$E$48="","",ROUND($D135*INTRO!$E$48,0)) -> 35111 | F135: =IF(INTRO!$E$49="","",ROUND($D135*INTRO!$E$49,0)) -> 57830 | G135: =IF(INTRO!$E$50="","",ROUND($D135*INTRO!$E$50,0)) -> 113596 | H135: 1 | J135: 3 | K135: 2 | L135: =IF(INTRO!$E$38="Endemic", IF($H135>0, IF($H135=4,"Unknown", IF($H135=99,"Stopped", $D135)), 0),"Not required") -> 206537.3864 | M135: =IF(INTRO!$E$40="Endemic", IF($I135>0, IF($I135=4,"Unknown",IF($I135=99,"Stopped", $D135)), 0),"Not required") -> Not required | N135: =IF(INTRO!$E$42="Endemic", IF(AND($J135>1,$J135<5), IF($J135=4, "Unknown", E135+F135), 0),"Not required") -> 92941 | O135: =IF(INTRO!$E$44="Endemic", IF(AND($K135>0,$K135<5), IF($K135=4,"Unknown", IF($K135=1, $F135*0.33, IF($K135=2, $F135*0.5+$G135*0.2, SUM(F135:G135)))), 0),"Not required") -> 51634.2 | P135: 1 | R135: 2 | S135: 0 | T135: MDA1 (IVM+ALB) | U135: T3 (ALB/MBD) | V135: MDA 1 | W135: T1 | X135: 33144 | Y135: Massinga | AA135: TRUE
A136: =IF(INTRO!$E$34<>0,INTRO!$E$34,"") -> Mozambique | B136: Inhambane | C136: Maxixe | D136: 131882.8354 | E136: =IF(INTRO!$E$48="","",ROUND($D136*INTRO!$E$48,0)) -> 22420 | F136: =IF(INTRO!$E$49="","",ROUND($D136*INTRO!$E$49,0)) -> 36927 | G136: =IF(INTRO!$E$50="","",ROUND($D136*INTRO!$E$50,0)) -> 72536 | H136: 1 | J136: 1 | K136: 2 | L136: =IF(INTRO!$E$38="Endemic", IF($H136>0, IF($H136=4,"Unknown", IF($H136=99,"Stopped", $D136)), 0),"Not required") -> 131882.8354 | M136: =IF(INTRO!$E$40="Endemic", IF($I136>0, IF($I136=4,"Unknown",IF($I136=99,"Stopped", $D136)), 0),"Not required") -> Not required | N136: =IF(INTRO!$E$42="Endemic", IF(AND($J136>1,$J136<5), IF($J136=4, "Unknown", E136+F136), 0),"Not required") -> 0 | O136: =IF(INTRO!$E$44="Endemic", IF(AND($K136>0,$K136<5), IF($K136=4,"Unknown", IF($K136=1, $F136*0.33, IF($K136=2, $F136*0.5+$G136*0.2, SUM(F136:G136)))), 0),"Not required") -> 32970.7 | P136: 1 | R136: 0 | S136: 0 | T136: MDA1 (IVM+ALB) | V136: MDA 1 | W136: T2 | X136: 33145 | Y136: Maxixe | AA136: TRUE
A137: =IF(INTRO!$E$34<>0,INTRO!$E$34,"") -> Mozambique | B137: Inhambane | C137: Morrumbene | D137: 152516.6118 | E137: =IF(INTRO!$E$48="","",ROUND($D137*INTRO!$E$48,0)) -> 25928 | F137: =IF(INTRO!$E$49="","",ROUND($D137*INTRO!$E$49,0)) -> 42705 | G137: =IF(INTRO!$E$50="","",ROUND($D137*INTRO!$E$50,0)) -> 83884 | H137: 1 | J137: 1 | K137: 1 | L137: =IF(INTRO!$E$38="Endemic", IF($H137>0, IF($H137=4,"Unknown", IF($H137=99,"Stopped", $D137)), 0),"Not required") -> 152516.6118 | M137: =IF(INTRO!$E$40="Endemic", IF($I137>0, IF($I137=4,"Unknown",IF($I137=99,"Stopped", $D137)), 0),"Not required") -> Not required | N137: =IF(INTRO!$E$42="Endemic", IF(AND($J137>1,$J137<5), IF($J137=4, "Unknown", E137+F137), 0),"Not required") -> 0 | O137: =IF(INTRO!$E$44="Endemic", IF(AND($K137>0,$K137<5), IF($K137=4,"Unknown", IF($K137=1, $F137*0.33, IF($K137=2, $F137*0.5+$G137*0.2, SUM(F137:G137)))), 0),"Not required") -> 14092.65 | P137: 1 | R137: 0 | S137: 0 | T137: MDA1 (IVM+ALB) | V137: MDA 1 | W137: T2 | X137: 33146 | Y137: Morrumbene | AA137: TRUE
A138: =IF(INTRO!$E$34<>0,INTRO!$E$34,"") -> Mozambique | B138: Inhambane | C138: Panda | D138: 53102 | E138: =IF(INTRO!$E$48="","",ROUND($D138*INTRO!$E$48,0)) -> 9027 | F138: =IF(INTRO!$E$49="","",ROUND($D138*INTRO!$E$49,0)) -> 14869 | G138: =IF(INTRO!$E$50="","",ROUND($D138*INTRO!$E$50,0)) -> 29206 | H138: 0 | J138: 1 | K138: 2 | L138: =IF(INTRO!$E$38="Endemic", IF($H138>0, IF($H138=4,"Unknown", IF($H138=99,"Stopped", $D138)), 0),"Not required") -> 0 | M138: =IF(INTRO!$E$40="Endemic", IF($I138>0, IF($I138=4,"Unknown",IF($I138=99,"Stopped", $D138)), 0),"Not required") -> Not required | N138: =IF(INTRO!$E$42="Endemic", IF(AND($J138>1,$J138<5), IF($J138=4, "Unknown", E138+F138), 0),"Not required") -> 0 | O138: =IF(INTRO!$E$44="Endemic", IF(AND($K138>0,$K138<5), IF($K138=4,"Unknown", IF($K138=1, $F138*0.33, IF($K138=2, $F138*0.5+$G138*0.2, SUM(F138:G138)))), 0),"Not required") -> 13275.7 | P138: 0 | R138: 0 | S138: 0 | W138: T2 | X138: 33147 | Y138: Panda | AA138: =Y138=C138 -> TRUE
A139: =IF(INTRO!$E$34<>0,INTRO!$E$34,"") -> Mozambique | B139: Inhambane | C139: Vilanculos | D139: 170170.9097 | E139: =IF(INTRO!$E$48="","",ROUND($D139*INTRO!$E$48,0)) -> 28929 | F139: =IF(INTRO!$E$49="","",ROUND($D139*INTRO!$E$49,0)) -> 47648 | G139: =IF(INTRO!$E$50="","",ROUND($D139*INTRO!$E$50,0)) -> 93594 | H139: 1 | J139: 2 | K139: 2 | L139: =IF(INTRO!$E$38="Endemic", IF($H139>0, IF($H139=4,"Unknown", IF($H139=99,"Stopped", $D139)), 0),"Not required") -> 170170.9097 | M139: =IF(INTRO!$E$40="Endemic", IF($I139>0, IF($I139=4,"Unknown",IF($I139=99,"Stopped", $D139)), 0),"Not required") -> Not required | N139: =IF(INTRO!$E$42="Endemic", IF(AND($J139>1,$J139<5), IF($J139=4, "Unknown", E139+F139), 0),"Not required") -> 76577 | O139: =IF(INTRO!$E$44="Endemic", IF(AND($K139>0,$K139<5), IF($K139=4,"Unknown", IF($K139=1, $F139*0.33, IF($K139=2, $F139*0.5+$G139*0.2, SUM(F139:G139)))), 0),"Not required") -> 42542.8 | P139: 1 | R139: 1 | S139: 0 | T139: MDA1 (IVM+ALB) | V139: MDA 1 | W139: T2 | X139: 33148 | Y139: Vilanculos | AA139: TRUE
A140: =IF(INTRO!$E$34<>0,INTRO!$E$34,"") -> Mozambique | B140: Inhambane | C140: Zavala | D140: 163628 | E140: =IF(INTRO!$E$48="","",ROUND($D140*INTRO!$E$48,0)) -> 27817 | F140: =IF(INTRO!$E$49="","",ROUND($D140*INTRO!$E$49,0)) -> 45816 | G140: =IF(INTRO!$E$50="","",ROUND($D140*INTRO!$E$50,0)) -> 89995 | H140: 0 | J140: 3 | K140: 1 | L140: =IF(INTRO!$E$38="Endemic", IF($H140>0, IF($H140=4,"Unknown", IF($H140=99,"Stopped", $D140)), 0),"Not required") -> 0 | M140: =IF(INTRO!$E$40="Endemic", IF($I140>0, IF($I140=4,"Unknown",IF($I140=99,"Stopped", $D140)), 0),"Not required") -> Not required | N140: =IF(INTRO!$E$42="Endemic", IF(AND($J140>1,$J140<5), IF($J140=4, "Unknown", E140+F140), 0),"Not required") -> 73633 | O140: =IF(INTRO!$E$44="Endemic", IF(AND($K140>0,$K140<5), IF($K140=4,"Unknown", IF($K140=1, $F140*0.33, IF($K140=2, $F140*0.5+$G140*0.2, SUM(F140:G140)))), 0),"Not required") -> 15119.28 | P140: 0 | R140: 2 | S140: 0 | T140: T3 (ALB/MBD) | U140: T3 (ALB/MBD) | V140: T1 | W140: T3 | X140: 33149 | Y140: Zavala | AA140: TRUE
A141: =IF(INTRO!$E$34<>0,INTRO!$E$34,"") -> Mozambique | B141: Gaza | C141: Cid Xai Xai | D141: 132182 | E141: =IF(INTRO!$E$48="","",ROUND($D141*INTRO!$E$48,0)) -> 22471 | F141: =IF(INTRO!$E$49="","",ROUND($D141*INTRO!$E$49,0)) -> 37011 | G141: =IF(INTRO!$E$50="","",ROUND($D141*INTRO!$E$50,0)) -> 72700 | H141: 0 | J141: 2 | K141: 1 | L141: =IF(INTRO!$E$38="Endemic", IF($H141>0, IF($H141=4,"Unknown", IF($H141=99,"Stopped", $D141)), 0),"Not required") -> 0 | M141: =IF(INTRO!$E$40="Endemic", IF($I141>0, IF($I141=4,"Unknown",IF($I141=99,"Stopped", $D141)), 0),"Not required") -> Not required | N141: =IF(INTRO!$E$42="Endemic", IF(AND($J141>1,$J141<5), IF($J141=4, "Unknown", E141+F141), 0),"Not required") -> 59482 | O141: =IF(INTRO!$E$44="Endemic", IF(AND($K141>0,$K141<5), IF($K141=4,"Unknown", IF($K141=1, $F141*0.33, IF($K141=2, $F141*0.5+$G141*0.2, SUM(F141:G141)))), 0),"Not required") -> 12213.63 | P141: 0 | R141: 1 | S141: 0 | T141: T3 (ALB/MBD) | W141: T1 | X141: 33128 | Y141: Cid Xai Xai | AA141: TRUE
A142: =IF(INTRO!$E$34<>0,INTRO!$E$34,"") -> Mozambique | B142: Gaza | C142: Bilene Macia | D142: 175888 | E142: =IF(INTRO!$E$48="","",ROUND($D142*INTRO!$E$48,0)) -> 29901 | F142: =IF(INTRO!$E$49="","",ROUND($D142*INTRO!$E$49,0)) -> 49249 | G142: =IF(INTRO!$E$50="","",ROUND($D142*INTRO!$E$50,0)) -> 96738 | H142: 0 | J142: 3 | K142: 2 | L142: =IF(INTRO!$E$38="Endemic", IF($H142>0, IF($H142=4,"Unknown", IF($H142=99,"Stopped", $D142)), 0),"Not required") -> 0 | M142: =IF(INTRO!$E$40="Endemic", IF($I142>0, IF($I142=4,"Unknown",IF($I142=99,"Stopped", $D142)), 0),"Not required") -> Not required | N142: =IF(INTRO!$E$42="Endemic", IF(AND($J142>1,$J142<5), IF($J142=4, "Unknown", E142+F142), 0),"Not required") -> 79150 | O142: =IF(INTRO!$E$44="Endemic", IF(AND($K142>0,$K142<5), IF($K142=4,"Unknown", IF($K142=1, $F142*0.33, IF($K142=2, $F142*0.5+$G142*0.2, SUM(F142:G142)))), 0),"Not required") -> 43972.1 | P142: 0 | R142: 2 | S142: 0 | T142: T3 (ALB/MBD) | U142: T3 (ALB/MBD) | V142: T1 | W142: T3 | X142: 33131 | Y142: Bilene Macia | AA142: TRUE
A143: =IF(INTRO!$E$34<>0,INTRO!$E$34,"") -> Mozambique | B143: Gaza | C143: Chibuto | D143: 222774 | E143: =IF(INTRO!$E$48="","",ROUND($D143*INTRO!$E$48,0)) -> 37872 | F143: =IF(INTRO!$E$49="","",ROUND($D143*INTRO!$E$49,0)) -> 62377 | G143: =IF(INTRO!$E$50="","",ROUND($D143*INTRO!$E$50,0)) -> 122526 | H143: 0 | J143: 2 | K143: 2 | L143: =IF(INTRO!$E$38="Endemic", IF($H143>0, IF($H143=4,"Unknown", IF($H143=99,"Stopped", $D143)), 0),"Not required") -> 0 | M143: =IF(INTRO!$E$40="Endemic", IF($I143>0, IF($I143=4,"Unknown",IF($I143=99,"Stopped", $D143)), 0),"Not required") -> Not required | N143: =IF(INTRO!$E$42="Endemic", IF(AND($J143>1,$J143<5), IF($J143=4, "Unknown", E143+F143), 0),"Not required") -> 100249 | O143: =IF(INTRO!$E$44="Endemic", IF(AND($K143>0,$K143<5), IF($K143=4,"Unknown", IF($K143=1, $F143*0.33, IF($K143=2, $F143*0.5+$G143*0.2, SUM(F143:G143)))), 0),"Not required") -> 55693.7 | P143: 0 | R143: 1 | S143: 0 | T143: T3 (ALB/MBD) | W143: T1 | X143: 33124 | Y143: Chibuto | AA143: TRUE
A144: =IF(INTRO!$E$34<>0,INTRO!$E$34,"") -> Mozambique | B144: Gaza | C144: Chicualacuala | D144: 46487 | E144: =IF(INTRO!$E$48="","",ROUND($D144*INTRO!$E$48,0)) -> 7903 | F144: =IF(INTRO!$E$49="","",ROUND($D144*INTRO!$E$49,0)) -> 13016 | G144: =IF(INTRO!$E$50="","",ROUND($D144*INTRO!$E$50,0)) -> 25568 | H144: 1 | J144: 3 | K144: 2 | L144: =IF(INTRO!$E$38="Endemic", IF($H144>0, IF($H144=4,"Unknown", IF($H144=99,"Stopped", $D144)), 0),"Not required") -> 46487 | M144: =IF(INTRO!$E$40="Endemic", IF($I144>0, IF($I144=4,"Unknown",IF($I144=99,"Stopped", $D144)), 0),"Not required") -> Not required | N144: =IF(INTRO!$E$42="Endemic", IF(AND($J144>1,$J144<5), IF($J144=4, "Unknown", E144+F144), 0),"Not required") -> 20919 | O144: =IF(INTRO!$E$44="Endemic", IF(AND($K144>0,$K144<5), IF($K144=4,"Unknown", IF($K144=1, $F144*0.33, IF($K144=2, $F144*0.5+$G144*0.2, SUM(F144:G144)))), 0),"Not required") -> 11621.6 | P144: 1 | R144: 2 | S144: 0 | T144: MDA1 (IVM+ALB) | U144: T3 (ALB/MBD) | V144: MDA 1 | W144: T1 | X144: 33125 | Y144: Chicualacuala | AA144: TRUE
A145: =IF(INTRO!$E$34<>0,INTRO!$E$34,"") -> Mozambique | B145: Gaza | C145: Chigubo | D145: 32028 | E145: =IF(INTRO!$E$48="","",ROUND($D145*INTRO!$E$48,0)) -> 5445 | F145: =IF(INTRO!$E$49="","",ROUND($D145*INTRO!$E$49,0)) -> 8968 | G145: =IF(INTRO!$E$50="","",ROUND($D145*INTRO!$E$50,0)) -> 17615 | H145: 0 | J145: 2 | K145: 2 | L145: =IF(INTRO!$E$38="Endemic", IF($H145>0, IF($H145=4,"Unknown", IF($H145=99,"Stopped", $D145)), 0),"Not required") -> 0 | M145: =IF(INTRO!$E$40="Endemic", IF($I145>0, IF($I145=4,"Unknown",IF($I145=99,"Stopped", $D145)), 0),"Not required") -> Not required | N145: =IF(INTRO!$E$42="Endemic", IF(AND($J145>1,$J145<5), IF($J145=4, "Unknown", E145+F145), 0),"Not required") -> 14413 | O145: =IF(INTRO!$E$44="Endemic", IF(AND($K145>0,$K145<5), IF($K145=4,"Unknown", IF($K145=1, $F145*0.33, IF($K145=2, $F145*0.5+$G145*0.2, SUM(F145:G145)))), 0),"Not required") -> 8007 | P145: 0 | R145: 1 | S145: 0 | T145: T3 (ALB/MBD) | W145: T1 | X145: 33126 | Y145: Chigubo | AA145: TRUE
A146: =IF(INTRO!$E$34<>0,INTRO!$E$34,"") -> Mozambique | B146: Gaza | C146: Chokwé | D146: 212071 | E146: =IF(INTRO!$E$48="","",ROUND($D146*INTRO!$E$48,0)) -> 36052 | F146: =IF(INTRO!$E$49="","",ROUND($D146*INTRO!$E$49,0)) -> 59380 | G146: =IF(INTRO!$E$50="","",ROUND($D146*INTRO!$E$50,0)) -> 116639 | H146: 0 | J146: 2 | K146: 2 | L146: =IF(INTRO!$E$38="Endemic", IF($H146>0, IF($H146=4,"Unknown", IF($H146=99,"Stopped", $D146)), 0),"Not required") -> 0 | M146: =IF(INTRO!$E$40="Endemic", IF($I146>0, IF($I146=4,"Unknown",IF($I146=99,"Stopped", $D146)), 0),"Not required") -> Not required | N146: =IF(INTRO!$E$42="Endemic", IF(AND($J146>1,$J146<5), IF($J146=4, "Unknown", E146+F146), 0),"Not required") -> 95432 | O146: =IF(INTRO!$E$44="Endemic", IF(AND($K146>0,$K146<5), IF($K146=4,"Unknown", IF($K146=1, $F146*0.33, IF($K146=2, $F146*0.5+$G146*0.2, SUM(F146:G146)))), 0),"Not required") -> 53017.8 | P146: 0 | R146: 1 | S146: 0 | T146: T3 (ALB/MBD) | W146: T1 | X146: 33127 | Y146: Chokwé | AA146: TRUE
A147: =IF(INTRO!$E$34<>0,INTRO!$E$34,"") -> Mozambique | B147: Gaza | C147: Chongoene | D147: 121495 | E147: =IF(INTRO!$E$48="","",ROUND($D147*INTRO!$E$48,0)) -> 20654 | F147: =IF(INTRO!$E$49="","",ROUND($D147*INTRO!$E$49,0)) -> 34019 | G147: =IF(INTRO!$E$50="","",ROUND($D147*INTRO!$E$50,0)) -> 66822 | H147: 0 | J147: 2 | K147: 1 | L147: =IF(INTRO!$E$38="Endemic", IF($H147>0, IF($H147=4,"Unknown", IF($H147=99,"Stopped", $D147)), 0),"Not required") -> 0 | M147: =IF(INTRO!$E$40="Endemic", IF($I147>0, IF($I147=4,"Unknown",IF($I147=99,"Stopped", $D147)), 0),"Not required") -> Not required | N147: =IF(INTRO!$E$42="Endemic", IF(AND($J147>1,$J147<5), IF($J147=4, "Unknown", E147+F147), 0),"Not required") -> 54673 | O147: =IF(INTRO!$E$44="Endemic", IF(AND($K147>0,$K147<5), IF($K147=4,"Unknown", IF($K147=1, $F147*0.33, IF($K147=2, $F147*0.5+$G147*0.2, SUM(F147:G147)))), 0),"Not required") -> 11226.27 | P147: 0 | R147: 1 | S147: 0 | T147: T3 (ALB/MBD) | W147: T1 | X147: 33260 | Y147: Chongoene (Distrito de Xai Xai | AA147: FALSE
A148: =IF(INTRO!$E$34<>0,INTRO!$E$34,"") -> Mozambique | B148: Gaza | C148: Guijá | D148: 99080 | E148: =IF(INTRO!$E$48="","",ROUND($D148*INTRO!$E$48,0)) -> 16844 | F148: =IF(INTRO!$E$49="","",ROUND($D148*INTRO!$E$49,0)) -> 27742 | G148: =IF(INTRO!$E$50="","",ROUND($D148*INTRO!$E$50,0)) -> 54494 | H148: 0 | J148: 2 | K148: 2 | L148: =IF(INTRO!$E$38="Endemic", IF($H148>0, IF($H148=4,"Unknown", IF($H148=99,"Stopped", $D148)), 0),"Not required") -> 0 | M148: =IF(INTRO!$E$40="Endemic", IF($I148>0, IF($I148=4,"Unknown",IF($I148=99,"Stopped", $D148)), 0),"Not required") -> Not required | N148: =IF(INTRO!$E$42="Endemic", IF(AND($J148>1,$J148<5), IF($J148=4, "Unknown", E148+F148), 0),"Not required") -> 44586 | O148: =IF(INTRO!$E$44="Endemic", IF(AND($K148>0,$K148<5), IF($K148=4,"Unknown", IF($K148=1, $F148*0.33, IF($K148=2, $F148*0.5+$G148*0.2, SUM(F148:G148)))), 0),"Not required") -> 24769.8 | P148: 0 | R148: 1 | S148: 0 | T148: T3 (ALB/MBD) | W148: T1 | X148: 33129 | Y148: Guijá | AA148: TRUE
A149: =IF(INTRO!$E$34<>0,INTRO!$E$34,"") -> Mozambique | B149: Gaza | C149: Limpopo | D149: 152053 | E149: =IF(INTRO!$E$48="","",ROUND($D149*INTRO!$E$48,0)) -> 25849 | F149: =IF(INTRO!$E$49="","",ROUND($D149*INTRO!$E$49,0)) -> 42575 | G149: =IF(INTRO!$E$50="","",ROUND($D149*INTRO!$E$50,0)) -> 83629 | H149: 0 | J149: 2 | K149: 1 | L149: =IF(INTRO!$E$38="Endemic", IF($H149>0, IF($H149=4,"Unknown", IF($H149=99,"Stopped", $D149)), 0),"Not required") -> 0 | M149: =IF(INTRO!$E$40="Endemic", IF($I149>0, IF($I149=4,"Unknown",IF($I149=99,"Stopped", $D149)), 0),"Not required") -> Not required | N149: =IF(INTRO!$E$42="Endemic", IF(AND($J149>1,$J149<5), IF($J149=4, "Unknown", E149+F149), 0),"Not required") -> 68424 | O149: =IF(INTRO!$E$44="Endemic", IF(AND($K149>0,$K149<5), IF($K149=4,"Unknown", IF($K149=1, $F149*0.33, IF($K149=2, $F149*0.5+$G149*0.2, SUM(F149:G149)))), 0),"Not required") -> 14049.75 | P149: 0 | R149: 1 | S149: 0 | T149: T3 (ALB/MBD) | W149: T1 | X149: 33261 | Y149: Limpopo (Distrito de Xai Xai) | AA149: FALSE
A150: =IF(INTRO!$E$34<>0,INTRO!$E$34,"") -> Mozambique | B150: Gaza | C150: Mabalane | D150: 40522 | E150: =IF(INTRO!$E$48="","",ROUND($D150*INTRO!$E$48,0)) -> 6889 | F150: =IF(INTRO!$E$49="","",ROUND($D150*INTRO!$E$49,0)) -> 11346 | G150: =IF(INTRO!$E$50="","",ROUND($D150*INTRO!$E$50,0)) -> 22287 | H150: 1 | J150: 3 | K150: 2 | L150: =IF(INTRO!$E$38="Endemic", IF($H150>0, IF($H150=4,"Unknown", IF($H150=99,"Stopped", $D150)), 0),"Not required") -> 40522 | M150: =IF(INTRO!$E$40="Endemic", IF($I150>0, IF($I150=4,"Unknown",IF($I150=99,"Stopped", $D150)), 0),"Not required") -> Not required | N150: =IF(INTRO!$E$42="Endemic", IF(AND($J150>1,$J150<5), IF($J150=4, "Unknown", E150+F150), 0),"Not required") -> 18235 | O150: =IF(INTRO!$E$44="Endemic", IF(AND($K150>0,$K150<5), IF($K150=4,"Unknown", IF($K150=1, $F150*0.33, IF($K150=2, $F150*0.5+$G150*0.2, SUM(F150:G150)))), 0),"Not required") -> 10130.4 | P150: 1 | R150: 2 | S150: 0 | T150: MDA1 (IVM+ALB) | U150: T3 (ALB/MBD) | V150: MDA 1 | W150: T1 | X150: 33130 | Y150: Mabalane | AA150: TRUE
A151: =IF(INTRO!$E$34<>0,INTRO!$E$34,"") -> Mozambique | B151: Gaza | C151: Manjacaze | D151: 186393 | E151: =IF(INTRO!$E$48="","",ROUND($D151*INTRO!$E$48,0)) -> 31687 | F151: =IF(INTRO!$E$49="","",ROUND($D151*INTRO!$E$49,0)) -> 52190 | G151: =IF(INTRO!$E$50="","",ROUND($D151*INTRO!$E$50,0)) -> 102516 | H151: 0 | J151: 2 | K151: 2 | L151: =IF(INTRO!$E$38="Endemic", IF($H151>0, IF($H151=4,"Unknown", IF($H151=99,"Stopped", $D151)), 0),"Not required") -> 0 | M151: =IF(INTRO!$E$40="Endemic", IF($I151>0, IF($I151=4,"Unknown",IF($I151=99,"Stopped", $D151)), 0),"Not required") -> Not required | N151: =IF(INTRO!$E$42="Endemic", IF(AND($J151>1,$J151<5), IF($J151=4, "Unknown", E151+F151), 0),"Not required") -> 83877 | O151: =IF(INTRO!$E$44="Endemic", IF(AND($K151>0,$K151<5), IF($K151=4,"Unknown", IF($K151=1, $F151*0.33, IF($K151=2, $F151*0.5+$G151*0.2, SUM(F151:G151)))), 0),"Not required") -> 46598.2 | P151: 0 | R151: 1 | S151: 0 | T151: T3 (ALB/MBD) | W151: T1 | X151: 33132 | Y151: Manjacaze | AA151: TRUE
A152: =IF(INTRO!$E$34<>0,INTRO!$E$34,"") -> Mozambique | B152: Gaza | C152: Mapai | D152: 27305 | E152: =IF(INTRO!$E$48="","",ROUND($D152*INTRO!$E$48,0)) -> 4642 | F152: =IF(INTRO!$E$49="","",ROUND($D152*INTRO!$E$49,0)) -> 7645 | G152: =IF(INTRO!$E$50="","",ROUND($D152*INTRO!$E$50,0)) -> 15018 | H152: 1 | J152: 2 | K152: 2 | L152: =IF(INTRO!$E$38="Endemic", IF($H152>0, IF($H152=4,"Unknown", IF($H152=99,"Stopped", $D152)), 0),"Not required") -> 27305 | M152: =IF(INTRO!$E$40="Endemic", IF($I152>0, IF($I152=4,"Unknown",IF($I152=99,"Stopped", $D152)), 0),"Not required") -> Not required | N152: =IF(INTRO!$E$42="Endemic", IF(AND($J152>1,$J152<5), IF($J152=4, "Unknown", E152+F152), 0),"Not required") -> 12287 | O152: =IF(INTRO!$E$44="Endemic", IF(AND($K152>0,$K152<5), IF($K152=4,"Unknown", IF($K152=1, $F152*0.33, IF($K152=2, $F152*0.5+$G152*0.2, SUM(F152:G152)))), 0),"Not required") -> 6826.1 | P152: 1 | R152: 1 | S152: 0 | T152: MDA1 (IVM+ALB) | U152: T3 (ALB/MBD) | V152: MDA 1 | W152: T2 | X152: 33262 | Y152: Mapai (Chicualacuala) | AA152: FALSE
A153: =IF(INTRO!$E$34<>0,INTRO!$E$34,"") -> Mozambique | B153: Gaza | C153: Massangena | D153: 18871 | E153: =IF(INTRO!$E$48="","",ROUND($D153*INTRO!$E$48,0)) -> 3208 | F153: =IF(INTRO!$E$49="","",ROUND($D153*INTRO!$E$49,0)) -> 5284 | G153: =IF(INTRO!$E$50="","",ROUND($D153*INTRO!$E$50,0)) -> 10379 | H153: 0 | J153: 2 | K153: 2 | L153: =IF(INTRO!$E$38="Endemic", IF($H153>0, IF($H153=4,"Unknown", IF($H153=99,"Stopped", $D153)), 0),"Not required") -> 0 | M153: =IF(INTRO!$E$40="Endemic", IF($I153>0, IF($I153=4,"Unknown",IF($I153=99,"Stopped", $D153)), 0),"Not required") -> Not required | N153: =IF(INTRO!$E$42="Endemic", IF(AND($J153>1,$J153<5), IF($J153=4, "Unknown", E153+F153), 0),"Not required") -> 8492 | O153: =IF(INTRO!$E$44="Endemic", IF(AND($K153>0,$K153<5), IF($K153=4,"Unknown", IF($K153=1, $F153*0.33, IF($K153=2, $F153*0.5+$G153*0.2, SUM(F153:G153)))), 0),"Not required") -> 4717.8 | P153: 0 | R153: 1 | S153: 1 | T153: T2 (PZQ) | W153: T1 | X153: 33133 | Y153: Massangena | AA153: TRUE
A154: =IF(INTRO!$E$34<>0,INTRO!$E$34,"") -> Mozambique | B154: Gaza | C154: Massingir | D154: 37024 | E154: =IF(INTRO!$E$48="","",ROUND($D154*INTRO!$E$48,0)) -> 6294 | F154: =IF(INTRO!$E$49="","",ROUND($D154*INTRO!$E$49,0)) -> 10367 | G154: =IF(INTRO!$E$50="","",ROUND($D154*INTRO!$E$50,0)) -> 20363 | H154: 0 | J154: 2 | K154: 2 | L154: =IF(INTRO!$E$38="Endemic", IF($H154>0, IF($H154=4,"Unknown", IF($H154=99,"Stopped", $D154)), 0),"Not required") -> 0 | M154: =IF(INTRO!$E$40="Endemic", IF($I154>0, IF($I154=4,"Unknown",IF($I154=99,"Stopped", $D154)), 0),"Not required") -> Not required | N154: =IF(INTRO!$E$42="Endemic", IF(AND($J154>1,$J154<5), IF($J154=4, "Unknown", E154+F154), 0),"Not required") -> 16661 | O154: =IF(INTRO!$E$44="Endemic", IF(AND($K154>0,$K154<5), IF($K154=4,"Unknown", IF($K154=1, $F154*0.33, IF($K154=2, $F154*0.5+$G154*0.2, SUM(F154:G154)))), 0),"Not required") -> 9256.1 | P154: 0 | R154: 1 | S154: 0 | T154: T3 (ALB/MBD) | W154: T1 | X154: 33134 | Y154: Massingir | AA154: TRUE
A155: =IF(INTRO!$E$34<>0,INTRO!$E$34,"") -> Mozambique | B155: Maputo Provincia | C155: Matola | D155: 997702 | E155: =IF(INTRO!$E$48="","",ROUND($D155*INTRO!$E$48,0)) -> 169609 | F155: =IF(INTRO!$E$49="","",ROUND($D155*INTRO!$E$49,0)) -> 279357 | G155: =IF(INTRO!$E$50="","",ROUND($D155*INTRO!$E$50,0)) -> 548736 | H155: 0 | J155: 2 | K155: 2 | L155: =IF(INTRO!$E$38="Endemic", IF($H155>0, IF($H155=4,"Unknown", IF($H155=99,"Stopped", $D155)), 0),"Not required") -> 0 | M155: =IF(INTRO!$E$40="Endemic", IF($I155>0, IF($I155=4,"Unknown",IF($I155=99,"Stopped", $D155)), 0),"Not required") -> Not required | N155: =IF(INTRO!$E$42="Endemic", IF(AND($J155>1,$J155<5), IF($J155=4, "Unknown", E155+F155), 0),"Not required") -> 448966 | O155: =IF(INTRO!$E$44="Endemic", IF(AND($K155>0,$K155<5), IF($K155=4,"Unknown", IF($K155=1, $F155*0.33, IF($K155=2, $F155*0.5+$G155*0.2, SUM(F155:G155)))), 0),"Not required") -> 249425.7 | P155: 0 | R155: 1 | S155: 1 | W155: T1 | X155: 33163 | Y155: Matola | AA155: TRUE
A156: =IF(INTRO!$E$34<>0,INTRO!$E$34,"") -> Mozambique | B156: Maputo Provincia | C156: Boane | D156: 167841 | E156: =IF(INTRO!$E$48="","",ROUND($D156*INTRO!$E$48,0)) -> 28533 | F156: =IF(INTRO!$E$49="","",ROUND($D156*INTRO!$E$49,0)) -> 46995 | G156: =IF(INTRO!$E$50="","",ROUND($D156*INTRO!$E$50,0)) -> 92313 | H156: 0 | J156: 2 | K156: 2 | L156: =IF(INTRO!$E$38="Endemic", IF($H156>0, IF($H156=4,"Unknown", IF($H156=99,"Stopped", $D156)), 0),"Not required") -> 0 | M156: =IF(INTRO!$E$40="Endemic", IF($I156>0, IF($I156=4,"Unknown",IF($I156=99,"Stopped", $D156)), 0),"Not required") -> Not required | N156: =IF(INTRO!$E$42="Endemic", IF(AND($J156>1,$J156<5), IF($J156=4, "Unknown", E156+F156), 0),"Not required") -> 75528 | O156: =IF(INTRO!$E$44="Endemic", IF(AND($K156>0,$K156<5), IF($K156=4,"Unknown", IF($K156=1, $F156*0.33, IF($K156=2, $F156*0.5+$G156*0.2, SUM(F156:G156)))), 0),"Not required") -> 41960.1 | P156: 0 | R156: 1 | S156: 0 | W156: T1 | X156: 33162 | Y156: Boane | AA156: TRUE
A157: =IF(INTRO!$E$34<>0,INTRO!$E$34,"") -> Mozambique | B157: Maputo Provincia | C157: Magude | D157: 63840 | E157: =IF(INTRO!$E$48="","",ROUND($D157*INTRO!$E$48,0)) -> 10853 | F157: =IF(INTRO!$E$49="","",ROUND($D157*INTRO!$E$49,0)) -> 17875 | G157: =IF(INTRO!$E$50="","",ROUND($D157*INTRO!$E$50,0)) -> 35112 | H157: 0 | J157: 2 | K157: 3 | L157: =IF(INTRO!$E$38="Endemic", IF($H157>0, IF($H157=4,"Unknown", IF($H157=99,"Stopped", $D157)), 0),"Not required") -> 0 | M157: =IF(INTRO!$E$40="Endemic", IF($I157>0, IF($I157=4,"Unknown",IF($I157=99,"Stopped", $D157)), 0),"Not required") -> Not required | N157: =IF(INTRO!$E$42="Endemic", IF(AND($J157>1,$J157<5), IF($J157=4, "Unknown", E157+F157), 0),"Not required") -> 28728 | O157: =IF(INTRO!$E$44="Endemic", IF(AND($K157>0,$K157<5), IF($K157=4,"Unknown", IF($K157=1, $F157*0.33, IF($K157=2, $F157*0.5+$G157*0.2, SUM(F157:G157)))), 0),"Not required") -> 52987 | P157: 0 | R157: 1 | S157: 1 | T157: T3 (ALB/MBD) | W157: T1 | X157: 33164 | Y157: Magude | AA157: TRUE
A158: =IF(INTRO!$E$34<>0,INTRO!$E$34,"") -> Mozambique | B158: Maputo Provincia | C158: Manhica | D158: 304869 | E158: =IF(INTRO!$E$48="","",ROUND($D158*INTRO!$E$48,0)) -> 51828 | F158: =IF(INTRO!$E$49="","",ROUND($D158*INTRO!$E$49,0)) -> 85363 | G158: =IF(INTRO!$E$50="","",ROUND($D158*INTRO!$E$50,0)) -> 167678 | H158: 0 | J158: 2 | K158: 2 | L158: =IF(INTRO!$E$38="Endemic", IF($H158>0, IF($H158=4,"Unknown", IF($H158=99,"Stopped", $D158)), 0),"Not required") -> 0 | M158: =IF(INTRO!$E$40="Endemic", IF($I158>0, IF($I158=4,"Unknown",IF($I158=99,"Stopped", $D158)), 0),"Not required") -> Not required | N158: =IF(INTRO!$E$42="Endemic", IF(AND($J158>1,$J158<5), IF($J158=4, "Unknown", E158+F158), 0),"Not required") -> 137191 | O158: =IF(INTRO!$E$44="Endemic", IF(AND($K158>0,$K158<5), IF($K158=4,"Unknown", IF($K158=1, $F158*0.33, IF($K158=2, $F158*0.5+$G158*0.2, SUM(F158:G158)))), 0),"Not required") -> 76217.1 | P158: 0 | R158: 1 | S158: 0 | T158: T3 (ALB/MBD) | W158: T1 | X158: 33165 | Y158: Manhica | AA158: TRUE
A159: =IF(INTRO!$E$34<>0,INTRO!$E$34,"") -> Mozambique | B159: Maputo Provincia | C159: Marracuene | D159: 158129 | E159: =IF(INTRO!$E$48="","",ROUND($D159*INTRO!$E$48,0)) -> 26882 | F159: =IF(INTRO!$E$49="","",ROUND($D159*INTRO!$E$49,0)) -> 44276 | G159: =IF(INTRO!$E$50="","",ROUND($D159*INTRO!$E$50,0)) -> 86971 | H159: 0 | J159: 3 | K159: 2 | L159: =IF(INTRO!$E$38="Endemic", IF($H159>0, IF($H159=4,"Unknown", IF($H159=99,"Stopped", $D159)), 0),"Not required") -> 0 | M159: =IF(INTRO!$E$40="Endemic", IF($I159>0, IF($I159=4,"Unknown",IF($I159=99,"Stopped", $D159)), 0),"Not required") -> Not required | N159: =IF(INTRO!$E$42="Endemic", IF(AND($J159>1,$J159<5), IF($J159=4, "Unknown", E159+F159), 0),"Not required") -> 71158 | O159: =IF(INTRO!$E$44="Endemic", IF(AND($K159>0,$K159<5), IF($K159=4,"Unknown", IF($K159=1, $F159*0.33, IF($K159=2, $F159*0.5+$G159*0.2, SUM(F159:G159)))), 0),"Not required") -> 39532.2 | P159: 0 | R159: 2 | S159: 0 | T159: T3 (ALB/MBD) | V159: T1 | W159: T3 | X159: 33166 | Y159: Marracuene | AA159: TRUE
A160: =IF(INTRO!$E$34<>0,INTRO!$E$34,"") -> Mozambique | B160: Maputo Provincia | C160: Matutuíne | D160: 41785 | E160: =IF(INTRO!$E$48="","",ROUND($D160*INTRO!$E$48,0)) -> 7103 | F160: =IF(INTRO!$E$49="","",ROUND($D160*INTRO!$E$49,0)) -> 11700 | G160: =IF(INTRO!$E$50="","",ROUND($D160*INTRO!$E$50,0)) -> 22982 | H160: 0 | J160: 3 | K160: 2 | L160: =IF(INTRO!$E$38="Endemic", IF($H160>0, IF($H160=4,"Unknown", IF($H160=99,"Stopped", $D160)), 0),"Not required") -> 0 | M160: =IF(INTRO!$E$40="Endemic", IF($I160>0, IF($I160=4,"Unknown",IF($I160=99,"Stopped", $D160)), 0),"Not required") -> Not required | N160: =IF(INTRO!$E$42="Endemic", IF(AND($J160>1,$J160<5), IF($J160=4, "Unknown", E160+F160), 0),"Not required") -> 18803 | O160: =IF(INTRO!$E$44="Endemic", IF(AND($K160>0,$K160<5), IF($K160=4,"Unknown", IF($K160=1, $F160*0.33, IF($K160=2, $F160*0.5+$G160*0.2, SUM(F160:G160)))), 0),"Not required") -> 10446.4 | P160: 0 | R160: 2 | S160: 0 | T160: T3 (ALB/MBD) | V160: T1 | W160: T3 | X160: 33167 | Y160: Matutuíne | AA160: TRUE
A161: =IF(INTRO!$E$34<>0,INTRO!$E$34,"") -> Mozambique | B161: Maputo Provincia | C161: Moamba | D161: 71003 | E161: =IF(INTRO!$E$48="","",ROUND($D161*INTRO!$E$48,0)) -> 12071 | F161: =IF(INTRO!$E$49="","",ROUND($D161*INTRO!$E$49,0)) -> 19881 | G161: =IF(INTRO!$E$50="","",ROUND($D161*INTRO!$E$50,0)) -> 39052 | H161: 0 | J161: 2 | K161: 2 | L161: =IF(INTRO!$E$38="Endemic", IF($H161>0, IF($H161=4,"Unknown", IF($H161=99,"Stopped", $D161)), 0),"Not required") -> 0 | M161: =IF(INTRO!$E$40="Endemic", IF($I161>0, IF($I161=4,"Unknown",IF($I161=99,"Stopped", $D161)), 0),"Not required") -> Not required | N161: =IF(INTRO!$E$42="Endemic", IF(AND($J161>1,$J161<5), IF($J161=4, "Unknown", E161+F161), 0),"Not required") -> 31952 | O161: =IF(INTRO!$E$44="Endemic", IF(AND($K161>0,$K161<5), IF($K161=4,"Unknown", IF($K161=1, $F161*0.33, IF($K161=2, $F161*0.5+$G161*0.2, SUM(F161:G161)))), 0),"Not required") -> 17750.9 | P161: 0 | R161: 1 | S161: 0 | W161: T1 | X161: 33168 | Y161: Moamba | AA161: TRUE
A162: =IF(INTRO!$E$34<>0,INTRO!$E$34,"") -> Mozambique | B162: Maputo Provincia | C162: Namaacha | D162: 53428 | E162: =IF(INTRO!$E$48="","",ROUND($D162*INTRO!$E$48,0)) -> 9083 | F162: =IF(INTRO!$E$49="","",ROUND($D162*INTRO!$E$49,0)) -> 14960 | G162: =IF(INTRO!$E$50="","",ROUND($D162*INTRO!$E$50,0)) -> 29385 | H162: 0 | J162: 2 | K162: 3 | L162: =IF(INTRO!$E$38="Endemic", IF($H162>0, IF($H162=4,"Unknown", IF($H162=99,"Stopped", $D162)), 0),"Not required") -> 0 | M162: =IF(INTRO!$E$40="Endemic", IF($I162>0, IF($I162=4,"Unknown",IF($I162=99,"Stopped", $D162)), 0),"Not required") -> Not required | N162: =IF(INTRO!$E$42="Endemic", IF(AND($J162>1,$J162<5), IF($J162=4, "Unknown", E162+F162), 0),"Not required") -> 24043 | O162: =IF(INTRO!$E$44="Endemic", IF(AND($K162>0,$K162<5), IF($K162=4,"Unknown", IF($K162=1, $F162*0.33, IF($K162=2, $F162*0.5+$G162*0.2, SUM(F162:G162)))), 0),"Not required") -> 44345 | P162: 0 | R162: 1 | S162: 1 | W162: T1 | X162: 33169 | Y162: Namaacha | AA162: TRUE
A163: =IF(INTRO!$E$34<>0,INTRO!$E$34,"") -> Mozambique | B163: Cidade de Maputo | C163: Kampfumu | D163: 112208 | E163: =IF(INTRO!$E$48="","",ROUND($D163*INTRO!$E$48,0)) -> 19075 | F163: =IF(INTRO!$E$49="","",ROUND($D163*INTRO!$E$49,0)) -> 31418 | G163: =IF(INTRO!$E$50="","",ROUND($D163*INTRO!$E$50,0)) -> 61714 | H163: 0 | J163: 2 | K163: 2 | L163: =IF(INTRO!$E$38="Endemic", IF($H163>0, IF($H163=4,"Unknown", IF($H163=99,"Stopped", $D163)), 0),"Not required") -> 0 | M163: =IF(INTRO!$E$40="Endemic", IF($I163>0, IF($I163=4,"Unknown",IF($I163=99,"Stopped", $D163)), 0),"Not required") -> Not required | N163: =IF(INTRO!$E$42="Endemic", IF(AND($J163>1,$J163<5), IF($J163=4, "Unknown", E163+F163), 0),"Not required") -> 50493 | O163: =IF(INTRO!$E$44="Endemic", IF(AND($K163>0,$K163<5), IF($K163=4,"Unknown", IF($K163=1, $F163*0.33, IF($K163=2, $F163*0.5+$G163*0.2, SUM(F163:G163)))), 0),"Not required") -> 28051.8 | P163: 0 | R163: 1 | S163: 0 | T163: T3 (ALB/MBD) | W163: T1 | X163: 33119 | Y163: Kampfumu | AA163: TRUE
A164: =IF(INTRO!$E$34<>0,INTRO!$E$34,"") -> Mozambique | B164: Cidade de Maputo | C164: Nhlamankulu | D164: 160906 | E164: =IF(INTRO!$E$48="","",ROUND($D164*INTRO!$E$48,0)) -> 27354 | F164: =IF(INTRO!$E$49="","",ROUND($D164*INTRO!$E$49,0)) -> 45054 | G164: =IF(INTRO!$E$50="","",ROUND($D164*INTRO!$E$50,0)) -> 88498 | H164: 0 | J164: 2 | K164: 2 | L164: =IF(INTRO!$E$38="Endemic", IF($H164>0, IF($H164=4,"Unknown", IF($H164=99,"Stopped", $D164)), 0),"Not required") -> 0 | M164: =IF(INTRO!$E$40="Endemic", IF($I164>0, IF($I164=4,"Unknown",IF($I164=99,"Stopped", $D164)), 0),"Not required") -> Not required | N164: =IF(INTRO!$E$42="Endemic", IF(AND($J164>1,$J164<5), IF($J164=4, "Unknown", E164+F164), 0),"Not required") -> 72408 | O164: =IF(INTRO!$E$44="Endemic", IF(AND($K164>0,$K164<5), IF($K164=4,"Unknown", IF($K164=1, $F164*0.33, IF($K164=2, $F164*0.5+$G164*0.2, SUM(F164:G164)))), 0),"Not required") -> 40226.6 | P164: 0 | R164: 1 | S164: 0 | T164: T3 (ALB/MBD) | W164: T1 | X164: 33123 | Y164: Nhlamankulu | AA164: TRUE
A165: =IF(INTRO!$E$34<>0,INTRO!$E$34,"") -> Mozambique | B165: Cidade de Maputo | C165: Kamaxakani | D165: 233309 | E165: =IF(INTRO!$E$48="","",ROUND($D165*INTRO!$E$48,0)) -> 39663 | F165: =IF(INTRO!$E$49="","",ROUND($D165*INTRO!$E$49,0)) -> 65327 | G165: =IF(INTRO!$E$50="","",ROUND($D165*INTRO!$E$50,0)) -> 128320 | H165: 0 | J165: 2 | K165: 2 | L165: =IF(INTRO!$E$38="Endemic", IF($H165>0, IF($H165=4,"Unknown", IF($H165=99,"Stopped", $D165)), 0),"Not required") -> 0 | M165: =IF(INTRO!$E$40="Endemic", IF($I165>0, IF($I165=4,"Unknown",IF($I165=99,"Stopped", $D165)), 0),"Not required") -> Not required | N165: =IF(INTRO!$E$42="Endemic", IF(AND($J165>1,$J165<5), IF($J165=4, "Unknown", E165+F165), 0),"Not required") -> 104990 | O165: =IF(INTRO!$E$44="Endemic", IF(AND($K165>0,$K165<5), IF($K165=4,"Unknown", IF($K165=1, $F165*0.33, IF($K165=2, $F165*0.5+$G165*0.2, SUM(F165:G165)))), 0),"Not required") -> 58327.5 | P165: 0 | R165: 1 | S165: 0 | T165: T3 (ALB/MBD) | W165: T1 | X165: 33118 | Y165: Kamaxakani | AA165: TRUE
A166: =IF(INTRO!$E$34<>0,INTRO!$E$34,"") -> Mozambique | B166: Cidade de Maputo | C166: Kamavota | D166: 359268 | E166: =IF(INTRO!$E$48="","",ROUND($D166*INTRO!$E$48,0)) -> 61076 | F166: =IF(INTRO!$E$49="","",ROUND($D166*INTRO!$E$49,0)) -> 100595 | G166: =IF(INTRO!$E$50="","",ROUND($D166*INTRO!$E$50,0)) -> 197597 | H166: 0 | J166: 2 | K166: 2 | L166: =IF(INTRO!$E$38="Endemic", IF($H166>0, IF($H166=4,"Unknown", IF($H166=99,"Stopped", $D166)), 0),"Not required") -> 0 | M166: =IF(INTRO!$E$40="Endemic", IF($I166>0, IF($I166=4,"Unknown",IF($I166=99,"Stopped", $D166)), 0),"Not required") -> Not required | N166: =IF(INTRO!$E$42="Endemic", IF(AND($J166>1,$J166<5), IF($J166=4, "Unknown", E166+F166), 0),"Not required") -> 161671 | O166: =IF(INTRO!$E$44="Endemic", IF(AND($K166>0,$K166<5), IF($K166=4,"Unknown", IF($K166=1, $F166*0.33, IF($K166=2, $F166*0.5+$G166*0.2, SUM(F166:G166)))), 0),"Not required") -> 89816.9 | P166: 0 | R166: 1 | S166: 0 | T166: T3 (ALB/MBD) | W166: T1 | X166: 33117 | Y166: Kamavota | AA166: TRUE
A167: =IF(INTRO!$E$34<>0,INTRO!$E$34,"") -> Mozambique | B167: Cidade de Maputo | C167: Kamubukwana | D167: 379025 | E167: =IF(INTRO!$E$48="","",ROUND($D167*INTRO!$E$48,0)) -> 64434 | F167: =IF(INTRO!$E$49="","",ROUND($D167*INTRO!$E$49,0)) -> 106127 | G167: =IF(INTRO!$E$50="","",ROUND($D167*INTRO!$E$50,0)) -> 208464 | H167: 0 | J167: 2 | K167: 2 | L167: =IF(INTRO!$E$38="Endemic", IF($H167>0, IF($H167=4,"Unknown", IF($H167=99,"Stopped", $D167)), 0),"Not required") -> 0 | M167: =IF(INTRO!$E$40="Endemic", IF($I167>0, IF($I167=4,"Unknown",IF($I167=99,"Stopped", $D167)), 0),"Not required") -> Not required | N167: =IF(INTRO!$E$42="Endemic", IF(AND($J167>1,$J167<5), IF($J167=4, "Unknown", E167+F167), 0),"Not required") -> 170561 | O167: =IF(INTRO!$E$44="Endemic", IF(AND($K167>0,$K167<5), IF($K167=4,"Unknown", IF($K167=1, $F167*0.33, IF($K167=2, $F167*0.5+$G167*0.2, SUM(F167:G167)))), 0),"Not required") -> 94756.3 | P167: 0 | R167: 1 | S167: 0 | T167: T3 (ALB/MBD) | W167: T1 | X167: 33120 | Y167: Kamubukwana | AA167: TRUE
A168: =IF(INTRO!$E$34<>0,INTRO!$E$34,"") -> Mozambique | B168: Cidade de Maputo | C168: Katembe | D168: 22699 | E168: =IF(INTRO!$E$48="","",ROUND($D168*INTRO!$E$48,0)) -> 3859 | F168: =IF(INTRO!$E$49="","",ROUND($D168*INTRO!$E$49,0)) -> 6356 | G168: =IF(INTRO!$E$50="","",ROUND($D168*INTRO!$E$50,0)) -> 12484 | H168: 0 | J168: 2 | K168: 2 | L168: =IF(INTRO!$E$38="Endemic", IF($H168>0, IF($H168=4,"Unknown", IF($H168=99,"Stopped", $D168)), 0),"Not required") -> 0 | M168: =IF(INTRO!$E$40="Endemic", IF($I168>0, IF($I168=4,"Unknown",IF($I168=99,"Stopped", $D168)), 0),"Not required") -> Not required | N168: =IF(INTRO!$E$42="Endemic", IF(AND($J168>1,$J168<5), IF($J168=4, "Unknown", E168+F168), 0),"Not required") -> 10215 | O168: =IF(INTRO!$E$44="Endemic", IF(AND($K168>0,$K168<5), IF($K168=4,"Unknown", IF($K168=1, $F168*0.33, IF($K168=2, $F168*0.5+$G168*0.2, SUM(F168:G168)))), 0),"Not required") -> 5674.8 | P168: 0 | R168: 1 | S168: 0 | T168: T3 (ALB/MBD) | W168: T1 | X168: 33122 | Y168: Katembe | AA168: TRUE
A169: =IF(INTRO!$E$34<>0,INTRO!$E$34,"") -> Mozambique | B169: Cidade de Maputo | C169: Kanyaca | D169: 5662 | E169: =IF(INTRO!$E$48="","",ROUND($D169*INTRO!$E$48,0)) -> 963 | F169: =IF(INTRO!$E$49="","",ROUND($D169*INTRO!$E$49,0)) -> 1585 | G169: =IF(INTRO!$E$50="","",ROUND($D169*INTRO!$E$50,0)) -> 3114 | H169: 0 | J169: 2 | K169: 2 | L169: =IF(INTRO!$E$38="Endemic", IF($H169>0, IF($H169=4,"Unknown", IF($H169=99,"Stopped", $D169)), 0),"Not required") -> 0 | M169: =IF(INTRO!$E$40="Endemic", IF($I169>0, IF($I169=4,"Unknown",IF($I169=99,"Stopped", $D169)), 0),"Not required") -> Not required | N169: =IF(INTRO!$E$42="Endemic", IF(AND($J169>1,$J169<5), IF($J169=4, "Unknown", E169+F169), 0),"Not required") -> 2548 | O169: =IF(INTRO!$E$44="Endemic", IF(AND($K169>0,$K169<5), IF($K169=4,"Unknown", IF($K169=1, $F169*0.33, IF($K169=2, $F169*0.5+$G169*0.2, SUM(F169:G169)))), 0),"Not required") -> 1415.3 | P169: 0 | R169: 1 | S169: 1 | T169: T3 (ALB/MBD) | W169: T1 | X169: 33121 | Y169: Kanyaca | AA169: TRUE

Sheet MDA1
A1: MDA 1 - Ivermectin (IVM) and Albendazole (ALB)
A2: Administrative structure, population requiring PC by age group, population treated by age group and coverage
A4: TOTAL | G4: =SUM(G$9:G$1000) -> 4471778.132 | H4: =SUM(H$9:H$1000) -> 15379884.62 | I4: =SUM(I$9:I$1000) -> 19851662.75 | K4: =SUM(K$9:K$1000) -> 7804993.5 | L4: =SUM(L$9:L$1000) -> 7994355.5 | M4: =SUM(M$9:M$1000) -> 15799349 | O4: =IF(G4<>0, IF(K4/G4*100=0, "-", K4/G4*100), " ") -> 174.5389254 | P4: =IF(H4<>0, IF(L4/H4*100=0, "-", L4/H4*100), " ") -> 51.97929436 | Q4: =IF(I4<>0, IF(M4/I4*100=0, "-", M4/I4*100), " ") -> 79.58703105
D6: PC implemented | E6: Date | F6: Population targeted for MDA 1 | J6: Population treated | N6: Programme coverage (%)
A7: Country | B7: Province/State | C7: District | F7: PreSAC | G7: SAC | H7: Adults | I7: Total | J7: PreSAC | K7: SAC | L7: Adults | M7: Total | N7: PreSAC | O7: SAC | P7: Adults | Q7: Total
A9: =IF(COUNTRY_INFO!A9=0," ",COUNTRY_INFO!A9) -> Mozambique | B9: =IF(COUNTRY_INFO!B9=0," ",COUNTRY_INFO!B9) -> Cabo Delgado | C9: =IF(COUNTRY_INFO!C9=0," ",COUNTRY_INFO!C9) -> Cid. Pemba | D9: =IF(COUNTRY_INFO!$T$9:$T$1000="MDA1 (IVM+ALB)", COUNTRY_INFO!$T$9:$T$1000, " ") -> MDA1 (IVM+ALB) | E9: May | G9: 47993.44 | H9: 170158.56 | I9: =SUM(F9:H9) -> 218152 | K9: 99072 | L9: 76931 | M9: =SUM(J9:L9) -> 176003 | O9: =IF(G9<>0, IF(K9/G9*100=0, "-", K9/G9*100), " ") -> 206.4282119 | P9: =IF(H9<>0, IF(L9/H9*100=0, "-", L9/H9*100), " ") -> 45.21136051 | Q9: =IF(I9<>0, IF(M9/I9*100=0, "-", M9/I9*100), " ") -> 80.67906781
A10: =IF(COUNTRY_INFO!A10=0," ",COUNTRY_INFO!A10) -> Mozambique | B10: =IF(COUNTRY_INFO!B10=0," ",COUNTRY_INFO!B10) -> Cabo Delgado | C10: =IF(COUNTRY_INFO!C10=0," ",COUNTRY_INFO!C10) -> Ancuabe | D10: =IF(COUNTRY_INFO!$T$9:$T$1000="MDA1 (IVM+ALB)", COUNTRY_INFO!$T$9:$T$1000, " ") -> MDA1 (IVM+ALB) | E10: May | G10: 27070.12 | H10: 95975.88 | I10: =SUM(F10:H10) -> 123046 | K10: 38749 | L10: 37349 | M10: =SUM(J10:L10) -> 76098 | O10: 143.143067 | P10: =IF(H10<>0, IF(L10/H10*100=0, "-", L10/H10*100), " ") -> 38.91498572 | Q10: =IF(I10<>0, IF(M10/I10*100=0, "-", M10/I10*100), " ") -> 61.8451636
A11: =IF(COUNTRY_INFO!A11=0," ",COUNTRY_INFO!A11) -> Mozambique | B11: =IF(COUNTRY_INFO!B11=0," ",COUNTRY_INFO!B11) -> Cabo Delgado | C11: =IF(COUNTRY_INFO!C11=0," ",COUNTRY_INFO!C11) -> Balama | D11: =IF(COUNTRY_INFO!$T$9:$T$1000="MDA1 (IVM+ALB)", COUNTRY_INFO!$T$9:$T$1000, " ") -> MDA1 (IVM+ALB) | E11: May | G11: 32045.86 | H11: 113617.14 | I11: 145663 | K11: 65840 | L11: 56582 | M11: 122422 | O11: 205.4555565 | P11: 49.80058467 | Q11: 84.04467847
A12: =IF(COUNTRY_INFO!A12=0," ",COUNTRY_INFO!A12) -> Mozambique | B12: =IF(COUNTRY_INFO!B12=0," ",COUNTRY_INFO!B12) -> Cabo Delgado | C12: =IF(COUNTRY_INFO!C12=0," ",COUNTRY_INFO!C12) -> Chiure | D12: =IF(COUNTRY_INFO!$T$9:$T$1000="MDA1 (IVM+ALB)", COUNTRY_INFO!$T$9:$T$1000, " ") -> MDA1 (IVM+ALB) | E12: May | G12: 56014.42 | H12: 198596.58 | I12: 254611 | K12: 124236 | L12: 113216 | M12: 237452 | O12: 221.7928883 | P12: 57.00803105 | Q12: 93.26069966
A13: =IF(COUNTRY_INFO!A13=0," ",COUNTRY_INFO!A13) -> Mozambique | B13: =IF(COUNTRY_INFO!B13=0," ",COUNTRY_INFO!B13) -> Cabo Delgado | C13: =IF(COUNTRY_INFO!C13=0," ",COUNTRY_INFO!C13) -> Ibo | D13: =IF(COUNTRY_INFO!$T$9:$T$1000="MDA1 (IVM+ALB)", COUNTRY_INFO!$T$9:$T$1000, " ") -> MDA1 (IVM+ALB) | E13: May | G13: 2726.46 | H13: 9666.54 | I13: 12393 | K13: 4756 | L13: 4478 | M13: 9234 | O13: 174.4386494 | P13: 46.32474494 | Q13: 74.50980392
A14: =IF(COUNTRY_INFO!A14=0," ",COUNTRY_INFO!A14) -> Mozambique | B14: =IF(COUNTRY_INFO!B14=0," ",COUNTRY_INFO!B14) -> Cabo Delgado | C14: =IF(COUNTRY_INFO!C14=0," ",COUNTRY_INFO!C14) -> Macomia | D14: =IF(COUNTRY_INFO!$T$9:$T$1000="MDA1 (IVM+ALB)", COUNTRY_INFO!$T$9:$T$1000, " ") -> MDA1 (IVM+ALB) | E14: May | G14: 20547.12 | H14: 72848.88 | I14: 93396 | K14: 33109 | L14: 41475 | M14: 74584 | O14: 161.1369379 | P14: 56.93292745 | Q14: 79.85780976
A15: =IF(COUNTRY_INFO!A15=0," ",COUNTRY_INFO!A15) -> Mozambique | B15: =IF(COUNTRY_INFO!B15=0," ",COUNTRY_INFO!B15) -> Cabo Delgado | C15: =IF(COUNTRY_INFO!C15=0," ",COUNTRY_INFO!C15) -> Mecufi | D15: =IF(COUNTRY_INFO!$T$9:$T$1000="MDA1 (IVM+ALB)", COUNTRY_INFO!$T$9:$T$1000, " ") -> MDA1 (IVM+ALB) | E15: May | G15: 10796.28 | H15: 38277.72 | I15: 49074 | K15: 21699 | L15: 15657 | M15: 37356 | O15: 200.9858951 | P15: 40.90369019 | Q15: 76.12177528
A16: =IF(COUNTRY_INFO!A16=0," ",COUNTRY_INFO!A16) -> Mozambique | B16: =IF(COUNTRY_INFO!B16=0," ",COUNTRY_INFO!B16) -> Cabo Delgado | C16: =IF(COUNTRY_INFO!C16=0," ",COUNTRY_INFO!C16) -> Meluco | D16: =IF(COUNTRY_INFO!$T$9:$T$1000="MDA1 (IVM+ALB)", COUNTRY_INFO!$T$9:$T$1000, " ") -> MDA1 (IVM+ALB) | E16: May | G16: 5786.44 | H16: 20515.56 | I16: 26302 | K16: 10591 | L16: 11013 | M16: 21604 | O16: 183.031363 | P16: 53.68120587 | Q16: 82.13824044
A17: =IF(COUNTRY_INFO!A17=0," ",COUNTRY_INFO!A17) -> Mozambique | B17: =IF(COUNTRY_INFO!B17=0," ",COUNTRY_INFO!B17) -> Cabo Delgado | C17: =IF(COUNTRY_INFO!C17=0," ",COUNTRY_INFO!C17) -> Moc Praia | D17: =IF(COUNTRY_INFO!$T$9:$T$1000="MDA1 (IVM+ALB)", COUNTRY_INFO!$T$9:$T$1000, " ") -> MDA1 (IVM+ALB) | E17: May | G17: 24760.34 | H17: 87786.66 | I17: 112547 | K17: 44450 | L17: 42634 | M17: 87084 | O17: 179.5209597 | P17: 48.56546541 | Q17: 77.37567416
A18: =IF(COUNTRY_INFO!A18=0," ",COUNTRY_INFO!A18) -> Mozambique | B18: =IF(COUNTRY_INFO!B18=0," ",COUNTRY_INFO!B18) -> Cabo Delgado | C18: =IF(COUNTRY_INFO!C18=0," ",COUNTRY_INFO!C18) -> Montepuez | D18: =IF(COUNTRY_INFO!$T$9:$T$1000="MDA1 (IVM+ALB)", COUNTRY_INFO!$T$9:$T$1000, " ") -> MDA1 (IVM+ALB) | E18: May | G18: 52287.18 | H18: 185381.82 | I18: 237669 | K18: 101069 | L18: 117073 | M18: 218142 | O18: 193.2959475 | P18: 63.15236305 | Q18: 91.78395163
A19: =IF(COUNTRY_INFO!A19=0," ",COUNTRY_INFO!A19) -> Mozambique | B19: =IF(COUNTRY_INFO!B19=0," ",COUNTRY_INFO!B19) -> Cabo Delgado | C19: =IF(COUNTRY_INFO!C19=0," ",COUNTRY_INFO!C19) -> Mueda | D19: =IF(COUNTRY_INFO!$T$9:$T$1000="MDA1 (IVM+ALB)", COUNTRY_INFO!$T$9:$T$1000, " ") -> MDA1 (IVM+ALB) | E19: May | G19: 28894.36 | H19: 102443.64 | I19: 131338 | K19: 49748 | L19: 43844 | M19: 93592 | O19: 172.1720087 | P19: 42.79816687 | Q19: 71.26041207
A20: =IF(COUNTRY_INFO!A20=0," ",COUNTRY_INFO!A20) -> Mozambique | B20: =IF(COUNTRY_INFO!B20=0," ",COUNTRY_INFO!B20) -> Cabo Delgado | C20: =IF(COUNTRY_INFO!C20=0," ",COUNTRY_INFO!C20) -> Muidumbe | D20: =IF(COUNTRY_INFO!$T$9:$T$1000="MDA1 (IVM+ALB)", COUNTRY_INFO!$T$9:$T$1000, " ") -> MDA1 (IVM+ALB) | E20: May | G20: 17384.4 | H20: 61635.6 | I20: 79020 | K20: 27732 | L20: 25885 | M20: 53617 | O20: 159.5223304 | P20: 41.996833 | Q20: 67.85244242
A21: =IF(COUNTRY_INFO!A21=0," ",COUNTRY_INFO!A21) -> Mozambique | B21: =IF(COUNTRY_INFO!B21=0," ",COUNTRY_INFO!B21) -> Cabo Delgado | C21: =IF(COUNTRY_INFO!C21=0," ",COUNTRY_INFO!C21) -> Namuno | D21: =IF(COUNTRY_INFO!$T$9:$T$1000="MDA1 (IVM+ALB)", COUNTRY_INFO!$T$9:$T$1000, " ") -> MDA1 (IVM+ALB) | E21: May | G21: 47745.5 | H21: 169279.5 | I21: 217025 | K21: 94650 | L21: 93647 | M21: 188297 | O21: 198.2385775 | P21: 55.32093372 | Q21: 86.76281534
A22: =IF(COUNTRY_INFO!A22=0," ",COUNTRY_INFO!A22) -> Mozambique | B22: =IF(COUNTRY_INFO!B22=0," ",COUNTRY_INFO!B22) -> Cabo Delgado | C22: =IF(COUNTRY_INFO!C22=0," ",COUNTRY_INFO!C22) -> Nangade | D22: =IF(COUNTRY_INFO!$T$9:$T$1000="MDA1 (IVM+ALB)", COUNTRY_INFO!$T$9:$T$1000, " ") -> MDA1 (IVM+ALB) | E22: May | G22: 16008.3 | H22: 56756.7 | I22: 72765 | K22: 32343 | L22: 29319 | M22: 61662 | O22: 202.0389423 | P22: 51.65733737 | Q22: 84.74129046
A23: =IF(COUNTRY_INFO!A23=0," ",COUNTRY_INFO!A23) -> Mozambique | B23: =IF(COUNTRY_INFO!B23=0," ",COUNTRY_INFO!B23) -> Cabo Delgado | C23: =IF(COUNTRY_INFO!C23=0," ",COUNTRY_INFO!C23) -> Palma | D23: =IF(COUNTRY_INFO!$T$9:$T$1000="MDA1 (IVM+ALB)", COUNTRY_INFO!$T$9:$T$1000, " ") -> MDA1 (IVM+ALB) | E23: May | G23: 11544.28 | H23: 40929.72 | I23: 52474 | K23: 18224 | L23: 19701 | M23: 37925 | O23: 157.8617289 | P23: 48.13372777 | Q23: 72.27388802
A24: =IF(COUNTRY_INFO!A24=0," ",COUNTRY_INFO!A24) -> Mozambique | B24: =IF(COUNTRY_INFO!B24=0," ",COUNTRY_INFO!B24) -> Cabo Delgado | C24: =IF(COUNTRY_INFO!C24=0," ",COUNTRY_INFO!C24) -> Pemba Metuge | D24: =IF(COUNTRY_INFO!$T$9:$T$1000="MDA1 (IVM+ALB)", COUNTRY_INFO!$T$9:$T$1000, " ") -> MDA1 (IVM+ALB) | E24: May | G24: 18976.54 | H24: 67280.46 | I24: 86257 | K24: 31142 | L24: 27920 | M24: 59062 | O24: 164.1078932 | P24: 41.49793268 | Q24: 68.472124
A25: =IF(COUNTRY_INFO!A25=0," ",COUNTRY_INFO!A25) -> Mozambique | B25: =IF(COUNTRY_INFO!B25=0," ",COUNTRY_INFO!B25) -> Cabo Delgado | C25: =IF(COUNTRY_INFO!C25=0," ",COUNTRY_INFO!C25) -> Quissanga | D25: =IF(COUNTRY_INFO!$T$9:$T$1000="MDA1 (IVM+ALB)", COUNTRY_INFO!$T$9:$T$1000, " ") -> MDA1 (IVM+ALB) | E25: May | G25: 8934.2 | H25: 31675.8 | I25: 40610 | K25: 18022 | L25: 12534 | M25: 30556 | O25: 201.7192362 | P25: 39.56963991 | Q25: 75.2425511
A26: =IF(COUNTRY_INFO!A26=0," ",COUNTRY_INFO!A26) -> Mozambique | B26: =IF(COUNTRY_INFO!B26=0," ",COUNTRY_INFO!B26) -> Niassa | C26: =IF(COUNTRY_INFO!C26=0," ",COUNTRY_INFO!C26) -> Cidade de Lichinga | D26: =IF(COUNTRY_INFO!$T$9:$T$1000="MDA1 (IVM+ALB)", COUNTRY_INFO!$T$9:$T$1000, " ") -> MDA1 (IVM+ALB) | E26: May | G26: 51749.28 | H26: 183474.72 | I26: 235224 | K26: 81535 | L26: 65849 | M26: 147384 | O26: 157.5577477 | P26: 35.88995803 | Q26: 62.65687175
A27: =IF(COUNTRY_INFO!A27=0," ",COUNTRY_INFO!A27) -> Mozambique | B27: =IF(COUNTRY_INFO!B27=0," ",COUNTRY_INFO!B27) -> Niassa | C27: =IF(COUNTRY_INFO!C27=0," ",COUNTRY_INFO!C27) -> Cuamba | D27: =IF(COUNTRY_INFO!$T$9:$T$1000="MDA1 (IVM+ALB)", COUNTRY_INFO!$T$9:$T$1000, " ") -> MDA1 (IVM+ALB) | E27: May | G27: 56794.1 | H27: 201360.9 | I27: 258155 | K27: 98528 | L27: 98226 | M27: 196754 | O27: 173.482809 | P27: 48.78106921 | Q27: 76.21545196
A28: =IF(COUNTRY_INFO!A28=0," ",COUNTRY_INFO!A28) -> Mozambique | B28: =IF(COUNTRY_INFO!B28=0," ",COUNTRY_INFO!B28) -> Niassa | C28: =IF(COUNTRY_INFO!C28=0," ",COUNTRY_INFO!C28) -> Chimbonila | D28: =IF(COUNTRY_INFO!$T$9:$T$1000="MDA1 (IVM+ALB)", COUNTRY_INFO!$T$9:$T$1000, " ") ->  | I28: 0 | M28: 0
A29: =IF(COUNTRY_INFO!A29=0," ",COUNTRY_INFO!A29) -> Mozambique | B29: =IF(COUNTRY_INFO!B29=0," ",COUNTRY_INFO!B29) -> Niassa | C29: =IF(COUNTRY_INFO!C29=0," ",COUNTRY_INFO!C29) -> Lago | D29: =IF(COUNTRY_INFO!$T$9:$T$1000="MDA1 (IVM+ALB)", COUNTRY_INFO!$T$9:$T$1000, " ") ->  | I29: 0 | M29: 0
A30: =IF(COUNTRY_INFO!A30=0," ",COUNTRY_INFO!A30) -> Mozambique | B30: =IF(COUNTRY_INFO!B30=0," ",COUNTRY_INFO!B30) -> Niassa | C30: =IF(COUNTRY_INFO!C30=0," ",COUNTRY_INFO!C30) -> Majune | D30: =IF(COUNTRY_INFO!$T$9:$T$1000="MDA1 (IVM+ALB)", COUNTRY_INFO!$T$9:$T$1000, " ") ->  | I30: 0 | M30: 0
A31: =IF(COUNTRY_INFO!A31=0," ",COUNTRY_INFO!A31) -> Mozambique | B31: =IF(COUNTRY_INFO!B31=0," ",COUNTRY_INFO!B31) -> Niassa | C31: =IF(COUNTRY_INFO!C31=0," ",COUNTRY_INFO!C31) -> Mandimba | D31: =IF(COUNTRY_INFO!$T$9:$T$1000="MDA1 (IVM+ALB)", COUNTRY_INFO!$T$9:$T$1000, " ") ->  | I31: 0 | M31: 0
A32: =IF(COUNTRY_INFO!A32=0," ",COUNTRY_INFO!A32) -> Mozambique | B32: =IF(COUNTRY_INFO!B32=0," ",COUNTRY_INFO!B32) -> Niassa | C32: =IF(COUNTRY_INFO!C32=0," ",COUNTRY_INFO!C32) -> Marrupa | D32: =IF(COUNTRY_INFO!$T$9:$T$1000="MDA1 (IVM+ALB)", COUNTRY_INFO!$T$9:$T$1000, " ") -> MDA1 (IVM+ALB) | E32: May | G32: 15834.06 | H32: 56138.94 | I32: 71973 | K32: 25093 | L32: 29823 | M32: 54916 | O32: 158.4748321 | P32: 53.12355381 | Q32: 76.30083504
A33: =IF(COUNTRY_INFO!A33=0," ",COUNTRY_INFO!A33) -> Mozambique | B33: =IF(COUNTRY_INFO!B33=0," ",COUNTRY_INFO!B33) -> Niassa | C33: =IF(COUNTRY_INFO!C33=0," ",COUNTRY_INFO!C33) -> Maúa | D33: =IF(COUNTRY_INFO!$T$9:$T$1000="MDA1 (IVM+ALB)", COUNTRY_INFO!$T$9:$T$1000, " ") -> MDA1 (IVM+ALB) | E33: May | G33: 14385.14 | H33: 51001.86 | I33: 65387 | K33: 28057 | L33: 21658 | M33: 49715 | O33: 195.0415498 | P33: 42.46511794 | Q33: 76.03193295
A34: =IF(COUNTRY_INFO!A34=0," ",COUNTRY_INFO!A34) -> Mozambique | B34: =IF(COUNTRY_INFO!B34=0," ",COUNTRY_INFO!B34) -> Niassa | C34: =IF(COUNTRY_INFO!C34=0," ",COUNTRY_INFO!C34) -> Mavago | D34: =IF(COUNTRY_INFO!$T$9:$T$1000="MDA1 (IVM+ALB)", COUNTRY_INFO!$T$9:$T$1000, " ") ->  | I34: 0 | M34: 0
A35: =IF(COUNTRY_INFO!A35=0," ",COUNTRY_INFO!A35) -> Mozambique | B35: =IF(COUNTRY_INFO!B35=0," ",COUNTRY_INFO!B35) -> Niassa | C35: =IF(COUNTRY_INFO!C35=0," ",COUNTRY_INFO!C35) -> Mecanhelas | D35: =IF(COUNTRY_INFO!$T$9:$T$1000="MDA1 (IVM+ALB)", COUNTRY_INFO!$T$9:$T$1000, " ") -> MDA1 (IVM+ALB) | E35: May | G35: 64328.22 | H35: 228072.78 | I35: 292401 | K35: 140682.5 | L35: 79407.5 | M35: 220090 | O35: 218.6948434 | P35: 34.81673701 | Q35: 75.26992042
A36: =IF(COUNTRY_INFO!A36=0," ",COUNTRY_INFO!A36) -> Mozambique | B36: =IF(COUNTRY_INFO!B36=0," ",COUNTRY_INFO!B36) -> Niassa | C36: =IF(COUNTRY_INFO!C36=0," ",COUNTRY_INFO!C36) -> Mecula | D36: =IF(COUNTRY_INFO!$T$9:$T$1000="MDA1 (IVM+ALB)", COUNTRY_INFO!$T$9:$T$1000, " ") -> MDA1 (IVM+ALB) | E36: May | G36: 4002.24 | H36: 14189.76 | I36: 18192 | K36: 9181 | L36: 6041 | M36: 15222 | O36: 229.3965379 | P36: 42.57295402 | Q36: 83.67414248
A37: =IF(COUNTRY_INFO!A37=0," ",COUNTRY_INFO!A37) -> Mozambique | B37: =IF(COUNTRY_INFO!B37=0," ",COUNTRY_INFO!B37) -> Niassa | C37: =IF(COUNTRY_INFO!C37=0," ",COUNTRY_INFO!C37) -> Metarica | D37: =IF(COUNTRY_INFO!$T$9:$T$1000="MDA1 (IVM+ALB)", COUNTRY_INFO!$T$9:$T$1000, " ") -> MDA1 (IVM+ALB) | E37: May | G37: 15460.5 | H37: 54814.5 | I37: 70275 | K37: 26345 | L37: 24742 | M37: 51087 | O37: 170.4019922 | P37: 45.13769167 | Q37: 72.69583778
A38: =IF(COUNTRY_INFO!A38=0," ",COUNTRY_INFO!A38) -> Mozambique | B38: =IF(COUNTRY_INFO!B38=0," ",COUNTRY_INFO!B38) -> Niassa | C38: =IF(COUNTRY_INFO!C38=0," ",COUNTRY_INFO!C38) -> Muembe | D38: =IF(COUNTRY_INFO!$T$9:$T$1000="MDA1 (IVM+ALB)", COUNTRY_INFO!$T$9:$T$1000, " ") ->  | I38: 0 | M38: 0
A39: =IF(COUNTRY_INFO!A39=0," ",COUNTRY_INFO!A39) -> Mozambique | B39: =IF(COUNTRY_INFO!B39=0," ",COUNTRY_INFO!B39) -> Niassa | C39: =IF(COUNTRY_INFO!C39=0," ",COUNTRY_INFO!C39) -> N'Gaúma | D39: =IF(COUNTRY_INFO!$T$9:$T$1000="MDA1 (IVM+ALB)", COUNTRY_INFO!$T$9:$T$1000, " ") ->  | I39: 0 | M39: 0
A40: =IF(COUNTRY_INFO!A40=0," ",COUNTRY_INFO!A40) -> Mozambique | B40: =IF(COUNTRY_INFO!B40=0," ",COUNTRY_INFO!B40) -> Niassa | C40: =IF(COUNTRY_INFO!C40=0," ",COUNTRY_INFO!C40) -> Nipepe | D40: =IF(COUNTRY_INFO!$T$9:$T$1000="MDA1 (IVM+ALB)", COUNTRY_INFO!$T$9:$T$1000, " ") -> MDA1 (IVM+ALB) | E40: May | G40: 8662.72 | H40: 30713.28 | I40: 39376 | K40: 17515 | L40: 18429 | M40: 35944 | O40: 202.1882273 | P40: 60.00336011 | Q40: 91.28403088
A41: =IF(COUNTRY_INFO!A41=0," ",COUNTRY_INFO!A41) -> Mozambique | B41: =IF(COUNTRY_INFO!B41=0," ",COUNTRY_INFO!B41) -> Niassa | C41: =IF(COUNTRY_INFO!C41=0," ",COUNTRY_INFO!C41) -> Sanga | D41: =IF(COUNTRY_INFO!$T$9:$T$1000="MDA1 (IVM+ALB)", COUNTRY_INFO!$T$9:$T$1000, " ") ->  | I41: 0 | M41: 0 | O41: =IF(G41<>0, IF(K41/G41*100=0, "-", K41/G41*100), " ") -> 
A42: =IF(COUNTRY_INFO!A42=0," ",COUNTRY_INFO!A42) -> Mozambique | B42: =IF(COUNTRY_INFO!B42=0," ",COUNTRY_INFO!B42) -> Nampula | C42: =IF(COUNTRY_INFO!C42=0," ",COUNTRY_INFO!C42) -> Cid. Nampula | D42: =IF(COUNTRY_INFO!$T$9:$T$1000="MDA1 (IVM+ALB)", COUNTRY_INFO!$T$9:$T$1000, " ") -> MDA1 (IVM+ALB) | E42: May | G42: 159576.7255 | H42: 565772.0269 | I42: 725348.7524 | K42: 156524 | L42: 433545 | M42: 590069 | O42: 98.08698573 | P42: 76.62892108 | Q42: 81.3496953
A43: =IF(COUNTRY_INFO!A43=0," ",COUNTRY_INFO!A43) -> Mozambique | B43: =IF(COUNTRY_INFO!B43=0," ",COUNTRY_INFO!B43) -> Nampula | C43: =IF(COUNTRY_INFO!C43=0," ",COUNTRY_INFO!C43) -> Angoche | D43: =IF(COUNTRY_INFO!$T$9:$T$1000="MDA1 (IVM+ALB)", COUNTRY_INFO!$T$9:$T$1000, " ") -> MDA1 (IVM+ALB) | E43: May | G43: 74534.18067 | H43: 264257.5496 | I43: 338791.7303 | K43: 111701 | L43: 123531 | M43: 235232 | O43: 149.8654698 | P43: 46.74644118 | Q43: 69.43262747
A44: =IF(COUNTRY_INFO!A44=0," ",COUNTRY_INFO!A44) -> Mozambique | B44: =IF(COUNTRY_INFO!B44=0," ",COUNTRY_INFO!B44) -> Nampula | C44: =IF(COUNTRY_INFO!C44=0," ",COUNTRY_INFO!C44) -> Erati | D44: =IF(COUNTRY_INFO!$T$9:$T$1000="MDA1 (IVM+ALB)", COUNTRY_INFO!$T$9:$T$1000, " ") -> MDA1 (IVM+ALB) | E44: May | G44: 71423.84953 | H44: 253230.012 | I44: 324653.8615 | K44: 137124 | L44: 114342 | M44: 251466 | O44: 191.9862915 | P44: 45.15341571 | Q44: 77.45664839
A45: =IF(COUNTRY_INFO!A45=0," ",COUNTRY_INFO!A45) -> Mozambique | B45: =IF(COUNTRY_INFO!B45=0," ",COUNTRY_INFO!B45) -> Nampula | C45: =IF(COUNTRY_INFO!C45=0," ",COUNTRY_INFO!C45) -> Ilha Moc. | D45: =IF(COUNTRY_INFO!$T$9:$T$1000="MDA1 (IVM+ALB)", COUNTRY_INFO!$T$9:$T$1000, " ") -> MDA1 (IVM+ALB) | E45: May | G45: 12512.8549 | H45: 44363.75828 | I45: 56876.61318 | K45: 19691 | L45: 19008 | M45: 38699 | O45: 157.3661659 | P45: 42.84578389 | Q45: 68.04026793
A46: =IF(COUNTRY_INFO!A46=0," ",COUNTRY_INFO!A46) -> Mozambique | B46: =IF(COUNTRY_INFO!B46=0," ",COUNTRY_INFO!B46) -> Nampula | C46: =IF(COUNTRY_INFO!C46=0," ",COUNTRY_INFO!C46) -> Lalaua | D46: =IF(COUNTRY_INFO!$T$9:$T$1000="MDA1 (IVM+ALB)", COUNTRY_INFO!$T$9:$T$1000, " ") -> MDA1 (IVM+ALB) | E46: May | G46: 19923.76651 | H46: 70638.80855 | I46: 90562.57506 | K46: 34140 | L46: 32176 | M46: 66316 | O46: 171.3531424 | P46: 45.55003215 | Q46: 73.2267164
A47: =IF(COUNTRY_INFO!A47=0," ",COUNTRY_INFO!A47) -> Mozambique | B47: =IF(COUNTRY_INFO!B47=0," ",COUNTRY_INFO!B47) -> Nampula | C47: =IF(COUNTRY_INFO!C47=0," ",COUNTRY_INFO!C47) -> Larde | D47: =IF(COUNTRY_INFO!$T$9:$T$1000="MDA1 (IVM+ALB)", COUNTRY_INFO!$T$9:$T$1000, " ") -> MDA1 (IVM+ALB) | E47: May | G47: 20081.9604 | H47: 71199.6778 | I47: 91281.6382 | K47: 33171 | L47: 32117 | M47: 65288 | O47: 165.1780968 | P47: 45.1083502 | Q47: 71.52369445
A48: =IF(COUNTRY_INFO!A48=0," ",COUNTRY_INFO!A48) -> Mozambique | B48: =IF(COUNTRY_INFO!B48=0," ",COUNTRY_INFO!B48) -> Nampula | C48: =IF(COUNTRY_INFO!C48=0," ",COUNTRY_INFO!C48) -> Liupo | D48: =IF(COUNTRY_INFO!$T$9:$T$1000="MDA1 (IVM+ALB)", COUNTRY_INFO!$T$9:$T$1000, " ") -> MDA1 (IVM+ALB) | E48: May | G48: 18600.87451 | H48: 65948.55507 | I48: 84549.42957 | K48: 26188 | L48: 33013 | M48: 59201 | O48: 140.7890795 | P48: 50.05871617 | Q48: 70.01939611
A49: =IF(COUNTRY_INFO!A49=0," ",COUNTRY_INFO!A49) -> Mozambique | B49: =IF(COUNTRY_INFO!B49=0," ",COUNTRY_INFO!B49) -> Nampula | C49: =IF(COUNTRY_INFO!C49=0," ",COUNTRY_INFO!C49) -> Malema | D49: =IF(COUNTRY_INFO!$T$9:$T$1000="MDA1 (IVM+ALB)", COUNTRY_INFO!$T$9:$T$1000, " ") -> MDA1 (IVM+ALB) | E49: May | G49: 44350.29 | H49: 157241.9373 | I49: 201592.2273 | K49: 93580 | L49: 65511 | M49: 159091 | O49: 211.0020025 | P49: 41.66254953 | Q49: 78.91722918
A50: =IF(COUNTRY_INFO!A50=0," ",COUNTRY_INFO!A50) -> Mozambique | B50: =IF(COUNTRY_INFO!B50=0," ",COUNTRY_INFO!B50) -> Nampula | C50: =IF(COUNTRY_INFO!C50=0," ",COUNTRY_INFO!C50) -> Meconta | D50: =IF(COUNTRY_INFO!$T$9:$T$1000="MDA1 (IVM+ALB)", COUNTRY_INFO!$T$9:$T$1000, " ") -> MDA1 (IVM+ALB) | E50: May | G50: 43888.9468 | H50: 155606.2659 | I50: 199495.2127 | K50: 65643 | L50: 85134 | M50: 150777 | O50: 149.5661318 | P50: 54.71116442 | Q50: 75.57925723
A51: =IF(COUNTRY_INFO!A51=0," ",COUNTRY_INFO!A51) -> Mozambique | B51: =IF(COUNTRY_INFO!B51=0," ",COUNTRY_INFO!B51) -> Nampula | C51: =IF(COUNTRY_INFO!C51=0," ",COUNTRY_INFO!C51) -> Mecuburi | D51: =IF(COUNTRY_INFO!$T$9:$T$1000="MDA1 (IVM+ALB)", COUNTRY_INFO!$T$9:$T$1000, " ") -> MDA1 (IVM+ALB) | E51: May | G51: 42021.63317 | H51: 148985.7903 | I51: 191007.4235 | K51: 67276 | L51: 60900 | M51: 128176 | O51: 160.0984896 | P51: 40.87638148 | Q51: 67.10524526
A52: =IF(COUNTRY_INFO!A52=0," ",COUNTRY_INFO!A52) -> Mozambique | B52: =IF(COUNTRY_INFO!B52=0," ",COUNTRY_INFO!B52) -> Nampula | C52: =IF(COUNTRY_INFO!C52=0," ",COUNTRY_INFO!C52) -> Memba | D52: =IF(COUNTRY_INFO!$T$9:$T$1000="MDA1 (IVM+ALB)", COUNTRY_INFO!$T$9:$T$1000, " ") -> MDA1 (IVM+ALB) | E52: May | G52: 59443.42394 | H52: 210753.9576 | I52: 270197.3815 | K52: 110575 | L52: 98493 | M52: 209068 | O52: 186.0172121 | P52: 46.73364198 | Q52: 77.37602741
A53: =IF(COUNTRY_INFO!A53=0," ",COUNTRY_INFO!A53) -> Mozambique | B53: =IF(COUNTRY_INFO!B53=0," ",COUNTRY_INFO!B53) -> Nampula | C53: =IF(COUNTRY_INFO!C53=0," ",COUNTRY_INFO!C53) -> Mogincual | D53: =IF(COUNTRY_INFO!$T$9:$T$1000="MDA1 (IVM+ALB)", COUNTRY_INFO!$T$9:$T$1000, " ") -> MDA1 (IVM+ALB) | E53: May | G53: 19296.05724 | H53: 68413.29386 | I53: 87709.3511 | K53: 31826 | L53: 33894 | M53: 65720 | O53: 164.9352487 | P53: 49.54300267 | Q53: 74.92929679
A54: =IF(COUNTRY_INFO!A54=0," ",COUNTRY_INFO!A54) -> Mozambique | B54: =IF(COUNTRY_INFO!B54=0," ",COUNTRY_INFO!B54) -> Nampula | C54: =IF(COUNTRY_INFO!C54=0," ",COUNTRY_INFO!C54) -> Mogovolas | D54: =IF(COUNTRY_INFO!$T$9:$T$1000="MDA1 (IVM+ALB)", COUNTRY_INFO!$T$9:$T$1000, " ") -> MDA1 (IVM+ALB) | E54: May | G54: 106090.1764 | H54: 376137.898 | I54: 482228.0744 | K54: 191143 | L54: 179653 | M54: 370796 | O54: 180.1703103 | P54: 47.76253628 | Q54: 76.89224657
A55: =IF(COUNTRY_INFO!A55=0," ",COUNTRY_INFO!A55) -> Mozambique | B55: =IF(COUNTRY_INFO!B55=0," ",COUNTRY_INFO!B55) -> Nampula | C55: =IF(COUNTRY_INFO!C55=0," ",COUNTRY_INFO!C55) -> Moma | D55: =IF(COUNTRY_INFO!$T$9:$T$1000="MDA1 (IVM+ALB)", COUNTRY_INFO!$T$9:$T$1000, " ") -> MDA1 (IVM+ALB) | E55: May | G55: 70511.71926 | H55: 249996.0956 | I55: 320507.8148 | K55: 111364 | L55: 137041 | M55: 248405 | O55: 157.9368666 | P55: 54.81725612 | Q55: 77.50357044
A56: =IF(COUNTRY_INFO!A56=0," ",COUNTRY_INFO!A56) -> Mozambique | B56: =IF(COUNTRY_INFO!B56=0," ",COUNTRY_INFO!B56) -> Nampula | C56: =IF(COUNTRY_INFO!C56=0," ",COUNTRY_INFO!C56) -> Monapo | D56: =IF(COUNTRY_INFO!$T$9:$T$1000="MDA1 (IVM+ALB)", COUNTRY_INFO!$T$9:$T$1000, " ") -> MDA1 (IVM+ALB) | E56: May | G56: 86287.74696 | H56: 305929.2847 | I56: 392217.0316 | K56: 135316 | L56: 168380 | M56: 303696 | O56: 156.8194845 | P56: 55.03886304 | Q56: 77.43059977
A57: =IF(COUNTRY_INFO!A57=0," ",COUNTRY_INFO!A57) -> Mozambique | B57: =IF(COUNTRY_INFO!B57=0," ",COUNTRY_INFO!B57) -> Nampula | C57: =IF(COUNTRY_INFO!C57=0," ",COUNTRY_INFO!C57) -> Mossuril | D57: =IF(COUNTRY_INFO!$T$9:$T$1000="MDA1 (IVM+ALB)", COUNTRY_INFO!$T$9:$T$1000, " ") -> MDA1 (IVM+ALB) | E57: May | G57: 31418.79426 | H57: 111393.9069 | I57: 142812.7012 | K57: 47617 | L57: 56968 | M57: 104585 | O57: 151.5557841 | P57: 51.14103775 | Q57: 73.23228195
A58: =IF(COUNTRY_INFO!A58=0," ",COUNTRY_INFO!A58) -> Mozambique | B58: =IF(COUNTRY_INFO!B58=0," ",COUNTRY_INFO!B58) -> Nampula | C58: =IF(COUNTRY_INFO!C58=0," ",COUNTRY_INFO!C58) -> Muecate | D58: =IF(COUNTRY_INFO!$T$9:$T$1000="MDA1 (IVM+ALB)", COUNTRY_INFO!$T$9:$T$1000, " ") -> MDA1 (IVM+ALB) | E58: May | G58: 26086.99705 | H58: 92490.26228 | I58: 118577.2593 | K58: 48513 | L58: 43509 | M58: 92022 | O58: 185.9662111 | P58: 47.04170896 | Q58: 77.60509942
A59: =IF(COUNTRY_INFO!A59=0," ",COUNTRY_INFO!A59) -> Mozambique | B59: =IF(COUNTRY_INFO!B59=0," ",COUNTRY_INFO!B59) -> Nampula | C59: =IF(COUNTRY_INFO!C59=0," ",COUNTRY_INFO!C59) -> Murrupula | D59: =IF(COUNTRY_INFO!$T$9:$T$1000="MDA1 (IVM+ALB)", COUNTRY_INFO!$T$9:$T$1000, " ") -> MDA1 (IVM+ALB) | E59: May | G59: 39908.94422 | H59: 141495.3477 | I59: 181404.2919 | K59: 81209 | L59: 51524 | M59: 132733 | O59: 203.4857138 | P59: 36.41391809 | Q59: 73.16971314
A60: =IF(COUNTRY_INFO!A60=0," ",COUNTRY_INFO!A60) -> Mozambique | B60: =IF(COUNTRY_INFO!B60=0," ",COUNTRY_INFO!B60) -> Nampula | C60: =IF(COUNTRY_INFO!C60=0," ",COUNTRY_INFO!C60) -> Nacala Porto | D60: =IF(COUNTRY_INFO!$T$9:$T$1000="MDA1 (IVM+ALB)", COUNTRY_INFO!$T$9:$T$1000, " ") -> MDA1 (IVM+ALB) | E60: May | G60: 54477.05764 | H60: 193145.9316 | I60: 247622.9893 | K60: 63312 | L60: 118546 | M60: 181858 | O60: 116.2177305 | P60: 61.37638987 | Q60: 73.44148479
A61: =IF(COUNTRY_INFO!A61=0," ",COUNTRY_INFO!A61) -> Mozambique | B61: =IF(COUNTRY_INFO!B61=0," ",COUNTRY_INFO!B61) -> Nampula | C61: =IF(COUNTRY_INFO!C61=0," ",COUNTRY_INFO!C61) -> Nacala Velha | D61: =IF(COUNTRY_INFO!$T$9:$T$1000="MDA1 (IVM+ALB)", COUNTRY_INFO!$T$9:$T$1000, " ") -> MDA1 (IVM+ALB) | E61: May | G61: 28402.7436 | H61: 100700.6364 | I61: 129103.38 | K61: 56093 | L61: 43433 | M61: 99526 | O61: 197.4914846 | P61: 43.13080985 | Q61: 77.09015829
A62: =IF(COUNTRY_INFO!A62=0," ",COUNTRY_INFO!A62) -> Mozambique | B62: =IF(COUNTRY_INFO!B62=0," ",COUNTRY_INFO!B62) -> Nampula | C62: =IF(COUNTRY_INFO!C62=0," ",COUNTRY_INFO!C62) -> Nacaroa | D62: =IF(COUNTRY_INFO!$T$9:$T$1000="MDA1 (IVM+ALB)", COUNTRY_INFO!$T$9:$T$1000, " ") -> MDA1 (IVM+ALB) | E62: May | G62: 28437.85266 | H62: 100825.114 | I62: 129262.9666 | K62: 47360 | L62: 86115 | M62: 133475 | O62: 166.5385941 | P62: 85.41026796 | Q62: 103.2584997
A63: =IF(COUNTRY_INFO!A63=0," ",COUNTRY_INFO!A63) -> Mozambique | B63: =IF(COUNTRY_INFO!B63=0," ",COUNTRY_INFO!B63) -> Nampula | C63: =IF(COUNTRY_INFO!C63=0," ",COUNTRY_INFO!C63) -> Nampula Dist. | D63: =IF(COUNTRY_INFO!$T$9:$T$1000="MDA1 (IVM+ALB)", COUNTRY_INFO!$T$9:$T$1000, " ") -> MDA1 (IVM+ALB) | E63: May | G63: 37378.46856 | H63: 132523.6613 | I63: 169902.1298 | K63: 55388 | L63: 88873 | M63: 144261 | O63: 148.1815658 | P63: 67.06198663 | Q63: 84.90829405
A64: =IF(COUNTRY_INFO!A64=0," ",COUNTRY_INFO!A64) -> Mozambique | B64: =IF(COUNTRY_INFO!B64=0," ",COUNTRY_INFO!B64) -> Nampula | C64: =IF(COUNTRY_INFO!C64=0," ",COUNTRY_INFO!C64) -> Ribaué | D64: =IF(COUNTRY_INFO!$T$9:$T$1000="MDA1 (IVM+ALB)", COUNTRY_INFO!$T$9:$T$1000, " ") -> MDA1 (IVM+ALB) | E64: May | G64: 60629.39621 | H64: 214958.7684 | I64: 275588.1646 | K64: 79571 | L64: 103855 | M64: 183426 | O64: 131.2416171 | P64: 48.31391656 | Q64: 66.55801067
A65: =IF(COUNTRY_INFO!A65=0," ",COUNTRY_INFO!A65) -> Mozambique | B65: =IF(COUNTRY_INFO!B65=0," ",COUNTRY_INFO!B65) -> Zambezia | C65: =IF(COUNTRY_INFO!C65=0," ",COUNTRY_INFO!C65) -> Quelimane | D65: =IF(COUNTRY_INFO!$T$9:$T$1000="MDA1 (IVM+ALB)", COUNTRY_INFO!$T$9:$T$1000, " ") -> MDA1 (IVM+ALB) | E65: May | G65: 86246.9254 | H65: 305784.5537 | I65: 392031.4791 | K65: 137484 | L65: 176824 | M65: 314308 | O65: 159.4074216 | P65: 57.82633487 | Q65: 80.17417395
A66: =IF(COUNTRY_INFO!A66=0," ",COUNTRY_INFO!A66) -> Mozambique | B66: =IF(COUNTRY_INFO!B66=0," ",COUNTRY_INFO!B66) -> Zambezia | C66: =IF(COUNTRY_INFO!C66=0," ",COUNTRY_INFO!C66) -> Alto Molocué | D66: =IF(COUNTRY_INFO!$T$9:$T$1000="MDA1 (IVM+ALB)", COUNTRY_INFO!$T$9:$T$1000, " ") -> MDA1 (IVM+ALB) | E66: May | G66: 88430.58411 | H66: 313526.6164 | I66: 401957.2005 | K66: 181222 | L66: 158177 | M66: 339399 | O66: 204.9313615 | P66: 50.45090009 | Q66: 84.4366016
A67: =IF(COUNTRY_INFO!A67=0," ",COUNTRY_INFO!A67) -> Mozambique | B67: =IF(COUNTRY_INFO!B67=0," ",COUNTRY_INFO!B67) -> Zambezia | C67: =IF(COUNTRY_INFO!C67=0," ",COUNTRY_INFO!C67) -> Chinde | D67: =IF(COUNTRY_INFO!$T$9:$T$1000="MDA1 (IVM+ALB)", COUNTRY_INFO!$T$9:$T$1000, " ") -> MDA1 (IVM+ALB) | E67: May | G67: 21325.29092 | H67: 75607.84961 | I67: 96933.14053 | K67: 31477 | L67: 46568 | M67: 78045 | O67: 147.6040825 | P67: 61.5914885 | Q67: 80.51425919
A68: =IF(COUNTRY_INFO!A68=0," ",COUNTRY_INFO!A68) -> Mozambique | B68: =IF(COUNTRY_INFO!B68=0," ",COUNTRY_INFO!B68) -> Zambezia | C68: =IF(COUNTRY_INFO!C68=0," ",COUNTRY_INFO!C68) -> Derre | D68: =IF(COUNTRY_INFO!$T$9:$T$1000="MDA1 (IVM+ALB)", COUNTRY_INFO!$T$9:$T$1000, " ") -> MDA1 (IVM+ALB) | E68: May | G68: 20666.0543 | H68: 73270.55614 | I68: 93936.61044 | K68: 38661 | L68: 34704 | M68: 73365 | O68: 187.074898 | P68: 47.36418259 | Q68: 78.10053999
A69: =IF(COUNTRY_INFO!A69=0," ",COUNTRY_INFO!A69) -> Mozambique | B69: =IF(COUNTRY_INFO!B69=0," ",COUNTRY_INFO!B69) -> Zambezia | C69: =IF(COUNTRY_INFO!C69=0," ",COUNTRY_INFO!C69) -> Gilé | D69: =IF(COUNTRY_INFO!$T$9:$T$1000="MDA1 (IVM+ALB)", COUNTRY_INFO!$T$9:$T$1000, " ") -> MDA1 (IVM+ALB) | E69: May | G69: 44303.8912 | H69: 157077.4324 | I69: 201381.3236 | K69: 95192 | L69: 66129 | M69: 161321 | O69: 214.8614883 | P69: 42.09961862 | Q69: 80.10722995
A70: =IF(COUNTRY_INFO!A70=0," ",COUNTRY_INFO!A70) -> Mozambique | B70: =IF(COUNTRY_INFO!B70=0," ",COUNTRY_INFO!B70) -> Zambezia | C70: =IF(COUNTRY_INFO!C70=0," ",COUNTRY_INFO!C70) -> Gurué | D70: =IF(COUNTRY_INFO!$T$9:$T$1000="MDA1 (IVM+ALB)", COUNTRY_INFO!$T$9:$T$1000, " ") -> MDA1 (IVM+ALB) | E70: May | G70: 77849.15266 | H70: 276010.6322 | I70: 353859.7848 | K70: 155174 | L70: 131228 | M70: 286402 | O70: 199.3265112 | P70: 47.54454528 | Q70: 80.93657779
A71: =IF(COUNTRY_INFO!A71=0," ",COUNTRY_INFO!A71) -> Mozambique | B71: =IF(COUNTRY_INFO!B71=0," ",COUNTRY_INFO!B71) -> Zambezia | C71: =IF(COUNTRY_INFO!C71=0," ",COUNTRY_INFO!C71) -> Ile | D71: =IF(COUNTRY_INFO!$T$9:$T$1000="MDA1 (IVM+ALB)", COUNTRY_INFO!$T$9:$T$1000, " ") -> MDA1 (IVM+ALB) | E71: May | G71: 61209.8047 | H71: 217016.5803 | I71: 278226.385 | K71: 117710 | L71: 106415 | M71: 224125 | O71: 192.3057925 | P71: 49.03542386 | Q71: 80.55490496
A72: =IF(COUNTRY_INFO!A72=0," ",COUNTRY_INFO!A72) -> Mozambique | B72: =IF(COUNTRY_INFO!B72=0," ",COUNTRY_INFO!B72) -> Zambezia | C72: =IF(COUNTRY_INFO!C72=0," ",COUNTRY_INFO!C72) -> Inhassunge | D72: =IF(COUNTRY_INFO!$T$9:$T$1000="MDA1 (IVM+ALB)", COUNTRY_INFO!$T$9:$T$1000, " ") -> MDA1 (IVM+ALB) | E72: May | G72: 22422.84 | H72: 79499.16 | I72: 101922 | K72: 40497 | L72: 43008 | M72: 83505 | O72: 180.6060249 | P72: 54.09868482 | Q72: 81.93029964
A73: =IF(COUNTRY_INFO!A73=0," ",COUNTRY_INFO!A73) -> Mozambique | B73: =IF(COUNTRY_INFO!B73=0," ",COUNTRY_INFO!B73) -> Zambezia | C73: =IF(COUNTRY_INFO!C73=0," ",COUNTRY_INFO!C73) -> Luabo | D73: =IF(COUNTRY_INFO!$T$9:$T$1000="MDA1 (IVM+ALB)", COUNTRY_INFO!$T$9:$T$1000, " ") -> MDA1 (IVM+ALB) | E73: May | G73: 12616.22619 | H73: 44730.25649 | I73: 57346.48268 | K73: 21320 | L73: 18905 | M73: 40225 | O73: =IF(G73<>0, IF(K73/G73*100=0, "-", K73/G73*100), " ") -> 168.9887267 | P73: 42.26445695 | Q73: 70.1437963
A74: =IF(COUNTRY_INFO!A74=0," ",COUNTRY_INFO!A74) -> Mozambique | B74: =IF(COUNTRY_INFO!B74=0," ",COUNTRY_INFO!B74) -> Zambezia | C74: =IF(COUNTRY_INFO!C74=0," ",COUNTRY_INFO!C74) -> Lugela | D74: =IF(COUNTRY_INFO!$T$9:$T$1000="MDA1 (IVM+ALB)", COUNTRY_INFO!$T$9:$T$1000, " ") -> MDA1 (IVM+ALB) | E74: May | G74: 34114.08501 | H74: 120949.9378 | I74: =SUM(F74:H74) -> 155064.0228 | K74: 49037 | L74: 68972 | M74: =SUM(J74:L74) -> 118009 | O74: 143.7441455 | P74: =IF(H74<>0, IF(L74/H74*100=0, "-", L74/H74*100), " ") -> 57.02524638 | Q74: =IF(I74<>0, IF(M74/I74*100=0, "-", M74/I74*100), " ") -> 76.10340419
A75: =IF(COUNTRY_INFO!A75=0," ",COUNTRY_INFO!A75) -> Mozambique | B75: =IF(COUNTRY_INFO!B75=0," ",COUNTRY_INFO!B75) -> Zambezia | C75: =IF(COUNTRY_INFO!C75=0," ",COUNTRY_INFO!C75) -> Maganja da Costa | D75: =IF(COUNTRY_INFO!$T$9:$T$1000="MDA1 (IVM+ALB)", COUNTRY_INFO!$T$9:$T$1000, " ") -> MDA1 (IVM+ALB) | E75: May | G75: 48807.04316 | H75: 173043.153 | I75: 221850.1962 | K75: 89789 | L75: 88412 | M75: 178201 | O75: 183.967301 | P75: 51.09245784 | Q75: 80.32492333
A76: =IF(COUNTRY_INFO!A76=0," ",COUNTRY_INFO!A76) -> Mozambique | B76: =IF(COUNTRY_INFO!B76=0," ",COUNTRY_INFO!B76) -> Zambezia | C76: =IF(COUNTRY_INFO!C76=0," ",COUNTRY_INFO!C76) -> Milange | D76: =IF(COUNTRY_INFO!$T$9:$T$1000="MDA1 (IVM+ALB)", COUNTRY_INFO!$T$9:$T$1000, " ") -> MDA1 (IVM+ALB) | E76: May | G76: 117224.613 | H76: 415614.5369 | I76: 532839.1499 | K76: 193723 | L76: 224540 | M76: 418263 | O76: 165.2579566 | P76: 54.02602173 | Q76: 78.49704739
A77: =IF(COUNTRY_INFO!A77=0," ",COUNTRY_INFO!A77) -> Mozambique | B77: =IF(COUNTRY_INFO!B77=0," ",COUNTRY_INFO!B77) -> Zambezia | C77: =IF(COUNTRY_INFO!C77=0," ",COUNTRY_INFO!C77) -> Mocuba | D77: =IF(COUNTRY_INFO!$T$9:$T$1000="MDA1 (IVM+ALB)", COUNTRY_INFO!$T$9:$T$1000, " ") -> MDA1 (IVM+ALB) | E77: May | G77: 87867.90569 | H77: 311531.6656 | I77: 399399.5713 | K77: 158438 | L77: 153655 | M77: 312093 | O77: 180.3138458 | P77: 49.32243395 | Q77: 78.14054456
A78: =IF(COUNTRY_INFO!A78=0," ",COUNTRY_INFO!A78) -> Mozambique | B78: =IF(COUNTRY_INFO!B78=0," ",COUNTRY_INFO!B78) -> Zambezia | C78: =IF(COUNTRY_INFO!C78=0," ",COUNTRY_INFO!C78) -> Mocubela | D78: =IF(COUNTRY_INFO!$T$9:$T$1000="MDA1 (IVM+ALB)", COUNTRY_INFO!$T$9:$T$1000, " ") -> MDA1 (IVM+ALB) | E78: May | G78: 29938.44943 | H78: 106145.4116 | I78: 136083.861 | K78: 51859 | L78: 56572 | M78: 108431 | O78: 173.2187237 | P78: 53.2966985 | Q78: 79.67954405
A79: =IF(COUNTRY_INFO!A79=0," ",COUNTRY_INFO!A79) -> Mozambique | B79: =IF(COUNTRY_INFO!B79=0," ",COUNTRY_INFO!B79) -> Zambezia | C79: =IF(COUNTRY_INFO!C79=0," ",COUNTRY_INFO!C79) -> Molubo | D79: =IF(COUNTRY_INFO!$T$9:$T$1000="MDA1 (IVM+ALB)", COUNTRY_INFO!$T$9:$T$1000, " ") -> MDA1 (IVM+ALB) | E79: May | G79: 31480.96918 | H79: 111614.3453 | I79: 143095.3145 | K79: 59796 | L79: 55667 | M79: 115463 | O79: 189.9433263 | P79: 49.87441342 | Q79: 80.68957425
A80: =IF(COUNTRY_INFO!A80=0," ",COUNTRY_INFO!A80) -> Mozambique | B80: =IF(COUNTRY_INFO!B80=0," ",COUNTRY_INFO!B80) -> Zambezia | C80: =IF(COUNTRY_INFO!C80=0," ",COUNTRY_INFO!C80) -> Mopeia | D80: =IF(COUNTRY_INFO!$T$9:$T$1000="MDA1 (IVM+ALB)", COUNTRY_INFO!$T$9:$T$1000, " ") -> MDA1 (IVM+ALB) | E80: May | G80: 36364.17722 | H80: 128927.5374 | I80: 165291.7146 | K80: 68487 | L80: 63938 | M80: 132425 | O80: 188.3364488 | P80: 49.59219829 | Q80: 80.11593339
A81: =IF(COUNTRY_INFO!A81=0," ",COUNTRY_INFO!A81) -> Mozambique | B81: =IF(COUNTRY_INFO!B81=0," ",COUNTRY_INFO!B81) -> Zambezia | C81: =IF(COUNTRY_INFO!C81=0," ",COUNTRY_INFO!C81) -> Morrumbala | D81: =IF(COUNTRY_INFO!$T$9:$T$1000="MDA1 (IVM+ALB)", COUNTRY_INFO!$T$9:$T$1000, " ") -> MDA1 (IVM+ALB) | E81: May | G81: 81413.34892 | H81: 288647.328 | I81: 370060.6769 | K81: 141255 | L81: 143855 | M81: 285110 | O81: 173.5034879 | P81: 49.83763439 | Q81: 77.04412217
A82: =IF(COUNTRY_INFO!A82=0," ",COUNTRY_INFO!A82) -> Mozambique | B82: =IF(COUNTRY_INFO!B82=0," ",COUNTRY_INFO!B82) -> Zambezia | C82: =IF(COUNTRY_INFO!C82=0," ",COUNTRY_INFO!C82) -> Mulevala | D82: =IF(COUNTRY_INFO!$T$9:$T$1000="MDA1 (IVM+ALB)", COUNTRY_INFO!$T$9:$T$1000, " ") -> MDA1 (IVM+ALB) | E82: May | G82: 21235.35745 | H82: 75288.99458 | I82: 96524.35203 | K82: 37478 | L82: 36876 | M82: 74354 | O82: 176.4886703 | P82: 48.97927008 | Q82: 77.03133814
A83: =IF(COUNTRY_INFO!A83=0," ",COUNTRY_INFO!A83) -> Mozambique | B83: =IF(COUNTRY_INFO!B83=0," ",COUNTRY_INFO!B83) -> Zambezia | C83: =IF(COUNTRY_INFO!C83=0," ",COUNTRY_INFO!C83) -> Namacurra | D83: =IF(COUNTRY_INFO!$T$9:$T$1000="MDA1 (IVM+ALB)", COUNTRY_INFO!$T$9:$T$1000, " ") -> MDA1 (IVM+ALB) | E83: May | G83: 67519.08145 | H83: 239385.8342 | I83: 306904.9157 | K83: 138426 | L83: 108163 | M83: 246589 | O83: 205.0175995 | P83: 45.18354244 | Q83: 80.34703499
A84: =IF(COUNTRY_INFO!A84=0," ",COUNTRY_INFO!A84) -> Mozambique | B84: =IF(COUNTRY_INFO!B84=0," ",COUNTRY_INFO!B84) -> Zambezia | C84: =IF(COUNTRY_INFO!C84=0," ",COUNTRY_INFO!C84) -> Namarrói | D84: =IF(COUNTRY_INFO!$T$9:$T$1000="MDA1 (IVM+ALB)", COUNTRY_INFO!$T$9:$T$1000, " ") -> MDA1 (IVM+ALB) | E84: May | G84: 33218.21363 | H84: 117773.6665 | I84: 150991.8802 | K84: 74526 | L84: 46194 | M84: 120720 | O84: 224.3528229 | P84: 39.2226899 | Q84: 79.95131916
A85: =IF(COUNTRY_INFO!A85=0," ",COUNTRY_INFO!A85) -> Mozambique | B85: =IF(COUNTRY_INFO!B85=0," ",COUNTRY_INFO!B85) -> Zambezia | C85: =IF(COUNTRY_INFO!C85=0," ",COUNTRY_INFO!C85) -> Nicoadala | D85: =IF(COUNTRY_INFO!$T$9:$T$1000="MDA1 (IVM+ALB)", COUNTRY_INFO!$T$9:$T$1000, " ") -> MDA1 (IVM+ALB) | E85: May | G85: 34685.83135 | H85: 122977.0384 | I85: 157662.8698 | K85: 71594 | L85: 54894 | M85: 126488 | O85: 206.4070464 | P85: 44.63760122 | Q85: 80.22687915
A86: =IF(COUNTRY_INFO!A86=0," ",COUNTRY_INFO!A86) -> Mozambique | B86: =IF(COUNTRY_INFO!B86=0," ",COUNTRY_INFO!B86) -> Zambezia | C86: =IF(COUNTRY_INFO!C86=0," ",COUNTRY_INFO!C86) -> Pebane | D86: =IF(COUNTRY_INFO!$T$9:$T$1000="MDA1 (IVM+ALB)", COUNTRY_INFO!$T$9:$T$1000, " ") -> MDA1 (IVM+ALB) | E86: May | G86: 50546.60732 | H86: 179210.6987 | I86: 229757.306 | K86: 106158 | L86: 87799 | M86: 193957 | O86: 210.0200303 | P86: 48.99205273 | Q86: 84.41820779
A87: =IF(COUNTRY_INFO!A87=0," ",COUNTRY_INFO!A87) -> Mozambique | B87: =IF(COUNTRY_INFO!B87=0," ",COUNTRY_INFO!B87) -> Tete | C87: =IF(COUNTRY_INFO!C87=0," ",COUNTRY_INFO!C87) -> Cid Tete | D87: =IF(COUNTRY_INFO!$T$9:$T$1000="MDA1 (IVM+ALB)", COUNTRY_INFO!$T$9:$T$1000, " ") -> MDA1 (IVM+ALB) | E87: June | G87: 63127.15426 | H87: 175854.2154 | I87: 238981.3697 | K87: 83146 | L87: 75915 | M87: 159061 | O87: 131.7119407 | P87: 43.16928076 | Q87: 66.55790792
A88: =IF(COUNTRY_INFO!A88=0," ",COUNTRY_INFO!A88) -> Mozambique | B88: =IF(COUNTRY_INFO!B88=0," ",COUNTRY_INFO!B88) -> Tete | C88: =IF(COUNTRY_INFO!C88=0," ",COUNTRY_INFO!C88) -> Angónia | D88: =IF(COUNTRY_INFO!$T$9:$T$1000="MDA1 (IVM+ALB)", COUNTRY_INFO!$T$9:$T$1000, " ") -> MDA1 (IVM+ALB) | E88: June | G88: 110369.1347 | H88: 307456.8753 | I88: 417826.01 | K88: 208313 | L88: 150454 | M88: 358767 | O88: 188.7420795 | P88: 48.93499287 | Q88: 85.8651667
A89: =IF(COUNTRY_INFO!A89=0," ",COUNTRY_INFO!A89) -> Mozambique | B89: =IF(COUNTRY_INFO!B89=0," ",COUNTRY_INFO!B89) -> Tete | C89: =IF(COUNTRY_INFO!C89=0," ",COUNTRY_INFO!C89) -> Cahora Bassa | D89: =IF(COUNTRY_INFO!$T$9:$T$1000="MDA1 (IVM+ALB)", COUNTRY_INFO!$T$9:$T$1000, " ") -> MDA1 (IVM+ALB) | E89: June | G89: 37429.08128 | H89: 104266.7264 | I89: 141695.8077 | K89: 59869 | L89: 62756 | M89: 122625 | O89: 159.9531646 | P89: 60.18794504 | Q89: 86.54102192
A90: =IF(COUNTRY_INFO!A90=0," ",COUNTRY_INFO!A90) -> Mozambique | B90: =IF(COUNTRY_INFO!B90=0," ",COUNTRY_INFO!B90) -> Tete | C90: =IF(COUNTRY_INFO!C90=0," ",COUNTRY_INFO!C90) -> Changara | D90: =IF(COUNTRY_INFO!$T$9:$T$1000="MDA1 (IVM+ALB)", COUNTRY_INFO!$T$9:$T$1000, " ") -> MDA1 (IVM+ALB) | E90: June | G90: 38819.76105 | H90: 108140.7629 | I90: 146960.524 | K90: 64475 | L90: 57016 | M90: 121491 | O90: 166.0880908 | P90: 52.72387438 | Q90: 82.6691391
A91: =IF(COUNTRY_INFO!A91=0," ",COUNTRY_INFO!A91) -> Mozambique | B91: =IF(COUNTRY_INFO!B91=0," ",COUNTRY_INFO!B91) -> Tete | C91: =IF(COUNTRY_INFO!C91=0," ",COUNTRY_INFO!C91) -> Chifunde | D91: =IF(COUNTRY_INFO!$T$9:$T$1000="MDA1 (IVM+ALB)", COUNTRY_INFO!$T$9:$T$1000, " ") -> MDA1 (IVM+ALB) | E91: June | G91: 50364.80924 | H91: 140301.9686 | I91: 190666.7778 | K91: 78423 | L91: 74787 | M91: 153210 | O91: 155.7099117 | P91: 53.30431265 | Q91: 80.35484825
A92: =IF(COUNTRY_INFO!A92=0," ",COUNTRY_INFO!A92) -> Mozambique | B92: =IF(COUNTRY_INFO!B92=0," ",COUNTRY_INFO!B92) -> Tete | C92: =IF(COUNTRY_INFO!C92=0," ",COUNTRY_INFO!C92) -> Chiúta | D92: =IF(COUNTRY_INFO!$T$9:$T$1000="MDA1 (IVM+ALB)", COUNTRY_INFO!$T$9:$T$1000, " ") -> MDA1 (IVM+ALB) | E92: June | G92: 28379.19615 | H92: 79056.33214 | I92: 107435.5283 | K92: 45880 | L92: 48373 | M92: 94253 | O92: 161.6677222 | P92: 61.18801453 | Q92: 87.72982411
A93: =IF(COUNTRY_INFO!A93=0," ",COUNTRY_INFO!A93) -> Mozambique | B93: =IF(COUNTRY_INFO!B93=0," ",COUNTRY_INFO!B93) -> Tete | C93: =IF(COUNTRY_INFO!C93=0," ",COUNTRY_INFO!C93) -> Doa | D93: =IF(COUNTRY_INFO!$T$9:$T$1000="MDA1 (IVM+ALB)", COUNTRY_INFO!$T$9:$T$1000, " ") -> MDA1 (IVM+ALB) | E93: June | G93: 28369.4122 | H93: 79029.07685 | I93: 107398.4891 | K93: 42340 | L93: 38222 | M93: 80562 | O93: 149.2452494 | P93: 48.36447738 | Q93: 75.01222849
A94: =IF(COUNTRY_INFO!A94=0," ",COUNTRY_INFO!A94) -> Mozambique | B94: =IF(COUNTRY_INFO!B94=0," ",COUNTRY_INFO!B94) -> Tete | C94: =IF(COUNTRY_INFO!C94=0," ",COUNTRY_INFO!C94) -> Macanga | D94: =IF(COUNTRY_INFO!$T$9:$T$1000="MDA1 (IVM+ALB)", COUNTRY_INFO!$T$9:$T$1000, " ") -> MDA1 (IVM+ALB) | E94: June | G94: 63693.23584 | H94: 177431.157 | I94: 241124.3928 | K94: 121571 | L94: 74472 | M94: 196043 | O94: 190.8695616 | P94: 41.97233523 | Q94: 81.30367804
A95: =IF(COUNTRY_INFO!A95=0," ",COUNTRY_INFO!A95) -> Mozambique | B95: =IF(COUNTRY_INFO!B95=0," ",COUNTRY_INFO!B95) -> Tete | C95: =IF(COUNTRY_INFO!C95=0," ",COUNTRY_INFO!C95) -> Magoe | D95: =IF(COUNTRY_INFO!$T$9:$T$1000="MDA1 (IVM+ALB)", COUNTRY_INFO!$T$9:$T$1000, " ") -> MDA1 (IVM+ALB) | E95: June | G95: 29520.88204 | H95: 82236.74283 | I95: 111757.6249 | K95: 38924 | L95: 37903 | M95: 76827 | O95: 131.8524289 | P95: 46.09010364 | Q95: 68.74430276
A96: =IF(COUNTRY_INFO!A96=0," ",COUNTRY_INFO!A96) -> Mozambique | B96: =IF(COUNTRY_INFO!B96=0," ",COUNTRY_INFO!B96) -> Tete | C96: =IF(COUNTRY_INFO!C96=0," ",COUNTRY_INFO!C96) -> Marávia | D96: =IF(COUNTRY_INFO!$T$9:$T$1000="MDA1 (IVM+ALB)", COUNTRY_INFO!$T$9:$T$1000, " ") ->  | I96: 0 | M96: 0
A97: =IF(COUNTRY_INFO!A97=0," ",COUNTRY_INFO!A97) -> Mozambique | B97: =IF(COUNTRY_INFO!B97=0," ",COUNTRY_INFO!B97) -> Tete | C97: =IF(COUNTRY_INFO!C97=0," ",COUNTRY_INFO!C97) -> Marara | D97: =IF(COUNTRY_INFO!$T$9:$T$1000="MDA1 (IVM+ALB)", COUNTRY_INFO!$T$9:$T$1000, " ") -> MDA1 (IVM+ALB) | E97: June | G97: 26858.64799 | H97: 74820.5194 | I97: 101679.1674 | K97: 36362 | L97: 31861 | M97: 68223 | O97: 135.3828384 | P97: 42.5832382 | Q97: 67.09634014
A98: =IF(COUNTRY_INFO!A98=0," ",COUNTRY_INFO!A98) -> Mozambique | B98: =IF(COUNTRY_INFO!B98=0," ",COUNTRY_INFO!B98) -> Tete | C98: =IF(COUNTRY_INFO!C98=0," ",COUNTRY_INFO!C98) -> Moatize | D98: =IF(COUNTRY_INFO!$T$9:$T$1000="MDA1 (IVM+ALB)", COUNTRY_INFO!$T$9:$T$1000, " ") -> MDA1 (IVM+ALB) | E98: June | G98: 83280.11159 | H98: 295265.8502 | I98: 378545.9618 | K98: 150568 | L98: 131517 | M98: 282085 | O98: 180.797068 | P98: 44.54189332 | Q98: 74.51803175
A99: =IF(COUNTRY_INFO!A99=0," ",COUNTRY_INFO!A99) -> Mozambique | B99: =IF(COUNTRY_INFO!B99=0," ",COUNTRY_INFO!B99) -> Tete | C99: =IF(COUNTRY_INFO!C99=0," ",COUNTRY_INFO!C99) -> Mutarara | D99: =IF(COUNTRY_INFO!$T$9:$T$1000="MDA1 (IVM+ALB)", COUNTRY_INFO!$T$9:$T$1000, " ") -> MDA1 (IVM+ALB) | E99: June | G99: 58481.80491 | H99: 162913.5994 | I99: 221395.4043 | K99: 66726 | L99: 102394 | M99: 169120 | O99: 114.0970257 | P99: 62.85172041 | Q99: 76.38821615
A100: =IF(COUNTRY_INFO!A100=0," ",COUNTRY_INFO!A100) -> Mozambique | B100: =IF(COUNTRY_INFO!B100=0," ",COUNTRY_INFO!B100) -> Tete | C100: =IF(COUNTRY_INFO!C100=0," ",COUNTRY_INFO!C100) -> Tsangano | D100: =IF(COUNTRY_INFO!$T$9:$T$1000="MDA1 (IVM+ALB)", COUNTRY_INFO!$T$9:$T$1000, " ") -> MDA1 (IVM+ALB) | E100: June | G100: 65926.57589 | H100: 183652.6043 | I100: 249579.1802 | K100: 92555 | L100: 116403 | M100: 208958 | O100: 140.3910316 | P100: 63.38216681 | Q100: 83.7241311
A101: =IF(COUNTRY_INFO!A101=0," ",COUNTRY_INFO!A101) -> Mozambique | B101: =IF(COUNTRY_INFO!B101=0," ",COUNTRY_INFO!B101) -> Tete | C101: =IF(COUNTRY_INFO!C101=0," ",COUNTRY_INFO!C101) -> Zumbu | D101: =IF(COUNTRY_INFO!$T$9:$T$1000="MDA1 (IVM+ALB)", COUNTRY_INFO!$T$9:$T$1000, " ") -> MDA1 (IVM+ALB) | E101: June | G101: 23349.43673 | H101: 65044.85946 | I101: 88394.29619 | K101: 26792 | L101: 34905 | M101: 61697 | O101: 114.7436673 | P101: 53.66296475 | Q101: 69.79748995
A102: =IF(COUNTRY_INFO!A102=0," ",COUNTRY_INFO!A102) -> Mozambique | B102: =IF(COUNTRY_INFO!B102=0," ",COUNTRY_INFO!B102) -> Sofala | C102: =IF(COUNTRY_INFO!C102=0," ",COUNTRY_INFO!C102) -> Cid Beira | D102: =IF(COUNTRY_INFO!$T$9:$T$1000="MDA1 (IVM+ALB)", COUNTRY_INFO!$T$9:$T$1000, " ") -> MDA1 (IVM+ALB) | E102: June | G102: 101957.24 | H102: 361484.76 | I102: 463442 | K102: 196533 | L102: 180072 | M102: 376605 | O102: 192.7602199 | P102: 49.8145482 | Q102: 81.26259597
A103: =IF(COUNTRY_INFO!A103=0," ",COUNTRY_INFO!A103) -> Mozambique | B103: =IF(COUNTRY_INFO!B103=0," ",COUNTRY_INFO!B103) -> Sofala | C103: =IF(COUNTRY_INFO!C103=0," ",COUNTRY_INFO!C103) -> Buzi | D103: =IF(COUNTRY_INFO!$T$9:$T$1000="MDA1 (IVM+ALB)", COUNTRY_INFO!$T$9:$T$1000, " ") ->  | I103: 0 | M103: 0
A104: =IF(COUNTRY_INFO!A104=0," ",COUNTRY_INFO!A104) -> Mozambique | B104: =IF(COUNTRY_INFO!B104=0," ",COUNTRY_INFO!B104) -> Sofala | C104: =IF(COUNTRY_INFO!C104=0," ",COUNTRY_INFO!C104) -> Caia | D104: =IF(COUNTRY_INFO!$T$9:$T$1000="MDA1 (IVM+ALB)", COUNTRY_INFO!$T$9:$T$1000, " ") -> MDA1 (IVM+ALB) | E104: May | G104: 34170.4 | H104: 121149.6 | I104: 155320 | K104: 79231 | L104: 82803 | M104: 162034 | O104: 231.8702737 | P104: 68.34772876 | Q104: 104.3226886
A105: =IF(COUNTRY_INFO!A105=0," ",COUNTRY_INFO!A105) -> Mozambique | B105: =IF(COUNTRY_INFO!B105=0," ",COUNTRY_INFO!B105) -> Sofala | C105: =IF(COUNTRY_INFO!C105=0," ",COUNTRY_INFO!C105) -> Chemba | D105: =IF(COUNTRY_INFO!$T$9:$T$1000="MDA1 (IVM+ALB)", COUNTRY_INFO!$T$9:$T$1000, " ") -> MDA1 (IVM+ALB) | E105: May | G105: 18044.62 | H105: 63976.38 | I105: 82021 | K105: 38463 | L105: 39626 | M105: 78089 | O105: =IF(G105<>0, IF(K105/G105*100=0, "-", K105/G105*100), " ") -> 213.1549459 | P105: 61.93848417 | Q105: 95.20610575
A106: =IF(COUNTRY_INFO!A106=0," ",COUNTRY_INFO!A106) -> Mozambique | B106: =IF(COUNTRY_INFO!B106=0," ",COUNTRY_INFO!B106) -> Sofala | C106: =IF(COUNTRY_INFO!C106=0," ",COUNTRY_INFO!C106) -> Cheringoma | D106: =IF(COUNTRY_INFO!$T$9:$T$1000="MDA1 (IVM+ALB)", COUNTRY_INFO!$T$9:$T$1000, " ") -> MDA1 (IVM+ALB) | E106: May | G106: 15867.94 | H106: 56259.06 | I106: 72127 | K106: 26978 | L106: 31543 | M106: 58521 | O106: 170.0157676 | P106: 56.06741385 | Q106: 81.13605169
A107: =IF(COUNTRY_INFO!A107=0," ",COUNTRY_INFO!A107) -> Mozambique | B107: =IF(COUNTRY_INFO!B107=0," ",COUNTRY_INFO!B107) -> Sofala | C107: =IF(COUNTRY_INFO!C107=0," ",COUNTRY_INFO!C107) -> Chibabava | D107: =IF(COUNTRY_INFO!$T$9:$T$1000="MDA1 (IVM+ALB)", COUNTRY_INFO!$T$9:$T$1000, " ") -> MDA1 (IVM+ALB) | E107: May | G107: 30734 | H107: 108966 | I107: 139700 | K107: 58899 | L107: 56801 | M107: 115700 | O107: 191.6411792 | P107: 52.12726906 | Q107: 82.82032928
A108: =IF(COUNTRY_INFO!A108=0," ",COUNTRY_INFO!A108) -> Mozambique | B108: =IF(COUNTRY_INFO!B108=0," ",COUNTRY_INFO!B108) -> Sofala | C108: =IF(COUNTRY_INFO!C108=0," ",COUNTRY_INFO!C108) -> Dondo | D108: =IF(COUNTRY_INFO!$T$9:$T$1000="MDA1 (IVM+ALB)", COUNTRY_INFO!$T$9:$T$1000, " ") -> MDA1 (IVM+ALB) | E108: May | G108: 39799.1 | H108: 141105.9 | I108: 180905 | K108: 81917 | L108: 76789 | M108: 158706 | O108: 205.8262624 | P108: 54.41941124 | Q108: 87.72891849
A109: =IF(COUNTRY_INFO!A109=0," ",COUNTRY_INFO!A109) -> Mozambique | B109: =IF(COUNTRY_INFO!B109=0," ",COUNTRY_INFO!B109) -> Sofala | C109: =IF(COUNTRY_INFO!C109=0," ",COUNTRY_INFO!C109) -> Gorongosa | D109: =IF(COUNTRY_INFO!$T$9:$T$1000="MDA1 (IVM+ALB)", COUNTRY_INFO!$T$9:$T$1000, " ") -> MDA1 (IVM+ALB) | E109: May | G109: 37481.62 | H109: 132889.38 | I109: 170371 | K109: 79297 | L109: 62178 | M109: 141475 | O109: 211.5623604 | P109: 46.78929197 | Q109: 83.03936703
A110: =IF(COUNTRY_INFO!A110=0," ",COUNTRY_INFO!A110) -> Mozambique | B110: =IF(COUNTRY_INFO!B110=0," ",COUNTRY_INFO!B110) -> Sofala | C110: =IF(COUNTRY_INFO!C110=0," ",COUNTRY_INFO!C110) -> Machanga | D110: =IF(COUNTRY_INFO!$T$9:$T$1000="MDA1 (IVM+ALB)", COUNTRY_INFO!$T$9:$T$1000, " ") -> MDA1 (IVM+ALB) | E110: May | G110: 14442.56 | H110: 51205.44 | I110: 65648 | K110: 25879 | L110: 36031 | M110: 61910 | O110: 179.1856845 | P110: 70.36557053 | Q110: 94.30599561
A111: =IF(COUNTRY_INFO!A111=0," ",COUNTRY_INFO!A111) -> Mozambique | B111: =IF(COUNTRY_INFO!B111=0," ",COUNTRY_INFO!B111) -> Sofala | C111: =IF(COUNTRY_INFO!C111=0," ",COUNTRY_INFO!C111) -> Maringue | D111: =IF(COUNTRY_INFO!$T$9:$T$1000="MDA1 (IVM+ALB)", COUNTRY_INFO!$T$9:$T$1000, " ") -> MDA1 (IVM+ALB) | E111: May | G111: 21402.48 | H111: 75881.52 | I111: 97284 | K111: 40823 | L111: 34110 | M111: 74933 | O111: 190.7395778 | P111: 44.95165621 | Q111: 77.02499897
A112: =IF(COUNTRY_INFO!A112=0," ",COUNTRY_INFO!A112) -> Mozambique | B112: =IF(COUNTRY_INFO!B112=0," ",COUNTRY_INFO!B112) -> Sofala | C112: =IF(COUNTRY_INFO!C112=0," ",COUNTRY_INFO!C112) -> Marromeu | D112: =IF(COUNTRY_INFO!$T$9:$T$1000="MDA1 (IVM+ALB)", COUNTRY_INFO!$T$9:$T$1000, " ") -> MDA1 (IVM+ALB) | E112: May | G112: 40223.26 | H112: 142609.74 | I112: 182833 | K112: 57665 | L112: 94343 | M112: 152008 | O112: 143.3623232 | P112: 66.15466798 | Q112: 83.14035212
A113: =IF(COUNTRY_INFO!A113=0," ",COUNTRY_INFO!A113) -> Mozambique | B113: =IF(COUNTRY_INFO!B113=0," ",COUNTRY_INFO!B113) -> Sofala | C113: =IF(COUNTRY_INFO!C113=0," ",COUNTRY_INFO!C113) -> Muanza | D113: =IF(COUNTRY_INFO!$T$9:$T$1000="MDA1 (IVM+ALB)", COUNTRY_INFO!$T$9:$T$1000, " ") -> MDA1 (IVM+ALB) | E113: May | G113: 8839.16 | H113: 31338.84 | I113: 40178 | K113: 16217 | L113: 16842 | M113: 33059 | O113: 183.4676598 | P113: 53.74161903 | Q113: 82.281348
A114: =IF(COUNTRY_INFO!A114=0," ",COUNTRY_INFO!A114) -> Mozambique | B114: =IF(COUNTRY_INFO!B114=0," ",COUNTRY_INFO!B114) -> Sofala | C114: =IF(COUNTRY_INFO!C114=0," ",COUNTRY_INFO!C114) -> Nhamatanda | D114: =IF(COUNTRY_INFO!$T$9:$T$1000="MDA1 (IVM+ALB)", COUNTRY_INFO!$T$9:$T$1000, " ") -> MDA1 (IVM+ALB) | E114: May | G114: 66412.28 | H114: 235461.72 | I114: 301874 | K114: 129571 | L114: 138981 | M114: 268552 | O114: 195.1009663 | P114: 59.02488099 | Q114: 88.96161975
A115: =IF(COUNTRY_INFO!A115=0," ",COUNTRY_INFO!A115) -> Mozambique | B115: =IF(COUNTRY_INFO!B115=0," ",COUNTRY_INFO!B115) -> Manica | C115: =IF(COUNTRY_INFO!C115=0," ",COUNTRY_INFO!C115) -> Cid. Chimoio | D115: =IF(COUNTRY_INFO!$T$9:$T$1000="MDA1 (IVM+ALB)", COUNTRY_INFO!$T$9:$T$1000, " ") ->  | I115: 0 | M115: 0
A116: =IF(COUNTRY_INFO!A116=0," ",COUNTRY_INFO!A116) -> Mozambique | B116: =IF(COUNTRY_INFO!B116=0," ",COUNTRY_INFO!B116) -> Manica | C116: =IF(COUNTRY_INFO!C116=0," ",COUNTRY_INFO!C116) -> Barué | D116: =IF(COUNTRY_INFO!$T$9:$T$1000="MDA1 (IVM+ALB)", COUNTRY_INFO!$T$9:$T$1000, " ") -> MDA1 (IVM+ALB) | E116: May | G116: 54523.67874 | H116: 193311.2246 | I116: 247834.9033 | K116: 92774 | L116: 87051 | M116: 179825 | O116: 170.1535959 | P116: 45.03152891 | Q116: 72.55838365
A117: =IF(COUNTRY_INFO!A117=0," ",COUNTRY_INFO!A117) -> Mozambique | B117: =IF(COUNTRY_INFO!B117=0," ",COUNTRY_INFO!B117) -> Manica | C117: =IF(COUNTRY_INFO!C117=0," ",COUNTRY_INFO!C117) -> Gondola | D117: =IF(COUNTRY_INFO!$T$9:$T$1000="MDA1 (IVM+ALB)", COUNTRY_INFO!$T$9:$T$1000, " ") ->  | I117: 0 | M117: 0
A118: =IF(COUNTRY_INFO!A118=0," ",COUNTRY_INFO!A118) -> Mozambique | B118: =IF(COUNTRY_INFO!B118=0," ",COUNTRY_INFO!B118) -> Manica | C118: =IF(COUNTRY_INFO!C118=0," ",COUNTRY_INFO!C118) -> Guro | D118: =IF(COUNTRY_INFO!$T$9:$T$1000="MDA1 (IVM+ALB)", COUNTRY_INFO!$T$9:$T$1000, " ") -> MDA1 (IVM+ALB) | E118: May | G118: 21497.24211 | H118: 76217.49476 | I118: 97714.73687 | K118: 38604 | L118: 41322 | M118: 79926 | O118: 179.5765234 | P118: 54.21589903 | Q118: 81.79523638
A119: =IF(COUNTRY_INFO!A119=0," ",COUNTRY_INFO!A119) -> Mozambique | B119: =IF(COUNTRY_INFO!B119=0," ",COUNTRY_INFO!B119) -> Manica | C119: =IF(COUNTRY_INFO!C119=0," ",COUNTRY_INFO!C119) -> Macate | D119: =IF(COUNTRY_INFO!$T$9:$T$1000="MDA1 (IVM+ALB)", COUNTRY_INFO!$T$9:$T$1000, " ") ->  | I119: 0 | M119: 0
A120: =IF(COUNTRY_INFO!A120=0," ",COUNTRY_INFO!A120) -> Mozambique | B120: =IF(COUNTRY_INFO!B120=0," ",COUNTRY_INFO!B120) -> Manica | C120: =IF(COUNTRY_INFO!C120=0," ",COUNTRY_INFO!C120) -> Machaze | D120: =IF(COUNTRY_INFO!$T$9:$T$1000="MDA1 (IVM+ALB)", COUNTRY_INFO!$T$9:$T$1000, " ") ->  | I120: 0 | M120: 0
A121: =IF(COUNTRY_INFO!A121=0," ",COUNTRY_INFO!A121) -> Mozambique | B121: =IF(COUNTRY_INFO!B121=0," ",COUNTRY_INFO!B121) -> Manica | C121: =IF(COUNTRY_INFO!C121=0," ",COUNTRY_INFO!C121) -> Macossa | D121: =IF(COUNTRY_INFO!$T$9:$T$1000="MDA1 (IVM+ALB)", COUNTRY_INFO!$T$9:$T$1000, " ") -> MDA1 (IVM+ALB) | E121: May | G121: 11072.51548 | H121: 39257.10033 | I121: 50329.6158 | K121: 28246 | L121: 21928 | M121: 50174 | O121: 255.1001176 | P121: 55.85741131 | Q121: 99.69080669
A122: =IF(COUNTRY_INFO!A122=0," ",COUNTRY_INFO!A122) -> Mozambique | B122: =IF(COUNTRY_INFO!B122=0," ",COUNTRY_INFO!B122) -> Manica | C122: =IF(COUNTRY_INFO!C122=0," ",COUNTRY_INFO!C122) -> Manica | D122: =IF(COUNTRY_INFO!$T$9:$T$1000="MDA1 (IVM+ALB)", COUNTRY_INFO!$T$9:$T$1000, " ") ->  | I122: 0 | M122: 0
A123: =IF(COUNTRY_INFO!A123=0," ",COUNTRY_INFO!A123) -> Mozambique | B123: =IF(COUNTRY_INFO!B123=0," ",COUNTRY_INFO!B123) -> Manica | C123: =IF(COUNTRY_INFO!C123=0," ",COUNTRY_INFO!C123) -> Mossurize | D123: =IF(COUNTRY_INFO!$T$9:$T$1000="MDA1 (IVM+ALB)", COUNTRY_INFO!$T$9:$T$1000, " ") ->  | I123: 0 | M123: 0
A124: =IF(COUNTRY_INFO!A124=0," ",COUNTRY_INFO!A124) -> Mozambique | B124: =IF(COUNTRY_INFO!B124=0," ",COUNTRY_INFO!B124) -> Manica | C124: =IF(COUNTRY_INFO!C124=0," ",COUNTRY_INFO!C124) -> Sussundenga | D124: =IF(COUNTRY_INFO!$T$9:$T$1000="MDA1 (IVM+ALB)", COUNTRY_INFO!$T$9:$T$1000, " ") -> MDA1 (IVM+ALB) | E124: May | G124: 37632.29319 | H124: 133423.5849 | I124: 171055.8781 | K124: 69600 | L124: 65912 | M124: 135512 | O124: 184.9475387 | P124: 49.4005614 | Q124: 79.2208964
A125: =IF(COUNTRY_INFO!A125=0," ",COUNTRY_INFO!A125) -> Mozambique | B125: =IF(COUNTRY_INFO!B125=0," ",COUNTRY_INFO!B125) -> Manica | C125: =IF(COUNTRY_INFO!C125=0," ",COUNTRY_INFO!C125) -> Tambara | D125: =IF(COUNTRY_INFO!$T$9:$T$1000="MDA1 (IVM+ALB)", COUNTRY_INFO!$T$9:$T$1000, " ") -> MDA1 (IVM+ALB) | E125: May | G125: 12461.96185 | H125: 44183.31928 | I125: 56645.28113 | K125: 26257 | L125: 22195 | M125: 48452 | O125: 210.6971624 | P125: 50.23388998 | Q125: 85.53580992
A126: =IF(COUNTRY_INFO!A126=0," ",COUNTRY_INFO!A126) -> Mozambique | B126: =IF(COUNTRY_INFO!B126=0," ",COUNTRY_INFO!B126) -> Manica | C126: =IF(COUNTRY_INFO!C126=0," ",COUNTRY_INFO!C126) -> Vanduze | D126: =IF(COUNTRY_INFO!$T$9:$T$1000="MDA1 (IVM+ALB)", COUNTRY_INFO!$T$9:$T$1000, " ") ->  | I126: 0 | M126: 0
A127: =IF(COUNTRY_INFO!A127=0," ",COUNTRY_INFO!A127) -> Mozambique | B127: =IF(COUNTRY_INFO!B127=0," ",COUNTRY_INFO!B127) -> Inhambane | C127: =IF(COUNTRY_INFO!C127=0," ",COUNTRY_INFO!C127) -> Cid. I'bane | D127: =IF(COUNTRY_INFO!$T$9:$T$1000="MDA1 (IVM+ALB)", COUNTRY_INFO!$T$9:$T$1000, " ") -> MDA1 (IVM+ALB) | E127: May | G127: 17946.13739 | H127: 63627.2144 | I127: 81573.35179 | K127: 28330 | L127: 37404 | M127: 65734 | O127: 157.8612677 | P127: 58.78616619 | Q127: 80.58268853
A128: =IF(COUNTRY_INFO!A128=0," ",COUNTRY_INFO!A128) -> Mozambique | B128: =IF(COUNTRY_INFO!B128=0," ",COUNTRY_INFO!B128) -> Inhambane | C128: =IF(COUNTRY_INFO!C128=0," ",COUNTRY_INFO!C128) -> Funhalouro | D128: =IF(COUNTRY_INFO!$T$9:$T$1000="MDA1 (IVM+ALB)", COUNTRY_INFO!$T$9:$T$1000, " ") ->  | I128: 0 | M128: 0
A129: =IF(COUNTRY_INFO!A129=0," ",COUNTRY_INFO!A129) -> Mozambique | B129: =IF(COUNTRY_INFO!B129=0," ",COUNTRY_INFO!B129) -> Inhambane | C129: =IF(COUNTRY_INFO!C129=0," ",COUNTRY_INFO!C129) -> Govuro | D129: =IF(COUNTRY_INFO!$T$9:$T$1000="MDA1 (IVM+ALB)", COUNTRY_INFO!$T$9:$T$1000, " ") -> MDA1 (IVM+ALB) | E129: May | G129: 9485.334686 | H129: 33629.82298 | I129: 43115.15766 | K129: 11930 | L129: 20977 | M129: 32907 | O129: 125.7731055 | P129: 62.37618323 | Q129: 76.32350612
A130: =IF(COUNTRY_INFO!A130=0," ",COUNTRY_INFO!A130) -> Mozambique | B130: =IF(COUNTRY_INFO!B130=0," ",COUNTRY_INFO!B130) -> Inhambane | C130: =IF(COUNTRY_INFO!C130=0," ",COUNTRY_INFO!C130) -> Homoíne | D130: =IF(COUNTRY_INFO!$T$9:$T$1000="MDA1 (IVM+ALB)", COUNTRY_INFO!$T$9:$T$1000, " ") -> MDA1 (IVM+ALB) | E130: May | G130: 28970.5126 | H130: 102713.6356 | I130: 131684.1482 | K130: 50547 | L130: 60867 | M130: 111414 | O130: 174.4774098 | P130: 59.25892863 | Q130: 84.6069945
A131: =IF(COUNTRY_INFO!A131=0," ",COUNTRY_INFO!A131) -> Mozambique | B131: =IF(COUNTRY_INFO!B131=0," ",COUNTRY_INFO!B131) -> Inhambane | C131: =IF(COUNTRY_INFO!C131=0," ",COUNTRY_INFO!C131) -> Inharrime | D131: =IF(COUNTRY_INFO!$T$9:$T$1000="MDA1 (IVM+ALB)", COUNTRY_INFO!$T$9:$T$1000, " ") ->  | I131: 0 | M131: 0
A132: =IF(COUNTRY_INFO!A132=0," ",COUNTRY_INFO!A132) -> Mozambique | B132: =IF(COUNTRY_INFO!B132=0," ",COUNTRY_INFO!B132) -> Inhambane | C132: =IF(COUNTRY_INFO!C132=0," ",COUNTRY_INFO!C132) -> Inhassoro | D132: =IF(COUNTRY_INFO!$T$9:$T$1000="MDA1 (IVM+ALB)", COUNTRY_INFO!$T$9:$T$1000, " ") -> MDA1 (IVM+ALB) | E132: May | G132: 14071.22253 | H132: 49888.87987 | I132: 63960.10239 | K132: 21293 | L132: 31676 | M132: 52969 | O132: 151.323028 | P132: 63.49310725 | Q132: 82.81568981
A133: =IF(COUNTRY_INFO!A133=0," ",COUNTRY_INFO!A133) -> Mozambique | B133: =IF(COUNTRY_INFO!B133=0," ",COUNTRY_INFO!B133) -> Inhambane | C133: =IF(COUNTRY_INFO!C133=0," ",COUNTRY_INFO!C133) -> Jangamo | D133: =IF(COUNTRY_INFO!$T$9:$T$1000="MDA1 (IVM+ALB)", COUNTRY_INFO!$T$9:$T$1000, " ") -> MDA1 (IVM+ALB) | E133: May | G133: 24940.5339 | H133: 88425.52928 | I133: 113366.0632 | K133: 52654 | L133: 58123 | M133: 110777 | O133: 211.118175 | P133: 65.73101736 | Q133: 97.71619204
A134: =IF(COUNTRY_INFO!A134=0," ",COUNTRY_INFO!A134) -> Mozambique | B134: =IF(COUNTRY_INFO!B134=0," ",COUNTRY_INFO!B134) -> Inhambane | C134: =IF(COUNTRY_INFO!C134=0," ",COUNTRY_INFO!C134) -> Mabote | D134: =IF(COUNTRY_INFO!$T$9:$T$1000="MDA1 (IVM+ALB)", COUNTRY_INFO!$T$9:$T$1000, " ") -> MDA1 (IVM+ALB) | E134: May | G134: 11744.7 | H134: 41640.3 | I134: 53385 | K134: 21883 | L134: 27177 | M134: 49060 | O134: 186.3223411 | P134: 65.26610039 | Q134: 91.89847335
A135: =IF(COUNTRY_INFO!A135=0," ",COUNTRY_INFO!A135) -> Mozambique | B135: =IF(COUNTRY_INFO!B135=0," ",COUNTRY_INFO!B135) -> Inhambane | C135: =IF(COUNTRY_INFO!C135=0," ",COUNTRY_INFO!C135) -> Massinga | D135: =IF(COUNTRY_INFO!$T$9:$T$1000="MDA1 (IVM+ALB)", COUNTRY_INFO!$T$9:$T$1000, " ") -> MDA1 (IVM+ALB) | E135: May | G135: 45438.225 | H135: 161099.1614 | I135: 206537.3864 | K135: 94814 | L135: 76809 | M135: 171623 | O135: 208.6657214 | P135: 47.67808805 | Q135: 83.09536739
A136: =IF(COUNTRY_INFO!A136=0," ",COUNTRY_INFO!A136) -> Mozambique | B136: =IF(COUNTRY_INFO!B136=0," ",COUNTRY_INFO!B136) -> Inhambane | C136: =IF(COUNTRY_INFO!C136=0," ",COUNTRY_INFO!C136) -> Maxixe | D136: =IF(COUNTRY_INFO!$T$9:$T$1000="MDA1 (IVM+ALB)", COUNTRY_INFO!$T$9:$T$1000, " ") -> MDA1 (IVM+ALB) | E136: May | G136: 29014.2238 | H136: 102868.6116 | I136: 131882.8354 | K136: 55773 | L136: 71828 | M136: 127601 | O136: 192.2264073 | P136: 69.82499215 | Q136: 96.75330348
A137: =IF(COUNTRY_INFO!A137=0," ",COUNTRY_INFO!A137) -> Mozambique | B137: =IF(COUNTRY_INFO!B137=0," ",COUNTRY_INFO!B137) -> Inhambane | C137: =IF(COUNTRY_INFO!C137=0," ",COUNTRY_INFO!C137) -> Morrumbene | D137: =IF(COUNTRY_INFO!$T$9:$T$1000="MDA1 (IVM+ALB)", COUNTRY_INFO!$T$9:$T$1000, " ") -> MDA1 (IVM+ALB) | E137: May | G137: 33553.65461 | H137: 118962.9572 | I137: 152516.6118 | K137: 63028 | L137: 67375 | M137: 130403 | O137: =IF(G137<>0, IF(K137/G137*100=0, "-", K137/G137*100), " ") -> 187.8424295 | P137: 56.6352767 | Q137: 85.50085031
A138: =IF(COUNTRY_INFO!A138=0," ",COUNTRY_INFO!A138) -> Mozambique | B138: =IF(COUNTRY_INFO!B138=0," ",COUNTRY_INFO!B138) -> Inhambane | C138: =IF(COUNTRY_INFO!C138=0," ",COUNTRY_INFO!C138) -> Panda | D138: =IF(COUNTRY_INFO!$T$9:$T$1000="MDA1 (IVM+ALB)", COUNTRY_INFO!$T$9:$T$1000, " ") ->  | I138: =SUM(F138:H138) -> 0 | M138: =SUM(J138:L138) -> 0 | P138: =IF(H138<>0, IF(L138/H138*100=0, "-", L138/H138*100), " ") ->  | Q138: =IF(I138<>0, IF(M138/I138*100=0, "-", M138/I138*100), " ") -> 
A139: =IF(COUNTRY_INFO!A139=0," ",COUNTRY_INFO!A139) -> Mozambique | B139: =IF(COUNTRY_INFO!B139=0," ",COUNTRY_INFO!B139) -> Inhambane | C139: =IF(COUNTRY_INFO!C139=0," ",COUNTRY_INFO!C139) -> Vilanculos | D139: =IF(COUNTRY_INFO!$T$9:$T$1000="MDA1 (IVM+ALB)", COUNTRY_INFO!$T$9:$T$1000, " ") -> MDA1 (IVM+ALB) | E139: May | G139: 37437.60013 | H139: 132733.3096 | I139: 170170.9097 | K139: 64666 | L139: 81256 | M139: 145922 | O139: 172.7300889 | P139: 61.21748962 | Q139: 85.75026147
A140: =IF(COUNTRY_INFO!A140=0," ",COUNTRY_INFO!A140) -> Mozambique | B140: =IF(COUNTRY_INFO!B140=0," ",COUNTRY_INFO!B140) -> Inhambane | C140: =IF(COUNTRY_INFO!C140=0," ",COUNTRY_INFO!C140) -> Zavala | D140: =IF(COUNTRY_INFO!$T$9:$T$1000="MDA1 (IVM+ALB)", COUNTRY_INFO!$T$9:$T$1000, " ") ->  | I140: 0 | M140: 0
A141: =IF(COUNTRY_INFO!A141=0," ",COUNTRY_INFO!A141) -> Mozambique | B141: =IF(COUNTRY_INFO!B141=0," ",COUNTRY_INFO!B141) -> Gaza | C141: =IF(COUNTRY_INFO!C141=0," ",COUNTRY_INFO!C141) -> Cid Xai Xai | D141: =IF(COUNTRY_INFO!$T$9:$T$1000="MDA1 (IVM+ALB)", COUNTRY_INFO!$T$9:$T$1000, " ") ->  | I141: 0 | M141: 0
A142: =IF(COUNTRY_INFO!A142=0," ",COUNTRY_INFO!A142) -> Mozambique | B142: =IF(COUNTRY_INFO!B142=0," ",COUNTRY_INFO!B142) -> Gaza | C142: =IF(COUNTRY_INFO!C142=0," ",COUNTRY_INFO!C142) -> Bilene Macia | D142: =IF(COUNTRY_INFO!$T$9:$T$1000="MDA1 (IVM+ALB)", COUNTRY_INFO!$T$9:$T$1000, " ") ->  | I142: 0 | M142: 0
A143: =IF(COUNTRY_INFO!A143=0," ",COUNTRY_INFO!A143) -> Mozambique | B143: =IF(COUNTRY_INFO!B143=0," ",COUNTRY_INFO!B143) -> Gaza | C143: =IF(COUNTRY_INFO!C143=0," ",COUNTRY_INFO!C143) -> Chibuto | D143: =IF(COUNTRY_INFO!$T$9:$T$1000="MDA1 (IVM+ALB)", COUNTRY_INFO!$T$9:$T$1000, " ") ->  | I143: 0 | M143: 0
A144: =IF(COUNTRY_INFO!A144=0," ",COUNTRY_INFO!A144) -> Mozambique | B144: =IF(COUNTRY_INFO!B144=0," ",COUNTRY_INFO!B144) -> Gaza | C144: =IF(COUNTRY_INFO!C144=0," ",COUNTRY_INFO!C144) -> Chicualacuala | D144: =IF(COUNTRY_INFO!$T$9:$T$1000="MDA1 (IVM+ALB)", COUNTRY_INFO!$T$9:$T$1000, " ") -> MDA1 (IVM+ALB) | E144: May | G144: 10227.14 | H144: 36259.86 | I144: 46487 | K144: 17082 | L144: 23750 | M144: 40832 | O144: 167.0261676 | P144: 65.49942554 | Q144: 87.8353088
A145: =IF(COUNTRY_INFO!A145=0," ",COUNTRY_INFO!A145) -> Mozambique | B145: =IF(COUNTRY_INFO!B145=0," ",COUNTRY_INFO!B145) -> Gaza | C145: =IF(COUNTRY_INFO!C145=0," ",COUNTRY_INFO!C145) -> Chigubo | D145: =IF(COUNTRY_INFO!$T$9:$T$1000="MDA1 (IVM+ALB)", COUNTRY_INFO!$T$9:$T$1000, " ") ->  | I145: 0 | M145: 0
A146: =IF(COUNTRY_INFO!A146=0," ",COUNTRY_INFO!A146) -> Mozambique | B146: =IF(COUNTRY_INFO!B146=0," ",COUNTRY_INFO!B146) -> Gaza | C146: =IF(COUNTRY_INFO!C146=0," ",COUNTRY_INFO!C146) -> Chokwé | D146: =IF(COUNTRY_INFO!$T$9:$T$1000="MDA1 (IVM+ALB)", COUNTRY_INFO!$T$9:$T$1000, " ") ->  | I146: 0 | M146: 0
A147: =IF(COUNTRY_INFO!A147=0," ",COUNTRY_INFO!A147) -> Mozambique | B147: =IF(COUNTRY_INFO!B147=0," ",COUNTRY_INFO!B147) -> Gaza | C147: =IF(COUNTRY_INFO!C147=0," ",COUNTRY_INFO!C147) -> Chongoene | D147: =IF(COUNTRY_INFO!$T$9:$T$1000="MDA1 (IVM+ALB)", COUNTRY_INFO!$T$9:$T$1000, " ") ->  | I147: 0 | M147: 0
A148: =IF(COUNTRY_INFO!A148=0," ",COUNTRY_INFO!A148) -> Mozambique | B148: =IF(COUNTRY_INFO!B148=0," ",COUNTRY_INFO!B148) -> Gaza | C148: =IF(COUNTRY_INFO!C148=0," ",COUNTRY_INFO!C148) -> Guijá | D148: =IF(COUNTRY_INFO!$T$9:$T$1000="MDA1 (IVM+ALB)", COUNTRY_INFO!$T$9:$T$1000, " ") ->  | I148: 0 | M148: 0
A149: =IF(COUNTRY_INFO!A149=0," ",COUNTRY_INFO!A149) -> Mozambique | B149: =IF(COUNTRY_INFO!B149=0," ",COUNTRY_INFO!B149) -> Gaza | C149: =IF(COUNTRY_INFO!C149=0," ",COUNTRY_INFO!C149) -> Limpopo | D149: =IF(COUNTRY_INFO!$T$9:$T$1000="MDA1 (IVM+ALB)", COUNTRY_INFO!$T$9:$T$1000, " ") ->  | I149: 0 | M149: 0
A150: =IF(COUNTRY_INFO!A150=0," ",COUNTRY_INFO!A150) -> Mozambique | B150: =IF(COUNTRY_INFO!B150=0," ",COUNTRY_INFO!B150) -> Gaza | C150: =IF(COUNTRY_INFO!C150=0," ",COUNTRY_INFO!C150) -> Mabalane | D150: =IF(COUNTRY_INFO!$T$9:$T$1000="MDA1 (IVM+ALB)", COUNTRY_INFO!$T$9:$T$1000, " ") -> MDA1 (IVM+ALB) | E150: May | G150: 8914.84 | H150: 31607.16 | I150: 40522 | K150: 14099 | L150: 17119 | M150: 31218 | O150: 158.1520252 | P150: 54.16177853 | Q150: 77.03963279
A151: =IF(COUNTRY_INFO!A151=0," ",COUNTRY_INFO!A151) -> Mozambique | B151: =IF(COUNTRY_INFO!B151=0," ",COUNTRY_INFO!B151) -> Gaza | C151: =IF(COUNTRY_INFO!C151=0," ",COUNTRY_INFO!C151) -> Manjacaze | D151: =IF(COUNTRY_INFO!$T$9:$T$1000="MDA1 (IVM+ALB)", COUNTRY_INFO!$T$9:$T$1000, " ") ->  | I151: 0 | M151: 0
A152: =IF(COUNTRY_INFO!A152=0," ",COUNTRY_INFO!A152) -> Mozambique | B152: =IF(COUNTRY_INFO!B152=0," ",COUNTRY_INFO!B152) -> Gaza | C152: =IF(COUNTRY_INFO!C152=0," ",COUNTRY_INFO!C152) -> Mapai | D152: =IF(COUNTRY_INFO!$T$9:$T$1000="MDA1 (IVM+ALB)", COUNTRY_INFO!$T$9:$T$1000, " ") -> MDA1 (IVM+ALB) | E152: May | I152: 0 | M152: 0
A153: =IF(COUNTRY_INFO!A153=0," ",COUNTRY_INFO!A153) -> Mozambique | B153: =IF(COUNTRY_INFO!B153=0," ",COUNTRY_INFO!B153) -> Gaza | C153: =IF(COUNTRY_INFO!C153=0," ",COUNTRY_INFO!C153) -> Massangena | D153: =IF(COUNTRY_INFO!$T$9:$T$1000="MDA1 (IVM+ALB)", COUNTRY_INFO!$T$9:$T$1000, " ") ->  | I153: 0 | M153: 0
A154: =IF(COUNTRY_INFO!A154=0," ",COUNTRY_INFO!A154) -> Mozambique | B154: =IF(COUNTRY_INFO!B154=0," ",COUNTRY_INFO!B154) -> Gaza | C154: =IF(COUNTRY_INFO!C154=0," ",COUNTRY_INFO!C154) -> Massingir | D154: =IF(COUNTRY_INFO!$T$9:$T$1000="MDA1 (IVM+ALB)", COUNTRY_INFO!$T$9:$T$1000, " ") ->  | I154: 0 | M154: 0
A155: =IF(COUNTRY_INFO!A155=0," ",COUNTRY_INFO!A155) -> Mozambique | B155: =IF(COUNTRY_INFO!B155=0," ",COUNTRY_INFO!B155) -> Maputo Provincia | C155: =IF(COUNTRY_INFO!C155=0," ",COUNTRY_INFO!C155) -> Matola | D155: =IF(COUNTRY_INFO!$T$9:$T$1000="MDA1 (IVM+ALB)", COUNTRY_INFO!$T$9:$T$1000, " ") ->  | I155: 0 | M155: 0
A156: =IF(COUNTRY_INFO!A156=0," ",COUNTRY_INFO!A156) -> Mozambique | B156: =IF(COUNTRY_INFO!B156=0," ",COUNTRY_INFO!B156) -> Maputo Provincia | C156: =IF(COUNTRY_INFO!C156=0," ",COUNTRY_INFO!C156) -> Boane | D156: =IF(COUNTRY_INFO!$T$9:$T$1000="MDA1 (IVM+ALB)", COUNTRY_INFO!$T$9:$T$1000, " ") ->  | I156: 0 | M156: 0
A157: =IF(COUNTRY_INFO!A157=0," ",COUNTRY_INFO!A157) -> Mozambique | B157: =IF(COUNTRY_INFO!B157=0," ",COUNTRY_INFO!B157) -> Maputo Provincia | C157: =IF(COUNTRY_INFO!C157=0," ",COUNTRY_INFO!C157) -> Magude | D157: =IF(COUNTRY_INFO!$T$9:$T$1000="MDA1 (IVM+ALB)", COUNTRY_INFO!$T$9:$T$1000, " ") ->  | I157: 0 | M157: 0
A158: =IF(COUNTRY_INFO!A158=0," ",COUNTRY_INFO!A158) -> Mozambique | B158: =IF(COUNTRY_INFO!B158=0," ",COUNTRY_INFO!B158) -> Maputo Provincia | C158: =IF(COUNTRY_INFO!C158=0," ",COUNTRY_INFO!C158) -> Manhica | D158: =IF(COUNTRY_INFO!$T$9:$T$1000="MDA1 (IVM+ALB)", COUNTRY_INFO!$T$9:$T$1000, " ") ->  | I158: 0 | M158: 0
A159: =IF(COUNTRY_INFO!A159=0," ",COUNTRY_INFO!A159) -> Mozambique | B159: =IF(COUNTRY_INFO!B159=0," ",COUNTRY_INFO!B159) -> Maputo Provincia | C159: =IF(COUNTRY_INFO!C159=0," ",COUNTRY_INFO!C159) -> Marracuene | D159: =IF(COUNTRY_INFO!$T$9:$T$1000="MDA1 (IVM+ALB)", COUNTRY_INFO!$T$9:$T$1000, " ") ->  | I159: 0 | M159: 0
A160: =IF(COUNTRY_INFO!A160=0," ",COUNTRY_INFO!A160) -> Mozambique | B160: =IF(COUNTRY_INFO!B160=0," ",COUNTRY_INFO!B160) -> Maputo Provincia | C160: =IF(COUNTRY_INFO!C160=0," ",COUNTRY_INFO!C160) -> Matutuíne | D160: =IF(COUNTRY_INFO!$T$9:$T$1000="MDA1 (IVM+ALB)", COUNTRY_INFO!$T$9:$T$1000, " ") ->  | I160: 0 | M160: 0
A161: =IF(COUNTRY_INFO!A161=0," ",COUNTRY_INFO!A161) -> Mozambique | B161: =IF(COUNTRY_INFO!B161=0," ",COUNTRY_INFO!B161) -> Maputo Provincia | C161: =IF(COUNTRY_INFO!C161=0," ",COUNTRY_INFO!C161) -> Moamba | D161: =IF(COUNTRY_INFO!$T$9:$T$1000="MDA1 (IVM+ALB)", COUNTRY_INFO!$T$9:$T$1000, " ") ->  | I161: 0 | M161: 0
A162: =IF(COUNTRY_INFO!A162=0," ",COUNTRY_INFO!A162) -> Mozambique | B162: =IF(COUNTRY_INFO!B162=0," ",COUNTRY_INFO!B162) -> Maputo Provincia | C162: =IF(COUNTRY_INFO!C162=0," ",COUNTRY_INFO!C162) -> Namaacha | D162: =IF(COUNTRY_INFO!$T$9:$T$1000="MDA1 (IVM+ALB)", COUNTRY_INFO!$T$9:$T$1000, " ") ->  | I162: 0 | M162: 0
A163: =IF(COUNTRY_INFO!A163=0," ",COUNTRY_INFO!A163) -> Mozambique | B163: =IF(COUNTRY_INFO!B163=0," ",COUNTRY_INFO!B163) -> Cidade de Maputo | C163: =IF(COUNTRY_INFO!C163=0," ",COUNTRY_INFO!C163) -> Kampfumu | D163: =IF(COUNTRY_INFO!$T$9:$T$1000="MDA1 (IVM+ALB)", COUNTRY_INFO!$T$9:$T$1000, " ") ->  | I163: 0 | M163: 0
A164: =IF(COUNTRY_INFO!A164=0," ",COUNTRY_INFO!A164) -> Mozambique | B164: =IF(COUNTRY_INFO!B164=0," ",COUNTRY_INFO!B164) -> Cidade de Maputo | C164: =IF(COUNTRY_INFO!C164=0," ",COUNTRY_INFO!C164) -> Nhlamankulu | D164: =IF(COUNTRY_INFO!$T$9:$T$1000="MDA1 (IVM+ALB)", COUNTRY_INFO!$T$9:$T$1000, " ") ->  | I164: 0 | M164: 0
A165: =IF(COUNTRY_INFO!A165=0," ",COUNTRY_INFO!A165) -> Mozambique | B165: =IF(COUNTRY_INFO!B165=0," ",COUNTRY_INFO!B165) -> Cidade de Maputo | C165: =IF(COUNTRY_INFO!C165=0," ",COUNTRY_INFO!C165) -> Kamaxakani | D165: =IF(COUNTRY_INFO!$T$9:$T$1000="MDA1 (IVM+ALB)", COUNTRY_INFO!$T$9:$T$1000, " ") ->  | I165: 0 | M165: 0
A166: =IF(COUNTRY_INFO!A166=0," ",COUNTRY_INFO!A166) -> Mozambique | B166: =IF(COUNTRY_INFO!B166=0," ",COUNTRY_INFO!B166) -> Cidade de Maputo | C166: =IF(COUNTRY_INFO!C166=0," ",COUNTRY_INFO!C166) -> Kamavota | D166: =IF(COUNTRY_INFO!$T$9:$T$1000="MDA1 (IVM+ALB)", COUNTRY_INFO!$T$9:$T$1000, " ") ->  | I166: 0 | M166: 0
A167: =IF(COUNTRY_INFO!A167=0," ",COUNTRY_INFO!A167) -> Mozambique | B167: =IF(COUNTRY_INFO!B167=0," ",COUNTRY_INFO!B167) -> Cidade de Maputo | C167: =IF(COUNTRY_INFO!C167=0," ",COUNTRY_INFO!C167) -> Kamubukwana | D167: =IF(COUNTRY_INFO!$T$9:$T$1000="MDA1 (IVM+ALB)", COUNTRY_INFO!$T$9:$T$1000, " ") ->  | I167: 0 | M167: 0
A168: =IF(COUNTRY_INFO!A168=0," ",COUNTRY_INFO!A168) -> Mozambique | B168: =IF(COUNTRY_INFO!B168=0," ",COUNTRY_INFO!B168) -> Cidade de Maputo | C168: =IF(COUNTRY_INFO!C168=0," ",COUNTRY_INFO!C168) -> Katembe | D168: =IF(COUNTRY_INFO!$T$9:$T$1000="MDA1 (IVM+ALB)", COUNTRY_INFO!$T$9:$T$1000, " ") ->  | I168: 0 | M168: 0
A169: =IF(COUNTRY_INFO!A169=0," ",COUNTRY_INFO!A169) -> Mozambique | B169: =IF(COUNTRY_INFO!B169=0," ",COUNTRY_INFO!B169) -> Cidade de Maputo | C169: =IF(COUNTRY_INFO!C169=0," ",COUNTRY_INFO!C169) -> Kanyaca | D169: =IF(COUNTRY_INFO!$T$9:$T$1000="MDA1 (IVM+ALB)", COUNTRY_INFO!$T$9:$T$1000, " ") ->  | I169: 0 | M169: 0

Sheet MDA2 (hidden)
A1: MDA 2 - Diethylcarbamazine citrate (DEC) + Albendazole (ALB)
A2: Administrative structure, population requiring PC by age group, population treated by age group and coverage
A4: TOTAL | F4: =SUM(F$9:F$1000) -> 0 | G4: =SUM(G$9:G$1000) -> 0 | H4: 0 | I4: 0 | J4: 0 | K4: 0 | L4: 0 | M4: 0 | N4: =IF(F4<>0, IF(J4/F4*100=0, "-", J4/F4*100), " ") ->  | O4: =IF(G4<>0, IF(K4/G4*100=0, "-", K4/G4*100), " ") ->  | P4: =IF(H4<>0, IF(L4/H4*100=0, "-", L4/H4*100), " ") ->  | Q4: =IF(I4<>0, IF(M4/I4*100=0, "-", M4/I4*100), " ") -> 
D6: PC implemented | E6: Date | F6: Population targeted for MDA 2 | J6: Population treated | N6: Programme coverage (%)
A7: Country | B7: Province/State | C7: District | F7: PreSAC | G7: SAC | H7: Adults | I7: Total | J7: PreSAC | K7: SAC | L7: Adults | M7: Total | N7: PreSAC | O7: SAC | P7: Adults | Q7: Total
A9: =IF(COUNTRY_INFO!A9=0," ",COUNTRY_INFO!A9) -> Mozambique | B9: =IF(COUNTRY_INFO!B9=0," ",COUNTRY_INFO!B9) -> Cabo Delgado | C9: =IF(COUNTRY_INFO!C9=0," ",COUNTRY_INFO!C9) -> Cid. Pemba | D9: =IF(COUNTRY_INFO!$T$9:$T$1000="MDA2 (DEC+ALB)", COUNTRY_INFO!$T$9:$T$1000, " ") ->  | I9: =SUM(F9:H9) -> 0 | M9: =SUM(J9:L9) -> 0 | N9: =IF(F9<>0, IF(J9/F9*100=0, "-", J9/F9*100), " ") ->  | O9: =IF(G9<>0, IF(K9/G9*100=0, "-", K9/G9*100), " ") ->  | P9: =IF(H9<>0, IF(L9/H9*100=0, "-", L9/H9*100), " ") ->  | Q9: =IF(I9<>0, IF(M9/I9*100=0, "-", M9/I9*100), " ") -> 
A10: =IF(COUNTRY_INFO!A10=0," ",COUNTRY_INFO!A10) -> Mozambique | B10: =IF(COUNTRY_INFO!B10=0," ",COUNTRY_INFO!B10) -> Cabo Delgado | C10: =IF(COUNTRY_INFO!C10=0," ",COUNTRY_INFO!C10) -> Ancuabe | D10: =IF(COUNTRY_INFO!$T$9:$T$1000="MDA2 (DEC+ALB)", COUNTRY_INFO!$T$9:$T$1000, " ") ->  | I10: =SUM(F10:H10) -> 0 | M10: =SUM(J10:L10) -> 0 | N10: =IF(F10<>0, IF(J10/F10*100=0, "-", J10/F10*100), " ") ->  | O10: =IF(G10<>0, IF(K10/G10*100=0, "-", K10/G10*100), " ") ->  | P10: =IF(H10<>0, IF(L10/H10*100=0, "-", L10/H10*100), " ") ->  | Q10: =IF(I10<>0, IF(M10/I10*100=0, "-", M10/I10*100), " ") -> 
A11: =IF(COUNTRY_INFO!A11=0," ",COUNTRY_INFO!A11) -> Mozambique | B11: =IF(COUNTRY_INFO!B11=0," ",COUNTRY_INFO!B11) -> Cabo Delgado | C11: =IF(COUNTRY_INFO!C11=0," ",COUNTRY_INFO!C11) -> Balama | D11: =IF(COUNTRY_INFO!$T$9:$T$1000="MDA2 (DEC+ALB)", COUNTRY_INFO!$T$9:$T$1000, " ") ->  | I11: 0 | M11: 0
A12: =IF(COUNTRY_INFO!A12=0," ",COUNTRY_INFO!A12) -> Mozambique | B12: =IF(COUNTRY_INFO!B12=0," ",COUNTRY_INFO!B12) -> Cabo Delgado | C12: =IF(COUNTRY_INFO!C12=0," ",COUNTRY_INFO!C12) -> Chiure | D12: =IF(COUNTRY_INFO!$T$9:$T$1000="MDA2 (DEC+ALB)", COUNTRY_INFO!$T$9:$T$1000, " ") ->  | I12: 0 | M12: 0
A13: =IF(COUNTRY_INFO!A13=0," ",COUNTRY_INFO!A13) -> Mozambique | B13: =IF(COUNTRY_INFO!B13=0," ",COUNTRY_INFO!B13) -> Cabo Delgado | C13: =IF(COUNTRY_INFO!C13=0," ",COUNTRY_INFO!C13) -> Ibo | D13: =IF(COUNTRY_INFO!$T$9:$T$1000="MDA2 (DEC+ALB)", COUNTRY_INFO!$T$9:$T$1000, " ") ->  | I13: 0 | M13: 0
A14: =IF(COUNTRY_INFO!A14=0," ",COUNTRY_INFO!A14) -> Mozambique | B14: =IF(COUNTRY_INFO!B14=0," ",COUNTRY_INFO!B14) -> Cabo Delgado | C14: =IF(COUNTRY_INFO!C14=0," ",COUNTRY_INFO!C14) -> Macomia | D14: =IF(COUNTRY_INFO!$T$9:$T$1000="MDA2 (DEC+ALB)", COUNTRY_INFO!$T$9:$T$1000, " ") ->  | I14: 0 | M14: 0
A15: =IF(COUNTRY_INFO!A15=0," ",COUNTRY_INFO!A15) -> Mozambique | B15: =IF(COUNTRY_INFO!B15=0," ",COUNTRY_INFO!B15) -> Cabo Delgado | C15: =IF(COUNTRY_INFO!C15=0," ",COUNTRY_INFO!C15) -> Mecufi | D15: =IF(COUNTRY_INFO!$T$9:$T$1000="MDA2 (DEC+ALB)", COUNTRY_INFO!$T$9:$T$1000, " ") ->  | I15: 0 | M15: 0
A16: =IF(COUNTRY_INFO!A16=0," ",COUNTRY_INFO!A16) -> Mozambique | B16: =IF(COUNTRY_INFO!B16=0," ",COUNTRY_INFO!B16) -> Cabo Delgado | C16: =IF(COUNTRY_INFO!C16=0," ",COUNTRY_INFO!C16) -> Meluco | D16: =IF(COUNTRY_INFO!$T$9:$T$1000="MDA2 (DEC+ALB)", COUNTRY_INFO!$T$9:$T$1000, " ") ->  | I16: 0 | M16: 0
A17: =IF(COUNTRY_INFO!A17=0," ",COUNTRY_INFO!A17) -> Mozambique | B17: =IF(COUNTRY_INFO!B17=0," ",COUNTRY_INFO!B17) -> Cabo Delgado | C17: =IF(COUNTRY_INFO!C17=0," ",COUNTRY_INFO!C17) -> Moc Praia | D17: =IF(COUNTRY_INFO!$T$9:$T$1000="MDA2 (DEC+ALB)", COUNTRY_INFO!$T$9:$T$1000, " ") ->  | I17: 0 | M17: 0
A18: =IF(COUNTRY_INFO!A18=0," ",COUNTRY_INFO!A18) -> Mozambique | B18: =IF(COUNTRY_INFO!B18=0," ",COUNTRY_INFO!B18) -> Cabo Delgado | C18: =IF(COUNTRY_INFO!C18=0," ",COUNTRY_INFO!C18) -> Montepuez | D18: =IF(COUNTRY_INFO!$T$9:$T$1000="MDA2 (DEC+ALB)", COUNTRY_INFO!$T$9:$T$1000, " ") ->  | I18: 0 | M18: 0
A19: =IF(COUNTRY_INFO!A19=0," ",COUNTRY_INFO!A19) -> Mozambique | B19: =IF(COUNTRY_INFO!B19=0," ",COUNTRY_INFO!B19) -> Cabo Delgado | C19: =IF(COUNTRY_INFO!C19=0," ",COUNTRY_INFO!C19) -> Mueda | D19: =IF(COUNTRY_INFO!$T$9:$T$1000="MDA2 (DEC+ALB)", COUNTRY_INFO!$T$9:$T$1000, " ") ->  | I19: 0 | M19: 0
A20: =IF(COUNTRY_INFO!A20=0," ",COUNTRY_INFO!A20) -> Mozambique | B20: =IF(COUNTRY_INFO!B20=0," ",COUNTRY_INFO!B20) -> Cabo Delgado | C20: =IF(COUNTRY_INFO!C20=0," ",COUNTRY_INFO!C20) -> Muidumbe | D20: =IF(COUNTRY_INFO!$T$9:$T$1000="MDA2 (DEC+ALB)", COUNTRY_INFO!$T$9:$T$1000, " ") ->  | I20: 0 | M20: 0
A21: =IF(COUNTRY_INFO!A21=0," ",COUNTRY_INFO!A21) -> Mozambique | B21: =IF(COUNTRY_INFO!B21=0," ",COUNTRY_INFO!B21) -> Cabo Delgado | C21: =IF(COUNTRY_INFO!C21=0," ",COUNTRY_INFO!C21) -> Namuno | D21: =IF(COUNTRY_INFO!$T$9:$T$1000="MDA2 (DEC+ALB)", COUNTRY_INFO!$T$9:$T$1000, " ") ->  | I21: 0 | M21: 0
A22: =IF(COUNTRY_INFO!A22=0," ",COUNTRY_INFO!A22) -> Mozambique | B22: =IF(COUNTRY_INFO!B22=0," ",COUNTRY_INFO!B22) -> Cabo Delgado | C22: =IF(COUNTRY_INFO!C22=0," ",COUNTRY_INFO!C22) -> Nangade | D22: =IF(COUNTRY_INFO!$T$9:$T$1000="MDA2 (DEC+ALB)", COUNTRY_INFO!$T$9:$T$1000, " ") ->  | I22: 0 | M22: 0
A23: =IF(COUNTRY_INFO!A23=0," ",COUNTRY_INFO!A23) -> Mozambique | B23: =IF(COUNTRY_INFO!B23=0," ",COUNTRY_INFO!B23) -> Cabo Delgado | C23: =IF(COUNTRY_INFO!C23=0," ",COUNTRY_INFO!C23) -> Palma | D23: =IF(COUNTRY_INFO!$T$9:$T$1000="MDA2 (DEC+ALB)", COUNTRY_INFO!$T$9:$T$1000, " ") ->  | I23: 0 | M23: 0
A24: =IF(COUNTRY_INFO!A24=0," ",COUNTRY_INFO!A24) -> Mozambique | B24: =IF(COUNTRY_INFO!B24=0," ",COUNTRY_INFO!B24) -> Cabo Delgado | C24: =IF(COUNTRY_INFO!C24=0," ",COUNTRY_INFO!C24) -> Pemba Metuge | D24: =IF(COUNTRY_INFO!$T$9:$T$1000="MDA2 (DEC+ALB)", COUNTRY_INFO!$T$9:$T$1000, " ") ->  | I24: 0 | M24: 0
A25: =IF(COUNTRY_INFO!A25=0," ",COUNTRY_INFO!A25) -> Mozambique | B25: =IF(COUNTRY_INFO!B25=0," ",COUNTRY_INFO!B25) -> Cabo Delgado | C25: =IF(COUNTRY_INFO!C25=0," ",COUNTRY_INFO!C25) -> Quissanga | D25: =IF(COUNTRY_INFO!$T$9:$T$1000="MDA2 (DEC+ALB)", COUNTRY_INFO!$T$9:$T$1000, " ") ->  | I25: 0 | M25: 0
A26: =IF(COUNTRY_INFO!A26=0," ",COUNTRY_INFO!A26) -> Mozambique | B26: =IF(COUNTRY_INFO!B26=0," ",COUNTRY_INFO!B26) -> Niassa | C26: =IF(COUNTRY_INFO!C26=0," ",COUNTRY_INFO!C26) -> Cidade de Lichinga | D26: =IF(COUNTRY_INFO!$T$9:$T$1000="MDA2 (DEC+ALB)", COUNTRY_INFO!$T$9:$T$1000, " ") ->  | I26: 0 | M26: 0
A27: =IF(COUNTRY_INFO!A27=0," ",COUNTRY_INFO!A27) -> Mozambique | B27: =IF(COUNTRY_INFO!B27=0," ",COUNTRY_INFO!B27) -> Niassa | C27: =IF(COUNTRY_INFO!C27=0," ",COUNTRY_INFO!C27) -> Cuamba | D27: =IF(COUNTRY_INFO!$T$9:$T$1000="MDA2 (DEC+ALB)", COUNTRY_INFO!$T$9:$T$1000, " ") ->  | I27: 0 | M27: 0
A28: =IF(COUNTRY_INFO!A28=0," ",COUNTRY_INFO!A28) -> Mozambique | B28: =IF(COUNTRY_INFO!B28=0," ",COUNTRY_INFO!B28) -> Niassa | C28: =IF(COUNTRY_INFO!C28=0," ",COUNTRY_INFO!C28) -> Chimbonila | D28: =IF(COUNTRY_INFO!$T$9:$T$1000="MDA2 (DEC+ALB)", COUNTRY_INFO!$T$9:$T$1000, " ") ->  | I28: 0 | M28: 0
A29: =IF(COUNTRY_INFO!A29=0," ",COUNTRY_INFO!A29) -> Mozambique | B29: =IF(COUNTRY_INFO!B29=0," ",COUNTRY_INFO!B29) -> Niassa | C29: =IF(COUNTRY_INFO!C29=0," ",COUNTRY_INFO!C29) -> Lago | D29: =IF(COUNTRY_INFO!$T$9:$T$1000="MDA2 (DEC+ALB)", COUNTRY_INFO!$T$9:$T$1000, " ") ->  | I29: 0 | M29: 0
A30: =IF(COUNTRY_INFO!A30=0," ",COUNTRY_INFO!A30) -> Mozambique | B30: =IF(COUNTRY_INFO!B30=0," ",COUNTRY_INFO!B30) -> Niassa | C30: =IF(COUNTRY_INFO!C30=0," ",COUNTRY_INFO!C30) -> Majune | D30: =IF(COUNTRY_INFO!$T$9:$T$1000="MDA2 (DEC+ALB)", COUNTRY_INFO!$T$9:$T$1000, " ") ->  | I30: 0 | M30: 0
A31: =IF(COUNTRY_INFO!A31=0," ",COUNTRY_INFO!A31) -> Mozambique | B31: =IF(COUNTRY_INFO!B31=0," ",COUNTRY_INFO!B31) -> Niassa | C31: =IF(COUNTRY_INFO!C31=0," ",COUNTRY_INFO!C31) -> Mandimba | D31: =IF(COUNTRY_INFO!$T$9:$T$1000="MDA2 (DEC+ALB)", COUNTRY_INFO!$T$9:$T$1000, " ") ->  | I31: 0 | M31: 0
A32: =IF(COUNTRY_INFO!A32=0," ",COUNTRY_INFO!A32) -> Mozambique | B32: =IF(COUNTRY_INFO!B32=0," ",COUNTRY_INFO!B32) -> Niassa | C32: =IF(COUNTRY_INFO!C32=0," ",COUNTRY_INFO!C32) -> Marrupa | D32: =IF(COUNTRY_INFO!$T$9:$T$1000="MDA2 (DEC+ALB)", COUNTRY_INFO!$T$9:$T$1000, " ") ->  | I32: 0 | M32: 0
A33: =IF(COUNTRY_INFO!A33=0," ",COUNTRY_INFO!A33) -> Mozambique | B33: =IF(COUNTRY_INFO!B33=0," ",COUNTRY_INFO!B33) -> Niassa | C33: =IF(COUNTRY_INFO!C33=0," ",COUNTRY_INFO!C33) -> Maúa | D33: =IF(COUNTRY_INFO!$T$9:$T$1000="MDA2 (DEC+ALB)", COUNTRY_INFO!$T$9:$T$1000, " ") ->  | I33: 0 | M33: 0
A34: =IF(COUNTRY_INFO!A34=0," ",COUNTRY_INFO!A34) -> Mozambique | B34: =IF(COUNTRY_INFO!B34=0," ",COUNTRY_INFO!B34) -> Niassa | C34: =IF(COUNTRY_INFO!C34=0," ",COUNTRY_INFO!C34) -> Mavago | D34: =IF(COUNTRY_INFO!$T$9:$T$1000="MDA2 (DEC+ALB)", COUNTRY_INFO!$T$9:$T$1000, " ") ->  | I34: 0 | M34: 0
A35: =IF(COUNTRY_INFO!A35=0," ",COUNTRY_INFO!A35) -> Mozambique | B35: =IF(COUNTRY_INFO!B35=0," ",COUNTRY_INFO!B35) -> Niassa | C35: =IF(COUNTRY_INFO!C35=0," ",COUNTRY_INFO!C35) -> Mecanhelas | D35: =IF(COUNTRY_INFO!$T$9:$T$1000="MDA2 (DEC+ALB)", COUNTRY_INFO!$T$9:$T$1000, " ") ->  | I35: 0 | M35: 0
A36: =IF(COUNTRY_INFO!A36=0," ",COUNTRY_INFO!A36) -> Mozambique | B36: =IF(COUNTRY_INFO!B36=0," ",COUNTRY_INFO!B36) -> Niassa | C36: =IF(COUNTRY_INFO!C36=0," ",COUNTRY_INFO!C36) -> Mecula | D36: =IF(COUNTRY_INFO!$T$9:$T$1000="MDA2 (DEC+ALB)", COUNTRY_INFO!$T$9:$T$1000, " ") ->  | I36: 0 | M36: 0
A37: =IF(COUNTRY_INFO!A37=0," ",COUNTRY_INFO!A37) -> Mozambique | B37: =IF(COUNTRY_INFO!B37=0," ",COUNTRY_INFO!B37) -> Niassa | C37: =IF(COUNTRY_INFO!C37=0," ",COUNTRY_INFO!C37) -> Metarica | D37: =IF(COUNTRY_INFO!$T$9:$T$1000="MDA2 (DEC+ALB)", COUNTRY_INFO!$T$9:$T$1000, " ") ->  | I37: 0 | M37: 0
A38: =IF(COUNTRY_INFO!A38=0," ",COUNTRY_INFO!A38) -> Mozambique | B38: =IF(COUNTRY_INFO!B38=0," ",COUNTRY_INFO!B38) -> Niassa | C38: =IF(COUNTRY_INFO!C38=0," ",COUNTRY_INFO!C38) -> Muembe | D38: =IF(COUNTRY_INFO!$T$9:$T$1000="MDA2 (DEC+ALB)", COUNTRY_INFO!$T$9:$T$1000, " ") ->  | I38: 0 | M38: 0
A39: =IF(COUNTRY_INFO!A39=0," ",COUNTRY_INFO!A39) -> Mozambique | B39: =IF(COUNTRY_INFO!B39=0," ",COUNTRY_INFO!B39) -> Niassa | C39: =IF(COUNTRY_INFO!C39=0," ",COUNTRY_INFO!C39) -> N'Gaúma | D39: =IF(COUNTRY_INFO!$T$9:$T$1000="MDA2 (DEC+ALB)", COUNTRY_INFO!$T$9:$T$1000, " ") ->  | I39: 0 | M39: 0
A40: =IF(COUNTRY_INFO!A40=0," ",COUNTRY_INFO!A40) -> Mozambique | B40: =IF(COUNTRY_INFO!B40=0," ",COUNTRY_INFO!B40) -> Niassa | C40: =IF(COUNTRY_INFO!C40=0," ",COUNTRY_INFO!C40) -> Nipepe | D40: =IF(COUNTRY_INFO!$T$9:$T$1000="MDA2 (DEC+ALB)", COUNTRY_INFO!$T$9:$T$1000, " ") ->  | I40: 0 | M40: 0
A41: =IF(COUNTRY_INFO!A41=0," ",COUNTRY_INFO!A41) -> Mozambique | B41: =IF(COUNTRY_INFO!B41=0," ",COUNTRY_INFO!B41) -> Niassa | C41: =IF(COUNTRY_INFO!C41=0," ",COUNTRY_INFO!C41) -> Sanga | D41: =IF(COUNTRY_INFO!$T$9:$T$1000="MDA2 (DEC+ALB)", COUNTRY_INFO!$T$9:$T$1000, " ") ->  | I41: 0 | M41: 0
A42: =IF(COUNTRY_INFO!A42=0," ",COUNTRY_INFO!A42) -> Mozambique | B42: =IF(COUNTRY_INFO!B42=0," ",COUNTRY_INFO!B42) -> Nampula | C42: =IF(COUNTRY_INFO!C42=0," ",COUNTRY_INFO!C42) -> Cid. Nampula | D42: =IF(COUNTRY_INFO!$T$9:$T$1000="MDA2 (DEC+ALB)", COUNTRY_INFO!$T$9:$T$1000, " ") ->  | I42: 0 | M42: 0
A43: =IF(COUNTRY_INFO!A43=0," ",COUNTRY_INFO!A43) -> Mozambique | B43: =IF(COUNTRY_INFO!B43=0," ",COUNTRY_INFO!B43) -> Nampula | C43: =IF(COUNTRY_INFO!C43=0," ",COUNTRY_INFO!C43) -> Angoche | D43: =IF(COUNTRY_INFO!$T$9:$T$1000="MDA2 (DEC+ALB)", COUNTRY_INFO!$T$9:$T$1000, " ") ->  | I43: 0 | M43: 0
A44: =IF(COUNTRY_INFO!A44=0," ",COUNTRY_INFO!A44) -> Mozambique | B44: =IF(COUNTRY_INFO!B44=0," ",COUNTRY_INFO!B44) -> Nampula | C44: =IF(COUNTRY_INFO!C44=0," ",COUNTRY_INFO!C44) -> Erati | D44: =IF(COUNTRY_INFO!$T$9:$T$1000="MDA2 (DEC+ALB)", COUNTRY_INFO!$T$9:$T$1000, " ") ->  | I44: 0 | M44: 0
A45: =IF(COUNTRY_INFO!A45=0," ",COUNTRY_INFO!A45) -> Mozambique | B45: =IF(COUNTRY_INFO!B45=0," ",COUNTRY_INFO!B45) -> Nampula | C45: =IF(COUNTRY_INFO!C45=0," ",COUNTRY_INFO!C45) -> Ilha Moc. | D45: =IF(COUNTRY_INFO!$T$9:$T$1000="MDA2 (DEC+ALB)", COUNTRY_INFO!$T$9:$T$1000, " ") ->  | I45: 0 | M45: 0
A46: =IF(COUNTRY_INFO!A46=0," ",COUNTRY_INFO!A46) -> Mozambique | B46: =IF(COUNTRY_INFO!B46=0," ",COUNTRY_INFO!B46) -> Nampula | C46: =IF(COUNTRY_INFO!C46=0," ",COUNTRY_INFO!C46) -> Lalaua | D46: =IF(COUNTRY_INFO!$T$9:$T$1000="MDA2 (DEC+ALB)", COUNTRY_INFO!$T$9:$T$1000, " ") ->  | I46: 0 | M46: 0
A47: =IF(COUNTRY_INFO!A47=0," ",COUNTRY_INFO!A47) -> Mozambique | B47: =IF(COUNTRY_INFO!B47=0," ",COUNTRY_INFO!B47) -> Nampula | C47: =IF(COUNTRY_INFO!C47=0," ",COUNTRY_INFO!C47) -> Larde | D47: =IF(COUNTRY_INFO!$T$9:$T$1000="MDA2 (DEC+ALB)", COUNTRY_INFO!$T$9:$T$1000, " ") ->  | I47: 0 | M47: 0
A48: =IF(COUNTRY_INFO!A48=0," ",COUNTRY_INFO!A48) -> Mozambique | B48: =IF(COUNTRY_INFO!B48=0," ",COUNTRY_INFO!B48) -> Nampula | C48: =IF(COUNTRY_INFO!C48=0," ",COUNTRY_INFO!C48) -> Liupo | D48: =IF(COUNTRY_INFO!$T$9:$T$1000="MDA2 (DEC+ALB)", COUNTRY_INFO!$T$9:$T$1000, " ") ->  | I48: 0 | M48: 0
A49: =IF(COUNTRY_INFO!A49=0," ",COUNTRY_INFO!A49) -> Mozambique | B49: =IF(COUNTRY_INFO!B49=0," ",COUNTRY_INFO!B49) -> Nampula | C49: =IF(COUNTRY_INFO!C49=0," ",COUNTRY_INFO!C49) -> Malema | D49: =IF(COUNTRY_INFO!$T$9:$T$1000="MDA2 (DEC+ALB)", COUNTRY_INFO!$T$9:$T$1000, " ") ->  | I49: 0 | M49: 0
A50: =IF(COUNTRY_INFO!A50=0," ",COUNTRY_INFO!A50) -> Mozambique | B50: =IF(COUNTRY_INFO!B50=0," ",COUNTRY_INFO!B50) -> Nampula | C50: =IF(COUNTRY_INFO!C50=0," ",COUNTRY_INFO!C50) -> Meconta | D50: =IF(COUNTRY_INFO!$T$9:$T$1000="MDA2 (DEC+ALB)", COUNTRY_INFO!$T$9:$T$1000, " ") ->  | I50: 0 | M50: 0
A51: =IF(COUNTRY_INFO!A51=0," ",COUNTRY_INFO!A51) -> Mozambique | B51: =IF(COUNTRY_INFO!B51=0," ",COUNTRY_INFO!B51) -> Nampula | C51: =IF(COUNTRY_INFO!C51=0," ",COUNTRY_INFO!C51) -> Mecuburi | D51: =IF(COUNTRY_INFO!$T$9:$T$1000="MDA2 (DEC+ALB)", COUNTRY_INFO!$T$9:$T$1000, " ") ->  | I51: 0 | M51: 0
A52: =IF(COUNTRY_INFO!A52=0," ",COUNTRY_INFO!A52) -> Mozambique | B52: =IF(COUNTRY_INFO!B52=0," ",COUNTRY_INFO!B52) -> Nampula | C52: =IF(COUNTRY_INFO!C52=0," ",COUNTRY_INFO!C52) -> Memba | D52: =IF(COUNTRY_INFO!$T$9:$T$1000="MDA2 (DEC+ALB)", COUNTRY_INFO!$T$9:$T$1000, " ") ->  | I52: 0 | M52: 0
A53: =IF(COUNTRY_INFO!A53=0," ",COUNTRY_INFO!A53) -> Mozambique | B53: =IF(COUNTRY_INFO!B53=0," ",COUNTRY_INFO!B53) -> Nampula | C53: =IF(COUNTRY_INFO!C53=0," ",COUNTRY_INFO!C53) -> Mogincual | D53: =IF(COUNTRY_INFO!$T$9:$T$1000="MDA2 (DEC+ALB)", COUNTRY_INFO!$T$9:$T$1000, " ") ->  | I53: 0 | M53: 0
A54: =IF(COUNTRY_INFO!A54=0," ",COUNTRY_INFO!A54) -> Mozambique | B54: =IF(COUNTRY_INFO!B54=0," ",COUNTRY_INFO!B54) -> Nampula | C54: =IF(COUNTRY_INFO!C54=0," ",COUNTRY_INFO!C54) -> Mogovolas | D54: =IF(COUNTRY_INFO!$T$9:$T$1000="MDA2 (DEC+ALB)", COUNTRY_INFO!$T$9:$T$1000, " ") ->  | I54: 0 | M54: 0
A55: =IF(COUNTRY_INFO!A55=0," ",COUNTRY_INFO!A55) -> Mozambique | B55: =IF(COUNTRY_INFO!B55=0," ",COUNTRY_INFO!B55) -> Nampula | C55: =IF(COUNTRY_INFO!C55=0," ",COUNTRY_INFO!C55) -> Moma | D55: =IF(COUNTRY_INFO!$T$9:$T$1000="MDA2 (DEC+ALB)", COUNTRY_INFO!$T$9:$T$1000, " ") ->  | I55: 0 | M55: 0
A56: =IF(COUNTRY_INFO!A56=0," ",COUNTRY_INFO!A56) -> Mozambique | B56: =IF(COUNTRY_INFO!B56=0," ",COUNTRY_INFO!B56) -> Nampula | C56: =IF(COUNTRY_INFO!C56=0," ",COUNTRY_INFO!C56) -> Monapo | D56: =IF(COUNTRY_INFO!$T$9:$T$1000="MDA2 (DEC+ALB)", COUNTRY_INFO!$T$9:$T$1000, " ") ->  | I56: 0 | M56: 0
A57: =IF(COUNTRY_INFO!A57=0," ",COUNTRY_INFO!A57) -> Mozambique | B57: =IF(COUNTRY_INFO!B57=0," ",COUNTRY_INFO!B57) -> Nampula | C57: =IF(COUNTRY_INFO!C57=0," ",COUNTRY_INFO!C57) -> Mossuril | D57: =IF(COUNTRY_INFO!$T$9:$T$1000="MDA2 (DEC+ALB)", COUNTRY_INFO!$T$9:$T$1000, " ") ->  | I57: 0 | M57: 0
A58: =IF(COUNTRY_INFO!A58=0," ",COUNTRY_INFO!A58) -> Mozambique | B58: =IF(COUNTRY_INFO!B58=0," ",COUNTRY_INFO!B58) -> Nampula | C58: =IF(COUNTRY_INFO!C58=0," ",COUNTRY_INFO!C58) -> Muecate | D58: =IF(COUNTRY_INFO!$T$9:$T$1000="MDA2 (DEC+ALB)", COUNTRY_INFO!$T$9:$T$1000, " ") ->  | I58: 0 | M58: 0
A59: =IF(COUNTRY_INFO!A59=0," ",COUNTRY_INFO!A59) -> Mozambique | B59: =IF(COUNTRY_INFO!B59=0," ",COUNTRY_INFO!B59) -> Nampula | C59: =IF(COUNTRY_INFO!C59=0," ",COUNTRY_INFO!C59) -> Murrupula | D59: =IF(COUNTRY_INFO!$T$9:$T$1000="MDA2 (DEC+ALB)", COUNTRY_INFO!$T$9:$T$1000, " ") ->  | I59: 0 | M59: 0
A60: =IF(COUNTRY_INFO!A60=0," ",COUNTRY_INFO!A60) -> Mozambique | B60: =IF(COUNTRY_INFO!B60=0," ",COUNTRY_INFO!B60) -> Nampula | C60: =IF(COUNTRY_INFO!C60=0," ",COUNTRY_INFO!C60) -> Nacala Porto | D60: =IF(COUNTRY_INFO!$T$9:$T$1000="MDA2 (DEC+ALB)", COUNTRY_INFO!$T$9:$T$1000, " ") ->  | I60: 0 | M60: 0
A61: =IF(COUNTRY_INFO!A61=0," ",COUNTRY_INFO!A61) -> Mozambique | B61: =IF(COUNTRY_INFO!B61=0," ",COUNTRY_INFO!B61) -> Nampula | C61: =IF(COUNTRY_INFO!C61=0," ",COUNTRY_INFO!C61) -> Nacala Velha | D61: =IF(COUNTRY_INFO!$T$9:$T$1000="MDA2 (DEC+ALB)", COUNTRY_INFO!$T$9:$T$1000, " ") ->  | I61: 0 | M61: 0
A62: =IF(COUNTRY_INFO!A62=0," ",COUNTRY_INFO!A62) -> Mozambique | B62: =IF(COUNTRY_INFO!B62=0," ",COUNTRY_INFO!B62) -> Nampula | C62: =IF(COUNTRY_INFO!C62=0," ",COUNTRY_INFO!C62) -> Nacaroa | D62: =IF(COUNTRY_INFO!$T$9:$T$1000="MDA2 (DEC+ALB)", COUNTRY_INFO!$T$9:$T$1000, " ") ->  | I62: 0 | M62: 0
A63: =IF(COUNTRY_INFO!A63=0," ",COUNTRY_INFO!A63) -> Mozambique | B63: =IF(COUNTRY_INFO!B63=0," ",COUNTRY_INFO!B63) -> Nampula | C63: =IF(COUNTRY_INFO!C63=0," ",COUNTRY_INFO!C63) -> Nampula Dist. | D63: =IF(COUNTRY_INFO!$T$9:$T$1000="MDA2 (DEC+ALB)", COUNTRY_INFO!$T$9:$T$1000, " ") ->  | I63: 0 | M63: 0
A64: =IF(COUNTRY_INFO!A64=0," ",COUNTRY_INFO!A64) -> Mozambique | B64: =IF(COUNTRY_INFO!B64=0," ",COUNTRY_INFO!B64) -> Nampula | C64: =IF(COUNTRY_INFO!C64=0," ",COUNTRY_INFO!C64) -> Ribaué | D64: =IF(COUNTRY_INFO!$T$9:$T$1000="MDA2 (DEC+ALB)", COUNTRY_INFO!$T$9:$T$1000, " ") ->  | I64: 0 | M64: 0
A65: =IF(COUNTRY_INFO!A65=0," ",COUNTRY_INFO!A65) -> Mozambique | B65: =IF(COUNTRY_INFO!B65=0," ",COUNTRY_INFO!B65) -> Zambezia | C65: =IF(COUNTRY_INFO!C65=0," ",COUNTRY_INFO!C65) -> Quelimane | D65: =IF(COUNTRY_INFO!$T$9:$T$1000="MDA2 (DEC+ALB)", COUNTRY_INFO!$T$9:$T$1000, " ") ->  | I65: 0 | M65: 0
A66: =IF(COUNTRY_INFO!A66=0," ",COUNTRY_INFO!A66) -> Mozambique | B66: =IF(COUNTRY_INFO!B66=0," ",COUNTRY_INFO!B66) -> Zambezia | C66: =IF(COUNTRY_INFO!C66=0," ",COUNTRY_INFO!C66) -> Alto Molocué | D66: =IF(COUNTRY_INFO!$T$9:$T$1000="MDA2 (DEC+ALB)", COUNTRY_INFO!$T$9:$T$1000, " ") ->  | I66: 0 | M66: 0
A67: =IF(COUNTRY_INFO!A67=0," ",COUNTRY_INFO!A67) -> Mozambique | B67: =IF(COUNTRY_INFO!B67=0," ",COUNTRY_INFO!B67) -> Zambezia | C67: =IF(COUNTRY_INFO!C67=0," ",COUNTRY_INFO!C67) -> Chinde | D67: =IF(COUNTRY_INFO!$T$9:$T$1000="MDA2 (DEC+ALB)", COUNTRY_INFO!$T$9:$T$1000, " ") ->  | I67: 0 | M67: 0
A68: =IF(COUNTRY_INFO!A68=0," ",COUNTRY_INFO!A68) -> Mozambique | B68: =IF(COUNTRY_INFO!B68=0," ",COUNTRY_INFO!B68) -> Zambezia | C68: =IF(COUNTRY_INFO!C68=0," ",COUNTRY_INFO!C68) -> Derre | D68: =IF(COUNTRY_INFO!$T$9:$T$1000="MDA2 (DEC+ALB)", COUNTRY_INFO!$T$9:$T$1000, " ") ->  | I68: 0 | M68: 0
A69: =IF(COUNTRY_INFO!A69=0," ",COUNTRY_INFO!A69) -> Mozambique | B69: =IF(COUNTRY_INFO!B69=0," ",COUNTRY_INFO!B69) -> Zambezia | C69: =IF(COUNTRY_INFO!C69=0," ",COUNTRY_INFO!C69) -> Gilé | D69: =IF(COUNTRY_INFO!$T$9:$T$1000="MDA2 (DEC+ALB)", COUNTRY_INFO!$T$9:$T$1000, " ") ->  | I69: 0 | M69: 0
A70: =IF(COUNTRY_INFO!A70=0," ",COUNTRY_INFO!A70) -> Mozambique | B70: =IF(COUNTRY_INFO!B70=0," ",COUNTRY_INFO!B70) -> Zambezia | C70: =IF(COUNTRY_INFO!C70=0," ",COUNTRY_INFO!C70) -> Gurué | D70: =IF(COUNTRY_INFO!$T$9:$T$1000="MDA2 (DEC+ALB)", COUNTRY_INFO!$T$9:$T$1000, " ") ->  | I70: 0 | M70: 0
A71: =IF(COUNTRY_INFO!A71=0," ",COUNTRY_INFO!A71) -> Mozambique | B71: =IF(COUNTRY_INFO!B71=0," ",COUNTRY_INFO!B71) -> Zambezia | C71: =IF(COUNTRY_INFO!C71=0," ",COUNTRY_INFO!C71) -> Ile | D71: =IF(COUNTRY_INFO!$T$9:$T$1000="MDA2 (DEC+ALB)", COUNTRY_INFO!$T$9:$T$1000, " ") ->  | I71: 0 | M71: 0
A72: =IF(COUNTRY_INFO!A72=0," ",COUNTRY_INFO!A72) -> Mozambique | B72: =IF(COUNTRY_INFO!B72=0," ",COUNTRY_INFO!B72) -> Zambezia | C72: =IF(COUNTRY_INFO!C72=0," ",COUNTRY_INFO!C72) -> Inhassunge | D72: =IF(COUNTRY_INFO!$T$9:$T$1000="MDA2 (DEC+ALB)", COUNTRY_INFO!$T$9:$T$1000, " ") ->  | I72: 0 | M72: 0
A73: =IF(COUNTRY_INFO!A73=0," ",COUNTRY_INFO!A73) -> Mozambique | B73: =IF(COUNTRY_INFO!B73=0," ",COUNTRY_INFO!B73) -> Zambezia | C73: =IF(COUNTRY_INFO!C73=0," ",COUNTRY_INFO!C73) -> Luabo | D73: =IF(COUNTRY_INFO!$T$9:$T$1000="MDA2 (DEC+ALB)", COUNTRY_INFO!$T$9:$T$1000, " ") ->  | I73: 0 | M73: 0
A74: =IF(COUNTRY_INFO!A74=0," ",COUNTRY_INFO!A74) -> Mozambique | B74: =IF(COUNTRY_INFO!B74=0," ",COUNTRY_INFO!B74) -> Zambezia | C74: =IF(COUNTRY_INFO!C74=0," ",COUNTRY_INFO!C74) -> Lugela | D74: =IF(COUNTRY_INFO!$T$9:$T$1000="MDA2 (DEC+ALB)", COUNTRY_INFO!$T$9:$T$1000, " ") ->  | I74: =SUM(F74:H74) -> 0 | M74: =SUM(J74:L74) -> 0 | N74: =IF(F74<>0, IF(J74/F74*100=0, "-", J74/F74*100), " ") ->  | O74: =IF(G74<>0, IF(K74/G74*100=0, "-", K74/G74*100), " ") ->  | P74: =IF(H74<>0, IF(L74/H74*100=0, "-", L74/H74*100), " ") ->  | Q74: =IF(I74<>0, IF(M74/I74*100=0, "-", M74/I74*100), " ") -> 
A75: =IF(COUNTRY_INFO!A75=0," ",COUNTRY_INFO!A75) -> Mozambique | B75: =IF(COUNTRY_INFO!B75=0," ",COUNTRY_INFO!B75) -> Zambezia | C75: =IF(COUNTRY_INFO!C75=0," ",COUNTRY_INFO!C75) -> Maganja da Costa | D75: =IF(COUNTRY_INFO!$T$9:$T$1000="MDA2 (DEC+ALB)", COUNTRY_INFO!$T$9:$T$1000, " ") ->  | I75: 0 | M75: 0
A76: =IF(COUNTRY_INFO!A76=0," ",COUNTRY_INFO!A76) -> Mozambique | B76: =IF(COUNTRY_INFO!B76=0," ",COUNTRY_INFO!B76) -> Zambezia | C76: =IF(COUNTRY_INFO!C76=0," ",COUNTRY_INFO!C76) -> Milange | D76: =IF(COUNTRY_INFO!$T$9:$T$1000="MDA2 (DEC+ALB)", COUNTRY_INFO!$T$9:$T$1000, " ") ->  | I76: 0 | M76: 0
A77: =IF(COUNTRY_INFO!A77=0," ",COUNTRY_INFO!A77) -> Mozambique | B77: =IF(COUNTRY_INFO!B77=0," ",COUNTRY_INFO!B77) -> Zambezia | C77: =IF(COUNTRY_INFO!C77=0," ",COUNTRY_INFO!C77) -> Mocuba | D77: =IF(COUNTRY_INFO!$T$9:$T$1000="MDA2 (DEC+ALB)", COUNTRY_INFO!$T$9:$T$1000, " ") ->  | I77: 0 | M77: 0
A78: =IF(COUNTRY_INFO!A78=0," ",COUNTRY_INFO!A78) -> Mozambique | B78: =IF(COUNTRY_INFO!B78=0," ",COUNTRY_INFO!B78) -> Zambezia | C78: =IF(COUNTRY_INFO!C78=0," ",COUNTRY_INFO!C78) -> Mocubela | D78: =IF(COUNTRY_INFO!$T$9:$T$1000="MDA2 (DEC+ALB)", COUNTRY_INFO!$T$9:$T$1000, " ") ->  | I78: 0 | M78: 0
A79: =IF(COUNTRY_INFO!A79=0," ",COUNTRY_INFO!A79) -> Mozambique | B79: =IF(COUNTRY_INFO!B79=0," ",COUNTRY_INFO!B79) -> Zambezia | C79: =IF(COUNTRY_INFO!C79=0," ",COUNTRY_INFO!C79) -> Molubo | D79: =IF(COUNTRY_INFO!$T$9:$T$1000="MDA2 (DEC+ALB)", COUNTRY_INFO!$T$9:$T$1000, " ") ->  | I79: 0 | M79: 0
A80: =IF(COUNTRY_INFO!A80=0," ",COUNTRY_INFO!A80) -> Mozambique | B80: =IF(COUNTRY_INFO!B80=0," ",COUNTRY_INFO!B80) -> Zambezia | C80: =IF(COUNTRY_INFO!C80=0," ",COUNTRY_INFO!C80) -> Mopeia | D80: =IF(COUNTRY_INFO!$T$9:$T$1000="MDA2 (DEC+ALB)", COUNTRY_INFO!$T$9:$T$1000, " ") ->  | I80: 0 | M80: 0
A81: =IF(COUNTRY_INFO!A81=0," ",COUNTRY_INFO!A81) -> Mozambique | B81: =IF(COUNTRY_INFO!B81=0," ",COUNTRY_INFO!B81) -> Zambezia | C81: =IF(COUNTRY_INFO!C81=0," ",COUNTRY_INFO!C81) -> Morrumbala | D81: =IF(COUNTRY_INFO!$T$9:$T$1000="MDA2 (DEC+ALB)", COUNTRY_INFO!$T$9:$T$1000, " ") ->  | I81: 0 | M81: 0
A82: =IF(COUNTRY_INFO!A82=0," ",COUNTRY_INFO!A82) -> Mozambique | B82: =IF(COUNTRY_INFO!B82=0," ",COUNTRY_INFO!B82) -> Zambezia | C82: =IF(COUNTRY_INFO!C82=0," ",COUNTRY_INFO!C82) -> Mulevala | D82: =IF(COUNTRY_INFO!$T$9:$T$1000="MDA2 (DEC+ALB)", COUNTRY_INFO!$T$9:$T$1000, " ") ->  | I82: 0 | M82: 0
A83: =IF(COUNTRY_INFO!A83=0," ",COUNTRY_INFO!A83) -> Mozambique | B83: =IF(COUNTRY_INFO!B83=0," ",COUNTRY_INFO!B83) -> Zambezia | C83: =IF(COUNTRY_INFO!C83=0," ",COUNTRY_INFO!C83) -> Namacurra | D83: =IF(COUNTRY_INFO!$T$9:$T$1000="MDA2 (DEC+ALB)", COUNTRY_INFO!$T$9:$T$1000, " ") ->  | I83: 0 | M83: 0
A84: =IF(COUNTRY_INFO!A84=0," ",COUNTRY_INFO!A84) -> Mozambique | B84: =IF(COUNTRY_INFO!B84=0," ",COUNTRY_INFO!B84) -> Zambezia | C84: =IF(COUNTRY_INFO!C84=0," ",COUNTRY_INFO!C84) -> Namarrói | D84: =IF(COUNTRY_INFO!$T$9:$T$1000="MDA2 (DEC+ALB)", COUNTRY_INFO!$T$9:$T$1000, " ") ->  | I84: 0 | M84: 0
A85: =IF(COUNTRY_INFO!A85=0," ",COUNTRY_INFO!A85) -> Mozambique | B85: =IF(COUNTRY_INFO!B85=0," ",COUNTRY_INFO!B85) -> Zambezia | C85: =IF(COUNTRY_INFO!C85=0," ",COUNTRY_INFO!C85) -> Nicoadala | D85: =IF(COUNTRY_INFO!$T$9:$T$1000="MDA2 (DEC+ALB)", COUNTRY_INFO!$T$9:$T$1000, " ") ->  | I85: 0 | M85: 0
A86: =IF(COUNTRY_INFO!A86=0," ",COUNTRY_INFO!A86) -> Mozambique | B86: =IF(COUNTRY_INFO!B86=0," ",COUNTRY_INFO!B86) -> Zambezia | C86: =IF(COUNTRY_INFO!C86=0," ",COUNTRY_INFO!C86) -> Pebane | D86: =IF(COUNTRY_INFO!$T$9:$T$1000="MDA2 (DEC+ALB)", COUNTRY_INFO!$T$9:$T$1000, " ") ->  | I86: 0 | M86: 0
A87: =IF(COUNTRY_INFO!A87=0," ",COUNTRY_INFO!A87) -> Mozambique | B87: =IF(COUNTRY_INFO!B87=0," ",COUNTRY_INFO!B87) -> Tete | C87: =IF(COUNTRY_INFO!C87=0," ",COUNTRY_INFO!C87) -> Cid Tete | D87: =IF(COUNTRY_INFO!$T$9:$T$1000="MDA2 (DEC+ALB)", COUNTRY_INFO!$T$9:$T$1000, " ") ->  | I87: 0 | M87: 0
A88: =IF(COUNTRY_INFO!A88=0," ",COUNTRY_INFO!A88) -> Mozambique | B88: =IF(COUNTRY_INFO!B88=0," ",COUNTRY_INFO!B88) -> Tete | C88: =IF(COUNTRY_INFO!C88=0," ",COUNTRY_INFO!C88) -> Angónia | D88: =IF(COUNTRY_INFO!$T$9:$T$1000="MDA2 (DEC+ALB)", COUNTRY_INFO!$T$9:$T$1000, " ") ->  | I88: 0 | M88: 0
A89: =IF(COUNTRY_INFO!A89=0," ",COUNTRY_INFO!A89) -> Mozambique | B89: =IF(COUNTRY_INFO!B89=0," ",COUNTRY_INFO!B89) -> Tete | C89: =IF(COUNTRY_INFO!C89=0," ",COUNTRY_INFO!C89) -> Cahora Bassa | D89: =IF(COUNTRY_INFO!$T$9:$T$1000="MDA2 (DEC+ALB)", COUNTRY_INFO!$T$9:$T$1000, " ") ->  | I89: 0 | M89: 0
A90: =IF(COUNTRY_INFO!A90=0," ",COUNTRY_INFO!A90) -> Mozambique | B90: =IF(COUNTRY_INFO!B90=0," ",COUNTRY_INFO!B90) -> Tete | C90: =IF(COUNTRY_INFO!C90=0," ",COUNTRY_INFO!C90) -> Changara | D90: =IF(COUNTRY_INFO!$T$9:$T$1000="MDA2 (DEC+ALB)", COUNTRY_INFO!$T$9:$T$1000, " ") ->  | I90: 0 | M90: 0
A91: =IF(COUNTRY_INFO!A91=0," ",COUNTRY_INFO!A91) -> Mozambique | B91: =IF(COUNTRY_INFO!B91=0," ",COUNTRY_INFO!B91) -> Tete | C91: =IF(COUNTRY_INFO!C91=0," ",COUNTRY_INFO!C91) -> Chifunde | D91: =IF(COUNTRY_INFO!$T$9:$T$1000="MDA2 (DEC+ALB)", COUNTRY_INFO!$T$9:$T$1000, " ") ->  | I91: 0 | M91: 0
A92: =IF(COUNTRY_INFO!A92=0," ",COUNTRY_INFO!A92) -> Mozambique | B92: =IF(COUNTRY_INFO!B92=0," ",COUNTRY_INFO!B92) -> Tete | C92: =IF(COUNTRY_INFO!C92=0," ",COUNTRY_INFO!C92) -> Chiúta | D92: =IF(COUNTRY_INFO!$T$9:$T$1000="MDA2 (DEC+ALB)", COUNTRY_INFO!$T$9:$T$1000, " ") ->  | I92: 0 | M92: 0
A93: =IF(COUNTRY_INFO!A93=0," ",COUNTRY_INFO!A93) -> Mozambique | B93: =IF(COUNTRY_INFO!B93=0," ",COUNTRY_INFO!B93) -> Tete | C93: =IF(COUNTRY_INFO!C93=0," ",COUNTRY_INFO!C93) -> Doa | D93: =IF(COUNTRY_INFO!$T$9:$T$1000="MDA2 (DEC+ALB)", COUNTRY_INFO!$T$9:$T$1000, " ") ->  | I93: 0 | M93: 0
A94: =IF(COUNTRY_INFO!A94=0," ",COUNTRY_INFO!A94) -> Mozambique | B94: =IF(COUNTRY_INFO!B94=0," ",COUNTRY_INFO!B94) -> Tete | C94: =IF(COUNTRY_INFO!C94=0," ",COUNTRY_INFO!C94) -> Macanga | D94: =IF(COUNTRY_INFO!$T$9:$T$1000="MDA2 (DEC+ALB)", COUNTRY_INFO!$T$9:$T$1000, " ") ->  | I94: 0 | M94: 0
A95: =IF(COUNTRY_INFO!A95=0," ",COUNTRY_INFO!A95) -> Mozambique | B95: =IF(COUNTRY_INFO!B95=0," ",COUNTRY_INFO!B95) -> Tete | C95: =IF(COUNTRY_INFO!C95=0," ",COUNTRY_INFO!C95) -> Magoe | D95: =IF(COUNTRY_INFO!$T$9:$T$1000="MDA2 (DEC+ALB)", COUNTRY_INFO!$T$9:$T$1000, " ") ->  | I95: 0 | M95: 0
A96: =IF(COUNTRY_INFO!A96=0," ",COUNTRY_INFO!A96) -> Mozambique | B96: =IF(COUNTRY_INFO!B96=0," ",COUNTRY_INFO!B96) -> Tete | C96: =IF(COUNTRY_INFO!C96=0," ",COUNTRY_INFO!C96) -> Marávia | D96: =IF(COUNTRY_INFO!$T$9:$T$1000="MDA2 (DEC+ALB)", COUNTRY_INFO!$T$9:$T$1000, " ") ->  | I96: 0 | M96: 0
A97: =IF(COUNTRY_INFO!A97=0," ",COUNTRY_INFO!A97) -> Mozambique | B97: =IF(COUNTRY_INFO!B97=0," ",COUNTRY_INFO!B97) -> Tete | C97: =IF(COUNTRY_INFO!C97=0," ",COUNTRY_INFO!C97) -> Marara | D97: =IF(COUNTRY_INFO!$T$9:$T$1000="MDA2 (DEC+ALB)", COUNTRY_INFO!$T$9:$T$1000, " ") ->  | I97: 0 | M97: 0
A98: =IF(COUNTRY_INFO!A98=0," ",COUNTRY_INFO!A98) -> Mozambique | B98: =IF(COUNTRY_INFO!B98=0," ",COUNTRY_INFO!B98) -> Tete | C98: =IF(COUNTRY_INFO!C98=0," ",COUNTRY_INFO!C98) -> Moatize | D98: =IF(COUNTRY_INFO!$T$9:$T$1000="MDA2 (DEC+ALB)", COUNTRY_INFO!$T$9:$T$1000, " ") ->  | I98: 0 | M98: 0
A99: =IF(COUNTRY_INFO!A99=0," ",COUNTRY_INFO!A99) -> Mozambique | B99: =IF(COUNTRY_INFO!B99=0," ",COUNTRY_INFO!B99) -> Tete | C99: =IF(COUNTRY_INFO!C99=0," ",COUNTRY_INFO!C99) -> Mutarara | D99: =IF(COUNTRY_INFO!$T$9:$T$1000="MDA2 (DEC+ALB)", COUNTRY_INFO!$T$9:$T$1000, " ") ->  | I99: 0 | M99: 0
A100: =IF(COUNTRY_INFO!A100=0," ",COUNTRY_INFO!A100) -> Mozambique | B100: =IF(COUNTRY_INFO!B100=0," ",COUNTRY_INFO!B100) -> Tete | C100: =IF(COUNTRY_INFO!C100=0," ",COUNTRY_INFO!C100) -> Tsangano | D100: =IF(COUNTRY_INFO!$T$9:$T$1000="MDA2 (DEC+ALB)", COUNTRY_INFO!$T$9:$T$1000, " ") ->  | I100: 0 | M100: 0
A101: =IF(COUNTRY_INFO!A101=0," ",COUNTRY_INFO!A101) -> Mozambique | B101: =IF(COUNTRY_INFO!B101=0," ",COUNTRY_INFO!B101) -> Tete | C101: =IF(COUNTRY_INFO!C101=0," ",COUNTRY_INFO!C101) -> Zumbu | D101: =IF(COUNTRY_INFO!$T$9:$T$1000="MDA2 (DEC+ALB)", COUNTRY_INFO!$T$9:$T$1000, " ") ->  | I101: 0 | M101: 0
A102: =IF(COUNTRY_INFO!A102=0," ",COUNTRY_INFO!A102) -> Mozambique | B102: =IF(COUNTRY_INFO!B102=0," ",COUNTRY_INFO!B102) -> Sofala | C102: =IF(COUNTRY_INFO!C102=0," ",COUNTRY_INFO!C102) -> Cid Beira | D102: =IF(COUNTRY_INFO!$T$9:$T$1000="MDA2 (DEC+ALB)", COUNTRY_INFO!$T$9:$T$1000, " ") ->  | I102: 0 | M102: 0
A103: =IF(COUNTRY_INFO!A103=0," ",COUNTRY_INFO!A103) -> Mozambique | B103: =IF(COUNTRY_INFO!B103=0," ",COUNTRY_INFO!B103) -> Sofala | C103: =IF(COUNTRY_INFO!C103=0," ",COUNTRY_INFO!C103) -> Buzi | D103: =IF(COUNTRY_INFO!$T$9:$T$1000="MDA2 (DEC+ALB)", COUNTRY_INFO!$T$9:$T$1000, " ") ->  | I103: 0 | M103: 0
A104: =IF(COUNTRY_INFO!A104=0," ",COUNTRY_INFO!A104) -> Mozambique | B104: =IF(COUNTRY_INFO!B104=0," ",COUNTRY_INFO!B104) -> Sofala | C104: =IF(COUNTRY_INFO!C104=0," ",COUNTRY_INFO!C104) -> Caia | D104: =IF(COUNTRY_INFO!$T$9:$T$1000="MDA2 (DEC+ALB)", COUNTRY_INFO!$T$9:$T$1000, " ") ->  | I104: 0 | M104: 0
A105: =IF(COUNTRY_INFO!A105=0," ",COUNTRY_INFO!A105) -> Mozambique | B105: =IF(COUNTRY_INFO!B105=0," ",COUNTRY_INFO!B105) -> Sofala | C105: =IF(COUNTRY_INFO!C105=0," ",COUNTRY_INFO!C105) -> Chemba | D105: =IF(COUNTRY_INFO!$T$9:$T$1000="MDA2 (DEC+ALB)", COUNTRY_INFO!$T$9:$T$1000, " ") ->  | I105: 0 | M105: 0
A106: =IF(COUNTRY_INFO!A106=0," ",COUNTRY_INFO!A106) -> Mozambique | B106: =IF(COUNTRY_INFO!B106=0," ",COUNTRY_INFO!B106) -> Sofala | C106: =IF(COUNTRY_INFO!C106=0," ",COUNTRY_INFO!C106) -> Cheringoma | D106: =IF(COUNTRY_INFO!$T$9:$T$1000="MDA2 (DEC+ALB)", COUNTRY_INFO!$T$9:$T$1000, " ") ->  | I106: 0 | M106: 0
A107: =IF(COUNTRY_INFO!A107=0," ",COUNTRY_INFO!A107) -> Mozambique | B107: =IF(COUNTRY_INFO!B107=0," ",COUNTRY_INFO!B107) -> Sofala | C107: =IF(COUNTRY_INFO!C107=0," ",COUNTRY_INFO!C107) -> Chibabava | D107: =IF(COUNTRY_INFO!$T$9:$T$1000="MDA2 (DEC+ALB)", COUNTRY_INFO!$T$9:$T$1000, " ") ->  | I107: 0 | M107: 0
A108: =IF(COUNTRY_INFO!A108=0," ",COUNTRY_INFO!A108) -> Mozambique | B108: =IF(COUNTRY_INFO!B108=0," ",COUNTRY_INFO!B108) -> Sofala | C108: =IF(COUNTRY_INFO!C108=0," ",COUNTRY_INFO!C108) -> Dondo | D108: =IF(COUNTRY_INFO!$T$9:$T$1000="MDA2 (DEC+ALB)", COUNTRY_INFO!$T$9:$T$1000, " ") ->  | I108: 0 | M108: 0
A109: =IF(COUNTRY_INFO!A109=0," ",COUNTRY_INFO!A109) -> Mozambique | B109: =IF(COUNTRY_INFO!B109=0," ",COUNTRY_INFO!B109) -> Sofala | C109: =IF(COUNTRY_INFO!C109=0," ",COUNTRY_INFO!C109) -> Gorongosa | D109: =IF(COUNTRY_INFO!$T$9:$T$1000="MDA2 (DEC+ALB)", COUNTRY_INFO!$T$9:$T$1000, " ") ->  | I109: 0 | M109: 0
A110: =IF(COUNTRY_INFO!A110=0," ",COUNTRY_INFO!A110) -> Mozambique | B110: =IF(COUNTRY_INFO!B110=0," ",COUNTRY_INFO!B110) -> Sofala | C110: =IF(COUNTRY_INFO!C110=0," ",COUNTRY_INFO!C110) -> Machanga | D110: =IF(COUNTRY_INFO!$T$9:$T$1000="MDA2 (DEC+ALB)", COUNTRY_INFO!$T$9:$T$1000, " ") ->  | I110: 0 | M110: 0
A111: =IF(COUNTRY_INFO!A111=0," ",COUNTRY_INFO!A111) -> Mozambique | B111: =IF(COUNTRY_INFO!B111=0," ",COUNTRY_INFO!B111) -> Sofala | C111: =IF(COUNTRY_INFO!C111=0," ",COUNTRY_INFO!C111) -> Maringue | D111: =IF(COUNTRY_INFO!$T$9:$T$1000="MDA2 (DEC+ALB)", COUNTRY_INFO!$T$9:$T$1000, " ") ->  | I111: 0 | M111: 0
A112: =IF(COUNTRY_INFO!A112=0," ",COUNTRY_INFO!A112) -> Mozambique | B112: =IF(COUNTRY_INFO!B112=0," ",COUNTRY_INFO!B112) -> Sofala | C112: =IF(COUNTRY_INFO!C112=0," ",COUNTRY_INFO!C112) -> Marromeu | D112: =IF(COUNTRY_INFO!$T$9:$T$1000="MDA2 (DEC+ALB)", COUNTRY_INFO!$T$9:$T$1000, " ") ->  | I112: 0 | M112: 0
A113: =IF(COUNTRY_INFO!A113=0," ",COUNTRY_INFO!A113) -> Mozambique | B113: =IF(COUNTRY_INFO!B113=0," ",COUNTRY_INFO!B113) -> Sofala | C113: =IF(COUNTRY_INFO!C113=0," ",COUNTRY_INFO!C113) -> Muanza | D113: =IF(COUNTRY_INFO!$T$9:$T$1000="MDA2 (DEC+ALB)", COUNTRY_INFO!$T$9:$T$1000, " ") ->  | I113: 0 | M113: 0
A114: =IF(COUNTRY_INFO!A114=0," ",COUNTRY_INFO!A114) -> Mozambique | B114: =IF(COUNTRY_INFO!B114=0," ",COUNTRY_INFO!B114) -> Sofala | C114: =IF(COUNTRY_INFO!C114=0," ",COUNTRY_INFO!C114) -> Nhamatanda | D114: =IF(COUNTRY_INFO!$T$9:$T$1000="MDA2 (DEC+ALB)", COUNTRY_INFO!$T$9:$T$1000, " ") ->  | I114: 0 | M114: 0
A115: =IF(COUNTRY_INFO!A115=0," ",COUNTRY_INFO!A115) -> Mozambique | B115: =IF(COUNTRY_INFO!B115=0," ",COUNTRY_INFO!B115) -> Manica | C115: =IF(COUNTRY_INFO!C115=0," ",COUNTRY_INFO!C115) -> Cid. Chimoio | D115: =IF(COUNTRY_INFO!$T$9:$T$1000="MDA2 (DEC+ALB)", COUNTRY_INFO!$T$9:$T$1000, " ") ->  | I115: 0 | M115: 0
A116: =IF(COUNTRY_INFO!A116=0," ",COUNTRY_INFO!A116) -> Mozambique | B116: =IF(COUNTRY_INFO!B116=0," ",COUNTRY_INFO!B116) -> Manica | C116: =IF(COUNTRY_INFO!C116=0," ",COUNTRY_INFO!C116) -> Barué | D116: =IF(COUNTRY_INFO!$T$9:$T$1000="MDA2 (DEC+ALB)", COUNTRY_INFO!$T$9:$T$1000, " ") ->  | I116: 0 | M116: 0
A117: =IF(COUNTRY_INFO!A117=0," ",COUNTRY_INFO!A117) -> Mozambique | B117: =IF(COUNTRY_INFO!B117=0," ",COUNTRY_INFO!B117) -> Manica | C117: =IF(COUNTRY_INFO!C117=0," ",COUNTRY_INFO!C117) -> Gondola | D117: =IF(COUNTRY_INFO!$T$9:$T$1000="MDA2 (DEC+ALB)", COUNTRY_INFO!$T$9:$T$1000, " ") ->  | I117: 0 | M117: 0
A118: =IF(COUNTRY_INFO!A118=0," ",COUNTRY_INFO!A118) -> Mozambique | B118: =IF(COUNTRY_INFO!B118=0," ",COUNTRY_INFO!B118) -> Manica | C118: =IF(COUNTRY_INFO!C118=0," ",COUNTRY_INFO!C118) -> Guro | D118: =IF(COUNTRY_INFO!$T$9:$T$1000="MDA2 (DEC+ALB)", COUNTRY_INFO!$T$9:$T$1000, " ") ->  | I118: 0 | M118: 0
A119: =IF(COUNTRY_INFO!A119=0," ",COUNTRY_INFO!A119) -> Mozambique | B119: =IF(COUNTRY_INFO!B119=0," ",COUNTRY_INFO!B119) -> Manica | C119: =IF(COUNTRY_INFO!C119=0," ",COUNTRY_INFO!C119) -> Macate | D119: =IF(COUNTRY_INFO!$T$9:$T$1000="MDA2 (DEC+ALB)", COUNTRY_INFO!$T$9:$T$1000, " ") ->  | I119: 0 | M119: 0
A120: =IF(COUNTRY_INFO!A120=0," ",COUNTRY_INFO!A120) -> Mozambique | B120: =IF(COUNTRY_INFO!B120=0," ",COUNTRY_INFO!B120) -> Manica | C120: =IF(COUNTRY_INFO!C120=0," ",COUNTRY_INFO!C120) -> Machaze | D120: =IF(COUNTRY_INFO!$T$9:$T$1000="MDA2 (DEC+ALB)", COUNTRY_INFO!$T$9:$T$1000, " ") ->  | I120: 0 | M120: 0
A121: =IF(COUNTRY_INFO!A121=0," ",COUNTRY_INFO!A121) -> Mozambique | B121: =IF(COUNTRY_INFO!B121=0," ",COUNTRY_INFO!B121) -> Manica | C121: =IF(COUNTRY_INFO!C121=0," ",COUNTRY_INFO!C121) -> Macossa | D121: =IF(COUNTRY_INFO!$T$9:$T$1000="MDA2 (DEC+ALB)", COUNTRY_INFO!$T$9:$T$1000, " ") ->  | I121: 0 | M121: 0
A122: =IF(COUNTRY_INFO!A122=0," ",COUNTRY_INFO!A122) -> Mozambique | B122: =IF(COUNTRY_INFO!B122=0," ",COUNTRY_INFO!B122) -> Manica | C122: =IF(COUNTRY_INFO!C122=0," ",COUNTRY_INFO!C122) -> Manica | D122: =IF(COUNTRY_INFO!$T$9:$T$1000="MDA2 (DEC+ALB)", COUNTRY_INFO!$T$9:$T$1000, " ") ->  | I122: 0 | M122: 0
A123: =IF(COUNTRY_INFO!A123=0," ",COUNTRY_INFO!A123) -> Mozambique | B123: =IF(COUNTRY_INFO!B123=0," ",COUNTRY_INFO!B123) -> Manica | C123: =IF(COUNTRY_INFO!C123=0," ",COUNTRY_INFO!C123) -> Mossurize | D123: =IF(COUNTRY_INFO!$T$9:$T$1000="MDA2 (DEC+ALB)", COUNTRY_INFO!$T$9:$T$1000, " ") ->  | I123: 0 | M123: 0
A124: =IF(COUNTRY_INFO!A124=0," ",COUNTRY_INFO!A124) -> Mozambique | B124: =IF(COUNTRY_INFO!B124=0," ",COUNTRY_INFO!B124) -> Manica | C124: =IF(COUNTRY_INFO!C124=0," ",COUNTRY_INFO!C124) -> Sussundenga | D124: =IF(COUNTRY_INFO!$T$9:$T$1000="MDA2 (DEC+ALB)", COUNTRY_INFO!$T$9:$T$1000, " ") ->  | I124: 0 | M124: 0
A125: =IF(COUNTRY_INFO!A125=0," ",COUNTRY_INFO!A125) -> Mozambique | B125: =IF(COUNTRY_INFO!B125=0," ",COUNTRY_INFO!B125) -> Manica | C125: =IF(COUNTRY_INFO!C125=0," ",COUNTRY_INFO!C125) -> Tambara | D125: =IF(COUNTRY_INFO!$T$9:$T$1000="MDA2 (DEC+ALB)", COUNTRY_INFO!$T$9:$T$1000, " ") ->  | I125: 0 | M125: 0
A126: =IF(COUNTRY_INFO!A126=0," ",COUNTRY_INFO!A126) -> Mozambique | B126: =IF(COUNTRY_INFO!B126=0," ",COUNTRY_INFO!B126) -> Manica | C126: =IF(COUNTRY_INFO!C126=0," ",COUNTRY_INFO!C126) -> Vanduze | D126: =IF(COUNTRY_INFO!$T$9:$T$1000="MDA2 (DEC+ALB)", COUNTRY_INFO!$T$9:$T$1000, " ") ->  | I126: 0 | M126: 0
A127: =IF(COUNTRY_INFO!A127=0," ",COUNTRY_INFO!A127) -> Mozambique | B127: =IF(COUNTRY_INFO!B127=0," ",COUNTRY_INFO!B127) -> Inhambane | C127: =IF(COUNTRY_INFO!C127=0," ",COUNTRY_INFO!C127) -> Cid. I'bane | D127: =IF(COUNTRY_INFO!$T$9:$T$1000="MDA2 (DEC+ALB)", COUNTRY_INFO!$T$9:$T$1000, " ") ->  | I127: 0 | M127: 0
A128: =IF(COUNTRY_INFO!A128=0," ",COUNTRY_INFO!A128) -> Mozambique | B128: =IF(COUNTRY_INFO!B128=0," ",COUNTRY_INFO!B128) -> Inhambane | C128: =IF(COUNTRY_INFO!C128=0," ",COUNTRY_INFO!C128) -> Funhalouro | D128: =IF(COUNTRY_INFO!$T$9:$T$1000="MDA2 (DEC+ALB)", COUNTRY_INFO!$T$9:$T$1000, " ") ->  | I128: 0 | M128: 0
A129: =IF(COUNTRY_INFO!A129=0," ",COUNTRY_INFO!A129) -> Mozambique | B129: =IF(COUNTRY_INFO!B129=0," ",COUNTRY_INFO!B129) -> Inhambane | C129: =IF(COUNTRY_INFO!C129=0," ",COUNTRY_INFO!C129) -> Govuro | D129: =IF(COUNTRY_INFO!$T$9:$T$1000="MDA2 (DEC+ALB)", COUNTRY_INFO!$T$9:$T$1000, " ") ->  | I129: 0 | M129: 0
A130: =IF(COUNTRY_INFO!A130=0," ",COUNTRY_INFO!A130) -> Mozambique | B130: =IF(COUNTRY_INFO!B130=0," ",COUNTRY_INFO!B130) -> Inhambane | C130: =IF(COUNTRY_INFO!C130=0," ",COUNTRY_INFO!C130) -> Homoíne | D130: =IF(COUNTRY_INFO!$T$9:$T$1000="MDA2 (DEC+ALB)", COUNTRY_INFO!$T$9:$T$1000, " ") ->  | I130: 0 | M130: 0
A131: =IF(COUNTRY_INFO!A131=0," ",COUNTRY_INFO!A131) -> Mozambique | B131: =IF(COUNTRY_INFO!B131=0," ",COUNTRY_INFO!B131) -> Inhambane | C131: =IF(COUNTRY_INFO!C131=0," ",COUNTRY_INFO!C131) -> Inharrime | D131: =IF(COUNTRY_INFO!$T$9:$T$1000="MDA2 (DEC+ALB)", COUNTRY_INFO!$T$9:$T$1000, " ") ->  | I131: 0 | M131: 0
A132: =IF(COUNTRY_INFO!A132=0," ",COUNTRY_INFO!A132) -> Mozambique | B132: =IF(COUNTRY_INFO!B132=0," ",COUNTRY_INFO!B132) -> Inhambane | C132: =IF(COUNTRY_INFO!C132=0," ",COUNTRY_INFO!C132) -> Inhassoro | D132: =IF(COUNTRY_INFO!$T$9:$T$1000="MDA2 (DEC+ALB)", COUNTRY_INFO!$T$9:$T$1000, " ") ->  | I132: 0 | M132: 0
A133: =IF(COUNTRY_INFO!A133=0," ",COUNTRY_INFO!A133) -> Mozambique | B133: =IF(COUNTRY_INFO!B133=0," ",COUNTRY_INFO!B133) -> Inhambane | C133: =IF(COUNTRY_INFO!C133=0," ",COUNTRY_INFO!C133) -> Jangamo | D133: =IF(COUNTRY_INFO!$T$9:$T$1000="MDA2 (DEC+ALB)", COUNTRY_INFO!$T$9:$T$1000, " ") ->  | I133: 0 | M133: 0
A134: =IF(COUNTRY_INFO!A134=0," ",COUNTRY_INFO!A134) -> Mozambique | B134: =IF(COUNTRY_INFO!B134=0," ",COUNTRY_INFO!B134) -> Inhambane | C134: =IF(COUNTRY_INFO!C134=0," ",COUNTRY_INFO!C134) -> Mabote | D134: =IF(COUNTRY_INFO!$T$9:$T$1000="MDA2 (DEC+ALB)", COUNTRY_INFO!$T$9:$T$1000, " ") ->  | I134: 0 | M134: 0
A135: =IF(COUNTRY_INFO!A135=0," ",COUNTRY_INFO!A135) -> Mozambique | B135: =IF(COUNTRY_INFO!B135=0," ",COUNTRY_INFO!B135) -> Inhambane | C135: =IF(COUNTRY_INFO!C135=0," ",COUNTRY_INFO!C135) -> Massinga | D135: =IF(COUNTRY_INFO!$T$9:$T$1000="MDA2 (DEC+ALB)", COUNTRY_INFO!$T$9:$T$1000, " ") ->  | I135: 0 | M135: 0
A136: =IF(COUNTRY_INFO!A136=0," ",COUNTRY_INFO!A136) -> Mozambique | B136: =IF(COUNTRY_INFO!B136=0," ",COUNTRY_INFO!B136) -> Inhambane | C136: =IF(COUNTRY_INFO!C136=0," ",COUNTRY_INFO!C136) -> Maxixe | D136: =IF(COUNTRY_INFO!$T$9:$T$1000="MDA2 (DEC+ALB)", COUNTRY_INFO!$T$9:$T$1000, " ") ->  | I136: 0 | M136: 0
A137: =IF(COUNTRY_INFO!A137=0," ",COUNTRY_INFO!A137) -> Mozambique | B137: =IF(COUNTRY_INFO!B137=0," ",COUNTRY_INFO!B137) -> Inhambane | C137: =IF(COUNTRY_INFO!C137=0," ",COUNTRY_INFO!C137) -> Morrumbene | D137: =IF(COUNTRY_INFO!$T$9:$T$1000="MDA2 (DEC+ALB)", COUNTRY_INFO!$T$9:$T$1000, " ") ->  | I137: 0 | M137: 0
A138: =IF(COUNTRY_INFO!A138=0," ",COUNTRY_INFO!A138) -> Mozambique | B138: =IF(COUNTRY_INFO!B138=0," ",COUNTRY_INFO!B138) -> Inhambane | C138: =IF(COUNTRY_INFO!C138=0," ",COUNTRY_INFO!C138) -> Panda | D138: =IF(COUNTRY_INFO!$T$9:$T$1000="MDA2 (DEC+ALB)", COUNTRY_INFO!$T$9:$T$1000, " ") ->  | I138: =SUM(F138:H138) -> 0 | M138: =SUM(J138:L138) -> 0 | N138: =IF(F138<>0, IF(J138/F138*100=0, "-", J138/F138*100), " ") ->  | O138: =IF(G138<>0, IF(K138/G138*100=0, "-", K138/G138*100), " ") ->  | P138: =IF(H138<>0, IF(L138/H138*100=0, "-", L138/H138*100), " ") ->  | Q138: =IF(I138<>0, IF(M138/I138*100=0, "-", M138/I138*100), " ") -> 
A139: =IF(COUNTRY_INFO!A139=0," ",COUNTRY_INFO!A139) -> Mozambique | B139: =IF(COUNTRY_INFO!B139=0," ",COUNTRY_INFO!B139) -> Inhambane | C139: =IF(COUNTRY_INFO!C139=0," ",COUNTRY_INFO!C139) -> Vilanculos | D139: =IF(COUNTRY_INFO!$T$9:$T$1000="MDA2 (DEC+ALB)", COUNTRY_INFO!$T$9:$T$1000, " ") ->  | I139: 0 | M139: 0
A140: =IF(COUNTRY_INFO!A140=0," ",COUNTRY_INFO!A140) -> Mozambique | B140: =IF(COUNTRY_INFO!B140=0," ",COUNTRY_INFO!B140) -> Inhambane | C140: =IF(COUNTRY_INFO!C140=0," ",COUNTRY_INFO!C140) -> Zavala | D140: =IF(COUNTRY_INFO!$T$9:$T$1000="MDA2 (DEC+ALB)", COUNTRY_INFO!$T$9:$T$1000, " ") ->  | I140: 0 | M140: 0
A141: =IF(COUNTRY_INFO!A141=0," ",COUNTRY_INFO!A141) -> Mozambique | B141: =IF(COUNTRY_INFO!B141=0," ",COUNTRY_INFO!B141) -> Gaza | C141: =IF(COUNTRY_INFO!C141=0," ",COUNTRY_INFO!C141) -> Cid Xai Xai | D141: =IF(COUNTRY_INFO!$T$9:$T$1000="MDA2 (DEC+ALB)", COUNTRY_INFO!$T$9:$T$1000, " ") ->  | I141: 0 | M141: 0
A142: =IF(COUNTRY_INFO!A142=0," ",COUNTRY_INFO!A142) -> Mozambique | B142: =IF(COUNTRY_INFO!B142=0," ",COUNTRY_INFO!B142) -> Gaza | C142: =IF(COUNTRY_INFO!C142=0," ",COUNTRY_INFO!C142) -> Bilene Macia | D142: =IF(COUNTRY_INFO!$T$9:$T$1000="MDA2 (DEC+ALB)", COUNTRY_INFO!$T$9:$T$1000, " ") ->  | I142: 0 | M142: 0
A143: =IF(COUNTRY_INFO!A143=0," ",COUNTRY_INFO!A143) -> Mozambique | B143: =IF(COUNTRY_INFO!B143=0," ",COUNTRY_INFO!B143) -> Gaza | C143: =IF(COUNTRY_INFO!C143=0," ",COUNTRY_INFO!C143) -> Chibuto | D143: =IF(COUNTRY_INFO!$T$9:$T$1000="MDA2 (DEC+ALB)", COUNTRY_INFO!$T$9:$T$1000, " ") ->  | I143: 0 | M143: 0
A144: =IF(COUNTRY_INFO!A144=0," ",COUNTRY_INFO!A144) -> Mozambique | B144: =IF(COUNTRY_INFO!B144=0," ",COUNTRY_INFO!B144) -> Gaza | C144: =IF(COUNTRY_INFO!C144=0," ",COUNTRY_INFO!C144) -> Chicualacuala | D144: =IF(COUNTRY_INFO!$T$9:$T$1000="MDA2 (DEC+ALB)", COUNTRY_INFO!$T$9:$T$1000, " ") ->  | I144: 0 | M144: 0
A145: =IF(COUNTRY_INFO!A145=0," ",COUNTRY_INFO!A145) -> Mozambique | B145: =IF(COUNTRY_INFO!B145=0," ",COUNTRY_INFO!B145) -> Gaza | C145: =IF(COUNTRY_INFO!C145=0," ",COUNTRY_INFO!C145) -> Chigubo | D145: =IF(COUNTRY_INFO!$T$9:$T$1000="MDA2 (DEC+ALB)", COUNTRY_INFO!$T$9:$T$1000, " ") ->  | I145: 0 | M145: 0
A146: =IF(COUNTRY_INFO!A146=0," ",COUNTRY_INFO!A146) -> Mozambique | B146: =IF(COUNTRY_INFO!B146=0," ",COUNTRY_INFO!B146) -> Gaza | C146: =IF(COUNTRY_INFO!C146=0," ",COUNTRY_INFO!C146) -> Chokwé | D146: =IF(COUNTRY_INFO!$T$9:$T$1000="MDA2 (DEC+ALB)", COUNTRY_INFO!$T$9:$T$1000, " ") ->  | I146: 0 | M146: 0
A147: =IF(COUNTRY_INFO!A147=0," ",COUNTRY_INFO!A147) -> Mozambique | B147: =IF(COUNTRY_INFO!B147=0," ",COUNTRY_INFO!B147) -> Gaza | C147: =IF(COUNTRY_INFO!C147=0," ",COUNTRY_INFO!C147) -> Chongoene | D147: =IF(COUNTRY_INFO!$T$9:$T$1000="MDA2 (DEC+ALB)", COUNTRY_INFO!$T$9:$T$1000, " ") ->  | I147: 0 | M147: 0
A148: =IF(COUNTRY_INFO!A148=0," ",COUNTRY_INFO!A148) -> Mozambique | B148: =IF(COUNTRY_INFO!B148=0," ",COUNTRY_INFO!B148) -> Gaza | C148: =IF(COUNTRY_INFO!C148=0," ",COUNTRY_INFO!C148) -> Guijá | D148: =IF(COUNTRY_INFO!$T$9:$T$1000="MDA2 (DEC+ALB)", COUNTRY_INFO!$T$9:$T$1000, " ") ->  | I148: 0 | M148: 0
A149: =IF(COUNTRY_INFO!A149=0," ",COUNTRY_INFO!A149) -> Mozambique | B149: =IF(COUNTRY_INFO!B149=0," ",COUNTRY_INFO!B149) -> Gaza | C149: =IF(COUNTRY_INFO!C149=0," ",COUNTRY_INFO!C149) -> Limpopo | D149: =IF(COUNTRY_INFO!$T$9:$T$1000="MDA2 (DEC+ALB)", COUNTRY_INFO!$T$9:$T$1000, " ") ->  | I149: 0 | M149: 0
A150: =IF(COUNTRY_INFO!A150=0," ",COUNTRY_INFO!A150) -> Mozambique | B150: =IF(COUNTRY_INFO!B150=0," ",COUNTRY_INFO!B150) -> Gaza | C150: =IF(COUNTRY_INFO!C150=0," ",COUNTRY_INFO!C150) -> Mabalane | D150: =IF(COUNTRY_INFO!$T$9:$T$1000="MDA2 (DEC+ALB)", COUNTRY_INFO!$T$9:$T$1000, " ") ->  | I150: 0 | M150: 0
A151: =IF(COUNTRY_INFO!A151=0," ",COUNTRY_INFO!A151) -> Mozambique | B151: =IF(COUNTRY_INFO!B151=0," ",COUNTRY_INFO!B151) -> Gaza | C151: =IF(COUNTRY_INFO!C151=0," ",COUNTRY_INFO!C151) -> Manjacaze | D151: =IF(COUNTRY_INFO!$T$9:$T$1000="MDA2 (DEC+ALB)", COUNTRY_INFO!$T$9:$T$1000, " ") ->  | I151: 0 | M151: 0
A152: =IF(COUNTRY_INFO!A152=0," ",COUNTRY_INFO!A152) -> Mozambique | B152: =IF(COUNTRY_INFO!B152=0," ",COUNTRY_INFO!B152) -> Gaza | C152: =IF(COUNTRY_INFO!C152=0," ",COUNTRY_INFO!C152) -> Mapai | D152: =IF(COUNTRY_INFO!$T$9:$T$1000="MDA2 (DEC+ALB)", COUNTRY_INFO!$T$9:$T$1000, " ") ->  | I152: 0 | M152: 0
A153: =IF(COUNTRY_INFO!A153=0," ",COUNTRY_INFO!A153) -> Mozambique | B153: =IF(COUNTRY_INFO!B153=0," ",COUNTRY_INFO!B153) -> Gaza | C153: =IF(COUNTRY_INFO!C153=0," ",COUNTRY_INFO!C153) -> Massangena | D153: =IF(COUNTRY_INFO!$T$9:$T$1000="MDA2 (DEC+ALB)", COUNTRY_INFO!$T$9:$T$1000, " ") ->  | I153: 0 | M153: 0
A154: =IF(COUNTRY_INFO!A154=0," ",COUNTRY_INFO!A154) -> Mozambique | B154: =IF(COUNTRY_INFO!B154=0," ",COUNTRY_INFO!B154) -> Gaza | C154: =IF(COUNTRY_INFO!C154=0," ",COUNTRY_INFO!C154) -> Massingir | D154: =IF(COUNTRY_INFO!$T$9:$T$1000="MDA2 (DEC+ALB)", COUNTRY_INFO!$T$9:$T$1000, " ") ->  | I154: 0 | M154: 0
A155: =IF(COUNTRY_INFO!A155=0," ",COUNTRY_INFO!A155) -> Mozambique | B155: =IF(COUNTRY_INFO!B155=0," ",COUNTRY_INFO!B155) -> Maputo Provincia | C155: =IF(COUNTRY_INFO!C155=0," ",COUNTRY_INFO!C155) -> Matola | D155: =IF(COUNTRY_INFO!$T$9:$T$1000="MDA2 (DEC+ALB)", COUNTRY_INFO!$T$9:$T$1000, " ") ->  | I155: 0 | M155: 0
A156: =IF(COUNTRY_INFO!A156=0," ",COUNTRY_INFO!A156) -> Mozambique | B156: =IF(COUNTRY_INFO!B156=0," ",COUNTRY_INFO!B156) -> Maputo Provincia | C156: =IF(COUNTRY_INFO!C156=0," ",COUNTRY_INFO!C156) -> Boane | D156: =IF(COUNTRY_INFO!$T$9:$T$1000="MDA2 (DEC+ALB)", COUNTRY_INFO!$T$9:$T$1000, " ") ->  | I156: 0 | M156: 0
A157: =IF(COUNTRY_INFO!A157=0," ",COUNTRY_INFO!A157) -> Mozambique | B157: =IF(COUNTRY_INFO!B157=0," ",COUNTRY_INFO!B157) -> Maputo Provincia | C157: =IF(COUNTRY_INFO!C157=0," ",COUNTRY_INFO!C157) -> Magude | D157: =IF(COUNTRY_INFO!$T$9:$T$1000="MDA2 (DEC+ALB)", COUNTRY_INFO!$T$9:$T$1000, " ") ->  | I157: 0 | M157: 0
A158: =IF(COUNTRY_INFO!A158=0," ",COUNTRY_INFO!A158) -> Mozambique | B158: =IF(COUNTRY_INFO!B158=0," ",COUNTRY_INFO!B158) -> Maputo Provincia | C158: =IF(COUNTRY_INFO!C158=0," ",COUNTRY_INFO!C158) -> Manhica | D158: =IF(COUNTRY_INFO!$T$9:$T$1000="MDA2 (DEC+ALB)", COUNTRY_INFO!$T$9:$T$1000, " ") ->  | I158: 0 | M158: 0
A159: =IF(COUNTRY_INFO!A159=0," ",COUNTRY_INFO!A159) -> Mozambique | B159: =IF(COUNTRY_INFO!B159=0," ",COUNTRY_INFO!B159) -> Maputo Provincia | C159: =IF(COUNTRY_INFO!C159=0," ",COUNTRY_INFO!C159) -> Marracuene | D159: =IF(COUNTRY_INFO!$T$9:$T$1000="MDA2 (DEC+ALB)", COUNTRY_INFO!$T$9:$T$1000, " ") ->  | I159: 0 | M159: 0
A160: =IF(COUNTRY_INFO!A160=0," ",COUNTRY_INFO!A160) -> Mozambique | B160: =IF(COUNTRY_INFO!B160=0," ",COUNTRY_INFO!B160) -> Maputo Provincia | C160: =IF(COUNTRY_INFO!C160=0," ",COUNTRY_INFO!C160) -> Matutuíne | D160: =IF(COUNTRY_INFO!$T$9:$T$1000="MDA2 (DEC+ALB)", COUNTRY_INFO!$T$9:$T$1000, " ") ->  | I160: 0 | M160: 0
A161: =IF(COUNTRY_INFO!A161=0," ",COUNTRY_INFO!A161) -> Mozambique | B161: =IF(COUNTRY_INFO!B161=0," ",COUNTRY_INFO!B161) -> Maputo Provincia | C161: =IF(COUNTRY_INFO!C161=0," ",COUNTRY_INFO!C161) -> Moamba | D161: =IF(COUNTRY_INFO!$T$9:$T$1000="MDA2 (DEC+ALB)", COUNTRY_INFO!$T$9:$T$1000, " ") ->  | I161: 0 | M161: 0
A162: =IF(COUNTRY_INFO!A162=0," ",COUNTRY_INFO!A162) -> Mozambique | B162: =IF(COUNTRY_INFO!B162=0," ",COUNTRY_INFO!B162) -> Maputo Provincia | C162: =IF(COUNTRY_INFO!C162=0," ",COUNTRY_INFO!C162) -> Namaacha | D162: =IF(COUNTRY_INFO!$T$9:$T$1000="MDA2 (DEC+ALB)", COUNTRY_INFO!$T$9:$T$1000, " ") ->  | I162: 0 | M162: 0
A163: =IF(COUNTRY_INFO!A163=0," ",COUNTRY_INFO!A163) -> Mozambique | B163: =IF(COUNTRY_INFO!B163=0," ",COUNTRY_INFO!B163) -> Cidade de Maputo | C163: =IF(COUNTRY_INFO!C163=0," ",COUNTRY_INFO!C163) -> Kampfumu | D163: =IF(COUNTRY_INFO!$T$9:$T$1000="MDA2 (DEC+ALB)", COUNTRY_INFO!$T$9:$T$1000, " ") ->  | I163: 0 | M163: 0
A164: =IF(COUNTRY_INFO!A164=0," ",COUNTRY_INFO!A164) -> Mozambique | B164: =IF(COUNTRY_INFO!B164=0," ",COUNTRY_INFO!B164) -> Cidade de Maputo | C164: =IF(COUNTRY_INFO!C164=0," ",COUNTRY_INFO!C164) -> Nhlamankulu | D164: =IF(COUNTRY_INFO!$T$9:$T$1000="MDA2 (DEC+ALB)", COUNTRY_INFO!$T$9:$T$1000, " ") ->  | I164: 0 | M164: 0
A165: =IF(COUNTRY_INFO!A165=0," ",COUNTRY_INFO!A165) -> Mozambique | B165: =IF(COUNTRY_INFO!B165=0," ",COUNTRY_INFO!B165) -> Cidade de Maputo | C165: =IF(COUNTRY_INFO!C165=0," ",COUNTRY_INFO!C165) -> Kamaxakani | D165: =IF(COUNTRY_INFO!$T$9:$T$1000="MDA2 (DEC+ALB)", COUNTRY_INFO!$T$9:$T$1000, " ") ->  | I165: 0 | M165: 0
A166: =IF(COUNTRY_INFO!A166=0," ",COUNTRY_INFO!A166) -> Mozambique | B166: =IF(COUNTRY_INFO!B166=0," ",COUNTRY_INFO!B166) -> Cidade de Maputo | C166: =IF(COUNTRY_INFO!C166=0," ",COUNTRY_INFO!C166) -> Kamavota | D166: =IF(COUNTRY_INFO!$T$9:$T$1000="MDA2 (DEC+ALB)", COUNTRY_INFO!$T$9:$T$1000, " ") ->  | I166: 0 | M166: 0
A167: =IF(COUNTRY_INFO!A167=0," ",COUNTRY_INFO!A167) -> Mozambique | B167: =IF(COUNTRY_INFO!B167=0," ",COUNTRY_INFO!B167) -> Cidade de Maputo | C167: =IF(COUNTRY_INFO!C167=0," ",COUNTRY_INFO!C167) -> Kamubukwana | D167: =IF(COUNTRY_INFO!$T$9:$T$1000="MDA2 (DEC+ALB)", COUNTRY_INFO!$T$9:$T$1000, " ") ->  | I167: 0 | M167: 0
A168: =IF(COUNTRY_INFO!A168=0," ",COUNTRY_INFO!A168) -> Mozambique | B168: =IF(COUNTRY_INFO!B168=0," ",COUNTRY_INFO!B168) -> Cidade de Maputo | C168: =IF(COUNTRY_INFO!C168=0," ",COUNTRY_INFO!C168) -> Katembe | D168: =IF(COUNTRY_INFO!$T$9:$T$1000="MDA2 (DEC+ALB)", COUNTRY_INFO!$T$9:$T$1000, " ") ->  | I168: 0 | M168: 0
A169: =IF(COUNTRY_INFO!A169=0," ",COUNTRY_INFO!A169) -> Mozambique | B169: =IF(COUNTRY_INFO!B169=0," ",COUNTRY_INFO!B169) -> Cidade de Maputo | C169: =IF(COUNTRY_INFO!C169=0," ",COUNTRY_INFO!C169) -> Kanyaca | D169: =IF(COUNTRY_INFO!$T$9:$T$1000="MDA2 (DEC+ALB)", COUNTRY_INFO!$T$9:$T$1000, " ") ->  | I169: 0 | M169: 0

Sheet MDA3 (hidden)
A1: MDA 3 - Ivermectin (IVM)
A2: Administrative structure, population requiring PC by age group, population treated by age group and coverage
A4: TOTAL | F4: =SUM(F$9:F$1000) -> 0 | G4: 0 | H4: 0 | I4: 0 | J4: 0 | K4: 0 | L4: 0 | M4: 0 | N4: 0 | O4: 0 | P4: 0 | Q4: 0 | R4: =IF(F4<>0, IF(O4/F4*100=0, "-", O4/F4*100), " ") ->  | S4: =IF(G4<>0, IF(P4/G4*100=0, "-", P4/G4*100), " ") ->  | T4: =IF(H4<>0, IF(Q4/H4*100=0, "-", Q4/H4*100), " ") -> 
D6: PC implemented | E6: Date | F6: Population targeted for MDA 3 | I6: Population treated - 1st round | L6: Population treated - 2nd round | O6: Population treated | R6: Programme coverage (%)
A7: Country | B7: Province/State | C7: District | F7: SAC | G7: Adults | H7: Total | I7: SAC | J7: Adults | K7: Total | L7: SAC | M7: Adults | N7: Total | O7: SAC | P7: Adults | Q7: Total | R7: SAC | S7: Adults | T7: Total
A9: =IF(COUNTRY_INFO!A9=0," ",COUNTRY_INFO!A9) -> Mozambique | B9: =IF(COUNTRY_INFO!B9=0," ",COUNTRY_INFO!B9) -> Cabo Delgado | C9: =IF(COUNTRY_INFO!C9=0," ",COUNTRY_INFO!C9) -> Cid. Pemba | D9: =IF(COUNTRY_INFO!$T$9:$T$1000="MDA3 (IVM)", COUNTRY_INFO!$T$9:$T$1000, " ") ->  | H9: =SUM(F9:G9) -> 0 | K9: =SUM(I9:J9) -> 0 | N9: =SUM(L9:M9) -> 0 | O9: =MAX(I9,L9) -> 0 | P9: =MAX(J9,M9) -> 0 | Q9: =SUM(O9:P9) -> 0 | R9: =IF(F9<>0, IF(MAX(I9,L9)/F9*100=0, "-", MAX(I9,L9)/F9*100), " ") ->  | S9: =IF(G9<>0, IF(MAX(J9,M9)/G9*100=0, "-", MAX(J9,M9)/G9*100), " ") ->  | T9: =IF(H9<>0, IF((MAX(I9,L9)+MAX(J9,M9))/H9*100=0, "-",(MAX(I9,L9)+MAX(J9,M9))/H9*100), " ") -> 
A10: =IF(COUNTRY_INFO!A10=0," ",COUNTRY_INFO!A10) -> Mozambique | B10: =IF(COUNTRY_INFO!B10=0," ",COUNTRY_INFO!B10) -> Cabo Delgado | C10: =IF(COUNTRY_INFO!C10=0," ",COUNTRY_INFO!C10) -> Ancuabe | D10: =IF(COUNTRY_INFO!$T$9:$T$1000="MDA3 (IVM)", COUNTRY_INFO!$T$9:$T$1000, " ") ->  | H10: =SUM(F10:G10) -> 0 | K10: =SUM(I10:J10) -> 0 | N10: =SUM(L10:M10) -> 0 | O10: =MAX(I10,L10) -> 0 | P10: =MAX(J10,M10) -> 0 | Q10: =SUM(O10:P10) -> 0 | R10: =IF(F10<>0, IF(MAX(I10,L10)/F10*100=0, "-", MAX(I10,L10)/F10*100), " ") ->  | S10: =IF(G10<>0, IF(MAX(J10,M10)/G10*100=0, "-", MAX(J10,M10)/G10*100), " ") ->  | T10: =IF(H10<>0, IF((MAX(I10,L10)+MAX(J10,M10))/H10*100=0, "-",(MAX(I10,L10)+MAX(J10,M10))/H10*100), " ") -> 
A11: =IF(COUNTRY_INFO!A11=0," ",COUNTRY_INFO!A11) -> Mozambique | B11: =IF(COUNTRY_INFO!B11=0," ",COUNTRY_INFO!B11) -> Cabo Delgado | C11: =IF(COUNTRY_INFO!C11=0," ",COUNTRY_INFO!C11) -> Balama | D11: =IF(COUNTRY_INFO!$T$9:$T$1000="MDA3 (IVM)", COUNTRY_INFO!$T$9:$T$1000, " ") ->  | H11: 0 | K11: 0 | N11: 0 | O11: 0 | P11: 0 | Q11: 0
A12: =IF(COUNTRY_INFO!A12=0," ",COUNTRY_INFO!A12) -> Mozambique | B12: =IF(COUNTRY_INFO!B12=0," ",COUNTRY_INFO!B12) -> Cabo Delgado | C12: =IF(COUNTRY_INFO!C12=0," ",COUNTRY_INFO!C12) -> Chiure | D12: =IF(COUNTRY_INFO!$T$9:$T$1000="MDA3 (IVM)", COUNTRY_INFO!$T$9:$T$1000, " ") ->  | H12: 0 | K12: 0 | N12: 0 | O12: 0 | P12: 0 | Q12: 0
A13: =IF(COUNTRY_INFO!A13=0," ",COUNTRY_INFO!A13) -> Mozambique | B13: =IF(COUNTRY_INFO!B13=0," ",COUNTRY_INFO!B13) -> Cabo Delgado | C13: =IF(COUNTRY_INFO!C13=0," ",COUNTRY_INFO!C13) -> Ibo | D13: =IF(COUNTRY_INFO!$T$9:$T$1000="MDA3 (IVM)", COUNTRY_INFO!$T$9:$T$1000, " ") ->  | H13: 0 | K13: 0 | N13: 0 | O13: 0 | P13: 0 | Q13: 0
A14: =IF(COUNTRY_INFO!A14=0," ",COUNTRY_INFO!A14) -> Mozambique | B14: =IF(COUNTRY_INFO!B14=0," ",COUNTRY_INFO!B14) -> Cabo Delgado | C14: =IF(COUNTRY_INFO!C14=0," ",COUNTRY_INFO!C14) -> Macomia | D14: =IF(COUNTRY_INFO!$T$9:$T$1000="MDA3 (IVM)", COUNTRY_INFO!$T$9:$T$1000, " ") ->  | H14: 0 | K14: 0 | N14: 0 | O14: 0 | P14: 0 | Q14: 0
A15: =IF(COUNTRY_INFO!A15=0," ",COUNTRY_INFO!A15) -> Mozambique | B15: =IF(COUNTRY_INFO!B15=0," ",COUNTRY_INFO!B15) -> Cabo Delgado | C15: =IF(COUNTRY_INFO!C15=0," ",COUNTRY_INFO!C15) -> Mecufi | D15: =IF(COUNTRY_INFO!$T$9:$T$1000="MDA3 (IVM)", COUNTRY_INFO!$T$9:$T$1000, " ") ->  | H15: 0 | K15: 0 | N15: 0 | O15: 0 | P15: 0 | Q15: 0
A16: =IF(COUNTRY_INFO!A16=0," ",COUNTRY_INFO!A16) -> Mozambique | B16: =IF(COUNTRY_INFO!B16=0," ",COUNTRY_INFO!B16) -> Cabo Delgado | C16: =IF(COUNTRY_INFO!C16=0," ",COUNTRY_INFO!C16) -> Meluco | D16: =IF(COUNTRY_INFO!$T$9:$T$1000="MDA3 (IVM)", COUNTRY_INFO!$T$9:$T$1000, " ") ->  | H16: 0 | K16: 0 | N16: 0 | O16: 0 | P16: 0 | Q16: 0
A17: =IF(COUNTRY_INFO!A17=0," ",COUNTRY_INFO!A17) -> Mozambique | B17: =IF(COUNTRY_INFO!B17=0," ",COUNTRY_INFO!B17) -> Cabo Delgado | C17: =IF(COUNTRY_INFO!C17=0," ",COUNTRY_INFO!C17) -> Moc Praia | D17: =IF(COUNTRY_INFO!$T$9:$T$1000="MDA3 (IVM)", COUNTRY_INFO!$T$9:$T$1000, " ") ->  | H17: 0 | K17: 0 | N17: 0 | O17: 0 | P17: 0 | Q17: 0
A18: =IF(COUNTRY_INFO!A18=0," ",COUNTRY_INFO!A18) -> Mozambique | B18: =IF(COUNTRY_INFO!B18=0," ",COUNTRY_INFO!B18) -> Cabo Delgado | C18: =IF(COUNTRY_INFO!C18=0," ",COUNTRY_INFO!C18) -> Montepuez | D18: =IF(COUNTRY_INFO!$T$9:$T$1000="MDA3 (IVM)", COUNTRY_INFO!$T$9:$T$1000, " ") ->  | H18: 0 | K18: 0 | N18: 0 | O18: 0 | P18: 0 | Q18: 0
A19: =IF(COUNTRY_INFO!A19=0," ",COUNTRY_INFO!A19) -> Mozambique | B19: =IF(COUNTRY_INFO!B19=0," ",COUNTRY_INFO!B19) -> Cabo Delgado | C19: =IF(COUNTRY_INFO!C19=0," ",COUNTRY_INFO!C19) -> Mueda | D19: =IF(COUNTRY_INFO!$T$9:$T$1000="MDA3 (IVM)", COUNTRY_INFO!$T$9:$T$1000, " ") ->  | H19: 0 | K19: 0 | N19: 0 | O19: 0 | P19: 0 | Q19: 0
A20: =IF(COUNTRY_INFO!A20=0," ",COUNTRY_INFO!A20) -> Mozambique | B20: =IF(COUNTRY_INFO!B20=0," ",COUNTRY_INFO!B20) -> Cabo Delgado | C20: =IF(COUNTRY_INFO!C20=0," ",COUNTRY_INFO!C20) -> Muidumbe | D20: =IF(COUNTRY_INFO!$T$9:$T$1000="MDA3 (IVM)", COUNTRY_INFO!$T$9:$T$1000, " ") ->  | H20: 0 | K20: 0 | N20: 0 | O20: 0 | P20: 0 | Q20: 0
A21: =IF(COUNTRY_INFO!A21=0," ",COUNTRY_INFO!A21) -> Mozambique | B21: =IF(COUNTRY_INFO!B21=0," ",COUNTRY_INFO!B21) -> Cabo Delgado | C21: =IF(COUNTRY_INFO!C21=0," ",COUNTRY_INFO!C21) -> Namuno | D21: =IF(COUNTRY_INFO!$T$9:$T$1000="MDA3 (IVM)", COUNTRY_INFO!$T$9:$T$1000, " ") ->  | H21: 0 | K21: 0 | N21: 0 | O21: 0 | P21: 0 | Q21: 0
A22: =IF(COUNTRY_INFO!A22=0," ",COUNTRY_INFO!A22) -> Mozambique | B22: =IF(COUNTRY_INFO!B22=0," ",COUNTRY_INFO!B22) -> Cabo Delgado | C22: =IF(COUNTRY_INFO!C22=0," ",COUNTRY_INFO!C22) -> Nangade | D22: =IF(COUNTRY_INFO!$T$9:$T$1000="MDA3 (IVM)", COUNTRY_INFO!$T$9:$T$1000, " ") ->  | H22: 0 | K22: 0 | N22: 0 | O22: 0 | P22: 0 | Q22: 0
A23: =IF(COUNTRY_INFO!A23=0," ",COUNTRY_INFO!A23) -> Mozambique | B23: =IF(COUNTRY_INFO!B23=0," ",COUNTRY_INFO!B23) -> Cabo Delgado | C23: =IF(COUNTRY_INFO!C23=0," ",COUNTRY_INFO!C23) -> Palma | D23: =IF(COUNTRY_INFO!$T$9:$T$1000="MDA3 (IVM)", COUNTRY_INFO!$T$9:$T$1000, " ") ->  | H23: 0 | K23: 0 | N23: 0 | O23: 0 | P23: 0 | Q23: 0
A24: =IF(COUNTRY_INFO!A24=0," ",COUNTRY_INFO!A24) -> Mozambique | B24: =IF(COUNTRY_INFO!B24=0," ",COUNTRY_INFO!B24) -> Cabo Delgado | C24: =IF(COUNTRY_INFO!C24=0," ",COUNTRY_INFO!C24) -> Pemba Metuge | D24: =IF(COUNTRY_INFO!$T$9:$T$1000="MDA3 (IVM)", COUNTRY_INFO!$T$9:$T$1000, " ") ->  | H24: 0 | K24: 0 | N24: 0 | O24: 0 | P24: 0 | Q24: 0
A25: =IF(COUNTRY_INFO!A25=0," ",COUNTRY_INFO!A25) -> Mozambique | B25: =IF(COUNTRY_INFO!B25=0," ",COUNTRY_INFO!B25) -> Cabo Delgado | C25: =IF(COUNTRY_INFO!C25=0," ",COUNTRY_INFO!C25) -> Quissanga | D25: =IF(COUNTRY_INFO!$T$9:$T$1000="MDA3 (IVM)", COUNTRY_INFO!$T$9:$T$1000, " ") ->  | H25: 0 | K25: 0 | N25: 0 | O25: 0 | P25: 0 | Q25: 0
A26: =IF(COUNTRY_INFO!A26=0," ",COUNTRY_INFO!A26) -> Mozambique | B26: =IF(COUNTRY_INFO!B26=0," ",COUNTRY_INFO!B26) -> Niassa | C26: =IF(COUNTRY_INFO!C26=0," ",COUNTRY_INFO!C26) -> Cidade de Lichinga | D26: =IF(COUNTRY_INFO!$T$9:$T$1000="MDA3 (IVM)", COUNTRY_INFO!$T$9:$T$1000, " ") ->  | H26: 0 | K26: 0 | N26: 0 | O26: 0 | P26: 0 | Q26: 0
A27: =IF(COUNTRY_INFO!A27=0," ",COUNTRY_INFO!A27) -> Mozambique | B27: =IF(COUNTRY_INFO!B27=0," ",COUNTRY_INFO!B27) -> Niassa | C27: =IF(COUNTRY_INFO!C27=0," ",COUNTRY_INFO!C27) -> Cuamba | D27: =IF(COUNTRY_INFO!$T$9:$T$1000="MDA3 (IVM)", COUNTRY_INFO!$T$9:$T$1000, " ") ->  | H27: 0 | K27: 0 | N27: 0 | O27: 0 | P27: 0 | Q27: 0
A28: =IF(COUNTRY_INFO!A28=0," ",COUNTRY_INFO!A28) -> Mozambique | B28: =IF(COUNTRY_INFO!B28=0," ",COUNTRY_INFO!B28) -> Niassa | C28: =IF(COUNTRY_INFO!C28=0," ",COUNTRY_INFO!C28) -> Chimbonila | D28: =IF(COUNTRY_INFO!$T$9:$T$1000="MDA3 (IVM)", COUNTRY_INFO!$T$9:$T$1000, " ") ->  | H28: 0 | K28: 0 | N28: 0 | O28: 0 | P28: 0 | Q28: 0
A29: =IF(COUNTRY_INFO!A29=0," ",COUNTRY_INFO!A29) -> Mozambique | B29: =IF(COUNTRY_INFO!B29=0," ",COUNTRY_INFO!B29) -> Niassa | C29: =IF(COUNTRY_INFO!C29=0," ",COUNTRY_INFO!C29) -> Lago | D29: =IF(COUNTRY_INFO!$T$9:$T$1000="MDA3 (IVM)", COUNTRY_INFO!$T$9:$T$1000, " ") ->  | H29: 0 | K29: 0 | N29: 0 | O29: 0 | P29: 0 | Q29: 0
A30: =IF(COUNTRY_INFO!A30=0," ",COUNTRY_INFO!A30) -> Mozambique | B30: =IF(COUNTRY_INFO!B30=0," ",COUNTRY_INFO!B30) -> Niassa | C30: =IF(COUNTRY_INFO!C30=0," ",COUNTRY_INFO!C30) -> Majune | D30: =IF(COUNTRY_INFO!$T$9:$T$1000="MDA3 (IVM)", COUNTRY_INFO!$T$9:$T$1000, " ") ->  | H30: 0 | K30: 0 | N30: 0 | O30: 0 | P30: 0 | Q30: 0
A31: =IF(COUNTRY_INFO!A31=0," ",COUNTRY_INFO!A31) -> Mozambique | B31: =IF(COUNTRY_INFO!B31=0," ",COUNTRY_INFO!B31) -> Niassa | C31: =IF(COUNTRY_INFO!C31=0," ",COUNTRY_INFO!C31) -> Mandimba | D31: =IF(COUNTRY_INFO!$T$9:$T$1000="MDA3 (IVM)", COUNTRY_INFO!$T$9:$T$1000, " ") ->  | H31: 0 | K31: 0 | N31: 0 | O31: 0 | P31: 0 | Q31: 0
A32: =IF(COUNTRY_INFO!A32=0," ",COUNTRY_INFO!A32) -> Mozambique | B32: =IF(COUNTRY_INFO!B32=0," ",COUNTRY_INFO!B32) -> Niassa | C32: =IF(COUNTRY_INFO!C32=0," ",COUNTRY_INFO!C32) -> Marrupa | D32: =IF(COUNTRY_INFO!$T$9:$T$1000="MDA3 (IVM)", COUNTRY_INFO!$T$9:$T$1000, " ") ->  | H32: 0 | K32: 0 | N32: 0 | O32: 0 | P32: 0 | Q32: 0
A33: =IF(COUNTRY_INFO!A33=0," ",COUNTRY_INFO!A33) -> Mozambique | B33: =IF(COUNTRY_INFO!B33=0," ",COUNTRY_INFO!B33) -> Niassa | C33: =IF(COUNTRY_INFO!C33=0," ",COUNTRY_INFO!C33) -> Maúa | D33: =IF(COUNTRY_INFO!$T$9:$T$1000="MDA3 (IVM)", COUNTRY_INFO!$T$9:$T$1000, " ") ->  | H33: 0 | K33: 0 | N33: 0 | O33: 0 | P33: 0 | Q33: 0
A34: =IF(COUNTRY_INFO!A34=0," ",COUNTRY_INFO!A34) -> Mozambique | B34: =IF(COUNTRY_INFO!B34=0," ",COUNTRY_INFO!B34) -> Niassa | C34: =IF(COUNTRY_INFO!C34=0," ",COUNTRY_INFO!C34) -> Mavago | D34: =IF(COUNTRY_INFO!$T$9:$T$1000="MDA3 (IVM)", COUNTRY_INFO!$T$9:$T$1000, " ") ->  | H34: 0 | K34: 0 | N34: 0 | O34: 0 | P34: 0 | Q34: 0
A35: =IF(COUNTRY_INFO!A35=0," ",COUNTRY_INFO!A35) -> Mozambique | B35: =IF(COUNTRY_INFO!B35=0," ",COUNTRY_INFO!B35) -> Niassa | C35: =IF(COUNTRY_INFO!C35=0," ",COUNTRY_INFO!C35) -> Mecanhelas | D35: =IF(COUNTRY_INFO!$T$9:$T$1000="MDA3 (IVM)", COUNTRY_INFO!$T$9:$T$1000, " ") ->  | H35: 0 | K35: 0 | N35: 0 | O35: 0 | P35: 0 | Q35: 0
A36: =IF(COUNTRY_INFO!A36=0," ",COUNTRY_INFO!A36) -> Mozambique | B36: =IF(COUNTRY_INFO!B36=0," ",COUNTRY_INFO!B36) -> Niassa | C36: =IF(COUNTRY_INFO!C36=0," ",COUNTRY_INFO!C36) -> Mecula | D36: =IF(COUNTRY_INFO!$T$9:$T$1000="MDA3 (IVM)", COUNTRY_INFO!$T$9:$T$1000, " ") ->  | H36: 0 | K36: 0 | N36: 0 | O36: 0 | P36: 0 | Q36: 0
A37: =IF(COUNTRY_INFO!A37=0," ",COUNTRY_INFO!A37) -> Mozambique | B37: =IF(COUNTRY_INFO!B37=0," ",COUNTRY_INFO!B37) -> Niassa | C37: =IF(COUNTRY_INFO!C37=0," ",COUNTRY_INFO!C37) -> Metarica | D37: =IF(COUNTRY_INFO!$T$9:$T$1000="MDA3 (IVM)", COUNTRY_INFO!$T$9:$T$1000, " ") ->  | H37: 0 | K37: 0 | N37: 0 | O37: 0 | P37: 0 | Q37: 0
A38: =IF(COUNTRY_INFO!A38=0," ",COUNTRY_INFO!A38) -> Mozambique | B38: =IF(COUNTRY_INFO!B38=0," ",COUNTRY_INFO!B38) -> Niassa | C38: =IF(COUNTRY_INFO!C38=0," ",COUNTRY_INFO!C38) -> Muembe | D38: =IF(COUNTRY_INFO!$T$9:$T$1000="MDA3 (IVM)", COUNTRY_INFO!$T$9:$T$1000, " ") ->  | H38: 0 | K38: 0 | N38: 0 | O38: 0 | P38: 0 | Q38: 0
A39: =IF(COUNTRY_INFO!A39=0," ",COUNTRY_INFO!A39) -> Mozambique | B39: =IF(COUNTRY_INFO!B39=0," ",COUNTRY_INFO!B39) -> Niassa | C39: =IF(COUNTRY_INFO!C39=0," ",COUNTRY_INFO!C39) -> N'Gaúma | D39: =IF(COUNTRY_INFO!$T$9:$T$1000="MDA3 (IVM)", COUNTRY_INFO!$T$9:$T$1000, " ") ->  | H39: 0 | K39: 0 | N39: 0 | O39: 0 | P39: 0 | Q39: 0
A40: =IF(COUNTRY_INFO!A40=0," ",COUNTRY_INFO!A40) -> Mozambique | B40: =IF(COUNTRY_INFO!B40=0," ",COUNTRY_INFO!B40) -> Niassa | C40: =IF(COUNTRY_INFO!C40=0," ",COUNTRY_INFO!C40) -> Nipepe | D40: =IF(COUNTRY_INFO!$T$9:$T$1000="MDA3 (IVM)", COUNTRY_INFO!$T$9:$T$1000, " ") ->  | H40: 0 | K40: 0 | N40: 0 | O40: 0 | P40: 0 | Q40: 0
A41: =IF(COUNTRY_INFO!A41=0," ",COUNTRY_INFO!A41) -> Mozambique | B41: =IF(COUNTRY_INFO!B41=0," ",COUNTRY_INFO!B41) -> Niassa | C41: =IF(COUNTRY_INFO!C41=0," ",COUNTRY_INFO!C41) -> Sanga | D41: =IF(COUNTRY_INFO!$T$9:$T$1000="MDA3 (IVM)", COUNTRY_INFO!$T$9:$T$1000, " ") ->  | H41: 0 | K41: 0 | N41: 0 | O41: 0 | P41: 0 | Q41: 0
A42: =IF(COUNTRY_INFO!A42=0," ",COUNTRY_INFO!A42) -> Mozambique | B42: =IF(COUNTRY_INFO!B42=0," ",COUNTRY_INFO!B42) -> Nampula | C42: =IF(COUNTRY_INFO!C42=0," ",COUNTRY_INFO!C42) -> Cid. Nampula | D42: =IF(COUNTRY_INFO!$T$9:$T$1000="MDA3 (IVM)", COUNTRY_INFO!$T$9:$T$1000, " ") ->  | H42: 0 | K42: 0 | N42: 0 | O42: 0 | P42: 0 | Q42: 0
